Workbook

Sheet sfd
A1: State/UT Name: KERALA | AB1: (Rs. in lakh)
A2: Sl.No | B2: Name of the districts | C2: SOCIAL CATEGORY GROUP | I2: Physical items Approved | AB2: Total financial outlay of SSA | AC2: KGBV Outlay | AD2: Total Outlay
C3: 109 SCHEDULED TRIBES (25% and above) | D3: 61 SCHEDULED CASTES (25% and above) | E3: 121 PMO's Minority Districts | F3: 88 Muslim Concentration (20% and above) | G3: LWE Districts | H3: 88 LWE Affected Districts | P3: PS | Q3: Upgradation of PS to UPS | R3: Residential schools | S3: Residential hostel | T3: Integration of Class VIII with UPS | U3: Teachers | X3: Teachers Training | Y3: Uniforms | Z3: Text books | AA3: No. of KGBV
I4: New PS Buildings | J4: New UPS Buildings | K4: ACR | L4: ACR in lieu of upgraded Primary School | M4: ACR in lieu of upgraded Upper Primary School | N4: All Toilets (including girls toilets) | O4: Girls Toilets | U4: New teachers for new schools | V4: Additional teach. Against excess enrolment | W4: Part Time Instructors
A5: 1 | B5: Allappuzzha | E5: 1 | I5: =ALP!$Y$349+ALP!$Y$350 -> 0 | J5: =ALP!$Y$351+ALP!$Y$352 -> 0 | K5: =ALP!$Y$354+ALP!$Y$360+ALP!$Y$361 -> 0 | M5: =ALP!$Y$354 -> 0 | N5: =ALP!$Y$363+ALP!$Y$364+ALP!$Y$365 -> 4 | O5: =ALP!$Y$364 -> 1 | P5: =ALP!$Y$7 -> 0 | Q5: =ALP!$Y$8 -> 0 | R5: =ALP!$Y$10 -> 0 | S5: =ALP!$Y$11 -> 0 | T5: =ALP!$Y$13 -> 0 | U5: =ALP!$Y$238 -> 0 | W5: =ALP!$Y$254+ALP!$Y$255+ALP!$Y$256 -> 147 | X5: =ALP!$Y$282 -> 13494 | Y5: =ALP!$Y$212 -> 38666 | Z5: =ALP!$Y$206 -> 121623 | AB5: =ALP!AB402 -> 3213.376237 | AC5: 0 | AD5: =SUM(AB5:AC5) -> 3213.376237
A6: 2 | B6: Ernakulam | E6: 1 | I6: =EKM!$Y$349+EKM!$Y$350 -> 0 | J6: =EKM!$Y$351+EKM!$Y$352 -> 0 | K6: =EKM!$Y$354+EKM!$Y$360+EKM!$Y$361 -> 4 | M6: =EKM!$Y$354 -> 0 | N6: =EKM!$Y$363+EKM!$Y$364+EKM!$Y$365 -> 3 | O6: =EKM!$Y$364 -> 0 | P6: =EKM!$Y$7 -> 0 | Q6: =EKM!$Y$8 -> 0 | R6: =EKM!$Y$10 -> 0 | S6: =EKM!$Y$11 -> 0 | T6: =EKM!$Y$13 -> 0 | U6: =EKM!$Y$238 -> 0 | W6: =EKM!$Y$254+EKM!$Y$255+EKM!$Y$256 -> 123 | X6: =EKM!$Y$282 -> 17625 | Y6: =EKM!$Y$212 -> 33742 | Z6: =EKM!$Y$206 -> 158120 | AB6: =EKM!$AB$402 -> 3508.1083 | AC6: 0 | AD6: 3508.1083
A7: 3 | B7: Iddukki | E7: 1 | I7: =IKD!$Y$349+IKD!$Y$350 -> 0 | J7: =IKD!$Y$351+IKD!$Y$352 -> 0 | K7: =IKD!$Y$354+IKD!$Y$360+IKD!$Y$361 -> 0 | M7: =IKD!$Y$354 -> 0 | N7: =IKD!$Y$363+IKD!$Y$364+IKD!$Y$365 -> 2 | O7: =IKD!$Y$364 -> 0 | P7: =IKD!$Y$7 -> 0 | Q7: =IKD!$Y$8 -> 0 | R7: =IKD!$Y$10 -> 0 | S7: =IKD!$Y$11 -> 0 | T7: =IKD!$Y$13 -> 0 | U7: =IKD!$Y$238 -> 0 | W7: =IKD!$Y$254+IKD!$Y$255+IKD!$Y$256 -> 84 | X7: =IKD!$Y$282 -> 7961 | Y7: =IKD!$Y$212 -> 21226 | Z7: =IKD!$Y$206 -> 63269 | AB7: =IKD!$AB$402 -> 2076.023543 | AC7: 0 | AD7: 2076.023543
A8: 4 | B8: Kannur | E8: 1 | F8: 1 | I8: =KNR!$Y$349+KNR!$Y$350 -> 0 | J8: =KNR!$Y$351+KNR!$Y$352 -> 0 | K8: =KNR!$Y$354+KNR!$Y$360+KNR!$Y$361 -> 0 | M8: =KNR!$Y$354 -> 0 | N8: =KNR!$Y$363+KNR!$Y$364+KNR!$Y$365 -> 20 | O8: =KNR!$Y$364 -> 1 | P8: =KNR!$Y$7 -> 0 | Q8: =KNR!$Y$8 -> 0 | R8: =KNR!$Y$10 -> 0 | S8: =KNR!$Y$11 -> 0 | T8: =KNR!$Y$13 -> 0 | U8: =KNR!$Y$238 -> 0 | W8: =KNR!$Y$254+KNR!$Y$255+KNR!$Y$256 -> 72 | X8: =KNR!$Y$282 -> 23191 | Y8: =KNR!$Y$212 -> 38300 | Z8: =KNR!$Y$206 -> 179496 | AB8: =KNR!$AB$402 -> 3097.41012 | AC8: 0 | AD8: 3097.41012
A9: 5 | B9: Kasargod | E9: 1 | F9: 1 | I9: =KSD!$Y$349+KSD!$Y$350 -> 0 | J9: =KSD!$Y$351+KSD!$Y$352 -> 0 | K9: =KSD!$Y$354+KSD!$Y$360+KSD!$Y$361 -> 8 | M9: =KSD!$Y$354 -> 0 | N9: =KSD!$Y$363+KSD!$Y$364+KSD!$Y$365 -> 34 | O9: =KSD!$Y$364 -> 6 | P9: =KSD!$Y$7 -> 0 | Q9: =KSD!$Y$8 -> 0 | R9: =KSD!$Y$10 -> 0 | S9: =KSD!$Y$11 -> 0 | T9: =KSD!$Y$13 -> 0 | U9: =KSD!$Y$238 -> 0 | W9: =KSD!$Y$254+KSD!$Y$255+KSD!$Y$256 -> 174 | X9: =KSD!$Y$282 -> 11563 | Y9: =KSD!$Y$212 -> 54751 | Z9: =KSD!$Y$206 -> 101874 | AB9: =KSD!$AB$402 -> 3212.258291 | AC9: 0 | AD9: 3212.258291
A10: 6 | B10: Kollam | E10: 1 | I10: =KLM!$Y$349+KLM!$Y$350 -> 0 | J10: =KLM!$Y$351+KLM!$Y$352 -> 0 | K10: =KLM!$Y$354+KLM!$Y$360+KLM!$Y$361 -> 0 | M10: =KLM!$Y$354 -> 0 | N10: =KLM!$Y$363+KLM!$Y$364+KLM!$Y$365 -> 62 | O10: =KLM!$Y$364 -> 14 | P10: =KLM!$Y$7 -> 0 | Q10: =KLM!$Y$8 -> 0 | R10: =KLM!$Y$10 -> 0 | S10: =KLM!$Y$11 -> 0 | T10: =KLM!$Y$13 -> 0 | U10: =KLM!$Y$238 -> 0 | W10: =KLM!$Y$254+KLM!$Y$255+KLM!$Y$256 -> 285 | X10: =KLM!$Y$282 -> 17668 | Y10: =KLM!$Y$212 -> 60303 | Z10: =KLM!$Y$206 -> 148190 | AB10: =KLM!$AB$402 -> 4495.497166 | AC10: 0 | AD10: 4495.497166
A11: 7 | B11: Kottayam | E11: 1 | I11: =KTM!$Y$349+KTM!$Y$350 -> 0 | J11: =KTM!$Y$351+KTM!$Y$352 -> 0 | K11: =KTM!$Y$354+KTM!$Y$360+KTM!$Y$361 -> 0 | M11: =KTM!$Y$354 -> 0 | N11: =KTM!$Y$363+KTM!$Y$364+KTM!$Y$365 -> 2 | O11: =KTM!$Y$364 -> 0 | P11: =KTM!$Y$7 -> 0 | Q11: =KTM!$Y$8 -> 0 | R11: =KTM!$Y$10 -> 0 | S11: =KTM!$Y$11 -> 0 | T11: =KTM!$Y$13 -> 0 | U11: =KTM!$Y$238 -> 0 | W11: =KTM!$Y$254+KTM!$Y$255+KTM!$Y$256 -> 48 | X11: =KTM!$Y$282 -> 13632 | Y11: =KTM!$Y$212 -> 17761 | Z11: =KTM!$Y$206 -> 113557 | AB11: =KTM!$AB$402 -> 2346.48998 | AC11: 0 | AD11: 2346.48998
A12: 8 | B12: Kozhikode | E12: 1 | F12: 1 | I12: =KKD!$Y$349+KKD!$Y$350 -> 0 | J12: =KKD!$Y$351+KKD!$Y$352 -> 0 | K12: =KKD!$Y$354+KKD!$Y$360+KKD!$Y$361 -> 10 | M12: =KKD!$Y$354 -> 0 | N12: =KKD!$Y$363+KKD!$Y$364+KKD!$Y$365 -> 41 | O12: =KKD!$Y$364 -> 9 | P12: =KKD!$Y$7 -> 0 | Q12: =KKD!$Y$8 -> 0 | R12: =KKD!$Y$10 -> 0 | S12: =KKD!$Y$11 -> 0 | T12: =KKD!$Y$13 -> 0 | U12: =KKD!$Y$238 -> 0 | W12: =KKD!$Y$254+KKD!$Y$255+KKD!$Y$256 -> 345 | X12: =KKD!$Y$282 -> 27457 | Y12: =KKD!$Y$212 -> 69581 | Z12: =KKD!$Y$206 -> 239756 | AB12: =KKD!$AB$402 -> 5940.961978 | AC12: 0 | AD12: 5940.961978
A13: 9 | B13: Mallapuram | E13: 1 | F13: 1 | I13: =MLP!$Y$349+MLP!$Y$350 -> 0 | J13: =MLP!$Y$351+MLP!$Y$352 -> 0 | K13: =MLP!$Y$354+MLP!$Y$360+MLP!$Y$361 -> 29 | M13: =MLP!$Y$354 -> 0 | N13: =MLP!$Y$363+MLP!$Y$364+MLP!$Y$365 -> 60 | O13: =MLP!$Y$364 -> 17 | P13: =MLP!$Y$7 -> 0 | Q13: =MLP!$Y$8 -> 0 | R13: =MLP!$Y$10 -> 0 | S13: =MLP!$Y$11 -> 0 | T13: =MLP!$Y$13 -> 0 | U13: =MLP!$Y$238 -> 0 | W13: =MLP!$Y$254+MLP!$Y$255+MLP!$Y$256 -> 435 | X13: =MLP!$Y$282 -> 39428 | Y13: =MLP!$Y$212 -> 161990 | Z13: =MLP!$Y$206 -> 429812 | AB13: =MLP!$AB$402 -> 8359.7276 | AC13: 0 | AD13: 8359.7276
A14: 10 | B14: Palakkad | E14: 1 | F14: 1 | I14: =PKD!$Y$349+PKD!$Y$350 -> 0 | J14: =PKD!$Y$351+PKD!$Y$352 -> 0 | K14: =PKD!$Y$354+PKD!$Y$360+PKD!$Y$361 -> 3 | M14: =PKD!$Y$354 -> 0 | N14: =PKD!$Y$363+PKD!$Y$364+PKD!$Y$365 -> 39 | O14: =PKD!$Y$364 -> 9 | P14: =PKD!$Y$7 -> 0 | Q14: =PKD!$Y$8 -> 0 | R14: =PKD!$Y$10 -> 0 | S14: =PKD!$Y$11 -> 0 | T14: =PKD!$Y$13 -> 0 | U14: =PKD!$Y$238 -> 0 | W14: =PKD!$Y$254+PKD!$Y$255+PKD!$Y$256 -> 300 | X14: =PKD!$Y$282 -> 22230 | Y14: =PKD!$Y$212 -> 69588 | Z14: =PKD!$Y$206 -> 204435 | AB14: =PKD!$AB$402 -> 5131.303455 | AC14: 0 | AD14: 5131.303455
A15: 11 | B15: Patthanamthitta | E15: 1 | I15: =PTA!$Y$349+PTA!$Y$350 -> 0 | J15: =PTA!$Y$351+PTA!$Y$352 -> 0 | K15: =PTA!$Y$354+PTA!$Y$360+PTA!$Y$361 -> 0 | M15: =PTA!$Y$354 -> 0 | N15: =PTA!$Y$363+PTA!$Y$364+PTA!$Y$365 -> 6 | O15: =PTA!$Y$364 -> 0 | P15: =PTA!$Y$7 -> 0 | Q15: =PTA!$Y$8 -> 0 | R15: =PTA!$Y$10 -> 0 | S15: =PTA!$Y$11 -> 0 | T15: =PTA!$Y$13 -> 0 | U15: =PTA!$Y$238 -> 0 | W15: =PTA!$Y$254+PTA!$Y$255+PTA!$Y$256 -> 45 | X15: =PTA!$Y$282 -> 8938 | Y15: =PTA!$Y$212 -> 15862 | Z15: =PTA!$Y$206 -> 55641 | AB15: =PTA!$AB$402 -> 1795.227554 | AC15: 0 | AD15: 1795.227554
A16: 12 | B16: Thiruvananthapuram | E16: 1 | I16: =TVM!$Y$349+TVM!$Y$350 -> 0 | J16: =TVM!$Y$351+TVM!$Y$352 -> 0 | K16: =TVM!$Y$354+TVM!$Y$360+TVM!$Y$361 -> 18 | M16: =TVM!$Y$354 -> 0 | N16: =TVM!$Y$363+TVM!$Y$364+TVM!$Y$365 -> 28 | O16: =TVM!$Y$364 -> 6 | P16: =TVM!$Y$7 -> 0 | Q16: =TVM!$Y$8 -> 0 | R16: =TVM!$Y$10 -> 0 | S16: =TVM!$Y$11 -> 0 | T16: =TVM!$Y$13 -> 0 | U16: =TVM!$Y$238 -> 0 | W16: =TVM!$Y$254+TVM!$Y$255+TVM!$Y$256 -> 162 | X16: =TVM!$Y$282 -> 19097 | Y16: =TVM!$Y$212 -> 97805 | Z16: =TVM!$Y$206 -> 184057 | AB16: =TVM!$AB$402 -> 5080.404002 | AC16: 0 | AD16: 5080.404002
A17: 13 | B17: Thrissur | E17: 1 | I17: =TSR!$Y$349+TSR!$Y$350 -> 0 | J17: =TSR!$Y$351+TSR!$Y$352 -> 0 | K17: =TSR!$Y$354+TSR!$Y$360+TSR!$Y$361 -> 30 | M17: =TSR!$Y$354 -> 0 | N17: =TSR!$Y$363+TSR!$Y$364+TSR!$Y$365 -> 25 | O17: =TSR!$Y$364 -> 2 | P17: =TSR!$Y$7 -> 0 | Q17: =TSR!$Y$8 -> 0 | R17: =TSR!$Y$10 -> 0 | S17: =TSR!$Y$11 -> 0 | T17: =TSR!$Y$13 -> 0 | U17: =TSR!$Y$238 -> 0 | W17: =TSR!$Y$254+TSR!$Y$255+TSR!$Y$256 -> 216 | X17: =TSR!$Y$282 -> 19931 | Y17: =TSR!$Y$212 -> 36376 | Z17: =TSR!$Y$206 -> 184994 | AB17: =TSR!$AB$402 -> 5098.162108 | AC17: 0 | AD17: 5098.162108
A18: 14 | B18: Wayanad | E18: 1 | F18: 1 | I18: =WYND!$Y$349+WYND!$Y$350 -> 0 | J18: =WYND!$Y$351+WYND!$Y$352 -> 0 | K18: =WYND!$Y$354+WYND!$Y$360+WYND!$Y$361 -> 5 | M18: =WYND!$Y$354 -> 0 | N18: =WYND!$Y$363+WYND!$Y$364+WYND!$Y$365 -> 8 | O18: =WYND!$Y$364 -> 0 | P18: =WYND!$Y$7 -> 0 | Q18: =WYND!$Y$8 -> 0 | R18: =WYND!$Y$10 -> 0 | S18: =WYND!$Y$11 -> 0 | T18: =WYND!$Y$13 -> 0 | U18: =WYND!$Y$238 -> 0 | W18: =WYND!$Y$254+WYND!$Y$255+WYND!$Y$256 -> 165 | X18: =WYND!$Y$282 -> 7319 | Y18: =WYND!$Y$212 -> 39346 | Z18: =WYND!$Y$206 -> 71104 | AB18: =WYND!$AB$402 -> 2364.786574 | AC18: 0 | AD18: 2364.786574
B19: Total No.of Categorywise SFDs | C19: =SUM(C5:C18) -> 0 | D19: 0 | E19: 14 | F19: 6 | G19: 0 | H19: 0 | I19: 0 | J19: 0 | K19: 107 | L19: 0 | M19: 0 | N19: 334 | O19: =SUM(O5:O18) -> 65 | P19: 0 | Q19: 0 | R19: 0 | S19: 0 | T19: 0 | U19: 0 | V19: 0 | W19: 2601 | X19: 249534 | Y19: 755297 | Z19: 2255928 | AA19: 0 | AB19: =SUM(AB5:AB18) -> 55719.73691 | AC19: 0 | AD19: 55719.73691
A20: State total | I20: =State!$Y$349+State!$Y$350 -> 0 | J20: =State!$Y$351+State!$Y$352 -> 0 | K20: =State!$Y$354+State!$Y$360+State!$Y$361 -> 107 | M20: =State!$Y$354 -> 0 | N20: =State!$Y$363+State!$Y$364+State!$Y$365 -> 334 | O20: =State!Y364 -> 65 | P20: =State!$Y$7 -> 0 | Q20: =State!$Y$8 -> 0 | R20: =State!$Y$10 -> 0 | S20: =State!$Y$11 -> 0 | T20: =State!$Y$13 -> 0 | U20: =State!$Y$238 -> 0 | W20: =State!$Y$254+State!$Y$255+State!$Y$256 -> 2601 | X20: =State!$Y$282 -> 249534 | Y20: =State!$Y$212 -> 755297 | Z20: =State!$Y$206 -> 2255928 | AB20: =State!AB407 -> 56473.76691 | AC20: 0 | AD20: 56473.76691
A21: % w.r.t Approvals for the whole state | I21: =IF(I20>0, I19/I$20," ") ->  | K21: 1 | N21: 1 | O21: 1 | W21: 1 | X21: 1 | Y21: 1 | Z21: 1 | AB21: 0.986648137 | AD21: 0.986648137
F22: Categorywise Total and % against State Allocation | H22: ST (25% and above) | I22: =SUMIF($C$5:$C$18, "1", I5:I18) -> 0 | J22: 0 | K22: 0 | L22: 0 | M22: 0 | N22: 0 | O22: 0 | P22: 0 | Q22: 0 | R22: 0 | S22: 0 | T22: 0 | U22: 0 | V22: 0 | W22: 0 | X22: 0 | Y22: 0 | Z22: 0 | AA22: 0 | AB22: 0 | AC22: 0 | AD22: 0
H23: % ST Allocation | I23: =IF(I22>0, I22/I$19," ") -> 
H24: SC (25% and above) | I24: =SUMIF($D$5:$D$18, "1", I5:I18) -> 0 | J24: 0 | K24: 0 | L24: 0 | M24: 0 | N24: 0 | O24: 0 | P24: 0 | Q24: 0 | R24: 0 | S24: 0 | T24: 0 | U24: 0 | V24: 0 | W24: 0 | X24: 0 | Y24: 0 | Z24: 0 | AA24: 0 | AB24: 0 | AC24: 0 | AD24: 0
H25: % SC Allocation | I25: =IF(I24>0, I24/I$19," ") -> 
H26: PMO's 121 Minority Districts | I26: =SUMIF($E$5:$E$18, "1", I5:I18) -> 0 | J26: 0 | K26: 107 | L26: 0 | M26: 0 | N26: 334 | O26: 65 | P26: 0 | Q26: 0 | R26: 0 | S26: 0 | T26: 0 | U26: 0 | V26: 0 | W26: 2601 | X26: 249534 | Y26: 755297 | Z26: 2255928 | AA26: 0 | AB26: 55719.73691 | AC26: 0 | AD26: 55719.73691
H27: % PMO's 121 Minority Allocation | I27: =IF(I26>0, I26/I$19," ") ->  | K27: 1 | N27: 1 | O27: 1 | W27: 1 | X27: 1 | Y27: 1 | Z27: 1 | AB27: 1 | AD27: 1
H28: Muslim Concentration (20% and above) | I28: =SUMIF($F$5:$F$18, "1", I5:I18) -> 0 | J28: 0 | K28: 55 | L28: 0 | M28: 0 | N28: 202 | O28: 42 | P28: 0 | Q28: 0 | R28: 0 | S28: 0 | T28: 0 | U28: 0 | V28: 0 | W28: 1491 | X28: 131188 | Y28: 433556 | Z28: 1226477 | AA28: 0 | AB28: 28106.44802 | AC28: 0 | AD28: 28106.44802
H29: % Muslim Allocation | I29: =IF(I28>0, I28/I$19," ") ->  | K29: 0.5140186916 | N29: 0.6047904192 | O29: 0.6461538462 | W29: 0.5732410611 | X29: 0.5257319644 | Y29: 0.5740205509 | Z29: 0.5436685036 | AB29: 0.5044253541 | AD29: 0.5044253541
H30: LWE Affected Districts (20% and above) | I30: =SUMIF($H$5:$H$18, "1", I5:I18) -> 0 | J30: 0 | K30: 0 | L30: 0 | M30: 0 | N30: 0 | O30: 0 | P30: 0 | Q30: 0 | R30: 0 | S30: 0 | T30: 0 | U30: 0 | V30: 0 | W30: 0 | X30: 0 | Y30: 0 | Z30: 0 | AA30: 0 | AB30: 0 | AC30: 0 | AD30: 0
H31: % LWE Affected Districts Allocation | I31: =IF(I30>0, I30/I$19," ") -> 

Sheet Provision
A2: Outlay approved | B2: Capital Head (all civil works under SSA & KGBV) | C2: General Head | D2: GOI Share (60% )
D3: Capital Head | E3: General Head | F3: Total
A4: =State!AB407 -> 56473.76691 | B4: =State!AB388 -> 2049.93 | C4: =A4-B4 -> 54423.83691 | D4: =B4*60/100 -> 1229.958 | E4: =C4*60/100 -> 32654.30215 | F4: =+E4+D4 -> 33884.26015
A5: =State!AB407 -> 56473.76691

Sheet pro-rec
A2: S. No. | B2: Head | C2: Outlay Proposed | G2: Approved Outlay | L2: Outlay approved in 2016-17 | M2: Outlay Recommended for 2017-18 | N2: Increase in Outlay for 201718 | O2: %
C3: Spill Over | D3: Deffered liability | E3: Fresh | F3: Total | G3: Spill Over | H3: Deffered liability | I3: Fresh | J3: Total | L3: =State!D407 -> 52747.59691 | M3: =State!AB407 -> 56473.76691 | N3: =M3-L3 -> 3726.170002 | O3: =N3/L3*100 -> 7.064151204
A4: 1 | B4: SSA | C4: =State!L407 -> 62.9 | D4: =State!N407 -> 0 | E4: =State!Q407 -> 87119.3355 | F4: =C4+D4+E4 -> 87182.2355 | G4: =State!U407 -> 62.9 | H4: =State!X407 -> 0 | I4: =State!Z407 -> 56410.86691 | J4: =SUM(G4:I4) -> 56473.76691
B5: Total | C5: =C4 -> 62.9 | D5: 0 | E5: 87119.3355 | F5: 87182.2355 | G5: 62.9 | H5: 0 | I5: 56410.86691 | J5: 56473.76691
F7: =State!S407 -> 87182.2355 | J7: =State!AB407 -> 56473.76691
F8: =F5-F7 -> 0 | J8: =J5-J7 -> 0

Sheet Category wise
A1: AWP&B 2017-18 Intervention wise Tentetive Recommendation
A2: (Rs. in lakhs)
A3: State : Kerala | C3: Proposed by State for FY 2017-18 | H3: Recommendation for FY 2017-18
A4: S.No. | B4: Intervention | C4: Spill over | D4: Fresh Proposal | F4: Total | H4: Spill over | I4: Fresh Proposal | K4: Total | M4: Remarks
C5: Fin. | D5: Phy. | E5: Fin | F5: Phy. | G5: Fin | H5: Fin. | I5: Phy. | J5: Fin | K5: Phy. | L5: Fin
A6: Category-1
A7: 1 | B7: Reimbursement under Section 12(1)(c) | F7: =D7 -> 0 | G7: =C7+E7 -> 0 | K7: =I7 -> 0 | L7: =H7+J7 -> 0
A8: 2 | B8: Free Text Books | F8: =D8 -> 0 | G8: =C8+E8 -> 0 | K8: =I8 -> 0 | L8: =H8+J8 -> 0
B9: a. Primary | D9: =State!P197+State!P200 -> 1142350 | E9: =State!Q197+State!Q200 -> 2855.875 | F9: 1142350 | G9: 2855.875 | I9: =State!Y197+State!Y200 -> 1142350 | J9: =State!Z197+State!Z200 -> 1713.525 | K9: 1142350 | L9: 1713.525
B10: b. Upper Primary | D10: =State!P203 -> 1112884 | E10: =State!Q203 -> 5564.42 | F10: 1112884 | G10: 5564.42 | I10: =State!Y203 -> 1112884 | J10: =State!Z203 -> 2782.21 | K10: 1112884 | L10: 2782.21
B11: c. Large Print Book | D11: =State!P199+State!P202+State!P205 -> 369 | E11: =State!Q199+State!Q202+State!Q205 -> 1.29 | F11: 369 | G11: 1.29 | I11: =State!Y199+State!Y202+State!Y205 -> 369 | J11: =State!Z199+State!Z202+State!Z205 -> 0.7005 | K11: 369 | L11: 0.7005
B12: d. Braille Book | D12: =State!P198+State!P201+State!P204 -> 325 | E12: =State!Q198+State!Q201+State!Q204 -> 1.1625 | F12: 325 | G12: 1.1625 | I12: =State!Y198+State!Y201+State!Y204 -> 325 | J12: =State!Z198+State!Z201+State!Z204 -> 0.6275 | K12: 325 | L12: 0.6275
A13: 3 | B13: Free Uniform | D13: =State!P212 -> 755297 | E13: =State!Q212 -> 4531.782 | F13: 755297 | G13: 4531.782 | I13: =State!Y212 -> 755297 | J13: =State!Z212 -> 3021.188 | K13: 755297 | L13: 3021.188
A14: 4 | B14: Residential School/ Hostel | D14: =State!P143 -> 11 | E14: =State!Q143 -> 72.25 | F14: 11 | G14: 72.25 | I14: =State!Y143 -> 0 | J14: =State!Z143 -> 0 | K14: 0 | L14: 0
A15: 5 | B15: KGBV | F15: 0 | G15: 0 | K15: 0 | L15: 0
A16: 6 | B16: IE | D16: =State!P336 -> 105261 | E16: =State!Q336 -> 4210.44 | F16: 105261 | G16: 4210.44 | I16: =State!Y336 -> 98664 | J16: =State!Z336 -> 2959.92 | K16: 98664 | L16: 2959.92
A17: 7 | B17: School Grant | D17: =State!P325 -> 14771 | E17: =State!Q325 -> 1194.47 | F17: 14771 | G17: 1194.47 | I17: =State!Y325 -> 14762 | J17: =State!Z325 -> 845.02 | K17: 14762 | L17: 845.02
A18: 8 | B18: Major Repairs | D18: =State!P376+State!P378 -> 304 | E18: =State!Q376+State!Q378 -> 1400.08 | F18: =D18 -> 304 | G18: =C18+E18 -> 1400.08 | I18: =State!Y376+State!Y378 -> 22 | J18: =State!Z376+State!Z378 -> 85.43 | K18: =I18 -> 22 | L18: =H18+J18 -> 85.43
A19: 9 | B19: Maintenance Grant | D19: =State!P332 -> 5998 | E19: =State!Q332 -> 1199.6 | F19: 5998 | G19: 1199.6 | I19: =State!Y332 -> 5998 | J19: =State!Z332 -> 449.85 | K19: 5998 | L19: 449.85
A20: 10 | B20: a. Project Management | D20: =State!P395 -> 0 | E20: =State!Q395+State!Q404 -> 3261.52 | F20: 0 | G20: 3261.52 | I20: =State!Y395 -> 0 | J20: =State!Z395+State!Z404 -> 2054.12 | K20: 0 | L20: 2054.12
B21: b. Finance | C21: Covered Under Project Management and Overall allocation
A22: Sub Total | C22: =SUM(C7:C20) -> 0 | D22: 3137570 | E22: =SUM(E7:E20) -> 24292.8895 | F22: 3137570 | G22: =SUM(G7:G20) -> 24292.8895 | H22: 0 | I22: 3130671 | J22: =SUM(J7:J20) -> 13912.591 | K22: 3130671 | L22: =SUM(L7:L20) -> 13912.591
A23: Category-2
A24: 11 | B24: Transport / Escort facility | D24: =State!P147 -> 3654 | E24: =State!Q147 -> 109.62 | F24: =D24 -> 3654 | G24: =C24+E24 -> 109.62 | I24: =State!Y147 -> 3654 | J24: =State!Z147 -> 109.62 | K24: =I24 -> 3654 | L24: =H24+J24 -> 109.62
A25: 12 | B25: Special Training for Age appropriate addmission of OoSC | F25: =D25 -> 0 | G25: =C25+E25 -> 0 | K25: 0 | L25: 0
B26: Residential (Fresh) | F26: =D26 -> 0 | G26: =C26+E26 -> 0 | K26: 0 | L26: 0
B27: (a) 12 months | F27: 0 | G27: 0 | K27: 0 | L27: 0
B28: (b) 9 months | F28: 0 | G28: 0 | K28: 0 | L28: 0
B29: (c) 6 months | F29: 0 | G29: 0 | K29: 0 | L29: 0
B30: (d) 3 months | F30: 0 | G30: 0 | K30: 0 | L30: 0
B31: Residential continuing from previous year | F31: 0 | G31: 0 | K31: 0 | L31: 0
B32: (a) 9 months | F32: 0 | G32: 0 | K32: 0 | L32: 0
B33: (b) 6 months | F33: 0 | G33: 0 | K33: 0 | L33: 0
B34: Non Residential (Fresh) | F34: 0 | G34: 0 | K34: 0 | L34: 0
B35: (a) 12 months | D35: =State!P164 -> 2296 | E35: =State!Q164 -> 137.76 | F35: 2296 | G35: 137.76 | I35: =State!Y164 -> 2296 | J35: =State!Z164 -> 137.76 | K35: 2296 | L35: 137.76
B36: (b) 9 months | D36: =State!P165 -> 0 | E36: =State!Q165 -> 0 | F36: 0 | G36: 0 | I36: =State!Y165 -> 0 | J36: =State!Z165 -> 0 | K36: 0 | L36: 0
B37: (c) 6 months | F37: 0 | G37: 0 | K37: 0 | L37: 0
B38: (d) 3 months | F38: 0 | G38: 0 | K38: 0 | L38: 0
B39: NonResidential continuing from previous year | F39: 0 | G39: 0 | K39: 0 | L39: 0
B40: (a) 12 months | D40: =State!P170 -> 0 | E40: =State!Q170 -> 0 | F40: 0 | G40: 0 | I40: =State!Y170 -> 0 | J40: =State!Z170 -> 0 | K40: 0 | L40: 0
B41: (b) 9 months | D41: =State!P174 -> 798 | E41: =State!Q174 -> 35.91 | F41: 798 | G41: 35.91 | I41: =State!Y171 -> 798 | J41: =State!Z171 -> 35.91 | K41: 798 | L41: 35.91
B42: (c) 6 months | F42: 0 | G42: 0 | K42: 0 | L42: 0
B43: (d) 3 months | F43: 0 | G43: 0 | K43: 0 | L43: 0
B44: Madarasa/Maktab | F44: 0 | G44: 0 | K44: 0 | L44: 0
B45: 12 months | F45: 0 | G45: 0 | K45: 0 | L45: 0
B46: 3 months | F46: 0 | G46: 0 | K46: 0 | L46: 0
B47: Seasonal Hostel (Residential) | F47: 0 | G47: 0 | K47: 0 | L47: 0
B48: (c) 6 months(seasonal hostel) | F48: 0 | G48: 0 | K48: 0 | L48: 0
B49: (d) 3 months | F49: 0 | G49: 0 | K49: 0 | L49: 0
B50: Seasonal Hostel (Non Residential) | F50: 0 | G50: 0 | K50: 0 | L50: 0
B51: (e) 6 months | F51: 0 | G51: 0 | K51: 0 | L51: 0
B52: (f) 3 months | F52: 0 | G52: 0 | K52: 0 | L52: 0
A53: 13 | B53: Teacher Training | D53: =State!P282 -> 259412 | E53: =State!Q282 -> 6485.3 | F53: 259412 | G53: 6485.3 | I53: =State!Y282 -> 249534 | J53: =State!Z282 -> 1908.12 | K53: 249534 | L53: 1908.12
A54: 14 | B54: Academic Support through BRC/CRC | F54: 0 | G54: 0 | K54: 0 | L54: 0
B55: a) BRC | D55: =State!P296 -> 159 | E55: =State!Q296 -> 9188.1 | F55: 159 | G55: 9188.1 | I55: =State!Y296 -> 159 | J55: =State!Z296 -> 8985.396 | K55: 159 | L55: 8985.396
B56: b) CRC | D56: =State!P305 -> 1385 | E56: =State!Q305 -> 7949.9 | F56: 1385 | G56: 7949.9 | I56: =State!Y305 -> 1385 | J56: =State!Z305 -> 6730.7 | K56: 1385 | L56: 6730.7
A57: 15 | B57: Learning Enhancement Programme (LEP) | D57: =State!P397+State!P398+State!P399 -> 2411674 | E57: =State!Q397+State!Q398+State!Q399 -> 1631.016 | F57: 2411674 | G57: 1631.016 | I57: =State!Y397+State!Y398+State!Y399 -> 0 | J57: =State!Z397+State!Z398+State!Z399 -> 948.8399488 | L57: 948.8399488
A58: 16 | B58: a. Innovation fund for CAL | D58: =State!P310 -> 14 | E58: =State!Q310 -> 1400 | F58: =D58 -> 14 | G58: =C58+E58 -> 1400 | H58: =[19]StateTotal!U330 -> 0 | I58: =State!Y310 -> 0 | J58: =State!Z310 -> 700 | K58: 0 | L58: 700
B59: b. Rashtriya Avishkar Abhiyan (RAA) | C59: This acitvity is support under CAL
A60: 17 | B60: Library | D60: =State!P314 -> 700 | E60: =State!Q314 -> 525 | F60: =D60 -> 700 | G60: =C60+E60 -> 525 | I60: =State!Y314 -> 0 | J60: =State!Z314 -> 0 | K60: =I60 -> 0 | L60: =H60+J60 -> 0
A61: 18 | B61: Teacher Grant | D61: =State!P321 -> 121844 | E61: =State!Q321 -> 2436.88 | F61: 121844 | G61: 2436.88 | I61: =State!Y321 -> 121844 | J61: =State!Z321 -> 609.22 | K61: 121844 | L61: 609.22
A62: =A61+1 -> 19 | B62: TLE for New Schools | D62: =State!P216 -> 3 | E62: =State!Q216 -> 1.5 | F62: 3 | G62: 1.5 | I62: =State!Y216 -> 0 | J62: =State!Z216 -> 0 | K62: 0 | L62: 0
A63: 20 | B63: REMS | D63: =State!P329 -> 0 | E63: =State!Q329+State!Q405 -> 295.42 | F63: 0 | G63: 295.42 | I63: =State!Y329 -> 0 | J63: =State!Z329+State!Z405 -> 220.49 | K63: 0 | L63: 220.49
A64: =A63+1 -> 21 | B64: a. Innovation | D64: =State!P342 -> 0 | E64: =State!Q342 -> 700 | F64: 0 | G64: 700 | I64: =State!Y342 -> 0 | J64: =State!Z342 -> 700 | K64: 0 | L64: 700
B65: b. Pade Bharat Bade Bharat (PBBB) | F65: 0 | G65: 0 | K65: 0 | L65: 0
A66: =A64+1 -> 22 | B66: Community Mobilization (0.5%) | D66: =State!P400 -> 0 | E66: =State!Q400 -> 521.05 | F66: 0 | G66: 521.05 | I66: =State!Y400 -> 0 | J66: =State!Z400 -> 262.85 | K66: 0 | L66: 262.85
A67: 23 | B67: SMC Training | D67: =State!P346 -> 71520 | E67: =State!Q346 -> 536.4 | F67: 71520 | G67: 536.4 | I67: =State!Y346 -> 28008 | J67: =State!Z346 -> 84.024 | K67: 28008 | L67: 84.024
A68: Total | C68: =SUM(C24:C67) -> 0 | D68: =SUM(D24:D67) -> 2873459 | E68: =SUM(E24:E67) -> 31953.856 | F68: =SUM(F24:F67) -> 2873459 | G68: =SUM(G24:G67) -> 31953.856 | I68: =SUM(I24:I67) -> 407678 | J68: =SUM(J24:J67) -> 21432.92995 | K68: =SUM(K24:K67) -> 407678 | L68: =SUM(L24:L67) -> 21432.92995
A69: Category-3
A70: 24 | B70: Teacher Salary | D70: =State!P259 -> 4126 | E70: =State!Q259 -> 20074.2 | F70: =D70 -> 4126 | G70: =C70+E70 -> 20074.2 | I70: =State!Y259 -> 4126 | J70: =State!Z259 -> 19163.74596 | K70: =I70 -> 4126 | L70: =H70+J70 -> 19163.74596
A71: 25 | B71: New Schools (Building) | D71: =State!P358+State!P359 -> 33 | E71: =State!Q358+State!Q359 -> 1079.17 | F71: =D71 -> 33 | G71: =C71+E71 -> 1079.17 | I71: =State!Y358+State!Y359 -> 15 | J71: =State!Z358+State!Z359 -> 529.2 | K71: 15 | L71: 529.2
A72: =A71+1 -> 26 | B72: Additional Classrooms (ACR) | C72: =State!L354+State!L360 -> 62.9 | D72: =State!P355+State!P360+State!P361+State!P362 -> 433 | E72: =State!Q355+State!Q360+State!Q361+State!Q362 -> 3680.5 | F72: =D72 -> 433 | G72: =C72+E72 -> 3743.4 | H72: =State!U354+State!U360 -> 62.9 | I72: =State!Y355+State!Y360+State!Y361 -> 112 | J72: =State!Z355+State!Z360+State!Z361 -> 952 | K72: 112 | L72: 1014.9
A73: 27 | B73: Block Resource Centers | F73: =D73 -> 0 | G73: =C73+E73 -> 0 | K73: 0 | L73: 0
A74: 28 | B74: Cluster Resource Centers | D74: =State!P381 -> 68 | E74: =State!Q381 -> 204 | F74: 68 | G74: 204 | I74: =State!Y381 -> 0 | J74: =State!Z381 -> 0 | K74: 0 | L74: 0
A75: 29 | B75: Residential Schools (Building) | F75: 0 | G75: 0 | K75: 0 | L75: 0
A76: 30 | B76: Toilets & Drinking Water | D76: =State!P363+State!P364+State!P365+State!P377+State!P379+State!P366 -> 1782 | E76: =State!Q363+State!Q364+State!Q365+State!Q366+State!Q377+State!Q379 -> 1903.18 | F76: 1782 | G76: 1903.18 | I76: =State!Y363+State!Y364+State!Y365+State!Y366 -> 484 | J76: =State!Z363+State!Z364+State!Z365+State!Z366 -> 420.4 | K76: 484 | L76: 420.4
A77: 31 | B77: Furniture | D77: =State!P375 -> 12809 | E77: =State!Q375 -> 128.09 | F77: 12809 | G77: 128.09 | I77: =State!Y375 -> 0 | J77: =State!Z375 -> 0 | K77: 0 | L77: 0
A78: 32 | B78: Civil Works | F78: 0 | G78: 0 | K78: 0 | L78: 0
B79: a. Boundary Walls | D79: =State!P367 -> 25903 | E79: =State!Q367 -> 1295.15 | F79: 25903 | G79: 1295.15 | I79: =State!Y367 -> 0 | J79: =State!Z367 -> 0 | K79: 0 | L79: 0
B80: b. Ramps | D80: =State!P372+State!P373 -> 992 | E80: =State!Q372+State!Q373 -> 187.7 | F80: 992 | G80: 187.7 | I80: =State!Y372+State!Y373 -> 0 | J80: =State!Z372+State!Z373 -> 0 | K80: 0 | L80: 0
B81: Other | D81: =State!P371+State!P368+State!P374+State!P380 -> 925 | E81: =State!Q368+State!Q371+State!Q380+State!Q374 -> 1220.6 | F81: =D81 -> 925 | G81: =C81+E81 -> 1220.6 | I81: =State!Y371+State!Y368+State!Y374+State!Y380 -> 0 | J81: =State!Z368+State!Z371+State!Z380+State!Z374 -> 0
A82: =A78+1 -> 33 | B82: Repairs to School Buildings | D82: =State!P383 -> 11 | E82: =State!Q383 -> 1100 | F82: 11 | G82: 1100 | I82: =State!Y383 -> 0 | J82: =State!Z383 -> 0 | K82: 0 | L82: 0
A83: =A82+1 -> 34 | B83: (b) Swacchh Vidyalaya | C83: Covered under School Maintenance grant | H83: Covered under School Maintenance grant
A84: =A83+1 -> 35 | B84: School and Social Mapping: | F84: =D84 -> 0 | G84: =C84+E84 -> 0 | K84: =I84 -> 0 | L84: =H84+J84 -> 0
A85: 36 | B85: Opening new Primary Schools: | F85: 0 | G85: 0 | K85: 0 | L85: 0
A86: 37 | B86: Opening Upper Primary Schools/Sections: | F86: 0 | G86: 0 | K86: 0 | L86: 0
A87: 38 | B87: Conversion of EGS Centres into schools: | C87: All EGS already converted in Schools
A88: 39 | B88: SIEMAT | C88: One time grant
A89: 40 | B89: NPGEL | C89: Activity Closed
B90: Total | C90: =SUM(C70:C89) -> 62.9 | D90: =SUM(D70:D89) -> 47082 | E90: =SUM(E70:E89) -> 30872.59 | F90: 47082 | G90: =SUM(G70:G89) -> 30935.49 | H90: 62.9 | I90: 4737 | J90: =SUM(J70:J89) -> 21065.34596 | K90: =SUM(K70:K89) -> 4737 | L90: =SUM(L70:L89) -> 21128.24596
B91: Grand Total | C91: =C22+C68+C90 -> 62.9 | D91: =D22+D68+D90 -> 6058111 | E91: =E22+E68+E90 -> 87119.3355 | F91: =F22+F68+F90 -> 6058111 | G91: =G22+G68+G90 -> 87182.2355 | H91: =H22+H68+H90 -> 62.9 | I91: =Y22+Y68+Y90 -> 0 | J91: =J22+J68+J90 -> 56410.86691 | K91: =K22+K68+K90 -> 3543086 | L91: =L22+L68+L90 -> 56473.76691
G94: =State!S407 -> 87182.2355 | L94: =State!AB407 -> 56473.76691
E100: =E98-E99 -> 0

Sheet State
A1: S.No. | B1: Activity | C1: Year 2016-17 | K1: Outlay Proposed for 2017-18 | T1: Outlay Recommended for 2017-18 | AC1: Remarks
C2: Outlay approved by PAB (including spillover) | E2: Achievement | I2: Savings | K2: Spill Over | M2: Deferred laibility of 2016-17 | O2: Fresh | R2: Total | T2: Spill Over | V2: Deferred laibility of 2016-17 | X2: Fresh | AA2: Total
C3: Phy. | D3: Fin | E3: Phy. | F3: Fin. | G3: Phy. (%) | H3: Fin. (%) | I3: Phy. | J3: Fin. | K3: Phy. | L3: Fin. | M3: Phy. | N3: Fin. | O3: Unit Cost | P3: Phy. | Q3: Fin. | R3: Phy. | S3: Fin. | T3: Phy. | U3: Fin. | V3: Phy. | W3: Fin. | X3: Unit Cost | Y3: Phy. | Z3: Fin. | AA3: Phy. | AB3: Fin.
A4: I | B4: ACCESS
B5: SSA
A6: 1 | B6: Opening of New Schools
A7: 1.01 | B7: New Primary School | C7: =SUM(TVM:KSD!C7) -> 0 | D7: =SUM(TVM:KSD!D7) -> 0 | E7: =SUM(TVM:KSD!E7) -> 0 | F7: =SUM(TVM:KSD!F7) -> 0 | G7: =SUM(TVM:KSD!G7) -> 0 | H7: =SUM(TVM:KSD!H7) -> 0 | I7: =SUM(TVM:KSD!I7) -> 0 | J7: =SUM(TVM:KSD!J7) -> 0 | K7: =SUM(TVM:KSD!K7) -> 0 | L7: =SUM(TVM:KSD!L7) -> 0 | M7: =SUM(TVM:KSD!M7) -> 0 | N7: =SUM(TVM:KSD!N7) -> 0 | O7: =SUM(TVM:KSD!O7) -> 0 | P7: =SUM(TVM:KSD!P7) -> 0 | Q7: =SUM(TVM:KSD!Q7) -> 0 | R7: =SUM(TVM:KSD!R7) -> 0 | S7: =SUM(TVM:KSD!S7) -> 0 | T7: =SUM(TVM:KSD!T7) -> 0 | U7: =SUM(TVM:KSD!U7) -> 0 | V7: =SUM(TVM:KSD!V7) -> 0 | W7: =SUM(TVM:KSD!W7) -> 0 | X7: =SUM(TVM:KSD!X7) -> 0 | Y7: =SUM(TVM:KSD!Y7) -> 0 | Z7: =SUM(TVM:KSD!Z7) -> 0 | AA7: =SUM(TVM:KSD!AA7) -> 0 | AB7: =SUM(TVM:KSD!AB7) -> 0 | AD7: =SUM(TVM:KSD!AB7) -> 0
A8: 1.02 | B8: Upgradation of PS to UPS | C8: =SUM(TVM:KSD!C8) -> 0 | D8: =SUM(TVM:KSD!D8) -> 0 | E8: =SUM(TVM:KSD!E8) -> 0 | F8: =SUM(TVM:KSD!F8) -> 0 | I8: =SUM(TVM:KSD!I8) -> 0 | J8: =SUM(TVM:KSD!J8) -> 0 | K8: =SUM(TVM:KSD!K8) -> 0 | L8: =SUM(TVM:KSD!L8) -> 0 | M8: =SUM(TVM:KSD!M8) -> 0 | N8: =SUM(TVM:KSD!N8) -> 0 | P8: =SUM(TVM:KSD!P8) -> 0 | Q8: =SUM(TVM:KSD!Q8) -> 0 | R8: =SUM(TVM:KSD!R8) -> 0 | S8: =SUM(TVM:KSD!S8) -> 0 | T8: =SUM(TVM:KSD!T8) -> 0 | U8: =SUM(TVM:KSD!U8) -> 0 | V8: =SUM(TVM:KSD!V8) -> 0 | W8: =SUM(TVM:KSD!W8) -> 0 | Y8: =SUM(TVM:KSD!Y8) -> 0 | Z8: =SUM(TVM:KSD!Z8) -> 0 | AA8: =SUM(TVM:KSD!AA8) -> 0 | AB8: =SUM(TVM:KSD!AB8) -> 0 | AD8: =SUM(TVM:KSD!AB8) -> 0
A9: 1.03 | B9: Composite Schools | C9: =SUM(TVM:KSD!C9) -> 0 | D9: =SUM(TVM:KSD!D9) -> 0 | E9: =SUM(TVM:KSD!E9) -> 0 | F9: =SUM(TVM:KSD!F9) -> 0 | I9: =SUM(TVM:KSD!I9) -> 0 | J9: =SUM(TVM:KSD!J9) -> 0 | K9: =SUM(TVM:KSD!K9) -> 0 | L9: =SUM(TVM:KSD!L9) -> 0 | M9: =SUM(TVM:KSD!M9) -> 0 | N9: =SUM(TVM:KSD!N9) -> 0 | P9: =SUM(TVM:KSD!P9) -> 0 | Q9: =SUM(TVM:KSD!Q9) -> 0 | R9: =SUM(TVM:KSD!R9) -> 0 | S9: =SUM(TVM:KSD!S9) -> 0 | T9: =SUM(TVM:KSD!T9) -> 0 | U9: =SUM(TVM:KSD!U9) -> 0 | V9: =SUM(TVM:KSD!V9) -> 0 | W9: =SUM(TVM:KSD!W9) -> 0 | Y9: =SUM(TVM:KSD!Y9) -> 0 | Z9: =SUM(TVM:KSD!Z9) -> 0 | AA9: =SUM(TVM:KSD!AA9) -> 0 | AB9: =SUM(TVM:KSD!AB9) -> 0 | AD9: =SUM(TVM:KSD!AB9) -> 0
A10: 1.04 | B10: Residential schools for specific category of children | C10: =SUM(TVM:KSD!C10) -> 0 | D10: =SUM(TVM:KSD!D10) -> 0 | E10: =SUM(TVM:KSD!E10) -> 0 | F10: =SUM(TVM:KSD!F10) -> 0 | I10: =SUM(TVM:KSD!I10) -> 0 | J10: =SUM(TVM:KSD!J10) -> 0 | K10: =SUM(TVM:KSD!K10) -> 0 | L10: =SUM(TVM:KSD!L10) -> 0 | M10: =SUM(TVM:KSD!M10) -> 0 | N10: =SUM(TVM:KSD!N10) -> 0 | P10: =SUM(TVM:KSD!P10) -> 0 | Q10: =SUM(TVM:KSD!Q10) -> 0 | R10: =SUM(TVM:KSD!R10) -> 0 | S10: =SUM(TVM:KSD!S10) -> 0 | T10: =SUM(TVM:KSD!T10) -> 0 | U10: =SUM(TVM:KSD!U10) -> 0 | V10: =SUM(TVM:KSD!V10) -> 0 | W10: =SUM(TVM:KSD!W10) -> 0 | Y10: =SUM(TVM:KSD!Y10) -> 0 | Z10: =SUM(TVM:KSD!Z10) -> 0 | AA10: =SUM(TVM:KSD!AA10) -> 0 | AB10: =SUM(TVM:KSD!AB10) -> 0 | AD10: =SUM(TVM:KSD!AB10) -> 0
A11: 1.05 | B11: Residential Hostel | C11: =SUM(TVM:KSD!C11) -> 0 | D11: =SUM(TVM:KSD!D11) -> 0 | E11: =SUM(TVM:KSD!E11) -> 0 | F11: =SUM(TVM:KSD!F11) -> 0 | I11: =SUM(TVM:KSD!I11) -> 0 | J11: =SUM(TVM:KSD!J11) -> 0 | K11: =SUM(TVM:KSD!K11) -> 0 | L11: =SUM(TVM:KSD!L11) -> 0 | M11: =SUM(TVM:KSD!M11) -> 0 | N11: =SUM(TVM:KSD!N11) -> 0 | P11: =SUM(TVM:KSD!P11) -> 0 | Q11: =SUM(TVM:KSD!Q11) -> 0 | R11: =SUM(TVM:KSD!R11) -> 0 | S11: =SUM(TVM:KSD!S11) -> 0 | T11: =SUM(TVM:KSD!T11) -> 0 | U11: =SUM(TVM:KSD!U11) -> 0 | V11: =SUM(TVM:KSD!V11) -> 0 | W11: =SUM(TVM:KSD!W11) -> 0 | Y11: =SUM(TVM:KSD!Y11) -> 0 | Z11: =SUM(TVM:KSD!Z11) -> 0 | AA11: =SUM(TVM:KSD!AA11) -> 0 | AB11: =SUM(TVM:KSD!AB11) -> 0 | AD11: =SUM(TVM:KSD!AB11) -> 0
A12: 1.06 | B12: Integration of Class V with primary schools | C12: =SUM(TVM:KSD!C12) -> 0 | D12: =SUM(TVM:KSD!D12) -> 0 | E12: =SUM(TVM:KSD!E12) -> 0 | F12: =SUM(TVM:KSD!F12) -> 0 | I12: =SUM(TVM:KSD!I12) -> 0 | J12: =SUM(TVM:KSD!J12) -> 0 | K12: =SUM(TVM:KSD!K12) -> 0 | L12: =SUM(TVM:KSD!L12) -> 0 | M12: =SUM(TVM:KSD!M12) -> 0 | N12: =SUM(TVM:KSD!N12) -> 0 | P12: =SUM(TVM:KSD!P12) -> 0 | Q12: =SUM(TVM:KSD!Q12) -> 0 | R12: =SUM(TVM:KSD!R12) -> 0 | S12: =SUM(TVM:KSD!S12) -> 0 | T12: =SUM(TVM:KSD!T12) -> 0 | U12: =SUM(TVM:KSD!U12) -> 0 | V12: =SUM(TVM:KSD!V12) -> 0 | W12: =SUM(TVM:KSD!W12) -> 0 | Y12: =SUM(TVM:KSD!Y12) -> 0 | Z12: =SUM(TVM:KSD!Z12) -> 0 | AA12: =SUM(TVM:KSD!AA12) -> 0 | AB12: =SUM(TVM:KSD!AB12) -> 0 | AD12: =SUM(TVM:KSD!AB12) -> 0
A13: 1.07 | B13: Integration of Class VIII with upper primary schools | C13: =SUM(TVM:KSD!C13) -> 0 | D13: =SUM(TVM:KSD!D13) -> 0 | E13: =SUM(TVM:KSD!E13) -> 0 | F13: =SUM(TVM:KSD!F13) -> 0 | I13: =SUM(TVM:KSD!I13) -> 0 | J13: =SUM(TVM:KSD!J13) -> 0 | K13: =SUM(TVM:KSD!K13) -> 0 | L13: =SUM(TVM:KSD!L13) -> 0 | M13: =SUM(TVM:KSD!M13) -> 0 | N13: =SUM(TVM:KSD!N13) -> 0 | P13: =SUM(TVM:KSD!P13) -> 0 | Q13: =SUM(TVM:KSD!Q13) -> 0 | R13: =SUM(TVM:KSD!R13) -> 0 | S13: =SUM(TVM:KSD!S13) -> 0 | T13: =SUM(TVM:KSD!T13) -> 0 | U13: =SUM(TVM:KSD!U13) -> 0 | V13: =SUM(TVM:KSD!V13) -> 0 | W13: =SUM(TVM:KSD!W13) -> 0 | Y13: =SUM(TVM:KSD!Y13) -> 0 | Z13: =SUM(TVM:KSD!Z13) -> 0 | AA13: =SUM(TVM:KSD!AA13) -> 0 | AB13: =SUM(TVM:KSD!AB13) -> 0 | AD13: =SUM(TVM:KSD!AB13) -> 0
A14: 2 | B14: Residential Schools for specific category of children | C14: =SUM(TVM:KSD!C14) -> 0 | D14: =SUM(TVM:KSD!D14) -> 0 | E14: =SUM(TVM:KSD!E14) -> 0 | F14: =SUM(TVM:KSD!F14) -> 0 | I14: =SUM(TVM:KSD!I14) -> 0 | J14: =SUM(TVM:KSD!J14) -> 0 | K14: =SUM(TVM:KSD!K14) -> 0 | L14: =SUM(TVM:KSD!L14) -> 0 | M14: =SUM(TVM:KSD!M14) -> 0 | N14: =SUM(TVM:KSD!N14) -> 0 | P14: =SUM(TVM:KSD!P14) -> 0 | Q14: =SUM(TVM:KSD!Q14) -> 0 | R14: =SUM(TVM:KSD!R14) -> 0 | S14: =SUM(TVM:KSD!S14) -> 0 | T14: =SUM(TVM:KSD!T14) -> 0 | U14: =SUM(TVM:KSD!U14) -> 0 | V14: =SUM(TVM:KSD!V14) -> 0 | W14: =SUM(TVM:KSD!W14) -> 0 | Y14: =SUM(TVM:KSD!Y14) -> 0 | Z14: =SUM(TVM:KSD!Z14) -> 0 | AA14: =SUM(TVM:KSD!AA14) -> 0 | AB14: =SUM(TVM:KSD!AB14) -> 0 | AD14: =SUM(TVM:KSD!AB14) -> 0
B15: 50 children | C15: =SUM(TVM:KSD!C15) -> 0 | D15: =SUM(TVM:KSD!D15) -> 0 | E15: =SUM(TVM:KSD!E15) -> 0 | F15: =SUM(TVM:KSD!F15) -> 0 | I15: =SUM(TVM:KSD!I15) -> 0 | J15: =SUM(TVM:KSD!J15) -> 0 | K15: =SUM(TVM:KSD!K15) -> 0 | L15: =SUM(TVM:KSD!L15) -> 0 | M15: =SUM(TVM:KSD!M15) -> 0 | N15: =SUM(TVM:KSD!N15) -> 0 | P15: =SUM(TVM:KSD!P15) -> 0 | Q15: =SUM(TVM:KSD!Q15) -> 0 | R15: =SUM(TVM:KSD!R15) -> 0 | S15: =SUM(TVM:KSD!S15) -> 0 | T15: =SUM(TVM:KSD!T15) -> 0 | U15: =SUM(TVM:KSD!U15) -> 0 | V15: =SUM(TVM:KSD!V15) -> 0 | W15: =SUM(TVM:KSD!W15) -> 0 | Y15: =SUM(TVM:KSD!Y15) -> 0 | Z15: =SUM(TVM:KSD!Z15) -> 0 | AA15: =SUM(TVM:KSD!AA15) -> 0 | AB15: =SUM(TVM:KSD!AB15) -> 0 | AD15: =SUM(TVM:KSD!AB15) -> 0
B16: Non-recurring (one time grant) | C16: =SUM(TVM:KSD!C16) -> 0 | D16: =SUM(TVM:KSD!D16) -> 0 | E16: =SUM(TVM:KSD!E16) -> 0 | F16: =SUM(TVM:KSD!F16) -> 0 | I16: =SUM(TVM:KSD!I16) -> 0 | J16: =SUM(TVM:KSD!J16) -> 0 | K16: =SUM(TVM:KSD!K16) -> 0 | L16: =SUM(TVM:KSD!L16) -> 0 | M16: =SUM(TVM:KSD!M16) -> 0 | N16: =SUM(TVM:KSD!N16) -> 0 | P16: =SUM(TVM:KSD!P16) -> 0 | Q16: =SUM(TVM:KSD!Q16) -> 0 | R16: =SUM(TVM:KSD!R16) -> 0 | S16: =SUM(TVM:KSD!S16) -> 0 | T16: =SUM(TVM:KSD!T16) -> 0 | U16: =SUM(TVM:KSD!U16) -> 0 | V16: =SUM(TVM:KSD!V16) -> 0 | W16: =SUM(TVM:KSD!W16) -> 0 | Y16: =SUM(TVM:KSD!Y16) -> 0 | Z16: =SUM(TVM:KSD!Z16) -> 0 | AA16: =SUM(TVM:KSD!AA16) -> 0 | AB16: =SUM(TVM:KSD!AB16) -> 0 | AD16: =SUM(TVM:KSD!AB16) -> 0
A17: 2.01 | B17: Furniture/ Equipment (including kitchen) | C17: =SUM(TVM:KSD!C17) -> 0 | D17: =SUM(TVM:KSD!D17) -> 0 | E17: =SUM(TVM:KSD!E17) -> 0 | F17: =SUM(TVM:KSD!F17) -> 0 | I17: =SUM(TVM:KSD!I17) -> 0 | J17: =SUM(TVM:KSD!J17) -> 0 | K17: =SUM(TVM:KSD!K17) -> 0 | L17: =SUM(TVM:KSD!L17) -> 0 | M17: =SUM(TVM:KSD!M17) -> 0 | N17: =SUM(TVM:KSD!N17) -> 0 | P17: =SUM(TVM:KSD!P17) -> 0 | Q17: =SUM(TVM:KSD!Q17) -> 0 | R17: =SUM(TVM:KSD!R17) -> 0 | S17: =SUM(TVM:KSD!S17) -> 0 | T17: =SUM(TVM:KSD!T17) -> 0 | U17: =SUM(TVM:KSD!U17) -> 0 | V17: =SUM(TVM:KSD!V17) -> 0 | W17: =SUM(TVM:KSD!W17) -> 0 | Y17: =SUM(TVM:KSD!Y17) -> 0 | Z17: =SUM(TVM:KSD!Z17) -> 0 | AA17: =SUM(TVM:KSD!AA17) -> 0 | AB17: =SUM(TVM:KSD!AB17) -> 0 | AD17: =SUM(TVM:KSD!AB17) -> 0
A18: 2.02 | B18: TLM and equipment including library books | C18: =SUM(TVM:KSD!C18) -> 0 | D18: =SUM(TVM:KSD!D18) -> 0 | E18: =SUM(TVM:KSD!E18) -> 0 | F18: =SUM(TVM:KSD!F18) -> 0 | I18: =SUM(TVM:KSD!I18) -> 0 | J18: =SUM(TVM:KSD!J18) -> 0 | K18: =SUM(TVM:KSD!K18) -> 0 | L18: =SUM(TVM:KSD!L18) -> 0 | M18: =SUM(TVM:KSD!M18) -> 0 | N18: =SUM(TVM:KSD!N18) -> 0 | P18: =SUM(TVM:KSD!P18) -> 0 | Q18: =SUM(TVM:KSD!Q18) -> 0 | R18: =SUM(TVM:KSD!R18) -> 0 | S18: =SUM(TVM:KSD!S18) -> 0 | T18: =SUM(TVM:KSD!T18) -> 0 | U18: =SUM(TVM:KSD!U18) -> 0 | V18: =SUM(TVM:KSD!V18) -> 0 | W18: =SUM(TVM:KSD!W18) -> 0 | Y18: =SUM(TVM:KSD!Y18) -> 0 | Z18: =SUM(TVM:KSD!Z18) -> 0 | AA18: =SUM(TVM:KSD!AA18) -> 0 | AB18: =SUM(TVM:KSD!AB18) -> 0 | AD18: =SUM(TVM:KSD!AB18) -> 0
A19: 2.03 | B19: Bedding (new) | C19: =SUM(TVM:KSD!C19) -> 0 | D19: =SUM(TVM:KSD!D19) -> 0 | E19: =SUM(TVM:KSD!E19) -> 0 | F19: =SUM(TVM:KSD!F19) -> 0 | I19: =SUM(TVM:KSD!I19) -> 0 | J19: =SUM(TVM:KSD!J19) -> 0 | K19: =SUM(TVM:KSD!K19) -> 0 | L19: =SUM(TVM:KSD!L19) -> 0 | M19: =SUM(TVM:KSD!M19) -> 0 | N19: =SUM(TVM:KSD!N19) -> 0 | P19: =SUM(TVM:KSD!P19) -> 0 | Q19: =SUM(TVM:KSD!Q19) -> 0 | R19: =SUM(TVM:KSD!R19) -> 0 | S19: =SUM(TVM:KSD!S19) -> 0 | T19: =SUM(TVM:KSD!T19) -> 0 | U19: =SUM(TVM:KSD!U19) -> 0 | V19: =SUM(TVM:KSD!V19) -> 0 | W19: =SUM(TVM:KSD!W19) -> 0 | Y19: =SUM(TVM:KSD!Y19) -> 0 | Z19: =SUM(TVM:KSD!Z19) -> 0 | AA19: =SUM(TVM:KSD!AA19) -> 0 | AB19: =SUM(TVM:KSD!AB19) -> 0 | AD19: =SUM(TVM:KSD!AB19) -> 0
A20: 2.04 | B20: Replacement of bedding (once in 3 years) | C20: =SUM(TVM:KSD!C20) -> 0 | D20: =SUM(TVM:KSD!D20) -> 0 | E20: =SUM(TVM:KSD!E20) -> 0 | F20: =SUM(TVM:KSD!F20) -> 0 | I20: =SUM(TVM:KSD!I20) -> 0 | J20: =SUM(TVM:KSD!J20) -> 0 | K20: =SUM(TVM:KSD!K20) -> 0 | L20: =SUM(TVM:KSD!L20) -> 0 | M20: =SUM(TVM:KSD!M20) -> 0 | N20: =SUM(TVM:KSD!N20) -> 0 | P20: =SUM(TVM:KSD!P20) -> 0 | Q20: =SUM(TVM:KSD!Q20) -> 0 | R20: =SUM(TVM:KSD!R20) -> 0 | S20: =SUM(TVM:KSD!S20) -> 0 | T20: =SUM(TVM:KSD!T20) -> 0 | U20: =SUM(TVM:KSD!U20) -> 0 | V20: =SUM(TVM:KSD!V20) -> 0 | W20: =SUM(TVM:KSD!W20) -> 0 | Y20: =SUM(TVM:KSD!Y20) -> 0 | Z20: =SUM(TVM:KSD!Z20) -> 0 | AA20: =SUM(TVM:KSD!AA20) -> 0 | AB20: =SUM(TVM:KSD!AB20) -> 0 | AD20: =SUM(TVM:KSD!AB20) -> 0
B21: Sub Total (Non Recurring) | C21: =SUM(TVM:KSD!C21) -> 0 | D21: =SUM(TVM:KSD!D21) -> 0 | E21: =SUM(TVM:KSD!E21) -> 0 | F21: =SUM(TVM:KSD!F21) -> 0 | I21: =SUM(TVM:KSD!I21) -> 0 | J21: =SUM(TVM:KSD!J21) -> 0 | K21: =SUM(TVM:KSD!K21) -> 0 | L21: =SUM(TVM:KSD!L21) -> 0 | M21: =SUM(TVM:KSD!M21) -> 0 | N21: =SUM(TVM:KSD!N21) -> 0 | P21: =SUM(TVM:KSD!P21) -> 0 | Q21: =SUM(TVM:KSD!Q21) -> 0 | R21: =SUM(TVM:KSD!R21) -> 0 | S21: =SUM(TVM:KSD!S21) -> 0 | T21: =SUM(TVM:KSD!T21) -> 0 | U21: =SUM(TVM:KSD!U21) -> 0 | V21: =SUM(TVM:KSD!V21) -> 0 | W21: =SUM(TVM:KSD!W21) -> 0 | Y21: =SUM(TVM:KSD!Y21) -> 0 | Z21: =SUM(TVM:KSD!Z21) -> 0 | AA21: =SUM(TVM:KSD!AA21) -> 0 | AB21: =SUM(TVM:KSD!AB21) -> 0 | AD21: =SUM(TVM:KSD!AB21) -> 0
B22: Recurring (50 children) | C22: =SUM(TVM:KSD!C22) -> 0 | D22: =SUM(TVM:KSD!D22) -> 0 | E22: =SUM(TVM:KSD!E22) -> 0 | F22: =SUM(TVM:KSD!F22) -> 0 | I22: =SUM(TVM:KSD!I22) -> 0 | J22: =SUM(TVM:KSD!J22) -> 0 | K22: =SUM(TVM:KSD!K22) -> 0 | L22: =SUM(TVM:KSD!L22) -> 0 | M22: =SUM(TVM:KSD!M22) -> 0 | N22: =SUM(TVM:KSD!N22) -> 0 | P22: =SUM(TVM:KSD!P22) -> 0 | Q22: =SUM(TVM:KSD!Q22) -> 0 | R22: =SUM(TVM:KSD!R22) -> 0 | S22: =SUM(TVM:KSD!S22) -> 0 | T22: =SUM(TVM:KSD!T22) -> 0 | U22: =SUM(TVM:KSD!U22) -> 0 | V22: =SUM(TVM:KSD!V22) -> 0 | W22: =SUM(TVM:KSD!W22) -> 0 | Y22: =SUM(TVM:KSD!Y22) -> 0 | Z22: =SUM(TVM:KSD!Z22) -> 0 | AA22: =SUM(TVM:KSD!AA22) -> 0 | AB22: =SUM(TVM:KSD!AB22) -> 0 | AD22: =SUM(TVM:KSD!AB22) -> 0
A23: 2.05 | B23: Maintenance per child Per month @ Rs.1500/- | C23: =SUM(TVM:KSD!C23) -> 0 | D23: =SUM(TVM:KSD!D23) -> 0 | E23: =SUM(TVM:KSD!E23) -> 0 | F23: =SUM(TVM:KSD!F23) -> 0 | I23: =SUM(TVM:KSD!I23) -> 0 | J23: =SUM(TVM:KSD!J23) -> 0 | K23: =SUM(TVM:KSD!K23) -> 0 | L23: =SUM(TVM:KSD!L23) -> 0 | M23: =SUM(TVM:KSD!M23) -> 0 | N23: =SUM(TVM:KSD!N23) -> 0 | P23: =SUM(TVM:KSD!P23) -> 0 | Q23: =SUM(TVM:KSD!Q23) -> 0 | R23: =SUM(TVM:KSD!R23) -> 0 | S23: =SUM(TVM:KSD!S23) -> 0 | T23: =SUM(TVM:KSD!T23) -> 0 | U23: =SUM(TVM:KSD!U23) -> 0 | V23: =SUM(TVM:KSD!V23) -> 0 | W23: =SUM(TVM:KSD!W23) -> 0 | Y23: =SUM(TVM:KSD!Y23) -> 0 | Z23: =SUM(TVM:KSD!Z23) -> 0 | AA23: =SUM(TVM:KSD!AA23) -> 0 | AB23: =SUM(TVM:KSD!AB23) -> 0 | AD23: =SUM(TVM:KSD!AB23) -> 0
A24: 2.06 | B24: Stipend per child per month @ Rs.100/- | C24: =SUM(TVM:KSD!C24) -> 0 | D24: =SUM(TVM:KSD!D24) -> 0 | E24: =SUM(TVM:KSD!E24) -> 0 | F24: =SUM(TVM:KSD!F24) -> 0 | I24: =SUM(TVM:KSD!I24) -> 0 | J24: =SUM(TVM:KSD!J24) -> 0 | K24: =SUM(TVM:KSD!K24) -> 0 | L24: =SUM(TVM:KSD!L24) -> 0 | M24: =SUM(TVM:KSD!M24) -> 0 | N24: =SUM(TVM:KSD!N24) -> 0 | P24: =SUM(TVM:KSD!P24) -> 0 | Q24: =SUM(TVM:KSD!Q24) -> 0 | R24: =SUM(TVM:KSD!R24) -> 0 | S24: =SUM(TVM:KSD!S24) -> 0 | T24: =SUM(TVM:KSD!T24) -> 0 | U24: =SUM(TVM:KSD!U24) -> 0 | V24: =SUM(TVM:KSD!V24) -> 0 | W24: =SUM(TVM:KSD!W24) -> 0 | Y24: =SUM(TVM:KSD!Y24) -> 0 | Z24: =SUM(TVM:KSD!Z24) -> 0 | AA24: =SUM(TVM:KSD!AA24) -> 0 | AB24: =SUM(TVM:KSD!AB24) -> 0 | AD24: =SUM(TVM:KSD!AB24) -> 0
A25: 2.07 | B25: Supplementary TLM, Stationery and other educational material @Rs.1000/- per child per annum | C25: =SUM(TVM:KSD!C25) -> 0 | D25: =SUM(TVM:KSD!D25) -> 0 | E25: =SUM(TVM:KSD!E25) -> 0 | F25: =SUM(TVM:KSD!F25) -> 0 | I25: =SUM(TVM:KSD!I25) -> 0 | J25: =SUM(TVM:KSD!J25) -> 0 | K25: =SUM(TVM:KSD!K25) -> 0 | L25: =SUM(TVM:KSD!L25) -> 0 | M25: =SUM(TVM:KSD!M25) -> 0 | N25: =SUM(TVM:KSD!N25) -> 0 | P25: =SUM(TVM:KSD!P25) -> 0 | Q25: =SUM(TVM:KSD!Q25) -> 0 | R25: =SUM(TVM:KSD!R25) -> 0 | S25: =SUM(TVM:KSD!S25) -> 0 | T25: =SUM(TVM:KSD!T25) -> 0 | U25: =SUM(TVM:KSD!U25) -> 0 | V25: =SUM(TVM:KSD!V25) -> 0 | W25: =SUM(TVM:KSD!W25) -> 0 | Y25: =SUM(TVM:KSD!Y25) -> 0 | Z25: =SUM(TVM:KSD!Z25) -> 0 | AA25: =SUM(TVM:KSD!AA25) -> 0 | AB25: =SUM(TVM:KSD!AB25) -> 0 | AD25: =SUM(TVM:KSD!AB25) -> 0
A26: 2.08 | B26: Salaries | C26: =SUM(TVM:KSD!C26) -> 0 | D26: =SUM(TVM:KSD!D26) -> 0 | E26: =SUM(TVM:KSD!E26) -> 0 | F26: =SUM(TVM:KSD!F26) -> 0 | I26: =SUM(TVM:KSD!I26) -> 0 | J26: =SUM(TVM:KSD!J26) -> 0 | K26: =SUM(TVM:KSD!K26) -> 0 | L26: =SUM(TVM:KSD!L26) -> 0 | M26: =SUM(TVM:KSD!M26) -> 0 | N26: =SUM(TVM:KSD!N26) -> 0 | P26: =SUM(TVM:KSD!P26) -> 0 | Q26: =SUM(TVM:KSD!Q26) -> 0 | R26: =SUM(TVM:KSD!R26) -> 0 | S26: =SUM(TVM:KSD!S26) -> 0 | T26: =SUM(TVM:KSD!T26) -> 0 | U26: =SUM(TVM:KSD!U26) -> 0 | V26: =SUM(TVM:KSD!V26) -> 0 | W26: =SUM(TVM:KSD!W26) -> 0 | Y26: =SUM(TVM:KSD!Y26) -> 0 | Z26: =SUM(TVM:KSD!Z26) -> 0 | AA26: =SUM(TVM:KSD!AA26) -> 0 | AB26: =SUM(TVM:KSD!AB26) -> 0 | AD26: =SUM(TVM:KSD!AB26) -> 0
A27: (a) | B27: 1 Warden @ Rs.25000/- per month | C27: =SUM(TVM:KSD!C27) -> 0 | D27: =SUM(TVM:KSD!D27) -> 0 | E27: =SUM(TVM:KSD!E27) -> 0 | F27: =SUM(TVM:KSD!F27) -> 0 | I27: =SUM(TVM:KSD!I27) -> 0 | J27: =SUM(TVM:KSD!J27) -> 0 | K27: =SUM(TVM:KSD!K27) -> 0 | L27: =SUM(TVM:KSD!L27) -> 0 | M27: =SUM(TVM:KSD!M27) -> 0 | N27: =SUM(TVM:KSD!N27) -> 0 | Y27: =SUM(TVM:KSD!Y27) -> 0 | Z27: =SUM(TVM:KSD!Z27) -> 0 | AA27: =SUM(TVM:KSD!AA27) -> 0 | AB27: =SUM(TVM:KSD!AB27) -> 0 | AD27: =SUM(TVM:KSD!AB27) -> 0
A28: (b) | B28: 4 Fulltime teachers as per RTE Norms @ Rs. 20,000/- per month per teacher | C28: =SUM(TVM:KSD!C28) -> 0 | D28: =SUM(TVM:KSD!D28) -> 0 | E28: =SUM(TVM:KSD!E28) -> 0 | F28: =SUM(TVM:KSD!F28) -> 0 | I28: =SUM(TVM:KSD!I28) -> 0 | J28: =SUM(TVM:KSD!J28) -> 0 | K28: =SUM(TVM:KSD!K28) -> 0 | L28: =SUM(TVM:KSD!L28) -> 0 | M28: =SUM(TVM:KSD!M28) -> 0 | N28: =SUM(TVM:KSD!N28) -> 0 | Y28: =SUM(TVM:KSD!Y28) -> 0 | Z28: =SUM(TVM:KSD!Z28) -> 0 | AA28: =SUM(TVM:KSD!AA28) -> 0 | AB28: =SUM(TVM:KSD!AB28) -> 0 | AD28: =SUM(TVM:KSD!AB28) -> 0
A29: (c) | B29: 2 Urdu Teachers (only for Blocks with muslim population above 20% and select urban areas) @ Rs.12,000/- per month per teacher. | C29: =SUM(TVM:KSD!C29) -> 0 | D29: =SUM(TVM:KSD!D29) -> 0 | E29: =SUM(TVM:KSD!E29) -> 0 | F29: =SUM(TVM:KSD!F29) -> 0 | I29: =SUM(TVM:KSD!I29) -> 0 | J29: =SUM(TVM:KSD!J29) -> 0 | K29: =SUM(TVM:KSD!K29) -> 0 | L29: =SUM(TVM:KSD!L29) -> 0 | M29: =SUM(TVM:KSD!M29) -> 0 | N29: =SUM(TVM:KSD!N29) -> 0 | Y29: =SUM(TVM:KSD!Y29) -> 0 | Z29: =SUM(TVM:KSD!Z29) -> 0 | AA29: =SUM(TVM:KSD!AA29) -> 0 | AB29: =SUM(TVM:KSD!AB29) -> 0 | AD29: =SUM(TVM:KSD!AB29) -> 0
A30: (d) | B30: 3 Part time teachers @ Rs.5,000/- per month per teacher | C30: =SUM(TVM:KSD!C30) -> 0 | D30: =SUM(TVM:KSD!D30) -> 0 | E30: =SUM(TVM:KSD!E30) -> 0 | F30: =SUM(TVM:KSD!F30) -> 0 | I30: =SUM(TVM:KSD!I30) -> 0 | J30: =SUM(TVM:KSD!J30) -> 0 | K30: =SUM(TVM:KSD!K30) -> 0 | L30: =SUM(TVM:KSD!L30) -> 0 | M30: =SUM(TVM:KSD!M30) -> 0 | N30: =SUM(TVM:KSD!N30) -> 0 | P30: =SUM(TVM:KSD!P30) -> 0 | Q30: =SUM(TVM:KSD!Q30) -> 0 | R30: =SUM(TVM:KSD!R30) -> 0 | S30: =SUM(TVM:KSD!S30) -> 0 | T30: =SUM(TVM:KSD!T30) -> 0 | U30: =SUM(TVM:KSD!U30) -> 0 | V30: =SUM(TVM:KSD!V30) -> 0 | W30: =SUM(TVM:KSD!W30) -> 0 | Y30: =SUM(TVM:KSD!Y30) -> 0 | Z30: =SUM(TVM:KSD!Z30) -> 0 | AA30: =SUM(TVM:KSD!AA30) -> 0 | AB30: =SUM(TVM:KSD!AB30) -> 0 | AD30: =SUM(TVM:KSD!AB30) -> 0
A31: (e) | B31: 1 Full time Accountant @ Rs. 10,000/- per month | C31: =SUM(TVM:KSD!C31) -> 0 | D31: =SUM(TVM:KSD!D31) -> 0 | E31: =SUM(TVM:KSD!E31) -> 0 | F31: =SUM(TVM:KSD!F31) -> 0 | I31: =SUM(TVM:KSD!I31) -> 0 | J31: =SUM(TVM:KSD!J31) -> 0 | K31: =SUM(TVM:KSD!K31) -> 0 | L31: =SUM(TVM:KSD!L31) -> 0 | M31: =SUM(TVM:KSD!M31) -> 0 | N31: =SUM(TVM:KSD!N31) -> 0 | P31: =SUM(TVM:KSD!P31) -> 0 | Q31: =SUM(TVM:KSD!Q31) -> 0 | R31: =SUM(TVM:KSD!R31) -> 0 | S31: =SUM(TVM:KSD!S31) -> 0 | T31: =SUM(TVM:KSD!T31) -> 0 | U31: =SUM(TVM:KSD!U31) -> 0 | V31: =SUM(TVM:KSD!V31) -> 0 | W31: =SUM(TVM:KSD!W31) -> 0 | Y31: =SUM(TVM:KSD!Y31) -> 0 | Z31: =SUM(TVM:KSD!Z31) -> 0 | AA31: =SUM(TVM:KSD!AA31) -> 0 | AB31: =SUM(TVM:KSD!AB31) -> 0 | AD31: =SUM(TVM:KSD!AB31) -> 0
A32: (f) | B32: 2 Support staff - (Accountant/Assistant, Peon, Chowkidar) @ Rs. 5,000/- per month per staff | C32: =SUM(TVM:KSD!C32) -> 0 | D32: =SUM(TVM:KSD!D32) -> 0 | E32: =SUM(TVM:KSD!E32) -> 0 | F32: =SUM(TVM:KSD!F32) -> 0 | I32: =SUM(TVM:KSD!I32) -> 0 | J32: =SUM(TVM:KSD!J32) -> 0 | K32: =SUM(TVM:KSD!K32) -> 0 | L32: =SUM(TVM:KSD!L32) -> 0 | M32: =SUM(TVM:KSD!M32) -> 0 | N32: =SUM(TVM:KSD!N32) -> 0 | P32: =SUM(TVM:KSD!P32) -> 0 | Q32: =SUM(TVM:KSD!Q32) -> 0 | R32: =SUM(TVM:KSD!R32) -> 0 | S32: =SUM(TVM:KSD!S32) -> 0 | T32: =SUM(TVM:KSD!T32) -> 0 | U32: =SUM(TVM:KSD!U32) -> 0 | V32: =SUM(TVM:KSD!V32) -> 0 | W32: =SUM(TVM:KSD!W32) -> 0 | Y32: =SUM(TVM:KSD!Y32) -> 0 | Z32: =SUM(TVM:KSD!Z32) -> 0 | AA32: =SUM(TVM:KSD!AA32) -> 0 | AB32: =SUM(TVM:KSD!AB32) -> 0 | AD32: =SUM(TVM:KSD!AB32) -> 0
A33: (g) | B33: 1 Head Cook @ Rs. 6,000/- per month and upto 2 Asstt. Cooks @ Rs. 4,500/- per month per cook | C33: =SUM(TVM:KSD!C33) -> 0 | D33: =SUM(TVM:KSD!D33) -> 0 | E33: =SUM(TVM:KSD!E33) -> 0 | F33: =SUM(TVM:KSD!F33) -> 0 | I33: =SUM(TVM:KSD!I33) -> 0 | J33: =SUM(TVM:KSD!J33) -> 0 | K33: =SUM(TVM:KSD!K33) -> 0 | L33: =SUM(TVM:KSD!L33) -> 0 | M33: =SUM(TVM:KSD!M33) -> 0 | N33: =SUM(TVM:KSD!N33) -> 0 | P33: =SUM(TVM:KSD!P33) -> 0 | Q33: =SUM(TVM:KSD!Q33) -> 0 | R33: =SUM(TVM:KSD!R33) -> 0 | S33: =SUM(TVM:KSD!S33) -> 0 | T33: =SUM(TVM:KSD!T33) -> 0 | U33: =SUM(TVM:KSD!U33) -> 0 | V33: =SUM(TVM:KSD!V33) -> 0 | W33: =SUM(TVM:KSD!W33) -> 0 | Y33: =SUM(TVM:KSD!Y33) -> 0 | Z33: =SUM(TVM:KSD!Z33) -> 0 | AA33: =SUM(TVM:KSD!AA33) -> 0 | AB33: =SUM(TVM:KSD!AB33) -> 0 | AD33: =SUM(TVM:KSD!AB33) -> 0
A34: 2.09 | B34: Specific Skill training @ Rs.1000/- per annum per child | C34: =SUM(TVM:KSD!C34) -> 0 | D34: =SUM(TVM:KSD!D34) -> 0 | E34: =SUM(TVM:KSD!E34) -> 0 | F34: =SUM(TVM:KSD!F34) -> 0 | I34: =SUM(TVM:KSD!I34) -> 0 | J34: =SUM(TVM:KSD!J34) -> 0 | K34: =SUM(TVM:KSD!K34) -> 0 | L34: =SUM(TVM:KSD!L34) -> 0 | M34: =SUM(TVM:KSD!M34) -> 0 | N34: =SUM(TVM:KSD!N34) -> 0 | P34: =SUM(TVM:KSD!P34) -> 0 | Q34: =SUM(TVM:KSD!Q34) -> 0 | R34: =SUM(TVM:KSD!R34) -> 0 | S34: =SUM(TVM:KSD!S34) -> 0 | T34: =SUM(TVM:KSD!T34) -> 0 | U34: =SUM(TVM:KSD!U34) -> 0 | V34: =SUM(TVM:KSD!V34) -> 0 | W34: =SUM(TVM:KSD!W34) -> 0 | Y34: =SUM(TVM:KSD!Y34) -> 0 | Z34: =SUM(TVM:KSD!Z34) -> 0 | AA34: =SUM(TVM:KSD!AA34) -> 0 | AB34: =SUM(TVM:KSD!AB34) -> 0 | AD34: =SUM(TVM:KSD!AB34) -> 0
A35: 2.1 | B35: Electricity / water charges @ Rs. 1000/- per annum per child | C35: =SUM(TVM:KSD!C35) -> 0 | D35: =SUM(TVM:KSD!D35) -> 0 | E35: =SUM(TVM:KSD!E35) -> 0 | F35: =SUM(TVM:KSD!F35) -> 0 | I35: =SUM(TVM:KSD!I35) -> 0 | J35: =SUM(TVM:KSD!J35) -> 0 | K35: =SUM(TVM:KSD!K35) -> 0 | L35: =SUM(TVM:KSD!L35) -> 0 | M35: =SUM(TVM:KSD!M35) -> 0 | N35: =SUM(TVM:KSD!N35) -> 0 | P35: =SUM(TVM:KSD!P35) -> 0 | Q35: =SUM(TVM:KSD!Q35) -> 0 | R35: =SUM(TVM:KSD!R35) -> 0 | S35: =SUM(TVM:KSD!S35) -> 0 | T35: =SUM(TVM:KSD!T35) -> 0 | U35: =SUM(TVM:KSD!U35) -> 0 | V35: =SUM(TVM:KSD!V35) -> 0 | W35: =SUM(TVM:KSD!W35) -> 0 | Y35: =SUM(TVM:KSD!Y35) -> 0 | Z35: =SUM(TVM:KSD!Z35) -> 0 | AA35: =SUM(TVM:KSD!AA35) -> 0 | AB35: =SUM(TVM:KSD!AB35) -> 0 | AD35: =SUM(TVM:KSD!AB35) -> 0
A36: =+A35+0.01 -> 2.11 | B36: Medical care/contingencies @ Rs.1250/- per annum per child | C36: =SUM(TVM:KSD!C36) -> 0 | D36: =SUM(TVM:KSD!D36) -> 0 | E36: =SUM(TVM:KSD!E36) -> 0 | F36: =SUM(TVM:KSD!F36) -> 0 | I36: =SUM(TVM:KSD!I36) -> 0 | J36: =SUM(TVM:KSD!J36) -> 0 | K36: =SUM(TVM:KSD!K36) -> 0 | L36: =SUM(TVM:KSD!L36) -> 0 | M36: =SUM(TVM:KSD!M36) -> 0 | N36: =SUM(TVM:KSD!N36) -> 0 | P36: =SUM(TVM:KSD!P36) -> 0 | Q36: =SUM(TVM:KSD!Q36) -> 0 | R36: =SUM(TVM:KSD!R36) -> 0 | S36: =SUM(TVM:KSD!S36) -> 0 | T36: =SUM(TVM:KSD!T36) -> 0 | U36: =SUM(TVM:KSD!U36) -> 0 | V36: =SUM(TVM:KSD!V36) -> 0 | W36: =SUM(TVM:KSD!W36) -> 0 | Y36: =SUM(TVM:KSD!Y36) -> 0 | Z36: =SUM(TVM:KSD!Z36) -> 0 | AA36: =SUM(TVM:KSD!AA36) -> 0 | AB36: =SUM(TVM:KSD!AB36) -> 0 | AD36: =SUM(TVM:KSD!AB36) -> 0
A37: =+A36+0.01 -> 2.12 | B37: Maintenance @ Rs. 750/- per child per annum | C37: =SUM(TVM:KSD!C37) -> 0 | D37: =SUM(TVM:KSD!D37) -> 0 | E37: =SUM(TVM:KSD!E37) -> 0 | F37: =SUM(TVM:KSD!F37) -> 0 | I37: =SUM(TVM:KSD!I37) -> 0 | J37: =SUM(TVM:KSD!J37) -> 0 | K37: =SUM(TVM:KSD!K37) -> 0 | L37: =SUM(TVM:KSD!L37) -> 0 | M37: =SUM(TVM:KSD!M37) -> 0 | N37: =SUM(TVM:KSD!N37) -> 0 | P37: =SUM(TVM:KSD!P37) -> 0 | Q37: =SUM(TVM:KSD!Q37) -> 0 | R37: =SUM(TVM:KSD!R37) -> 0 | S37: =SUM(TVM:KSD!S37) -> 0 | T37: =SUM(TVM:KSD!T37) -> 0 | U37: =SUM(TVM:KSD!U37) -> 0 | V37: =SUM(TVM:KSD!V37) -> 0 | W37: =SUM(TVM:KSD!W37) -> 0 | Y37: =SUM(TVM:KSD!Y37) -> 0 | Z37: =SUM(TVM:KSD!Z37) -> 0 | AA37: =SUM(TVM:KSD!AA37) -> 0 | AB37: =SUM(TVM:KSD!AB37) -> 0 | AD37: =SUM(TVM:KSD!AB37) -> 0
A38: 2.13 | B38: Miscellaneous @ Rs. 750/- per child per annum | C38: =SUM(TVM:KSD!C38) -> 0 | D38: =SUM(TVM:KSD!D38) -> 0 | E38: =SUM(TVM:KSD!E38) -> 0 | F38: =SUM(TVM:KSD!F38) -> 0 | I38: =SUM(TVM:KSD!I38) -> 0 | J38: =SUM(TVM:KSD!J38) -> 0 | K38: =SUM(TVM:KSD!K38) -> 0 | L38: =SUM(TVM:KSD!L38) -> 0 | M38: =SUM(TVM:KSD!M38) -> 0 | N38: =SUM(TVM:KSD!N38) -> 0 | P38: =SUM(TVM:KSD!P38) -> 0 | Q38: =SUM(TVM:KSD!Q38) -> 0 | R38: =SUM(TVM:KSD!R38) -> 0 | S38: =SUM(TVM:KSD!S38) -> 0 | T38: =SUM(TVM:KSD!T38) -> 0 | U38: =SUM(TVM:KSD!U38) -> 0 | V38: =SUM(TVM:KSD!V38) -> 0 | W38: =SUM(TVM:KSD!W38) -> 0 | Y38: =SUM(TVM:KSD!Y38) -> 0 | Z38: =SUM(TVM:KSD!Z38) -> 0 | AA38: =SUM(TVM:KSD!AA38) -> 0 | AB38: =SUM(TVM:KSD!AB38) -> 0 | AD38: =SUM(TVM:KSD!AB38) -> 0
A39: 2.14 | B39: Preparatory camps @ Rs. 300/- per child per annum | C39: =SUM(TVM:KSD!C39) -> 0 | D39: =SUM(TVM:KSD!D39) -> 0 | E39: =SUM(TVM:KSD!E39) -> 0 | F39: =SUM(TVM:KSD!F39) -> 0 | I39: =SUM(TVM:KSD!I39) -> 0 | J39: =SUM(TVM:KSD!J39) -> 0 | K39: =SUM(TVM:KSD!K39) -> 0 | L39: =SUM(TVM:KSD!L39) -> 0 | M39: =SUM(TVM:KSD!M39) -> 0 | N39: =SUM(TVM:KSD!N39) -> 0 | P39: =SUM(TVM:KSD!P39) -> 0 | Q39: =SUM(TVM:KSD!Q39) -> 0 | R39: =SUM(TVM:KSD!R39) -> 0 | S39: =SUM(TVM:KSD!S39) -> 0 | T39: =SUM(TVM:KSD!T39) -> 0 | U39: =SUM(TVM:KSD!U39) -> 0 | V39: =SUM(TVM:KSD!V39) -> 0 | W39: =SUM(TVM:KSD!W39) -> 0 | Y39: =SUM(TVM:KSD!Y39) -> 0 | Z39: =SUM(TVM:KSD!Z39) -> 0 | AA39: =SUM(TVM:KSD!AA39) -> 0 | AB39: =SUM(TVM:KSD!AB39) -> 0 | AD39: =SUM(TVM:KSD!AB39) -> 0
A40: 2.15 | B40: P.T.A / school functions @ Rs. 300/- per child per annum | C40: =SUM(TVM:KSD!C40) -> 0 | D40: =SUM(TVM:KSD!D40) -> 0 | E40: =SUM(TVM:KSD!E40) -> 0 | F40: =SUM(TVM:KSD!F40) -> 0 | I40: =SUM(TVM:KSD!I40) -> 0 | J40: =SUM(TVM:KSD!J40) -> 0 | K40: =SUM(TVM:KSD!K40) -> 0 | L40: =SUM(TVM:KSD!L40) -> 0 | M40: =SUM(TVM:KSD!M40) -> 0 | N40: =SUM(TVM:KSD!N40) -> 0 | P40: =SUM(TVM:KSD!P40) -> 0 | Q40: =SUM(TVM:KSD!Q40) -> 0 | R40: =SUM(TVM:KSD!R40) -> 0 | S40: =SUM(TVM:KSD!S40) -> 0 | T40: =SUM(TVM:KSD!T40) -> 0 | U40: =SUM(TVM:KSD!U40) -> 0 | V40: =SUM(TVM:KSD!V40) -> 0 | W40: =SUM(TVM:KSD!W40) -> 0 | Y40: =SUM(TVM:KSD!Y40) -> 0 | Z40: =SUM(TVM:KSD!Z40) -> 0 | AA40: =SUM(TVM:KSD!AA40) -> 0 | AB40: =SUM(TVM:KSD!AB40) -> 0 | AD40: =SUM(TVM:KSD!AB40) -> 0
A41: 2.16 | B41: Provision of Rent @ Rs. 10,000/- per child per annum | C41: =SUM(TVM:KSD!C41) -> 0 | D41: =SUM(TVM:KSD!D41) -> 0 | E41: =SUM(TVM:KSD!E41) -> 0 | F41: =SUM(TVM:KSD!F41) -> 0 | I41: =SUM(TVM:KSD!I41) -> 0 | J41: =SUM(TVM:KSD!J41) -> 0 | K41: =SUM(TVM:KSD!K41) -> 0 | L41: =SUM(TVM:KSD!L41) -> 0 | M41: =SUM(TVM:KSD!M41) -> 0 | N41: =SUM(TVM:KSD!N41) -> 0 | P41: =SUM(TVM:KSD!P41) -> 0 | Q41: =SUM(TVM:KSD!Q41) -> 0 | R41: =SUM(TVM:KSD!R41) -> 0 | S41: =SUM(TVM:KSD!S41) -> 0 | T41: =SUM(TVM:KSD!T41) -> 0 | U41: =SUM(TVM:KSD!U41) -> 0 | V41: =SUM(TVM:KSD!V41) -> 0 | W41: =SUM(TVM:KSD!W41) -> 0 | Y41: =SUM(TVM:KSD!Y41) -> 0 | Z41: =SUM(TVM:KSD!Z41) -> 0 | AA41: =SUM(TVM:KSD!AA41) -> 0 | AB41: =SUM(TVM:KSD!AB41) -> 0 | AD41: =SUM(TVM:KSD!AB41) -> 0
A42: 2.17 | B42: Capacity Building @ Rs. 500/- per child per annum | C42: =SUM(TVM:KSD!C42) -> 0 | D42: =SUM(TVM:KSD!D42) -> 0 | E42: =SUM(TVM:KSD!E42) -> 0 | F42: =SUM(TVM:KSD!F42) -> 0 | I42: =SUM(TVM:KSD!I42) -> 0 | J42: =SUM(TVM:KSD!J42) -> 0 | K42: =SUM(TVM:KSD!K42) -> 0 | L42: =SUM(TVM:KSD!L42) -> 0 | M42: =SUM(TVM:KSD!M42) -> 0 | N42: =SUM(TVM:KSD!N42) -> 0 | P42: =SUM(TVM:KSD!P42) -> 0 | Q42: =SUM(TVM:KSD!Q42) -> 0 | R42: =SUM(TVM:KSD!R42) -> 0 | S42: =SUM(TVM:KSD!S42) -> 0 | T42: =SUM(TVM:KSD!T42) -> 0 | U42: =SUM(TVM:KSD!U42) -> 0 | V42: =SUM(TVM:KSD!V42) -> 0 | W42: =SUM(TVM:KSD!W42) -> 0 | Y42: =SUM(TVM:KSD!Y42) -> 0 | Z42: =SUM(TVM:KSD!Z42) -> 0 | AA42: =SUM(TVM:KSD!AA42) -> 0 | AB42: =SUM(TVM:KSD!AB42) -> 0 | AD42: =SUM(TVM:KSD!AB42) -> 0
A43: 2.18 | B43: Physical / Self Defence Training @ Rs.200/- per child per annum | C43: =SUM(TVM:KSD!C43) -> 0 | D43: =SUM(TVM:KSD!D43) -> 0 | E43: =SUM(TVM:KSD!E43) -> 0 | F43: =SUM(TVM:KSD!F43) -> 0 | I43: =SUM(TVM:KSD!I43) -> 0 | J43: =SUM(TVM:KSD!J43) -> 0 | K43: =SUM(TVM:KSD!K43) -> 0 | L43: =SUM(TVM:KSD!L43) -> 0 | M43: =SUM(TVM:KSD!M43) -> 0 | N43: =SUM(TVM:KSD!N43) -> 0 | P43: =SUM(TVM:KSD!P43) -> 0 | Q43: =SUM(TVM:KSD!Q43) -> 0 | R43: =SUM(TVM:KSD!R43) -> 0 | S43: =SUM(TVM:KSD!S43) -> 0 | T43: =SUM(TVM:KSD!T43) -> 0 | U43: =SUM(TVM:KSD!U43) -> 0 | V43: =SUM(TVM:KSD!V43) -> 0 | W43: =SUM(TVM:KSD!W43) -> 0 | Y43: =SUM(TVM:KSD!Y43) -> 0 | Z43: =SUM(TVM:KSD!Z43) -> 0 | AA43: =SUM(TVM:KSD!AA43) -> 0 | AB43: =SUM(TVM:KSD!AB43) -> 0 | AD43: =SUM(TVM:KSD!AB43) -> 0
B44: Sub Total (Recurring) | C44: =SUM(TVM:KSD!C44) -> 0 | D44: =SUM(TVM:KSD!D44) -> 0 | E44: =SUM(TVM:KSD!E44) -> 0 | F44: =SUM(TVM:KSD!F44) -> 0 | I44: =SUM(TVM:KSD!I44) -> 0 | J44: =SUM(TVM:KSD!J44) -> 0 | K44: =SUM(TVM:KSD!K44) -> 0 | L44: =SUM(TVM:KSD!L44) -> 0 | M44: =SUM(TVM:KSD!M44) -> 0 | N44: =SUM(TVM:KSD!N44) -> 0 | P44: =SUM(TVM:KSD!P44) -> 0 | Q44: =SUM(TVM:KSD!Q44) -> 0 | R44: =SUM(TVM:KSD!R44) -> 0 | S44: =SUM(TVM:KSD!S44) -> 0 | T44: =SUM(TVM:KSD!T44) -> 0 | U44: =SUM(TVM:KSD!U44) -> 0 | V44: =SUM(TVM:KSD!V44) -> 0 | W44: =SUM(TVM:KSD!W44) -> 0 | Y44: =SUM(TVM:KSD!Y44) -> 0 | Z44: =SUM(TVM:KSD!Z44) -> 0 | AA44: =SUM(TVM:KSD!AA44) -> 0 | AB44: =SUM(TVM:KSD!AB44) -> 0 | AD44: =SUM(TVM:KSD!AB44) -> 0
B45: Total (Non Recurring + Recurring) | C45: =SUM(TVM:KSD!C45) -> 0 | D45: =SUM(TVM:KSD!D45) -> 0 | E45: =SUM(TVM:KSD!E45) -> 0 | F45: =SUM(TVM:KSD!F45) -> 0 | I45: =SUM(TVM:KSD!I45) -> 0 | J45: =SUM(TVM:KSD!J45) -> 0 | K45: =SUM(TVM:KSD!K45) -> 0 | L45: =SUM(TVM:KSD!L45) -> 0 | M45: =SUM(TVM:KSD!M45) -> 0 | N45: =SUM(TVM:KSD!N45) -> 0 | P45: =SUM(TVM:KSD!P45) -> 0 | Q45: =SUM(TVM:KSD!Q45) -> 0 | R45: =SUM(TVM:KSD!R45) -> 0 | S45: =SUM(TVM:KSD!S45) -> 0 | T45: =SUM(TVM:KSD!T45) -> 0 | U45: =SUM(TVM:KSD!U45) -> 0 | V45: =SUM(TVM:KSD!V45) -> 0 | W45: =SUM(TVM:KSD!W45) -> 0 | Y45: =SUM(TVM:KSD!Y45) -> 0 | Z45: =SUM(TVM:KSD!Z45) -> 0 | AA45: =SUM(TVM:KSD!AA45) -> 0 | AB45: =SUM(TVM:KSD!AB45) -> 0 | AD45: =SUM(TVM:KSD!AB45) -> 0
B46: 100 children | C46: =SUM(TVM:KSD!C46) -> 0 | D46: =SUM(TVM:KSD!D46) -> 0 | E46: =SUM(TVM:KSD!E46) -> 0 | F46: =SUM(TVM:KSD!F46) -> 0 | I46: =SUM(TVM:KSD!I46) -> 0 | J46: =SUM(TVM:KSD!J46) -> 0 | K46: =SUM(TVM:KSD!K46) -> 0 | L46: =SUM(TVM:KSD!L46) -> 0 | M46: =SUM(TVM:KSD!M46) -> 0 | N46: =SUM(TVM:KSD!N46) -> 0 | P46: =SUM(TVM:KSD!P46) -> 0 | Q46: =SUM(TVM:KSD!Q46) -> 0 | R46: =SUM(TVM:KSD!R46) -> 0 | S46: =SUM(TVM:KSD!S46) -> 0 | T46: =SUM(TVM:KSD!T46) -> 0 | U46: =SUM(TVM:KSD!U46) -> 0 | V46: =SUM(TVM:KSD!V46) -> 0 | W46: =SUM(TVM:KSD!W46) -> 0 | Y46: =SUM(TVM:KSD!Y46) -> 0 | Z46: =SUM(TVM:KSD!Z46) -> 0 | AA46: =SUM(TVM:KSD!AA46) -> 0 | AB46: =SUM(TVM:KSD!AB46) -> 0 | AD46: =SUM(TVM:KSD!AB46) -> 0
B47: Non-recurring (one time grant) | C47: =SUM(TVM:KSD!C47) -> 0 | D47: =SUM(TVM:KSD!D47) -> 0 | E47: =SUM(TVM:KSD!E47) -> 0 | F47: =SUM(TVM:KSD!F47) -> 0 | I47: =SUM(TVM:KSD!I47) -> 0 | J47: =SUM(TVM:KSD!J47) -> 0 | K47: =SUM(TVM:KSD!K47) -> 0 | L47: =SUM(TVM:KSD!L47) -> 0 | M47: =SUM(TVM:KSD!M47) -> 0 | N47: =SUM(TVM:KSD!N47) -> 0 | P47: =SUM(TVM:KSD!P47) -> 0 | Q47: =SUM(TVM:KSD!Q47) -> 0 | R47: =SUM(TVM:KSD!R47) -> 0 | S47: =SUM(TVM:KSD!S47) -> 0 | T47: =SUM(TVM:KSD!T47) -> 0 | U47: =SUM(TVM:KSD!U47) -> 0 | V47: =SUM(TVM:KSD!V47) -> 0 | W47: =SUM(TVM:KSD!W47) -> 0 | Y47: =SUM(TVM:KSD!Y47) -> 0 | Z47: =SUM(TVM:KSD!Z47) -> 0 | AA47: =SUM(TVM:KSD!AA47) -> 0 | AB47: =SUM(TVM:KSD!AB47) -> 0 | AD47: =SUM(TVM:KSD!AB47) -> 0
A48: 2.19 | B48: Furniture / Equipment (including kitchen equipment) | C48: =SUM(TVM:KSD!C48) -> 0 | D48: =SUM(TVM:KSD!D48) -> 0 | E48: =SUM(TVM:KSD!E48) -> 0 | F48: =SUM(TVM:KSD!F48) -> 0 | I48: =SUM(TVM:KSD!I48) -> 0 | J48: =SUM(TVM:KSD!J48) -> 0 | K48: =SUM(TVM:KSD!K48) -> 0 | L48: =SUM(TVM:KSD!L48) -> 0 | M48: =SUM(TVM:KSD!M48) -> 0 | N48: =SUM(TVM:KSD!N48) -> 0 | P48: =SUM(TVM:KSD!P48) -> 0 | Q48: =SUM(TVM:KSD!Q48) -> 0 | R48: =SUM(TVM:KSD!R48) -> 0 | S48: =SUM(TVM:KSD!S48) -> 0 | T48: =SUM(TVM:KSD!T48) -> 0 | U48: =SUM(TVM:KSD!U48) -> 0 | V48: =SUM(TVM:KSD!V48) -> 0 | W48: =SUM(TVM:KSD!W48) -> 0 | Y48: =SUM(TVM:KSD!Y48) -> 0 | Z48: =SUM(TVM:KSD!Z48) -> 0 | AA48: =SUM(TVM:KSD!AA48) -> 0 | AB48: =SUM(TVM:KSD!AB48) -> 0 | AD48: =SUM(TVM:KSD!AB48) -> 0
A49: =+A48+0.01 -> 2.2 | B49: TLM and equipment including library books (New) | C49: =SUM(TVM:KSD!C49) -> 0 | D49: =SUM(TVM:KSD!D49) -> 0 | E49: =SUM(TVM:KSD!E49) -> 0 | F49: =SUM(TVM:KSD!F49) -> 0 | I49: =SUM(TVM:KSD!I49) -> 0 | J49: =SUM(TVM:KSD!J49) -> 0 | K49: =SUM(TVM:KSD!K49) -> 0 | L49: =SUM(TVM:KSD!L49) -> 0 | M49: =SUM(TVM:KSD!M49) -> 0 | N49: =SUM(TVM:KSD!N49) -> 0 | P49: =SUM(TVM:KSD!P49) -> 0 | Q49: =SUM(TVM:KSD!Q49) -> 0 | R49: =SUM(TVM:KSD!R49) -> 0 | S49: =SUM(TVM:KSD!S49) -> 0 | T49: =SUM(TVM:KSD!T49) -> 0 | U49: =SUM(TVM:KSD!U49) -> 0 | V49: =SUM(TVM:KSD!V49) -> 0 | W49: =SUM(TVM:KSD!W49) -> 0 | Y49: =SUM(TVM:KSD!Y49) -> 0 | Z49: =SUM(TVM:KSD!Z49) -> 0 | AA49: =SUM(TVM:KSD!AA49) -> 0 | AB49: =SUM(TVM:KSD!AB49) -> 0 | AD49: =SUM(TVM:KSD!AB49) -> 0
A50: =+A49+0.01 -> 2.21 | B50: Bedding (New) | C50: =SUM(TVM:KSD!C50) -> 0 | D50: =SUM(TVM:KSD!D50) -> 0 | E50: =SUM(TVM:KSD!E50) -> 0 | F50: =SUM(TVM:KSD!F50) -> 0 | I50: =SUM(TVM:KSD!I50) -> 0 | J50: =SUM(TVM:KSD!J50) -> 0 | K50: =SUM(TVM:KSD!K50) -> 0 | L50: =SUM(TVM:KSD!L50) -> 0 | M50: =SUM(TVM:KSD!M50) -> 0 | N50: =SUM(TVM:KSD!N50) -> 0 | P50: =SUM(TVM:KSD!P50) -> 0 | Q50: =SUM(TVM:KSD!Q50) -> 0 | R50: =SUM(TVM:KSD!R50) -> 0 | S50: =SUM(TVM:KSD!S50) -> 0 | T50: =SUM(TVM:KSD!T50) -> 0 | U50: =SUM(TVM:KSD!U50) -> 0 | V50: =SUM(TVM:KSD!V50) -> 0 | W50: =SUM(TVM:KSD!W50) -> 0 | Y50: =SUM(TVM:KSD!Y50) -> 0 | Z50: =SUM(TVM:KSD!Z50) -> 0 | AA50: =SUM(TVM:KSD!AA50) -> 0 | AB50: =SUM(TVM:KSD!AB50) -> 0 | AD50: =SUM(TVM:KSD!AB50) -> 0
A51: =+A50+0.01 -> 2.22 | B51: Replacement of bedding (once in 3 years) | C51: =SUM(TVM:KSD!C51) -> 0 | D51: =SUM(TVM:KSD!D51) -> 0 | E51: =SUM(TVM:KSD!E51) -> 0 | F51: =SUM(TVM:KSD!F51) -> 0 | I51: =SUM(TVM:KSD!I51) -> 0 | J51: =SUM(TVM:KSD!J51) -> 0 | K51: =SUM(TVM:KSD!K51) -> 0 | L51: =SUM(TVM:KSD!L51) -> 0 | M51: =SUM(TVM:KSD!M51) -> 0 | N51: =SUM(TVM:KSD!N51) -> 0 | P51: =SUM(TVM:KSD!P51) -> 0 | Q51: =SUM(TVM:KSD!Q51) -> 0 | R51: =SUM(TVM:KSD!R51) -> 0 | S51: =SUM(TVM:KSD!S51) -> 0 | T51: =SUM(TVM:KSD!T51) -> 0 | U51: =SUM(TVM:KSD!U51) -> 0 | V51: =SUM(TVM:KSD!V51) -> 0 | W51: =SUM(TVM:KSD!W51) -> 0 | Y51: =SUM(TVM:KSD!Y51) -> 0 | Z51: =SUM(TVM:KSD!Z51) -> 0 | AA51: =SUM(TVM:KSD!AA51) -> 0 | AB51: =SUM(TVM:KSD!AB51) -> 0 | AD51: =SUM(TVM:KSD!AB51) -> 0
B52: Sub Total Non-recurring | C52: =SUM(TVM:KSD!C52) -> 0 | D52: =SUM(TVM:KSD!D52) -> 0 | E52: =SUM(TVM:KSD!E52) -> 0 | F52: =SUM(TVM:KSD!F52) -> 0 | I52: =SUM(TVM:KSD!I52) -> 0 | J52: =SUM(TVM:KSD!J52) -> 0 | K52: =SUM(TVM:KSD!K52) -> 0 | L52: =SUM(TVM:KSD!L52) -> 0 | M52: =SUM(TVM:KSD!M52) -> 0 | N52: =SUM(TVM:KSD!N52) -> 0 | P52: =SUM(TVM:KSD!P52) -> 0 | Q52: =SUM(TVM:KSD!Q52) -> 0 | R52: =SUM(TVM:KSD!R52) -> 0 | S52: =SUM(TVM:KSD!S52) -> 0 | T52: =SUM(TVM:KSD!T52) -> 0 | U52: =SUM(TVM:KSD!U52) -> 0 | V52: =SUM(TVM:KSD!V52) -> 0 | W52: =SUM(TVM:KSD!W52) -> 0 | Y52: =SUM(TVM:KSD!Y52) -> 0 | Z52: =SUM(TVM:KSD!Z52) -> 0 | AA52: =SUM(TVM:KSD!AA52) -> 0 | AB52: =SUM(TVM:KSD!AB52) -> 0 | AD52: =SUM(TVM:KSD!AB52) -> 0
B53: Recurring | C53: =SUM(TVM:KSD!C53) -> 0 | D53: =SUM(TVM:KSD!D53) -> 0 | E53: =SUM(TVM:KSD!E53) -> 0 | F53: =SUM(TVM:KSD!F53) -> 0 | I53: =SUM(TVM:KSD!I53) -> 0 | J53: =SUM(TVM:KSD!J53) -> 0 | K53: =SUM(TVM:KSD!K53) -> 0 | L53: =SUM(TVM:KSD!L53) -> 0 | M53: =SUM(TVM:KSD!M53) -> 0 | N53: =SUM(TVM:KSD!N53) -> 0 | P53: =SUM(TVM:KSD!P53) -> 0 | Q53: =SUM(TVM:KSD!Q53) -> 0 | R53: =SUM(TVM:KSD!R53) -> 0 | S53: =SUM(TVM:KSD!S53) -> 0 | T53: =SUM(TVM:KSD!T53) -> 0 | U53: =SUM(TVM:KSD!U53) -> 0 | V53: =SUM(TVM:KSD!V53) -> 0 | W53: =SUM(TVM:KSD!W53) -> 0 | Y53: =SUM(TVM:KSD!Y53) -> 0 | Z53: =SUM(TVM:KSD!Z53) -> 0 | AA53: =SUM(TVM:KSD!AA53) -> 0 | AB53: =SUM(TVM:KSD!AB53) -> 0 | AD53: =SUM(TVM:KSD!AB53) -> 0
A54: 2.23 | B54: Maintenance per child per month @ Rs. 1500/- | C54: =SUM(TVM:KSD!C54) -> 0 | D54: =SUM(TVM:KSD!D54) -> 0 | E54: =SUM(TVM:KSD!E54) -> 0 | F54: =SUM(TVM:KSD!F54) -> 0 | I54: =SUM(TVM:KSD!I54) -> 0 | J54: =SUM(TVM:KSD!J54) -> 0 | K54: =SUM(TVM:KSD!K54) -> 0 | L54: =SUM(TVM:KSD!L54) -> 0 | M54: =SUM(TVM:KSD!M54) -> 0 | N54: =SUM(TVM:KSD!N54) -> 0 | P54: =SUM(TVM:KSD!P54) -> 0 | Q54: =SUM(TVM:KSD!Q54) -> 0 | R54: =SUM(TVM:KSD!R54) -> 0 | S54: =SUM(TVM:KSD!S54) -> 0 | T54: =SUM(TVM:KSD!T54) -> 0 | U54: =SUM(TVM:KSD!U54) -> 0 | V54: =SUM(TVM:KSD!V54) -> 0 | W54: =SUM(TVM:KSD!W54) -> 0 | Y54: =SUM(TVM:KSD!Y54) -> 0 | Z54: =SUM(TVM:KSD!Z54) -> 0 | AA54: =SUM(TVM:KSD!AA54) -> 0 | AB54: =SUM(TVM:KSD!AB54) -> 0 | AD54: =SUM(TVM:KSD!AB54) -> 0
A55: =+A54+0.01 -> 2.24 | B55: Stipend per child per month @ Rs.100/- | C55: =SUM(TVM:KSD!C55) -> 0 | D55: =SUM(TVM:KSD!D55) -> 0 | E55: =SUM(TVM:KSD!E55) -> 0 | F55: =SUM(TVM:KSD!F55) -> 0 | I55: =SUM(TVM:KSD!I55) -> 0 | J55: =SUM(TVM:KSD!J55) -> 0 | K55: =SUM(TVM:KSD!K55) -> 0 | L55: =SUM(TVM:KSD!L55) -> 0 | M55: =SUM(TVM:KSD!M55) -> 0 | N55: =SUM(TVM:KSD!N55) -> 0 | P55: =SUM(TVM:KSD!P55) -> 0 | Q55: =SUM(TVM:KSD!Q55) -> 0 | R55: =SUM(TVM:KSD!R55) -> 0 | S55: =SUM(TVM:KSD!S55) -> 0 | T55: =SUM(TVM:KSD!T55) -> 0 | U55: =SUM(TVM:KSD!U55) -> 0 | V55: =SUM(TVM:KSD!V55) -> 0 | W55: =SUM(TVM:KSD!W55) -> 0 | Y55: =SUM(TVM:KSD!Y55) -> 0 | Z55: =SUM(TVM:KSD!Z55) -> 0 | AA55: =SUM(TVM:KSD!AA55) -> 0 | AB55: =SUM(TVM:KSD!AB55) -> 0 | AD55: =SUM(TVM:KSD!AB55) -> 0
A56: 2.25 | B56: Supplementary TLM, Stationery and other educational material per child @1000/- per annum | C56: =SUM(TVM:KSD!C56) -> 0 | D56: =SUM(TVM:KSD!D56) -> 0 | E56: =SUM(TVM:KSD!E56) -> 0 | F56: =SUM(TVM:KSD!F56) -> 0 | I56: =SUM(TVM:KSD!I56) -> 0 | J56: =SUM(TVM:KSD!J56) -> 0 | K56: =SUM(TVM:KSD!K56) -> 0 | L56: =SUM(TVM:KSD!L56) -> 0 | M56: =SUM(TVM:KSD!M56) -> 0 | N56: =SUM(TVM:KSD!N56) -> 0 | P56: =SUM(TVM:KSD!P56) -> 0 | Q56: =SUM(TVM:KSD!Q56) -> 0 | R56: =SUM(TVM:KSD!R56) -> 0 | S56: =SUM(TVM:KSD!S56) -> 0 | T56: =SUM(TVM:KSD!T56) -> 0 | U56: =SUM(TVM:KSD!U56) -> 0 | V56: =SUM(TVM:KSD!V56) -> 0 | W56: =SUM(TVM:KSD!W56) -> 0 | Y56: =SUM(TVM:KSD!Y56) -> 0 | Z56: =SUM(TVM:KSD!Z56) -> 0 | AA56: =SUM(TVM:KSD!AA56) -> 0 | AB56: =SUM(TVM:KSD!AB56) -> 0 | AD56: =SUM(TVM:KSD!AB56) -> 0
A57: 2.26 | B57: Salaries | C57: =SUM(TVM:KSD!C57) -> 0 | D57: =SUM(TVM:KSD!D57) -> 0 | E57: =SUM(TVM:KSD!E57) -> 0 | F57: =SUM(TVM:KSD!F57) -> 0 | I57: =SUM(TVM:KSD!I57) -> 0 | J57: =SUM(TVM:KSD!J57) -> 0 | K57: =SUM(TVM:KSD!K57) -> 0 | L57: =SUM(TVM:KSD!L57) -> 0 | M57: =SUM(TVM:KSD!M57) -> 0 | N57: =SUM(TVM:KSD!N57) -> 0 | P57: =SUM(TVM:KSD!P57) -> 0 | Q57: =SUM(TVM:KSD!Q57) -> 0 | R57: =SUM(TVM:KSD!R57) -> 0 | S57: =SUM(TVM:KSD!S57) -> 0 | T57: =SUM(TVM:KSD!T57) -> 0 | U57: =SUM(TVM:KSD!U57) -> 0 | V57: =SUM(TVM:KSD!V57) -> 0 | W57: =SUM(TVM:KSD!W57) -> 0 | Y57: =SUM(TVM:KSD!Y57) -> 0 | Z57: =SUM(TVM:KSD!Z57) -> 0 | AA57: =SUM(TVM:KSD!AA57) -> 0 | AB57: =SUM(TVM:KSD!AB57) -> 0 | AD57: =SUM(TVM:KSD!AB57) -> 0
A58: (a) | B58: 1 Warden @ Rs. 25,000/- per month | C58: =SUM(TVM:KSD!C58) -> 0 | D58: =SUM(TVM:KSD!D58) -> 0 | E58: =SUM(TVM:KSD!E58) -> 0 | F58: =SUM(TVM:KSD!F58) -> 0 | I58: =SUM(TVM:KSD!I58) -> 0 | J58: =SUM(TVM:KSD!J58) -> 0 | K58: =SUM(TVM:KSD!K58) -> 0 | L58: =SUM(TVM:KSD!L58) -> 0 | M58: =SUM(TVM:KSD!M58) -> 0 | N58: =SUM(TVM:KSD!N58) -> 0 | P58: =SUM(TVM:KSD!P58) -> 0 | Q58: =SUM(TVM:KSD!Q58) -> 0 | R58: =SUM(TVM:KSD!R58) -> 0 | S58: =SUM(TVM:KSD!S58) -> 0 | T58: =SUM(TVM:KSD!T58) -> 0 | U58: =SUM(TVM:KSD!U58) -> 0 | V58: =SUM(TVM:KSD!V58) -> 0 | W58: =SUM(TVM:KSD!W58) -> 0 | Y58: =SUM(TVM:KSD!Y58) -> 0 | Z58: =SUM(TVM:KSD!Z58) -> 0 | AA58: =SUM(TVM:KSD!AA58) -> 0 | AB58: =SUM(TVM:KSD!AB58) -> 0 | AD58: =SUM(TVM:KSD!AB58) -> 0
A59: (b) | B59: 1 head teacher @ Rs. 25,000/- per month in case the enrollment exceeds 100 | C59: =SUM(TVM:KSD!C59) -> 0 | D59: =SUM(TVM:KSD!D59) -> 0 | E59: =SUM(TVM:KSD!E59) -> 0 | F59: =SUM(TVM:KSD!F59) -> 0 | I59: =SUM(TVM:KSD!I59) -> 0 | J59: =SUM(TVM:KSD!J59) -> 0 | K59: =SUM(TVM:KSD!K59) -> 0 | L59: =SUM(TVM:KSD!L59) -> 0 | M59: =SUM(TVM:KSD!M59) -> 0 | N59: =SUM(TVM:KSD!N59) -> 0 | P59: =SUM(TVM:KSD!P59) -> 0 | Q59: =SUM(TVM:KSD!Q59) -> 0 | R59: =SUM(TVM:KSD!R59) -> 0 | S59: =SUM(TVM:KSD!S59) -> 0 | T59: =SUM(TVM:KSD!T59) -> 0 | U59: =SUM(TVM:KSD!U59) -> 0 | V59: =SUM(TVM:KSD!V59) -> 0 | W59: =SUM(TVM:KSD!W59) -> 0 | Y59: =SUM(TVM:KSD!Y59) -> 0 | Z59: =SUM(TVM:KSD!Z59) -> 0 | AA59: =SUM(TVM:KSD!AA59) -> 0 | AB59: =SUM(TVM:KSD!AB59) -> 0 | AD59: =SUM(TVM:KSD!AB59) -> 0
A60: (c) | B60: 4 - 5 Full time teachers as per RTE norms @ Rs. 20,000/- per month per teacher | C60: =SUM(TVM:KSD!C60) -> 0 | D60: =SUM(TVM:KSD!D60) -> 0 | E60: =SUM(TVM:KSD!E60) -> 0 | F60: =SUM(TVM:KSD!F60) -> 0 | I60: =SUM(TVM:KSD!I60) -> 0 | J60: =SUM(TVM:KSD!J60) -> 0 | K60: =SUM(TVM:KSD!K60) -> 0 | L60: =SUM(TVM:KSD!L60) -> 0 | M60: =SUM(TVM:KSD!M60) -> 0 | N60: =SUM(TVM:KSD!N60) -> 0 | P60: =SUM(TVM:KSD!P60) -> 0 | Q60: =SUM(TVM:KSD!Q60) -> 0 | R60: =SUM(TVM:KSD!R60) -> 0 | S60: =SUM(TVM:KSD!S60) -> 0 | T60: =SUM(TVM:KSD!T60) -> 0 | U60: =SUM(TVM:KSD!U60) -> 0 | V60: =SUM(TVM:KSD!V60) -> 0 | W60: =SUM(TVM:KSD!W60) -> 0 | Y60: =SUM(TVM:KSD!Y60) -> 0 | Z60: =SUM(TVM:KSD!Z60) -> 0 | AA60: =SUM(TVM:KSD!AA60) -> 0 | AB60: =SUM(TVM:KSD!AB60) -> 0 | AD60: =SUM(TVM:KSD!AB60) -> 0
A61: (d) | B61: 2 Urdu Teachers (only for blocks with muslim population above 20% and select urban areas), if required @ Rs. 12,000/- per month per teacher | C61: =SUM(TVM:KSD!C61) -> 0 | D61: =SUM(TVM:KSD!D61) -> 0 | E61: =SUM(TVM:KSD!E61) -> 0 | F61: =SUM(TVM:KSD!F61) -> 0 | I61: =SUM(TVM:KSD!I61) -> 0 | J61: =SUM(TVM:KSD!J61) -> 0 | K61: =SUM(TVM:KSD!K61) -> 0 | L61: =SUM(TVM:KSD!L61) -> 0 | M61: =SUM(TVM:KSD!M61) -> 0 | N61: =SUM(TVM:KSD!N61) -> 0 | P61: =SUM(TVM:KSD!P61) -> 0 | Q61: =SUM(TVM:KSD!Q61) -> 0 | R61: =SUM(TVM:KSD!R61) -> 0 | S61: =SUM(TVM:KSD!S61) -> 0 | T61: =SUM(TVM:KSD!T61) -> 0 | U61: =SUM(TVM:KSD!U61) -> 0 | V61: =SUM(TVM:KSD!V61) -> 0 | W61: =SUM(TVM:KSD!W61) -> 0 | Y61: =SUM(TVM:KSD!Y61) -> 0 | Z61: =SUM(TVM:KSD!Z61) -> 0 | AA61: =SUM(TVM:KSD!AA61) -> 0 | AB61: =SUM(TVM:KSD!AB61) -> 0 | AD61: =SUM(TVM:KSD!AB61) -> 0
A62: (e) | B62: 3 part time teachers @ Rs. 5,000/- per month per teacher | C62: =SUM(TVM:KSD!C62) -> 0 | D62: =SUM(TVM:KSD!D62) -> 0 | E62: =SUM(TVM:KSD!E62) -> 0 | F62: =SUM(TVM:KSD!F62) -> 0 | I62: =SUM(TVM:KSD!I62) -> 0 | J62: =SUM(TVM:KSD!J62) -> 0 | K62: =SUM(TVM:KSD!K62) -> 0 | L62: =SUM(TVM:KSD!L62) -> 0 | M62: =SUM(TVM:KSD!M62) -> 0 | N62: =SUM(TVM:KSD!N62) -> 0 | P62: =SUM(TVM:KSD!P62) -> 0 | Q62: =SUM(TVM:KSD!Q62) -> 0 | R62: =SUM(TVM:KSD!R62) -> 0 | S62: =SUM(TVM:KSD!S62) -> 0 | T62: =SUM(TVM:KSD!T62) -> 0 | U62: =SUM(TVM:KSD!U62) -> 0 | V62: =SUM(TVM:KSD!V62) -> 0 | W62: =SUM(TVM:KSD!W62) -> 0 | Y62: =SUM(TVM:KSD!Y62) -> 0 | Z62: =SUM(TVM:KSD!Z62) -> 0 | AA62: =SUM(TVM:KSD!AA62) -> 0 | AB62: =SUM(TVM:KSD!AB62) -> 0 | AD62: =SUM(TVM:KSD!AB62) -> 0
A63: (f) | B63: 1 Full time Accountant @ Rs. 10,000/- per month | C63: =SUM(TVM:KSD!C63) -> 0 | D63: =SUM(TVM:KSD!D63) -> 0 | E63: =SUM(TVM:KSD!E63) -> 0 | F63: =SUM(TVM:KSD!F63) -> 0 | I63: =SUM(TVM:KSD!I63) -> 0 | J63: =SUM(TVM:KSD!J63) -> 0 | K63: =SUM(TVM:KSD!K63) -> 0 | L63: =SUM(TVM:KSD!L63) -> 0 | M63: =SUM(TVM:KSD!M63) -> 0 | N63: =SUM(TVM:KSD!N63) -> 0 | P63: =SUM(TVM:KSD!P63) -> 0 | Q63: =SUM(TVM:KSD!Q63) -> 0 | R63: =SUM(TVM:KSD!R63) -> 0 | S63: =SUM(TVM:KSD!S63) -> 0 | T63: =SUM(TVM:KSD!T63) -> 0 | U63: =SUM(TVM:KSD!U63) -> 0 | V63: =SUM(TVM:KSD!V63) -> 0 | W63: =SUM(TVM:KSD!W63) -> 0 | Y63: =SUM(TVM:KSD!Y63) -> 0 | Z63: =SUM(TVM:KSD!Z63) -> 0 | AA63: =SUM(TVM:KSD!AA63) -> 0 | AB63: =SUM(TVM:KSD!AB63) -> 0 | AD63: =SUM(TVM:KSD!AB63) -> 0
A64: (g) | B64: 2 Support Staff – (Accountant/ Assistant, Peon, Chowkidar) @ Rs. 5,000/- per month per staff | C64: =SUM(TVM:KSD!C64) -> 0 | D64: =SUM(TVM:KSD!D64) -> 0 | E64: =SUM(TVM:KSD!E64) -> 0 | F64: =SUM(TVM:KSD!F64) -> 0 | I64: =SUM(TVM:KSD!I64) -> 0 | J64: =SUM(TVM:KSD!J64) -> 0 | K64: =SUM(TVM:KSD!K64) -> 0 | L64: =SUM(TVM:KSD!L64) -> 0 | M64: =SUM(TVM:KSD!M64) -> 0 | N64: =SUM(TVM:KSD!N64) -> 0 | P64: =SUM(TVM:KSD!P64) -> 0 | Q64: =SUM(TVM:KSD!Q64) -> 0 | R64: =SUM(TVM:KSD!R64) -> 0 | S64: =SUM(TVM:KSD!S64) -> 0 | T64: =SUM(TVM:KSD!T64) -> 0 | U64: =SUM(TVM:KSD!U64) -> 0 | V64: =SUM(TVM:KSD!V64) -> 0 | W64: =SUM(TVM:KSD!W64) -> 0 | Y64: =SUM(TVM:KSD!Y64) -> 0 | Z64: =SUM(TVM:KSD!Z64) -> 0 | AA64: =SUM(TVM:KSD!AA64) -> 0 | AB64: =SUM(TVM:KSD!AB64) -> 0 | AD64: =SUM(TVM:KSD!AB64) -> 0
A65: (h) | B65: 1 Head cook @ Rs. 6,000/- per month and upto 2 Asstt. Cooks @ Rs. 4,500/- per month per cook | C65: =SUM(TVM:KSD!C65) -> 0 | D65: =SUM(TVM:KSD!D65) -> 0 | E65: =SUM(TVM:KSD!E65) -> 0 | F65: =SUM(TVM:KSD!F65) -> 0 | I65: =SUM(TVM:KSD!I65) -> 0 | J65: =SUM(TVM:KSD!J65) -> 0 | K65: =SUM(TVM:KSD!K65) -> 0 | L65: =SUM(TVM:KSD!L65) -> 0 | M65: =SUM(TVM:KSD!M65) -> 0 | N65: =SUM(TVM:KSD!N65) -> 0 | P65: =SUM(TVM:KSD!P65) -> 0 | Q65: =SUM(TVM:KSD!Q65) -> 0 | R65: =SUM(TVM:KSD!R65) -> 0 | S65: =SUM(TVM:KSD!S65) -> 0 | T65: =SUM(TVM:KSD!T65) -> 0 | U65: =SUM(TVM:KSD!U65) -> 0 | V65: =SUM(TVM:KSD!V65) -> 0 | W65: =SUM(TVM:KSD!W65) -> 0 | Y65: =SUM(TVM:KSD!Y65) -> 0 | Z65: =SUM(TVM:KSD!Z65) -> 0 | AA65: =SUM(TVM:KSD!AA65) -> 0 | AB65: =SUM(TVM:KSD!AB65) -> 0 | AD65: =SUM(TVM:KSD!AB65) -> 0
A66: 2.27 | B66: Specific skill training per child @ Rs.1000/- per annum | C66: =SUM(TVM:KSD!C66) -> 0 | D66: =SUM(TVM:KSD!D66) -> 0 | E66: =SUM(TVM:KSD!E66) -> 0 | F66: =SUM(TVM:KSD!F66) -> 0 | I66: =SUM(TVM:KSD!I66) -> 0 | J66: =SUM(TVM:KSD!J66) -> 0 | K66: =SUM(TVM:KSD!K66) -> 0 | L66: =SUM(TVM:KSD!L66) -> 0 | M66: =SUM(TVM:KSD!M66) -> 0 | N66: =SUM(TVM:KSD!N66) -> 0 | P66: =SUM(TVM:KSD!P66) -> 0 | Q66: =SUM(TVM:KSD!Q66) -> 0 | R66: =SUM(TVM:KSD!R66) -> 0 | S66: =SUM(TVM:KSD!S66) -> 0 | T66: =SUM(TVM:KSD!T66) -> 0 | U66: =SUM(TVM:KSD!U66) -> 0 | V66: =SUM(TVM:KSD!V66) -> 0 | W66: =SUM(TVM:KSD!W66) -> 0 | Y66: =SUM(TVM:KSD!Y66) -> 0 | Z66: =SUM(TVM:KSD!Z66) -> 0 | AA66: =SUM(TVM:KSD!AA66) -> 0 | AB66: =SUM(TVM:KSD!AB66) -> 0 | AD66: =SUM(TVM:KSD!AB66) -> 0
A67: 2.28 | B67: Electricity / water charges per child @Rs.1000/- per annum | C67: =SUM(TVM:KSD!C67) -> 0 | D67: =SUM(TVM:KSD!D67) -> 0 | E67: =SUM(TVM:KSD!E67) -> 0 | F67: =SUM(TVM:KSD!F67) -> 0 | I67: =SUM(TVM:KSD!I67) -> 0 | J67: =SUM(TVM:KSD!J67) -> 0 | K67: =SUM(TVM:KSD!K67) -> 0 | L67: =SUM(TVM:KSD!L67) -> 0 | M67: =SUM(TVM:KSD!M67) -> 0 | N67: =SUM(TVM:KSD!N67) -> 0 | P67: =SUM(TVM:KSD!P67) -> 0 | Q67: =SUM(TVM:KSD!Q67) -> 0 | R67: =SUM(TVM:KSD!R67) -> 0 | S67: =SUM(TVM:KSD!S67) -> 0 | T67: =SUM(TVM:KSD!T67) -> 0 | U67: =SUM(TVM:KSD!U67) -> 0 | V67: =SUM(TVM:KSD!V67) -> 0 | W67: =SUM(TVM:KSD!W67) -> 0 | Y67: =SUM(TVM:KSD!Y67) -> 0 | Z67: =SUM(TVM:KSD!Z67) -> 0 | AA67: =SUM(TVM:KSD!AA67) -> 0 | AB67: =SUM(TVM:KSD!AB67) -> 0 | AD67: =SUM(TVM:KSD!AB67) -> 0
A68: 2.29 | B68: Medical care/contingencies @ Rs.1250/- per child per annum | C68: =SUM(TVM:KSD!C68) -> 0 | D68: =SUM(TVM:KSD!D68) -> 0 | E68: =SUM(TVM:KSD!E68) -> 0 | F68: =SUM(TVM:KSD!F68) -> 0 | I68: =SUM(TVM:KSD!I68) -> 0 | J68: =SUM(TVM:KSD!J68) -> 0 | K68: =SUM(TVM:KSD!K68) -> 0 | L68: =SUM(TVM:KSD!L68) -> 0 | M68: =SUM(TVM:KSD!M68) -> 0 | N68: =SUM(TVM:KSD!N68) -> 0 | P68: =SUM(TVM:KSD!P68) -> 0 | Q68: =SUM(TVM:KSD!Q68) -> 0 | R68: =SUM(TVM:KSD!R68) -> 0 | S68: =SUM(TVM:KSD!S68) -> 0 | T68: =SUM(TVM:KSD!T68) -> 0 | U68: =SUM(TVM:KSD!U68) -> 0 | V68: =SUM(TVM:KSD!V68) -> 0 | W68: =SUM(TVM:KSD!W68) -> 0 | Y68: =SUM(TVM:KSD!Y68) -> 0 | Z68: =SUM(TVM:KSD!Z68) -> 0 | AA68: =SUM(TVM:KSD!AA68) -> 0 | AB68: =SUM(TVM:KSD!AB68) -> 0 | AD68: =SUM(TVM:KSD!AB68) -> 0
A69: 2.3 | B69: Maintenance @ Rs.750/- per child per annum | C69: =SUM(TVM:KSD!C69) -> 0 | D69: =SUM(TVM:KSD!D69) -> 0 | E69: =SUM(TVM:KSD!E69) -> 0 | F69: =SUM(TVM:KSD!F69) -> 0 | I69: =SUM(TVM:KSD!I69) -> 0 | J69: =SUM(TVM:KSD!J69) -> 0 | K69: =SUM(TVM:KSD!K69) -> 0 | L69: =SUM(TVM:KSD!L69) -> 0 | M69: =SUM(TVM:KSD!M69) -> 0 | N69: =SUM(TVM:KSD!N69) -> 0 | P69: =SUM(TVM:KSD!P69) -> 0 | Q69: =SUM(TVM:KSD!Q69) -> 0 | R69: =SUM(TVM:KSD!R69) -> 0 | S69: =SUM(TVM:KSD!S69) -> 0 | T69: =SUM(TVM:KSD!T69) -> 0 | U69: =SUM(TVM:KSD!U69) -> 0 | V69: =SUM(TVM:KSD!V69) -> 0 | W69: =SUM(TVM:KSD!W69) -> 0 | Y69: =SUM(TVM:KSD!Y69) -> 0 | Z69: =SUM(TVM:KSD!Z69) -> 0 | AA69: =SUM(TVM:KSD!AA69) -> 0 | AB69: =SUM(TVM:KSD!AB69) -> 0 | AD69: =SUM(TVM:KSD!AB69) -> 0
A70: 2.31 | B70: Miscellaneous @ Rs.750/- per child per annum | C70: =SUM(TVM:KSD!C70) -> 0 | D70: =SUM(TVM:KSD!D70) -> 0 | E70: =SUM(TVM:KSD!E70) -> 0 | F70: =SUM(TVM:KSD!F70) -> 0 | I70: =SUM(TVM:KSD!I70) -> 0 | J70: =SUM(TVM:KSD!J70) -> 0 | K70: =SUM(TVM:KSD!K70) -> 0 | L70: =SUM(TVM:KSD!L70) -> 0 | M70: =SUM(TVM:KSD!M70) -> 0 | N70: =SUM(TVM:KSD!N70) -> 0 | P70: =SUM(TVM:KSD!P70) -> 0 | Q70: =SUM(TVM:KSD!Q70) -> 0 | R70: =SUM(TVM:KSD!R70) -> 0 | S70: =SUM(TVM:KSD!S70) -> 0 | T70: =SUM(TVM:KSD!T70) -> 0 | U70: =SUM(TVM:KSD!U70) -> 0 | V70: =SUM(TVM:KSD!V70) -> 0 | W70: =SUM(TVM:KSD!W70) -> 0 | Y70: =SUM(TVM:KSD!Y70) -> 0 | Z70: =SUM(TVM:KSD!Z70) -> 0 | AA70: =SUM(TVM:KSD!AA70) -> 0 | AB70: =SUM(TVM:KSD!AB70) -> 0 | AD70: =SUM(TVM:KSD!AB70) -> 0
A71: 2.32 | B71: Preparatory camps @ Rs.200/- per child per annum | C71: =SUM(TVM:KSD!C71) -> 0 | D71: =SUM(TVM:KSD!D71) -> 0 | E71: =SUM(TVM:KSD!E71) -> 0 | F71: =SUM(TVM:KSD!F71) -> 0 | I71: =SUM(TVM:KSD!I71) -> 0 | J71: =SUM(TVM:KSD!J71) -> 0 | K71: =SUM(TVM:KSD!K71) -> 0 | L71: =SUM(TVM:KSD!L71) -> 0 | M71: =SUM(TVM:KSD!M71) -> 0 | N71: =SUM(TVM:KSD!N71) -> 0 | P71: =SUM(TVM:KSD!P71) -> 0 | Q71: =SUM(TVM:KSD!Q71) -> 0 | R71: =SUM(TVM:KSD!R71) -> 0 | S71: =SUM(TVM:KSD!S71) -> 0 | T71: =SUM(TVM:KSD!T71) -> 0 | U71: =SUM(TVM:KSD!U71) -> 0 | V71: =SUM(TVM:KSD!V71) -> 0 | W71: =SUM(TVM:KSD!W71) -> 0 | Y71: =SUM(TVM:KSD!Y71) -> 0 | Z71: =SUM(TVM:KSD!Z71) -> 0 | AA71: =SUM(TVM:KSD!AA71) -> 0 | AB71: =SUM(TVM:KSD!AB71) -> 0 | AD71: =SUM(TVM:KSD!AB71) -> 0
A72: 2.33 | B72: P.T.A / school functions @ Rs.200/- per child per annum | C72: =SUM(TVM:KSD!C72) -> 0 | D72: =SUM(TVM:KSD!D72) -> 0 | E72: =SUM(TVM:KSD!E72) -> 0 | F72: =SUM(TVM:KSD!F72) -> 0 | I72: =SUM(TVM:KSD!I72) -> 0 | J72: =SUM(TVM:KSD!J72) -> 0 | K72: =SUM(TVM:KSD!K72) -> 0 | L72: =SUM(TVM:KSD!L72) -> 0 | M72: =SUM(TVM:KSD!M72) -> 0 | N72: =SUM(TVM:KSD!N72) -> 0 | P72: =SUM(TVM:KSD!P72) -> 0 | Q72: =SUM(TVM:KSD!Q72) -> 0 | R72: =SUM(TVM:KSD!R72) -> 0 | S72: =SUM(TVM:KSD!S72) -> 0 | T72: =SUM(TVM:KSD!T72) -> 0 | U72: =SUM(TVM:KSD!U72) -> 0 | V72: =SUM(TVM:KSD!V72) -> 0 | W72: =SUM(TVM:KSD!W72) -> 0 | Y72: =SUM(TVM:KSD!Y72) -> 0 | Z72: =SUM(TVM:KSD!Z72) -> 0 | AA72: =SUM(TVM:KSD!AA72) -> 0 | AB72: =SUM(TVM:KSD!AB72) -> 0 | AD72: =SUM(TVM:KSD!AB72) -> 0
A73: 2.34 | B73: Provision of Rent @ Rs. 6000/- per child per annum | C73: =SUM(TVM:KSD!C73) -> 0 | D73: =SUM(TVM:KSD!D73) -> 0 | E73: =SUM(TVM:KSD!E73) -> 0 | F73: =SUM(TVM:KSD!F73) -> 0 | I73: =SUM(TVM:KSD!I73) -> 0 | J73: =SUM(TVM:KSD!J73) -> 0 | K73: =SUM(TVM:KSD!K73) -> 0 | L73: =SUM(TVM:KSD!L73) -> 0 | M73: =SUM(TVM:KSD!M73) -> 0 | N73: =SUM(TVM:KSD!N73) -> 0 | P73: =SUM(TVM:KSD!P73) -> 0 | Q73: =SUM(TVM:KSD!Q73) -> 0 | R73: =SUM(TVM:KSD!R73) -> 0 | S73: =SUM(TVM:KSD!S73) -> 0 | T73: =SUM(TVM:KSD!T73) -> 0 | U73: =SUM(TVM:KSD!U73) -> 0 | V73: =SUM(TVM:KSD!V73) -> 0 | W73: =SUM(TVM:KSD!W73) -> 0 | Y73: =SUM(TVM:KSD!Y73) -> 0 | Z73: =SUM(TVM:KSD!Z73) -> 0 | AA73: =SUM(TVM:KSD!AA73) -> 0 | AB73: =SUM(TVM:KSD!AB73) -> 0 | AD73: =SUM(TVM:KSD!AB73) -> 0
A74: 2.35 | B74: Capacity Building @ Rs.500/- per child per annum | C74: =SUM(TVM:KSD!C74) -> 0 | D74: =SUM(TVM:KSD!D74) -> 0 | E74: =SUM(TVM:KSD!E74) -> 0 | F74: =SUM(TVM:KSD!F74) -> 0 | I74: =SUM(TVM:KSD!I74) -> 0 | J74: =SUM(TVM:KSD!J74) -> 0 | K74: =SUM(TVM:KSD!K74) -> 0 | L74: =SUM(TVM:KSD!L74) -> 0 | M74: =SUM(TVM:KSD!M74) -> 0 | N74: =SUM(TVM:KSD!N74) -> 0 | P74: =SUM(TVM:KSD!P74) -> 0 | Q74: =SUM(TVM:KSD!Q74) -> 0 | R74: =SUM(TVM:KSD!R74) -> 0 | S74: =SUM(TVM:KSD!S74) -> 0 | T74: =SUM(TVM:KSD!T74) -> 0 | U74: =SUM(TVM:KSD!U74) -> 0 | V74: =SUM(TVM:KSD!V74) -> 0 | W74: =SUM(TVM:KSD!W74) -> 0 | Y74: =SUM(TVM:KSD!Y74) -> 0 | Z74: =SUM(TVM:KSD!Z74) -> 0 | AA74: =SUM(TVM:KSD!AA74) -> 0 | AB74: =SUM(TVM:KSD!AB74) -> 0 | AD74: =SUM(TVM:KSD!AB74) -> 0
A75: 2.36 | B75: Physical / Self Defence training @ Rs. 200/- per child per annum. | C75: =SUM(TVM:KSD!C75) -> 0 | D75: =SUM(TVM:KSD!D75) -> 0 | E75: =SUM(TVM:KSD!E75) -> 0 | F75: =SUM(TVM:KSD!F75) -> 0 | I75: =SUM(TVM:KSD!I75) -> 0 | J75: =SUM(TVM:KSD!J75) -> 0 | K75: =SUM(TVM:KSD!K75) -> 0 | L75: =SUM(TVM:KSD!L75) -> 0 | M75: =SUM(TVM:KSD!M75) -> 0 | N75: =SUM(TVM:KSD!N75) -> 0 | P75: =SUM(TVM:KSD!P75) -> 0 | Q75: =SUM(TVM:KSD!Q75) -> 0 | R75: =SUM(TVM:KSD!R75) -> 0 | S75: =SUM(TVM:KSD!S75) -> 0 | T75: =SUM(TVM:KSD!T75) -> 0 | U75: =SUM(TVM:KSD!U75) -> 0 | V75: =SUM(TVM:KSD!V75) -> 0 | W75: =SUM(TVM:KSD!W75) -> 0 | Y75: =SUM(TVM:KSD!Y75) -> 0 | Z75: =SUM(TVM:KSD!Z75) -> 0 | AA75: =SUM(TVM:KSD!AA75) -> 0 | AB75: =SUM(TVM:KSD!AB75) -> 0 | AD75: =SUM(TVM:KSD!AB75) -> 0
B76: Sub Total (Recurring) | C76: =SUM(TVM:KSD!C76) -> 0 | D76: =SUM(TVM:KSD!D76) -> 0 | E76: =SUM(TVM:KSD!E76) -> 0 | F76: =SUM(TVM:KSD!F76) -> 0 | I76: =SUM(TVM:KSD!I76) -> 0 | J76: =SUM(TVM:KSD!J76) -> 0 | K76: =SUM(TVM:KSD!K76) -> 0 | L76: =SUM(TVM:KSD!L76) -> 0 | M76: =SUM(TVM:KSD!M76) -> 0 | N76: =SUM(TVM:KSD!N76) -> 0 | P76: =SUM(TVM:KSD!P76) -> 0 | Q76: =SUM(TVM:KSD!Q76) -> 0 | R76: =SUM(TVM:KSD!R76) -> 0 | S76: =SUM(TVM:KSD!S76) -> 0 | T76: =SUM(TVM:KSD!T76) -> 0 | U76: =SUM(TVM:KSD!U76) -> 0 | V76: =SUM(TVM:KSD!V76) -> 0 | W76: =SUM(TVM:KSD!W76) -> 0 | Y76: =SUM(TVM:KSD!Y76) -> 0 | Z76: =SUM(TVM:KSD!Z76) -> 0 | AA76: =SUM(TVM:KSD!AA76) -> 0 | AB76: =SUM(TVM:KSD!AB76) -> 0 | AD76: =SUM(TVM:KSD!AB76) -> 0
B77: Total (Recurring + Non Recurring) | C77: =SUM(TVM:KSD!C77) -> 0 | D77: =SUM(TVM:KSD!D77) -> 0 | E77: =SUM(TVM:KSD!E77) -> 0 | F77: =SUM(TVM:KSD!F77) -> 0 | I77: =SUM(TVM:KSD!I77) -> 0 | J77: =SUM(TVM:KSD!J77) -> 0 | K77: =SUM(TVM:KSD!K77) -> 0 | L77: =SUM(TVM:KSD!L77) -> 0 | M77: =SUM(TVM:KSD!M77) -> 0 | N77: =SUM(TVM:KSD!N77) -> 0 | P77: =SUM(TVM:KSD!P77) -> 0 | Q77: =SUM(TVM:KSD!Q77) -> 0 | R77: =SUM(TVM:KSD!R77) -> 0 | S77: =SUM(TVM:KSD!S77) -> 0 | T77: =SUM(TVM:KSD!T77) -> 0 | U77: =SUM(TVM:KSD!U77) -> 0 | V77: =SUM(TVM:KSD!V77) -> 0 | W77: =SUM(TVM:KSD!W77) -> 0 | Y77: =SUM(TVM:KSD!Y77) -> 0 | Z77: =SUM(TVM:KSD!Z77) -> 0 | AA77: =SUM(TVM:KSD!AA77) -> 0 | AB77: =SUM(TVM:KSD!AB77) -> 0 | AD77: =SUM(TVM:KSD!AB77) -> 0
B78: Total (50 + 100 children) | C78: =SUM(TVM:KSD!C78) -> 0 | D78: =SUM(TVM:KSD!D78) -> 0 | E78: =SUM(TVM:KSD!E78) -> 0 | F78: =SUM(TVM:KSD!F78) -> 0 | I78: =SUM(TVM:KSD!I78) -> 0 | J78: =SUM(TVM:KSD!J78) -> 0 | K78: =SUM(TVM:KSD!K78) -> 0 | L78: =SUM(TVM:KSD!L78) -> 0 | M78: =SUM(TVM:KSD!M78) -> 0 | N78: =SUM(TVM:KSD!N78) -> 0 | P78: =SUM(TVM:KSD!P78) -> 0 | Q78: =SUM(TVM:KSD!Q78) -> 0 | R78: =SUM(TVM:KSD!R78) -> 0 | S78: =SUM(TVM:KSD!S78) -> 0 | T78: =SUM(TVM:KSD!T78) -> 0 | U78: =SUM(TVM:KSD!U78) -> 0 | V78: =SUM(TVM:KSD!V78) -> 0 | W78: =SUM(TVM:KSD!W78) -> 0 | Y78: =SUM(TVM:KSD!Y78) -> 0 | Z78: =SUM(TVM:KSD!Z78) -> 0 | AA78: =SUM(TVM:KSD!AA78) -> 0 | AB78: =SUM(TVM:KSD!AB78) -> 0 | AD78: =SUM(TVM:KSD!AB78) -> 0
A79: 3 | B79: Residential Hostel for specific category of children | C79: =SUM(TVM:KSD!C79) -> 0 | D79: =SUM(TVM:KSD!D79) -> 0 | E79: =SUM(TVM:KSD!E79) -> 0 | F79: =SUM(TVM:KSD!F79) -> 0 | I79: =SUM(TVM:KSD!I79) -> 0 | J79: =SUM(TVM:KSD!J79) -> 0 | K79: =SUM(TVM:KSD!K79) -> 0 | L79: =SUM(TVM:KSD!L79) -> 0 | M79: =SUM(TVM:KSD!M79) -> 0 | N79: =SUM(TVM:KSD!N79) -> 0 | P79: =SUM(TVM:KSD!P79) -> 0 | Q79: =SUM(TVM:KSD!Q79) -> 0 | R79: =SUM(TVM:KSD!R79) -> 0 | S79: =SUM(TVM:KSD!S79) -> 0 | T79: =SUM(TVM:KSD!T79) -> 0 | U79: =SUM(TVM:KSD!U79) -> 0 | V79: =SUM(TVM:KSD!V79) -> 0 | W79: =SUM(TVM:KSD!W79) -> 0 | Y79: =SUM(TVM:KSD!Y79) -> 0 | Z79: =SUM(TVM:KSD!Z79) -> 0 | AA79: =SUM(TVM:KSD!AA79) -> 0 | AB79: =SUM(TVM:KSD!AB79) -> 0 | AD79: =SUM(TVM:KSD!AB79) -> 0
A80: (A) | B80: 50 children | C80: =SUM(TVM:KSD!C80) -> 0 | D80: =SUM(TVM:KSD!D80) -> 0 | E80: =SUM(TVM:KSD!E80) -> 0 | F80: =SUM(TVM:KSD!F80) -> 0 | I80: =SUM(TVM:KSD!I80) -> 0 | J80: =SUM(TVM:KSD!J80) -> 0 | K80: =SUM(TVM:KSD!K80) -> 0 | L80: =SUM(TVM:KSD!L80) -> 0 | M80: =SUM(TVM:KSD!M80) -> 0 | N80: =SUM(TVM:KSD!N80) -> 0 | P80: =SUM(TVM:KSD!P80) -> 0 | Q80: =SUM(TVM:KSD!Q80) -> 0 | R80: =SUM(TVM:KSD!R80) -> 0 | S80: =SUM(TVM:KSD!S80) -> 0 | T80: =SUM(TVM:KSD!T80) -> 0 | U80: =SUM(TVM:KSD!U80) -> 0 | V80: =SUM(TVM:KSD!V80) -> 0 | W80: =SUM(TVM:KSD!W80) -> 0 | Y80: =SUM(TVM:KSD!Y80) -> 0 | Z80: =SUM(TVM:KSD!Z80) -> 0 | AA80: =SUM(TVM:KSD!AA80) -> 0 | AB80: =SUM(TVM:KSD!AB80) -> 0 | AD80: =SUM(TVM:KSD!AB80) -> 0
B81: Non-recurring (one time grant) | C81: =SUM(TVM:KSD!C81) -> 0 | D81: =SUM(TVM:KSD!D81) -> 0 | E81: =SUM(TVM:KSD!E81) -> 0 | F81: =SUM(TVM:KSD!F81) -> 0 | I81: =SUM(TVM:KSD!I81) -> 0 | J81: =SUM(TVM:KSD!J81) -> 0 | K81: =SUM(TVM:KSD!K81) -> 0 | L81: =SUM(TVM:KSD!L81) -> 0 | M81: =SUM(TVM:KSD!M81) -> 0 | N81: =SUM(TVM:KSD!N81) -> 0 | P81: =SUM(TVM:KSD!P81) -> 0 | Q81: =SUM(TVM:KSD!Q81) -> 0 | R81: =SUM(TVM:KSD!R81) -> 0 | S81: =SUM(TVM:KSD!S81) -> 0 | T81: =SUM(TVM:KSD!T81) -> 0 | U81: =SUM(TVM:KSD!U81) -> 0 | V81: =SUM(TVM:KSD!V81) -> 0 | W81: =SUM(TVM:KSD!W81) -> 0 | Y81: =SUM(TVM:KSD!Y81) -> 0 | Z81: =SUM(TVM:KSD!Z81) -> 0 | AA81: =SUM(TVM:KSD!AA81) -> 0 | AB81: =SUM(TVM:KSD!AB81) -> 0 | AD81: =SUM(TVM:KSD!AB81) -> 0
A82: 3.01 | B82: Furniture/ Equipment (including kitchen) | C82: =SUM(TVM:KSD!C82) -> 0 | D82: =SUM(TVM:KSD!D82) -> 0 | E82: =SUM(TVM:KSD!E82) -> 0 | F82: =SUM(TVM:KSD!F82) -> 0 | I82: =SUM(TVM:KSD!I82) -> 0 | J82: =SUM(TVM:KSD!J82) -> 0 | K82: =SUM(TVM:KSD!K82) -> 0 | L82: =SUM(TVM:KSD!L82) -> 0 | M82: =SUM(TVM:KSD!M82) -> 0 | N82: =SUM(TVM:KSD!N82) -> 0 | O82: 2 | P82: =SUM(TVM:KSD!P82) -> 4 | Q82: =SUM(TVM:KSD!Q82) -> 8 | R82: =SUM(TVM:KSD!R82) -> 4 | S82: =SUM(TVM:KSD!S82) -> 8 | T82: =SUM(TVM:KSD!T82) -> 0 | U82: =SUM(TVM:KSD!U82) -> 0 | V82: =SUM(TVM:KSD!V82) -> 0 | W82: =SUM(TVM:KSD!W82) -> 0 | Y82: =SUM(TVM:KSD!Y82) -> 0 | Z82: =SUM(TVM:KSD!Z82) -> 0 | AA82: =SUM(TVM:KSD!AA82) -> 0 | AB82: =SUM(TVM:KSD!AB82) -> 0 | AC82: Not recommended as appraised | AD82: =SUM(TVM:KSD!AB82) -> 0
A83: =+A82+0.01 -> 3.02 | B83: TLM and equipment including library books | C83: =SUM(TVM:KSD!C83) -> 0 | D83: =SUM(TVM:KSD!D83) -> 0 | E83: =SUM(TVM:KSD!E83) -> 0 | F83: =SUM(TVM:KSD!F83) -> 0 | I83: =SUM(TVM:KSD!I83) -> 0 | J83: =SUM(TVM:KSD!J83) -> 0 | K83: =SUM(TVM:KSD!K83) -> 0 | L83: =SUM(TVM:KSD!L83) -> 0 | M83: =SUM(TVM:KSD!M83) -> 0 | N83: =SUM(TVM:KSD!N83) -> 0 | O83: 3 | P83: =SUM(TVM:KSD!P83) -> 4 | Q83: =SUM(TVM:KSD!Q83) -> 12 | R83: =SUM(TVM:KSD!R83) -> 4 | S83: =SUM(TVM:KSD!S83) -> 12 | T83: =SUM(TVM:KSD!T83) -> 0 | U83: =SUM(TVM:KSD!U83) -> 0 | V83: =SUM(TVM:KSD!V83) -> 0 | W83: =SUM(TVM:KSD!W83) -> 0 | Y83: =SUM(TVM:KSD!Y83) -> 0 | Z83: =SUM(TVM:KSD!Z83) -> 0 | AA83: =SUM(TVM:KSD!AA83) -> 0 | AB83: =SUM(TVM:KSD!AB83) -> 0 | AD83: =SUM(TVM:KSD!AB83) -> 0
A84: =+A83+0.01 -> 3.03 | B84: Bedding (new) | C84: =SUM(TVM:KSD!C84) -> 0 | D84: =SUM(TVM:KSD!D84) -> 0 | E84: =SUM(TVM:KSD!E84) -> 0 | F84: =SUM(TVM:KSD!F84) -> 0 | I84: =SUM(TVM:KSD!I84) -> 0 | J84: =SUM(TVM:KSD!J84) -> 0 | K84: =SUM(TVM:KSD!K84) -> 0 | L84: =SUM(TVM:KSD!L84) -> 0 | M84: =SUM(TVM:KSD!M84) -> 0 | N84: =SUM(TVM:KSD!N84) -> 0 | O84: 0.375 | P84: =SUM(TVM:KSD!P84) -> 4 | Q84: =SUM(TVM:KSD!Q84) -> 1.5 | R84: =SUM(TVM:KSD!R84) -> 4 | S84: =SUM(TVM:KSD!S84) -> 1.5 | T84: =SUM(TVM:KSD!T84) -> 0 | U84: =SUM(TVM:KSD!U84) -> 0 | V84: =SUM(TVM:KSD!V84) -> 0 | W84: =SUM(TVM:KSD!W84) -> 0 | Y84: =SUM(TVM:KSD!Y84) -> 0 | Z84: =SUM(TVM:KSD!Z84) -> 0 | AA84: =SUM(TVM:KSD!AA84) -> 0 | AB84: =SUM(TVM:KSD!AB84) -> 0 | AD84: =SUM(TVM:KSD!AB84) -> 0
A85: =+A84+0.01 -> 3.04 | B85: Replacement of bedding (once in 3 years) | C85: =SUM(TVM:KSD!C85) -> 0 | D85: =SUM(TVM:KSD!D85) -> 0 | E85: =SUM(TVM:KSD!E85) -> 0 | F85: =SUM(TVM:KSD!F85) -> 0 | I85: =SUM(TVM:KSD!I85) -> 0 | J85: =SUM(TVM:KSD!J85) -> 0 | K85: =SUM(TVM:KSD!K85) -> 0 | L85: =SUM(TVM:KSD!L85) -> 0 | M85: =SUM(TVM:KSD!M85) -> 0 | N85: =SUM(TVM:KSD!N85) -> 0 | P85: =SUM(TVM:KSD!P85) -> 0 | Q85: =SUM(TVM:KSD!Q85) -> 0 | R85: =SUM(TVM:KSD!R85) -> 0 | S85: =SUM(TVM:KSD!S85) -> 0 | T85: =SUM(TVM:KSD!T85) -> 0 | U85: =SUM(TVM:KSD!U85) -> 0 | V85: =SUM(TVM:KSD!V85) -> 0 | W85: =SUM(TVM:KSD!W85) -> 0 | Y85: =SUM(TVM:KSD!Y85) -> 0 | Z85: =SUM(TVM:KSD!Z85) -> 0 | AA85: =SUM(TVM:KSD!AA85) -> 0 | AB85: =SUM(TVM:KSD!AB85) -> 0 | AD85: =SUM(TVM:KSD!AB85) -> 0
B86: Sub Total (Non Recurring) | C86: =SUM(TVM:KSD!C86) -> 0 | D86: =SUM(TVM:KSD!D86) -> 0 | E86: =SUM(TVM:KSD!E86) -> 0 | F86: =SUM(TVM:KSD!F86) -> 0 | I86: =SUM(TVM:KSD!I86) -> 0 | J86: =SUM(TVM:KSD!J86) -> 0 | K86: =SUM(TVM:KSD!K86) -> 0 | L86: =SUM(TVM:KSD!L86) -> 0 | M86: =SUM(TVM:KSD!M86) -> 0 | N86: =SUM(TVM:KSD!N86) -> 0 | P86: =SUM(TVM:KSD!P86) -> 4 | Q86: =SUM(TVM:KSD!Q86) -> 21.5 | R86: =SUM(TVM:KSD!R86) -> 4 | S86: =SUM(TVM:KSD!S86) -> 21.5 | T86: =SUM(TVM:KSD!T86) -> 0 | U86: =SUM(TVM:KSD!U86) -> 0 | V86: =SUM(TVM:KSD!V86) -> 0 | W86: =SUM(TVM:KSD!W86) -> 0 | Y86: =SUM(TVM:KSD!Y86) -> 0 | Z86: =SUM(TVM:KSD!Z86) -> 0 | AA86: =SUM(TVM:KSD!AA86) -> 0 | AB86: =SUM(TVM:KSD!AB86) -> 0 | AD86: =SUM(TVM:KSD!AB86) -> 0
B87: Recurring (50 children) | C87: =SUM(TVM:KSD!C87) -> 0 | D87: =SUM(TVM:KSD!D87) -> 0 | E87: =SUM(TVM:KSD!E87) -> 0 | F87: =SUM(TVM:KSD!F87) -> 0 | I87: =SUM(TVM:KSD!I87) -> 0 | J87: =SUM(TVM:KSD!J87) -> 0 | K87: =SUM(TVM:KSD!K87) -> 0 | L87: =SUM(TVM:KSD!L87) -> 0 | M87: =SUM(TVM:KSD!M87) -> 0 | N87: =SUM(TVM:KSD!N87) -> 0 | P87: =SUM(TVM:KSD!P87) -> 0 | Q87: =SUM(TVM:KSD!Q87) -> 0 | R87: =SUM(TVM:KSD!R87) -> 0 | S87: =SUM(TVM:KSD!S87) -> 0 | T87: =SUM(TVM:KSD!T87) -> 0 | U87: =SUM(TVM:KSD!U87) -> 0 | V87: =SUM(TVM:KSD!V87) -> 0 | W87: =SUM(TVM:KSD!W87) -> 0 | Y87: =SUM(TVM:KSD!Y87) -> 0 | Z87: =SUM(TVM:KSD!Z87) -> 0 | AA87: =SUM(TVM:KSD!AA87) -> 0 | AB87: =SUM(TVM:KSD!AB87) -> 0 | AD87: =SUM(TVM:KSD!AB87) -> 0
A88: 3.05 | B88: Maintenance per child Per month @ Rs.1500/- | C88: =SUM(TVM:KSD!C88) -> 0 | D88: =SUM(TVM:KSD!D88) -> 0 | E88: =SUM(TVM:KSD!E88) -> 0 | F88: =SUM(TVM:KSD!F88) -> 0 | I88: =SUM(TVM:KSD!I88) -> 0 | J88: =SUM(TVM:KSD!J88) -> 0 | K88: =SUM(TVM:KSD!K88) -> 0 | L88: =SUM(TVM:KSD!L88) -> 0 | M88: =SUM(TVM:KSD!M88) -> 0 | N88: =SUM(TVM:KSD!N88) -> 0 | P88: =SUM(TVM:KSD!P88) -> 0 | Q88: =SUM(TVM:KSD!Q88) -> 0 | R88: =SUM(TVM:KSD!R88) -> 0 | S88: =SUM(TVM:KSD!S88) -> 0 | T88: =SUM(TVM:KSD!T88) -> 0 | U88: =SUM(TVM:KSD!U88) -> 0 | V88: =SUM(TVM:KSD!V88) -> 0 | W88: =SUM(TVM:KSD!W88) -> 0 | Y88: =SUM(TVM:KSD!Y88) -> 0 | Z88: =SUM(TVM:KSD!Z88) -> 0 | AA88: =SUM(TVM:KSD!AA88) -> 0 | AB88: =SUM(TVM:KSD!AB88) -> 0 | AD88: =SUM(TVM:KSD!AB88) -> 0
A89: =+A88+0.01 -> 3.06 | B89: Stipend per child per month @ Rs.100/- | C89: =SUM(TVM:KSD!C89) -> 0 | D89: =SUM(TVM:KSD!D89) -> 0 | E89: =SUM(TVM:KSD!E89) -> 0 | F89: =SUM(TVM:KSD!F89) -> 0 | I89: =SUM(TVM:KSD!I89) -> 0 | J89: =SUM(TVM:KSD!J89) -> 0 | K89: =SUM(TVM:KSD!K89) -> 0 | L89: =SUM(TVM:KSD!L89) -> 0 | M89: =SUM(TVM:KSD!M89) -> 0 | N89: =SUM(TVM:KSD!N89) -> 0 | P89: =SUM(TVM:KSD!P89) -> 0 | Q89: =SUM(TVM:KSD!Q89) -> 0 | R89: =SUM(TVM:KSD!R89) -> 0 | S89: =SUM(TVM:KSD!S89) -> 0 | T89: =SUM(TVM:KSD!T89) -> 0 | U89: =SUM(TVM:KSD!U89) -> 0 | V89: =SUM(TVM:KSD!V89) -> 0 | W89: =SUM(TVM:KSD!W89) -> 0 | Y89: =SUM(TVM:KSD!Y89) -> 0 | Z89: =SUM(TVM:KSD!Z89) -> 0 | AA89: =SUM(TVM:KSD!AA89) -> 0 | AB89: =SUM(TVM:KSD!AB89) -> 0 | AD89: =SUM(TVM:KSD!AB89) -> 0
A90: =+A89+0.01 -> 3.07 | B90: Supplementary TLM, Stationery and other educational material @Rs.1000/- per child per annum | C90: =SUM(TVM:KSD!C90) -> 0 | D90: =SUM(TVM:KSD!D90) -> 0 | E90: =SUM(TVM:KSD!E90) -> 0 | F90: =SUM(TVM:KSD!F90) -> 0 | I90: =SUM(TVM:KSD!I90) -> 0 | J90: =SUM(TVM:KSD!J90) -> 0 | K90: =SUM(TVM:KSD!K90) -> 0 | L90: =SUM(TVM:KSD!L90) -> 0 | M90: =SUM(TVM:KSD!M90) -> 0 | N90: =SUM(TVM:KSD!N90) -> 0 | P90: =SUM(TVM:KSD!P90) -> 0 | Q90: =SUM(TVM:KSD!Q90) -> 0 | R90: =SUM(TVM:KSD!R90) -> 0 | S90: =SUM(TVM:KSD!S90) -> 0 | T90: =SUM(TVM:KSD!T90) -> 0 | U90: =SUM(TVM:KSD!U90) -> 0 | V90: =SUM(TVM:KSD!V90) -> 0 | W90: =SUM(TVM:KSD!W90) -> 0 | Y90: =SUM(TVM:KSD!Y90) -> 0 | Z90: =SUM(TVM:KSD!Z90) -> 0 | AA90: =SUM(TVM:KSD!AA90) -> 0 | AB90: =SUM(TVM:KSD!AB90) -> 0 | AD90: =SUM(TVM:KSD!AB90) -> 0
B91: Salaries | C91: =SUM(TVM:KSD!C91) -> 0 | D91: =SUM(TVM:KSD!D91) -> 0 | E91: =SUM(TVM:KSD!E91) -> 0 | F91: =SUM(TVM:KSD!F91) -> 0 | I91: =SUM(TVM:KSD!I91) -> 0 | J91: =SUM(TVM:KSD!J91) -> 0 | K91: =SUM(TVM:KSD!K91) -> 0 | L91: =SUM(TVM:KSD!L91) -> 0 | M91: =SUM(TVM:KSD!M91) -> 0 | N91: =SUM(TVM:KSD!N91) -> 0 | P91: =SUM(TVM:KSD!P91) -> 0 | Q91: =SUM(TVM:KSD!Q91) -> 0 | R91: =SUM(TVM:KSD!R91) -> 0 | S91: =SUM(TVM:KSD!S91) -> 0 | T91: =SUM(TVM:KSD!T91) -> 0 | U91: =SUM(TVM:KSD!U91) -> 0 | V91: =SUM(TVM:KSD!V91) -> 0 | W91: =SUM(TVM:KSD!W91) -> 0 | Y91: =SUM(TVM:KSD!Y91) -> 0 | Z91: =SUM(TVM:KSD!Z91) -> 0 | AA91: =SUM(TVM:KSD!AA91) -> 0 | AB91: =SUM(TVM:KSD!AB91) -> 0 | AD91: =SUM(TVM:KSD!AB91) -> 0
A92: (a) | B92: 1 Warden @ Rs.25000/- per month | C92: =SUM(TVM:KSD!C92) -> 0 | D92: =SUM(TVM:KSD!D92) -> 0 | E92: =SUM(TVM:KSD!E92) -> 0 | F92: =SUM(TVM:KSD!F92) -> 0 | I92: =SUM(TVM:KSD!I92) -> 0 | J92: =SUM(TVM:KSD!J92) -> 0 | K92: =SUM(TVM:KSD!K92) -> 0 | L92: =SUM(TVM:KSD!L92) -> 0 | M92: =SUM(TVM:KSD!M92) -> 0 | N92: =SUM(TVM:KSD!N92) -> 0 | P92: =SUM(TVM:KSD!P92) -> 0 | Q92: =SUM(TVM:KSD!Q92) -> 0 | R92: =SUM(TVM:KSD!R92) -> 0 | S92: =SUM(TVM:KSD!S92) -> 0 | T92: =SUM(TVM:KSD!T92) -> 0 | U92: =SUM(TVM:KSD!U92) -> 0 | V92: =SUM(TVM:KSD!V92) -> 0 | W92: =SUM(TVM:KSD!W92) -> 0 | Y92: =SUM(TVM:KSD!Y92) -> 0 | Z92: =SUM(TVM:KSD!Z92) -> 0 | AA92: =SUM(TVM:KSD!AA92) -> 0 | AB92: =SUM(TVM:KSD!AB92) -> 0 | AD92: =SUM(TVM:KSD!AB92) -> 0
A93: (b) | B93: 4 Fulltime teachers as per RTE Norms @ Rs. 20,000/- per month per teacher | C93: =SUM(TVM:KSD!C93) -> 0 | D93: =SUM(TVM:KSD!D93) -> 0 | E93: =SUM(TVM:KSD!E93) -> 0 | F93: =SUM(TVM:KSD!F93) -> 0 | I93: =SUM(TVM:KSD!I93) -> 0 | J93: =SUM(TVM:KSD!J93) -> 0 | K93: =SUM(TVM:KSD!K93) -> 0 | L93: =SUM(TVM:KSD!L93) -> 0 | M93: =SUM(TVM:KSD!M93) -> 0 | N93: =SUM(TVM:KSD!N93) -> 0 | P93: =SUM(TVM:KSD!P93) -> 0 | Q93: =SUM(TVM:KSD!Q93) -> 0 | R93: =SUM(TVM:KSD!R93) -> 0 | S93: =SUM(TVM:KSD!S93) -> 0 | T93: =SUM(TVM:KSD!T93) -> 0 | U93: =SUM(TVM:KSD!U93) -> 0 | V93: =SUM(TVM:KSD!V93) -> 0 | W93: =SUM(TVM:KSD!W93) -> 0 | Y93: =SUM(TVM:KSD!Y93) -> 0 | Z93: =SUM(TVM:KSD!Z93) -> 0 | AA93: =SUM(TVM:KSD!AA93) -> 0 | AB93: =SUM(TVM:KSD!AB93) -> 0 | AD93: =SUM(TVM:KSD!AB93) -> 0
A94: (c) | B94: 2 Urdu Teachers (only for Blocks with muslim population above 20% and select urban areas) @ Rs.12,000/- per month per teacher. | C94: =SUM(TVM:KSD!C94) -> 0 | D94: =SUM(TVM:KSD!D94) -> 0 | E94: =SUM(TVM:KSD!E94) -> 0 | F94: =SUM(TVM:KSD!F94) -> 0 | I94: =SUM(TVM:KSD!I94) -> 0 | J94: =SUM(TVM:KSD!J94) -> 0 | K94: =SUM(TVM:KSD!K94) -> 0 | L94: =SUM(TVM:KSD!L94) -> 0 | M94: =SUM(TVM:KSD!M94) -> 0 | N94: =SUM(TVM:KSD!N94) -> 0 | P94: =SUM(TVM:KSD!P94) -> 0 | Q94: =SUM(TVM:KSD!Q94) -> 0 | R94: =SUM(TVM:KSD!R94) -> 0 | S94: =SUM(TVM:KSD!S94) -> 0 | T94: =SUM(TVM:KSD!T94) -> 0 | U94: =SUM(TVM:KSD!U94) -> 0 | V94: =SUM(TVM:KSD!V94) -> 0 | W94: =SUM(TVM:KSD!W94) -> 0 | Y94: =SUM(TVM:KSD!Y94) -> 0 | Z94: =SUM(TVM:KSD!Z94) -> 0 | AA94: =SUM(TVM:KSD!AA94) -> 0 | AB94: =SUM(TVM:KSD!AB94) -> 0 | AD94: =SUM(TVM:KSD!AB94) -> 0
A95: (d) | B95: 3 Part time teachers @ Rs.5,000/- per month per teacher | C95: =SUM(TVM:KSD!C95) -> 0 | D95: =SUM(TVM:KSD!D95) -> 0 | E95: =SUM(TVM:KSD!E95) -> 0 | F95: =SUM(TVM:KSD!F95) -> 0 | I95: =SUM(TVM:KSD!I95) -> 0 | J95: =SUM(TVM:KSD!J95) -> 0 | K95: =SUM(TVM:KSD!K95) -> 0 | L95: =SUM(TVM:KSD!L95) -> 0 | M95: =SUM(TVM:KSD!M95) -> 0 | N95: =SUM(TVM:KSD!N95) -> 0 | P95: =SUM(TVM:KSD!P95) -> 0 | Q95: =SUM(TVM:KSD!Q95) -> 0 | R95: =SUM(TVM:KSD!R95) -> 0 | S95: =SUM(TVM:KSD!S95) -> 0 | T95: =SUM(TVM:KSD!T95) -> 0 | U95: =SUM(TVM:KSD!U95) -> 0 | V95: =SUM(TVM:KSD!V95) -> 0 | W95: =SUM(TVM:KSD!W95) -> 0 | Y95: =SUM(TVM:KSD!Y95) -> 0 | Z95: =SUM(TVM:KSD!Z95) -> 0 | AA95: =SUM(TVM:KSD!AA95) -> 0 | AB95: =SUM(TVM:KSD!AB95) -> 0 | AD95: =SUM(TVM:KSD!AB95) -> 0
A96: (e) | B96: 1 Full time Accountant @ Rs. 10,000/- per month | C96: =SUM(TVM:KSD!C96) -> 0 | D96: =SUM(TVM:KSD!D96) -> 0 | E96: =SUM(TVM:KSD!E96) -> 0 | F96: =SUM(TVM:KSD!F96) -> 0 | I96: =SUM(TVM:KSD!I96) -> 0 | J96: =SUM(TVM:KSD!J96) -> 0 | K96: =SUM(TVM:KSD!K96) -> 0 | L96: =SUM(TVM:KSD!L96) -> 0 | M96: =SUM(TVM:KSD!M96) -> 0 | N96: =SUM(TVM:KSD!N96) -> 0 | P96: =SUM(TVM:KSD!P96) -> 0 | Q96: =SUM(TVM:KSD!Q96) -> 0 | R96: =SUM(TVM:KSD!R96) -> 0 | S96: =SUM(TVM:KSD!S96) -> 0 | T96: =SUM(TVM:KSD!T96) -> 0 | U96: =SUM(TVM:KSD!U96) -> 0 | V96: =SUM(TVM:KSD!V96) -> 0 | W96: =SUM(TVM:KSD!W96) -> 0 | Y96: =SUM(TVM:KSD!Y96) -> 0 | Z96: =SUM(TVM:KSD!Z96) -> 0 | AA96: =SUM(TVM:KSD!AA96) -> 0 | AB96: =SUM(TVM:KSD!AB96) -> 0 | AD96: =SUM(TVM:KSD!AB96) -> 0
A97: (f) | B97: 2 Support staff - (Accountant/Assistant, Peon, Chowkidar) @ Rs. 5,000/- per month per staff | C97: =SUM(TVM:KSD!C97) -> 0 | D97: =SUM(TVM:KSD!D97) -> 0 | E97: =SUM(TVM:KSD!E97) -> 0 | F97: =SUM(TVM:KSD!F97) -> 0 | I97: =SUM(TVM:KSD!I97) -> 0 | J97: =SUM(TVM:KSD!J97) -> 0 | K97: =SUM(TVM:KSD!K97) -> 0 | L97: =SUM(TVM:KSD!L97) -> 0 | M97: =SUM(TVM:KSD!M97) -> 0 | N97: =SUM(TVM:KSD!N97) -> 0 | P97: =SUM(TVM:KSD!P97) -> 0 | Q97: =SUM(TVM:KSD!Q97) -> 0 | R97: =SUM(TVM:KSD!R97) -> 0 | S97: =SUM(TVM:KSD!S97) -> 0 | T97: =SUM(TVM:KSD!T97) -> 0 | U97: =SUM(TVM:KSD!U97) -> 0 | V97: =SUM(TVM:KSD!V97) -> 0 | W97: =SUM(TVM:KSD!W97) -> 0 | Y97: =SUM(TVM:KSD!Y97) -> 0 | Z97: =SUM(TVM:KSD!Z97) -> 0 | AA97: =SUM(TVM:KSD!AA97) -> 0 | AB97: =SUM(TVM:KSD!AB97) -> 0 | AD97: =SUM(TVM:KSD!AB97) -> 0
A98: (g) | B98: 1 Head Cook @ Rs. 6,000/- per month and upto 2 Asstt. Cooks @ Rs. 4,500/- per month per cook | C98: =SUM(TVM:KSD!C98) -> 0 | D98: =SUM(TVM:KSD!D98) -> 0 | E98: =SUM(TVM:KSD!E98) -> 0 | F98: =SUM(TVM:KSD!F98) -> 0 | I98: =SUM(TVM:KSD!I98) -> 0 | J98: =SUM(TVM:KSD!J98) -> 0 | K98: =SUM(TVM:KSD!K98) -> 0 | L98: =SUM(TVM:KSD!L98) -> 0 | M98: =SUM(TVM:KSD!M98) -> 0 | N98: =SUM(TVM:KSD!N98) -> 0 | P98: =SUM(TVM:KSD!P98) -> 0 | Q98: =SUM(TVM:KSD!Q98) -> 0 | R98: =SUM(TVM:KSD!R98) -> 0 | S98: =SUM(TVM:KSD!S98) -> 0 | T98: =SUM(TVM:KSD!T98) -> 0 | U98: =SUM(TVM:KSD!U98) -> 0 | V98: =SUM(TVM:KSD!V98) -> 0 | W98: =SUM(TVM:KSD!W98) -> 0 | Y98: =SUM(TVM:KSD!Y98) -> 0 | Z98: =SUM(TVM:KSD!Z98) -> 0 | AA98: =SUM(TVM:KSD!AA98) -> 0 | AB98: =SUM(TVM:KSD!AB98) -> 0 | AD98: =SUM(TVM:KSD!AB98) -> 0
A99: 3.08 | B99: Specific Skill training @ Rs.1000/- per annum per child | C99: =SUM(TVM:KSD!C99) -> 0 | D99: =SUM(TVM:KSD!D99) -> 0 | E99: =SUM(TVM:KSD!E99) -> 0 | F99: =SUM(TVM:KSD!F99) -> 0 | I99: =SUM(TVM:KSD!I99) -> 0 | J99: =SUM(TVM:KSD!J99) -> 0 | K99: =SUM(TVM:KSD!K99) -> 0 | L99: =SUM(TVM:KSD!L99) -> 0 | M99: =SUM(TVM:KSD!M99) -> 0 | N99: =SUM(TVM:KSD!N99) -> 0 | P99: =SUM(TVM:KSD!P99) -> 0 | Q99: =SUM(TVM:KSD!Q99) -> 0 | R99: =SUM(TVM:KSD!R99) -> 0 | S99: =SUM(TVM:KSD!S99) -> 0 | T99: =SUM(TVM:KSD!T99) -> 0 | U99: =SUM(TVM:KSD!U99) -> 0 | V99: =SUM(TVM:KSD!V99) -> 0 | W99: =SUM(TVM:KSD!W99) -> 0 | Y99: =SUM(TVM:KSD!Y99) -> 0 | Z99: =SUM(TVM:KSD!Z99) -> 0 | AA99: =SUM(TVM:KSD!AA99) -> 0 | AB99: =SUM(TVM:KSD!AB99) -> 0 | AD99: =SUM(TVM:KSD!AB99) -> 0
A100: =+A99+0.01 -> 3.09 | B100: Electricity / water charges @ Rs. 1000/- per annum per child | C100: =SUM(TVM:KSD!C100) -> 0 | D100: =SUM(TVM:KSD!D100) -> 0 | E100: =SUM(TVM:KSD!E100) -> 0 | F100: =SUM(TVM:KSD!F100) -> 0 | I100: =SUM(TVM:KSD!I100) -> 0 | J100: =SUM(TVM:KSD!J100) -> 0 | K100: =SUM(TVM:KSD!K100) -> 0 | L100: =SUM(TVM:KSD!L100) -> 0 | M100: =SUM(TVM:KSD!M100) -> 0 | N100: =SUM(TVM:KSD!N100) -> 0 | P100: =SUM(TVM:KSD!P100) -> 0 | Q100: =SUM(TVM:KSD!Q100) -> 0 | R100: =SUM(TVM:KSD!R100) -> 0 | S100: =SUM(TVM:KSD!S100) -> 0 | T100: =SUM(TVM:KSD!T100) -> 0 | U100: =SUM(TVM:KSD!U100) -> 0 | V100: =SUM(TVM:KSD!V100) -> 0 | W100: =SUM(TVM:KSD!W100) -> 0 | Y100: =SUM(TVM:KSD!Y100) -> 0 | Z100: =SUM(TVM:KSD!Z100) -> 0 | AA100: =SUM(TVM:KSD!AA100) -> 0 | AB100: =SUM(TVM:KSD!AB100) -> 0 | AD100: =SUM(TVM:KSD!AB100) -> 0
A101: 3.1 | B101: Medical care/contingencies @ Rs.1250/- per annum per child | C101: =SUM(TVM:KSD!C101) -> 0 | D101: =SUM(TVM:KSD!D101) -> 0 | E101: =SUM(TVM:KSD!E101) -> 0 | F101: =SUM(TVM:KSD!F101) -> 0 | I101: =SUM(TVM:KSD!I101) -> 0 | J101: =SUM(TVM:KSD!J101) -> 0 | K101: =SUM(TVM:KSD!K101) -> 0 | L101: =SUM(TVM:KSD!L101) -> 0 | M101: =SUM(TVM:KSD!M101) -> 0 | N101: =SUM(TVM:KSD!N101) -> 0 | P101: =SUM(TVM:KSD!P101) -> 0 | Q101: =SUM(TVM:KSD!Q101) -> 0 | R101: =SUM(TVM:KSD!R101) -> 0 | S101: =SUM(TVM:KSD!S101) -> 0 | T101: =SUM(TVM:KSD!T101) -> 0 | U101: =SUM(TVM:KSD!U101) -> 0 | V101: =SUM(TVM:KSD!V101) -> 0 | W101: =SUM(TVM:KSD!W101) -> 0 | Y101: =SUM(TVM:KSD!Y101) -> 0 | Z101: =SUM(TVM:KSD!Z101) -> 0 | AA101: =SUM(TVM:KSD!AA101) -> 0 | AB101: =SUM(TVM:KSD!AB101) -> 0 | AD101: =SUM(TVM:KSD!AB101) -> 0
A102: 3.11 | B102: Maintenance @ Rs. 750/- per child per annum | C102: =SUM(TVM:KSD!C102) -> 0 | D102: =SUM(TVM:KSD!D102) -> 0 | E102: =SUM(TVM:KSD!E102) -> 0 | F102: =SUM(TVM:KSD!F102) -> 0 | I102: =SUM(TVM:KSD!I102) -> 0 | J102: =SUM(TVM:KSD!J102) -> 0 | K102: =SUM(TVM:KSD!K102) -> 0 | L102: =SUM(TVM:KSD!L102) -> 0 | M102: =SUM(TVM:KSD!M102) -> 0 | N102: =SUM(TVM:KSD!N102) -> 0 | P102: =SUM(TVM:KSD!P102) -> 0 | Q102: =SUM(TVM:KSD!Q102) -> 0 | R102: =SUM(TVM:KSD!R102) -> 0 | S102: =SUM(TVM:KSD!S102) -> 0 | T102: =SUM(TVM:KSD!T102) -> 0 | U102: =SUM(TVM:KSD!U102) -> 0 | V102: =SUM(TVM:KSD!V102) -> 0 | W102: =SUM(TVM:KSD!W102) -> 0 | Y102: =SUM(TVM:KSD!Y102) -> 0 | Z102: =SUM(TVM:KSD!Z102) -> 0 | AA102: =SUM(TVM:KSD!AA102) -> 0 | AB102: =SUM(TVM:KSD!AB102) -> 0 | AD102: =SUM(TVM:KSD!AB102) -> 0
A103: 3.12 | B103: Miscellaneous @ Rs. 750/- per child per annum | C103: =SUM(TVM:KSD!C103) -> 0 | D103: =SUM(TVM:KSD!D103) -> 0 | E103: =SUM(TVM:KSD!E103) -> 0 | F103: =SUM(TVM:KSD!F103) -> 0 | I103: =SUM(TVM:KSD!I103) -> 0 | J103: =SUM(TVM:KSD!J103) -> 0 | K103: =SUM(TVM:KSD!K103) -> 0 | L103: =SUM(TVM:KSD!L103) -> 0 | M103: =SUM(TVM:KSD!M103) -> 0 | N103: =SUM(TVM:KSD!N103) -> 0 | P103: =SUM(TVM:KSD!P103) -> 0 | Q103: =SUM(TVM:KSD!Q103) -> 0 | R103: =SUM(TVM:KSD!R103) -> 0 | S103: =SUM(TVM:KSD!S103) -> 0 | T103: =SUM(TVM:KSD!T103) -> 0 | U103: =SUM(TVM:KSD!U103) -> 0 | V103: =SUM(TVM:KSD!V103) -> 0 | W103: =SUM(TVM:KSD!W103) -> 0 | Y103: =SUM(TVM:KSD!Y103) -> 0 | Z103: =SUM(TVM:KSD!Z103) -> 0 | AA103: =SUM(TVM:KSD!AA103) -> 0 | AB103: =SUM(TVM:KSD!AB103) -> 0 | AD103: =SUM(TVM:KSD!AB103) -> 0
A104: 3.13 | B104: Preparatory camps @ Rs. 300/- per child per annum | C104: =SUM(TVM:KSD!C104) -> 0 | D104: =SUM(TVM:KSD!D104) -> 0 | E104: =SUM(TVM:KSD!E104) -> 0 | F104: =SUM(TVM:KSD!F104) -> 0 | I104: =SUM(TVM:KSD!I104) -> 0 | J104: =SUM(TVM:KSD!J104) -> 0 | K104: =SUM(TVM:KSD!K104) -> 0 | L104: =SUM(TVM:KSD!L104) -> 0 | M104: =SUM(TVM:KSD!M104) -> 0 | N104: =SUM(TVM:KSD!N104) -> 0 | P104: =SUM(TVM:KSD!P104) -> 0 | Q104: =SUM(TVM:KSD!Q104) -> 0 | R104: =SUM(TVM:KSD!R104) -> 0 | S104: =SUM(TVM:KSD!S104) -> 0 | T104: =SUM(TVM:KSD!T104) -> 0 | U104: =SUM(TVM:KSD!U104) -> 0 | V104: =SUM(TVM:KSD!V104) -> 0 | W104: =SUM(TVM:KSD!W104) -> 0 | Y104: =SUM(TVM:KSD!Y104) -> 0 | Z104: =SUM(TVM:KSD!Z104) -> 0 | AA104: =SUM(TVM:KSD!AA104) -> 0 | AB104: =SUM(TVM:KSD!AB104) -> 0 | AD104: =SUM(TVM:KSD!AB104) -> 0
A105: 3.14 | B105: P.T.A / school functions @ Rs. 300/- per child per annum | C105: =SUM(TVM:KSD!C105) -> 0 | D105: =SUM(TVM:KSD!D105) -> 0 | E105: =SUM(TVM:KSD!E105) -> 0 | F105: =SUM(TVM:KSD!F105) -> 0 | I105: =SUM(TVM:KSD!I105) -> 0 | J105: =SUM(TVM:KSD!J105) -> 0 | K105: =SUM(TVM:KSD!K105) -> 0 | L105: =SUM(TVM:KSD!L105) -> 0 | M105: =SUM(TVM:KSD!M105) -> 0 | N105: =SUM(TVM:KSD!N105) -> 0 | P105: =SUM(TVM:KSD!P105) -> 0 | Q105: =SUM(TVM:KSD!Q105) -> 0 | R105: =SUM(TVM:KSD!R105) -> 0 | S105: =SUM(TVM:KSD!S105) -> 0 | T105: =SUM(TVM:KSD!T105) -> 0 | U105: =SUM(TVM:KSD!U105) -> 0 | V105: =SUM(TVM:KSD!V105) -> 0 | W105: =SUM(TVM:KSD!W105) -> 0 | Y105: =SUM(TVM:KSD!Y105) -> 0 | Z105: =SUM(TVM:KSD!Z105) -> 0 | AA105: =SUM(TVM:KSD!AA105) -> 0 | AB105: =SUM(TVM:KSD!AB105) -> 0 | AD105: =SUM(TVM:KSD!AB105) -> 0
A106: 3.15 | B106: Provision of Rent @ Rs. 10,000/- per child per annum | C106: =SUM(TVM:KSD!C106) -> 0 | D106: =SUM(TVM:KSD!D106) -> 0 | E106: =SUM(TVM:KSD!E106) -> 0 | F106: =SUM(TVM:KSD!F106) -> 0 | I106: =SUM(TVM:KSD!I106) -> 0 | J106: =SUM(TVM:KSD!J106) -> 0 | K106: =SUM(TVM:KSD!K106) -> 0 | L106: =SUM(TVM:KSD!L106) -> 0 | M106: =SUM(TVM:KSD!M106) -> 0 | N106: =SUM(TVM:KSD!N106) -> 0 | P106: =SUM(TVM:KSD!P106) -> 0 | Q106: =SUM(TVM:KSD!Q106) -> 0 | R106: =SUM(TVM:KSD!R106) -> 0 | S106: =SUM(TVM:KSD!S106) -> 0 | T106: =SUM(TVM:KSD!T106) -> 0 | U106: =SUM(TVM:KSD!U106) -> 0 | V106: =SUM(TVM:KSD!V106) -> 0 | W106: =SUM(TVM:KSD!W106) -> 0 | Y106: =SUM(TVM:KSD!Y106) -> 0 | Z106: =SUM(TVM:KSD!Z106) -> 0 | AA106: =SUM(TVM:KSD!AA106) -> 0 | AB106: =SUM(TVM:KSD!AB106) -> 0 | AD106: =SUM(TVM:KSD!AB106) -> 0
A107: 3.16 | B107: Capacity Building @ Rs. 500/- per child per annum | C107: =SUM(TVM:KSD!C107) -> 0 | D107: =SUM(TVM:KSD!D107) -> 0 | E107: =SUM(TVM:KSD!E107) -> 0 | F107: =SUM(TVM:KSD!F107) -> 0 | I107: =SUM(TVM:KSD!I107) -> 0 | J107: =SUM(TVM:KSD!J107) -> 0 | K107: =SUM(TVM:KSD!K107) -> 0 | L107: =SUM(TVM:KSD!L107) -> 0 | M107: =SUM(TVM:KSD!M107) -> 0 | N107: =SUM(TVM:KSD!N107) -> 0 | P107: =SUM(TVM:KSD!P107) -> 0 | Q107: =SUM(TVM:KSD!Q107) -> 0 | R107: =SUM(TVM:KSD!R107) -> 0 | S107: =SUM(TVM:KSD!S107) -> 0 | T107: =SUM(TVM:KSD!T107) -> 0 | U107: =SUM(TVM:KSD!U107) -> 0 | V107: =SUM(TVM:KSD!V107) -> 0 | W107: =SUM(TVM:KSD!W107) -> 0 | Y107: =SUM(TVM:KSD!Y107) -> 0 | Z107: =SUM(TVM:KSD!Z107) -> 0 | AA107: =SUM(TVM:KSD!AA107) -> 0 | AB107: =SUM(TVM:KSD!AB107) -> 0 | AD107: =SUM(TVM:KSD!AB107) -> 0
A108: 3.17 | B108: Physical / Self Defence Training @ Rs.200/- per child per annum | C108: =SUM(TVM:KSD!C108) -> 0 | D108: =SUM(TVM:KSD!D108) -> 0 | E108: =SUM(TVM:KSD!E108) -> 0 | F108: =SUM(TVM:KSD!F108) -> 0 | I108: =SUM(TVM:KSD!I108) -> 0 | J108: =SUM(TVM:KSD!J108) -> 0 | K108: =SUM(TVM:KSD!K108) -> 0 | L108: =SUM(TVM:KSD!L108) -> 0 | M108: =SUM(TVM:KSD!M108) -> 0 | N108: =SUM(TVM:KSD!N108) -> 0 | P108: =SUM(TVM:KSD!P108) -> 0 | Q108: =SUM(TVM:KSD!Q108) -> 0 | R108: =SUM(TVM:KSD!R108) -> 0 | S108: =SUM(TVM:KSD!S108) -> 0 | T108: =SUM(TVM:KSD!T108) -> 0 | U108: =SUM(TVM:KSD!U108) -> 0 | V108: =SUM(TVM:KSD!V108) -> 0 | W108: =SUM(TVM:KSD!W108) -> 0 | Y108: =SUM(TVM:KSD!Y108) -> 0 | Z108: =SUM(TVM:KSD!Z108) -> 0 | AA108: =SUM(TVM:KSD!AA108) -> 0 | AB108: =SUM(TVM:KSD!AB108) -> 0 | AD108: =SUM(TVM:KSD!AB108) -> 0
B109: Sub Total (Recurring) | C109: =SUM(TVM:KSD!C109) -> 0 | D109: =SUM(TVM:KSD!D109) -> 0 | E109: =SUM(TVM:KSD!E109) -> 0 | F109: =SUM(TVM:KSD!F109) -> 0 | I109: =SUM(TVM:KSD!I109) -> 0 | J109: =SUM(TVM:KSD!J109) -> 0 | K109: =SUM(TVM:KSD!K109) -> 0 | L109: =SUM(TVM:KSD!L109) -> 0 | M109: =SUM(TVM:KSD!M109) -> 0 | N109: =SUM(TVM:KSD!N109) -> 0 | P109: =SUM(TVM:KSD!P109) -> 0 | Q109: =SUM(TVM:KSD!Q109) -> 0 | R109: =SUM(TVM:KSD!R109) -> 0 | S109: =SUM(TVM:KSD!S109) -> 0 | T109: =SUM(TVM:KSD!T109) -> 0 | U109: =SUM(TVM:KSD!U109) -> 0 | V109: =SUM(TVM:KSD!V109) -> 0 | W109: =SUM(TVM:KSD!W109) -> 0 | Y109: =SUM(TVM:KSD!Y109) -> 0 | Z109: =SUM(TVM:KSD!Z109) -> 0 | AA109: =SUM(TVM:KSD!AA109) -> 0 | AB109: =SUM(TVM:KSD!AB109) -> 0 | AD109: =SUM(TVM:KSD!AB109) -> 0
B110: Total (Non Recurring + Recurring) | C110: =SUM(TVM:KSD!C110) -> 0 | D110: =SUM(TVM:KSD!D110) -> 0 | E110: =SUM(TVM:KSD!E110) -> 0 | F110: =SUM(TVM:KSD!F110) -> 0 | I110: =SUM(TVM:KSD!I110) -> 0 | J110: =SUM(TVM:KSD!J110) -> 0 | K110: =SUM(TVM:KSD!K110) -> 0 | L110: =SUM(TVM:KSD!L110) -> 0 | M110: =SUM(TVM:KSD!M110) -> 0 | N110: =SUM(TVM:KSD!N110) -> 0 | P110: =SUM(TVM:KSD!P110) -> 4 | Q110: =SUM(TVM:KSD!Q110) -> 21.5 | R110: =SUM(TVM:KSD!R110) -> 4 | S110: =SUM(TVM:KSD!S110) -> 21.5 | T110: =SUM(TVM:KSD!T110) -> 0 | U110: =SUM(TVM:KSD!U110) -> 0 | V110: =SUM(TVM:KSD!V110) -> 0 | W110: =SUM(TVM:KSD!W110) -> 0 | Y110: =SUM(TVM:KSD!Y110) -> 0 | Z110: =SUM(TVM:KSD!Z110) -> 0 | AA110: =SUM(TVM:KSD!AA110) -> 0 | AB110: =SUM(TVM:KSD!AB110) -> 0 | AD110: =SUM(TVM:KSD!AB110) -> 0
A111: (B) | B111: 100 Children | C111: =SUM(TVM:KSD!C111) -> 0 | D111: =SUM(TVM:KSD!D111) -> 0 | E111: =SUM(TVM:KSD!E111) -> 0 | F111: =SUM(TVM:KSD!F111) -> 0 | I111: =SUM(TVM:KSD!I111) -> 0 | J111: =SUM(TVM:KSD!J111) -> 0 | K111: =SUM(TVM:KSD!K111) -> 0 | L111: =SUM(TVM:KSD!L111) -> 0 | M111: =SUM(TVM:KSD!M111) -> 0 | N111: =SUM(TVM:KSD!N111) -> 0 | P111: =SUM(TVM:KSD!P111) -> 0 | Q111: =SUM(TVM:KSD!Q111) -> 0 | R111: =SUM(TVM:KSD!R111) -> 0 | S111: =SUM(TVM:KSD!S111) -> 0 | T111: =SUM(TVM:KSD!T111) -> 0 | U111: =SUM(TVM:KSD!U111) -> 0 | V111: =SUM(TVM:KSD!V111) -> 0 | W111: =SUM(TVM:KSD!W111) -> 0 | Y111: =SUM(TVM:KSD!Y111) -> 0 | Z111: =SUM(TVM:KSD!Z111) -> 0 | AA111: =SUM(TVM:KSD!AA111) -> 0 | AB111: =SUM(TVM:KSD!AB111) -> 0 | AD111: =SUM(TVM:KSD!AB111) -> 0
B112: Non-recurring (one time grant) | C112: =SUM(TVM:KSD!C112) -> 0 | D112: =SUM(TVM:KSD!D112) -> 0 | E112: =SUM(TVM:KSD!E112) -> 0 | F112: =SUM(TVM:KSD!F112) -> 0 | I112: =SUM(TVM:KSD!I112) -> 0 | J112: =SUM(TVM:KSD!J112) -> 0 | K112: =SUM(TVM:KSD!K112) -> 0 | L112: =SUM(TVM:KSD!L112) -> 0 | M112: =SUM(TVM:KSD!M112) -> 0 | N112: =SUM(TVM:KSD!N112) -> 0 | P112: =SUM(TVM:KSD!P112) -> 0 | Q112: =SUM(TVM:KSD!Q112) -> 0 | R112: =SUM(TVM:KSD!R112) -> 0 | S112: =SUM(TVM:KSD!S112) -> 0 | T112: =SUM(TVM:KSD!T112) -> 0 | U112: =SUM(TVM:KSD!U112) -> 0 | V112: =SUM(TVM:KSD!V112) -> 0 | W112: =SUM(TVM:KSD!W112) -> 0 | Y112: =SUM(TVM:KSD!Y112) -> 0 | Z112: =SUM(TVM:KSD!Z112) -> 0 | AA112: =SUM(TVM:KSD!AA112) -> 0 | AB112: =SUM(TVM:KSD!AB112) -> 0 | AD112: =SUM(TVM:KSD!AB112) -> 0
A113: 3.18 | B113: Furniture / Equipment (including kitchen equipment) | C113: =SUM(TVM:KSD!C113) -> 0 | D113: =SUM(TVM:KSD!D113) -> 0 | E113: =SUM(TVM:KSD!E113) -> 0 | F113: =SUM(TVM:KSD!F113) -> 0 | I113: =SUM(TVM:KSD!I113) -> 0 | J113: =SUM(TVM:KSD!J113) -> 0 | K113: =SUM(TVM:KSD!K113) -> 0 | L113: =SUM(TVM:KSD!L113) -> 0 | M113: =SUM(TVM:KSD!M113) -> 0 | N113: =SUM(TVM:KSD!N113) -> 0 | O113: 3 | P113: =SUM(TVM:KSD!P113) -> 7 | Q113: =SUM(TVM:KSD!Q113) -> 21 | R113: =SUM(TVM:KSD!R113) -> 7 | S113: =SUM(TVM:KSD!S113) -> 21 | T113: =SUM(TVM:KSD!T113) -> 0 | U113: =SUM(TVM:KSD!U113) -> 0 | V113: =SUM(TVM:KSD!V113) -> 0 | W113: =SUM(TVM:KSD!W113) -> 0 | Y113: =SUM(TVM:KSD!Y113) -> 0 | Z113: =SUM(TVM:KSD!Z113) -> 0 | AA113: =SUM(TVM:KSD!AA113) -> 0 | AB113: =SUM(TVM:KSD!AB113) -> 0 | AC113: Not recommended as appraised | AD113: =SUM(TVM:KSD!AB113) -> 0
A114: =+A113+0.01 -> 3.19 | B114: TLM and equipment including library books (New) | C114: =SUM(TVM:KSD!C114) -> 0 | D114: =SUM(TVM:KSD!D114) -> 0 | E114: =SUM(TVM:KSD!E114) -> 0 | F114: =SUM(TVM:KSD!F114) -> 0 | I114: =SUM(TVM:KSD!I114) -> 0 | J114: =SUM(TVM:KSD!J114) -> 0 | K114: =SUM(TVM:KSD!K114) -> 0 | L114: =SUM(TVM:KSD!L114) -> 0 | M114: =SUM(TVM:KSD!M114) -> 0 | N114: =SUM(TVM:KSD!N114) -> 0 | O114: 3.5 | P114: =SUM(TVM:KSD!P114) -> 7 | Q114: =SUM(TVM:KSD!Q114) -> 24.5 | R114: =SUM(TVM:KSD!R114) -> 7 | S114: =SUM(TVM:KSD!S114) -> 24.5 | T114: =SUM(TVM:KSD!T114) -> 0 | U114: =SUM(TVM:KSD!U114) -> 0 | V114: =SUM(TVM:KSD!V114) -> 0 | W114: =SUM(TVM:KSD!W114) -> 0 | Y114: =SUM(TVM:KSD!Y114) -> 0 | Z114: =SUM(TVM:KSD!Z114) -> 0 | AA114: =SUM(TVM:KSD!AA114) -> 0 | AB114: =SUM(TVM:KSD!AB114) -> 0 | AD114: =SUM(TVM:KSD!AB114) -> 0
A115: =+A114+0.01 -> 3.2 | B115: Bedding (New) | C115: =SUM(TVM:KSD!C115) -> 0 | D115: =SUM(TVM:KSD!D115) -> 0 | E115: =SUM(TVM:KSD!E115) -> 0 | F115: =SUM(TVM:KSD!F115) -> 0 | I115: =SUM(TVM:KSD!I115) -> 0 | J115: =SUM(TVM:KSD!J115) -> 0 | K115: =SUM(TVM:KSD!K115) -> 0 | L115: =SUM(TVM:KSD!L115) -> 0 | M115: =SUM(TVM:KSD!M115) -> 0 | N115: =SUM(TVM:KSD!N115) -> 0 | O115: 0.75 | P115: =SUM(TVM:KSD!P115) -> 7 | Q115: =SUM(TVM:KSD!Q115) -> 5.25 | R115: =SUM(TVM:KSD!R115) -> 7 | S115: =SUM(TVM:KSD!S115) -> 5.25 | T115: =SUM(TVM:KSD!T115) -> 0 | U115: =SUM(TVM:KSD!U115) -> 0 | V115: =SUM(TVM:KSD!V115) -> 0 | W115: =SUM(TVM:KSD!W115) -> 0 | Y115: =SUM(TVM:KSD!Y115) -> 0 | Z115: =SUM(TVM:KSD!Z115) -> 0 | AA115: =SUM(TVM:KSD!AA115) -> 0 | AB115: =SUM(TVM:KSD!AB115) -> 0 | AD115: =SUM(TVM:KSD!AB115) -> 0
A116: =+A115+0.01 -> 3.21 | B116: Replacement of bedding (once in 3 years) | C116: =SUM(TVM:KSD!C116) -> 0 | D116: =SUM(TVM:KSD!D116) -> 0 | E116: =SUM(TVM:KSD!E116) -> 0 | F116: =SUM(TVM:KSD!F116) -> 0 | I116: =SUM(TVM:KSD!I116) -> 0 | J116: =SUM(TVM:KSD!J116) -> 0 | K116: =SUM(TVM:KSD!K116) -> 0 | L116: =SUM(TVM:KSD!L116) -> 0 | M116: =SUM(TVM:KSD!M116) -> 0 | N116: =SUM(TVM:KSD!N116) -> 0 | P116: =SUM(TVM:KSD!P116) -> 0 | Q116: =SUM(TVM:KSD!Q116) -> 0 | R116: =SUM(TVM:KSD!R116) -> 0 | S116: =SUM(TVM:KSD!S116) -> 0 | T116: =SUM(TVM:KSD!T116) -> 0 | U116: =SUM(TVM:KSD!U116) -> 0 | V116: =SUM(TVM:KSD!V116) -> 0 | W116: =SUM(TVM:KSD!W116) -> 0 | Y116: =SUM(TVM:KSD!Y116) -> 0 | Z116: =SUM(TVM:KSD!Z116) -> 0 | AA116: =SUM(TVM:KSD!AA116) -> 0 | AB116: =SUM(TVM:KSD!AB116) -> 0 | AD116: =SUM(TVM:KSD!AB116) -> 0
B117: Sub Total Non-recurring | C117: =SUM(TVM:KSD!C117) -> 0 | D117: =SUM(TVM:KSD!D117) -> 0 | E117: =SUM(TVM:KSD!E117) -> 0 | F117: =SUM(TVM:KSD!F117) -> 0 | I117: =SUM(TVM:KSD!I117) -> 0 | J117: =SUM(TVM:KSD!J117) -> 0 | K117: =SUM(TVM:KSD!K117) -> 0 | L117: =SUM(TVM:KSD!L117) -> 0 | M117: =SUM(TVM:KSD!M117) -> 0 | N117: =SUM(TVM:KSD!N117) -> 0 | P117: =SUM(TVM:KSD!P117) -> 7 | Q117: =SUM(TVM:KSD!Q117) -> 50.75 | R117: =SUM(TVM:KSD!R117) -> 7 | S117: =SUM(TVM:KSD!S117) -> 50.75 | T117: =SUM(TVM:KSD!T117) -> 0 | U117: =SUM(TVM:KSD!U117) -> 0 | V117: =SUM(TVM:KSD!V117) -> 0 | W117: =SUM(TVM:KSD!W117) -> 0 | Y117: =SUM(TVM:KSD!Y117) -> 0 | Z117: =SUM(TVM:KSD!Z117) -> 0 | AA117: =SUM(TVM:KSD!AA117) -> 0 | AB117: =SUM(TVM:KSD!AB117) -> 0 | AD117: =SUM(TVM:KSD!AB117) -> 0
B118: Recurring | C118: =SUM(TVM:KSD!C118) -> 0 | D118: =SUM(TVM:KSD!D118) -> 0 | E118: =SUM(TVM:KSD!E118) -> 0 | F118: =SUM(TVM:KSD!F118) -> 0 | I118: =SUM(TVM:KSD!I118) -> 0 | J118: =SUM(TVM:KSD!J118) -> 0 | K118: =SUM(TVM:KSD!K118) -> 0 | L118: =SUM(TVM:KSD!L118) -> 0 | M118: =SUM(TVM:KSD!M118) -> 0 | N118: =SUM(TVM:KSD!N118) -> 0 | P118: =SUM(TVM:KSD!P118) -> 0 | Q118: =SUM(TVM:KSD!Q118) -> 0 | R118: =SUM(TVM:KSD!R118) -> 0 | S118: =SUM(TVM:KSD!S118) -> 0 | T118: =SUM(TVM:KSD!T118) -> 0 | U118: =SUM(TVM:KSD!U118) -> 0 | V118: =SUM(TVM:KSD!V118) -> 0 | W118: =SUM(TVM:KSD!W118) -> 0 | Y118: =SUM(TVM:KSD!Y118) -> 0 | Z118: =SUM(TVM:KSD!Z118) -> 0 | AA118: =SUM(TVM:KSD!AA118) -> 0 | AB118: =SUM(TVM:KSD!AB118) -> 0 | AD118: =SUM(TVM:KSD!AB118) -> 0
A119: 3.22 | B119: Maintenance per child per month @ Rs. 1500/- | C119: =SUM(TVM:KSD!C119) -> 0 | D119: =SUM(TVM:KSD!D119) -> 0 | E119: =SUM(TVM:KSD!E119) -> 0 | F119: =SUM(TVM:KSD!F119) -> 0 | I119: =SUM(TVM:KSD!I119) -> 0 | J119: =SUM(TVM:KSD!J119) -> 0 | K119: =SUM(TVM:KSD!K119) -> 0 | L119: =SUM(TVM:KSD!L119) -> 0 | M119: =SUM(TVM:KSD!M119) -> 0 | N119: =SUM(TVM:KSD!N119) -> 0 | P119: =SUM(TVM:KSD!P119) -> 0 | Q119: =SUM(TVM:KSD!Q119) -> 0 | R119: =SUM(TVM:KSD!R119) -> 0 | S119: =SUM(TVM:KSD!S119) -> 0 | T119: =SUM(TVM:KSD!T119) -> 0 | U119: =SUM(TVM:KSD!U119) -> 0 | V119: =SUM(TVM:KSD!V119) -> 0 | W119: =SUM(TVM:KSD!W119) -> 0 | Y119: =SUM(TVM:KSD!Y119) -> 0 | Z119: =SUM(TVM:KSD!Z119) -> 0 | AA119: =SUM(TVM:KSD!AA119) -> 0 | AB119: =SUM(TVM:KSD!AB119) -> 0 | AD119: =SUM(TVM:KSD!AB119) -> 0
A120: =+A119+0.01 -> 3.23 | B120: Stipend per child per month @ Rs.100/- | C120: =SUM(TVM:KSD!C120) -> 0 | D120: =SUM(TVM:KSD!D120) -> 0 | E120: =SUM(TVM:KSD!E120) -> 0 | F120: =SUM(TVM:KSD!F120) -> 0 | I120: =SUM(TVM:KSD!I120) -> 0 | J120: =SUM(TVM:KSD!J120) -> 0 | K120: =SUM(TVM:KSD!K120) -> 0 | L120: =SUM(TVM:KSD!L120) -> 0 | M120: =SUM(TVM:KSD!M120) -> 0 | N120: =SUM(TVM:KSD!N120) -> 0 | P120: =SUM(TVM:KSD!P120) -> 0 | Q120: =SUM(TVM:KSD!Q120) -> 0 | R120: =SUM(TVM:KSD!R120) -> 0 | S120: =SUM(TVM:KSD!S120) -> 0 | T120: =SUM(TVM:KSD!T120) -> 0 | U120: =SUM(TVM:KSD!U120) -> 0 | V120: =SUM(TVM:KSD!V120) -> 0 | W120: =SUM(TVM:KSD!W120) -> 0 | Y120: =SUM(TVM:KSD!Y120) -> 0 | Z120: =SUM(TVM:KSD!Z120) -> 0 | AA120: =SUM(TVM:KSD!AA120) -> 0 | AB120: =SUM(TVM:KSD!AB120) -> 0 | AD120: =SUM(TVM:KSD!AB120) -> 0
A121: =+A120+0.01 -> 3.24 | B121: Supplementary TLM, Stationery and other educational material per child @1000/- per annum | C121: =SUM(TVM:KSD!C121) -> 0 | D121: =SUM(TVM:KSD!D121) -> 0 | E121: =SUM(TVM:KSD!E121) -> 0 | F121: =SUM(TVM:KSD!F121) -> 0 | I121: =SUM(TVM:KSD!I121) -> 0 | J121: =SUM(TVM:KSD!J121) -> 0 | K121: =SUM(TVM:KSD!K121) -> 0 | L121: =SUM(TVM:KSD!L121) -> 0 | M121: =SUM(TVM:KSD!M121) -> 0 | N121: =SUM(TVM:KSD!N121) -> 0 | P121: =SUM(TVM:KSD!P121) -> 0 | Q121: =SUM(TVM:KSD!Q121) -> 0 | R121: =SUM(TVM:KSD!R121) -> 0 | S121: =SUM(TVM:KSD!S121) -> 0 | T121: =SUM(TVM:KSD!T121) -> 0 | U121: =SUM(TVM:KSD!U121) -> 0 | V121: =SUM(TVM:KSD!V121) -> 0 | W121: =SUM(TVM:KSD!W121) -> 0 | Y121: =SUM(TVM:KSD!Y121) -> 0 | Z121: =SUM(TVM:KSD!Z121) -> 0 | AA121: =SUM(TVM:KSD!AA121) -> 0 | AB121: =SUM(TVM:KSD!AB121) -> 0 | AD121: =SUM(TVM:KSD!AB121) -> 0
B122: Salaries | C122: =SUM(TVM:KSD!C122) -> 0 | D122: =SUM(TVM:KSD!D122) -> 0 | E122: =SUM(TVM:KSD!E122) -> 0 | F122: =SUM(TVM:KSD!F122) -> 0 | I122: =SUM(TVM:KSD!I122) -> 0 | J122: =SUM(TVM:KSD!J122) -> 0 | K122: =SUM(TVM:KSD!K122) -> 0 | L122: =SUM(TVM:KSD!L122) -> 0 | M122: =SUM(TVM:KSD!M122) -> 0 | N122: =SUM(TVM:KSD!N122) -> 0 | P122: =SUM(TVM:KSD!P122) -> 0 | Q122: =SUM(TVM:KSD!Q122) -> 0 | R122: =SUM(TVM:KSD!R122) -> 0 | S122: =SUM(TVM:KSD!S122) -> 0 | T122: =SUM(TVM:KSD!T122) -> 0 | U122: =SUM(TVM:KSD!U122) -> 0 | V122: =SUM(TVM:KSD!V122) -> 0 | W122: =SUM(TVM:KSD!W122) -> 0 | Y122: =SUM(TVM:KSD!Y122) -> 0 | Z122: =SUM(TVM:KSD!Z122) -> 0 | AA122: =SUM(TVM:KSD!AA122) -> 0 | AB122: =SUM(TVM:KSD!AB122) -> 0 | AD122: =SUM(TVM:KSD!AB122) -> 0
A123: (a) | B123: 1 Warden @ Rs. 25,000/- per month | C123: =SUM(TVM:KSD!C123) -> 0 | D123: =SUM(TVM:KSD!D123) -> 0 | E123: =SUM(TVM:KSD!E123) -> 0 | F123: =SUM(TVM:KSD!F123) -> 0 | I123: =SUM(TVM:KSD!I123) -> 0 | J123: =SUM(TVM:KSD!J123) -> 0 | K123: =SUM(TVM:KSD!K123) -> 0 | L123: =SUM(TVM:KSD!L123) -> 0 | M123: =SUM(TVM:KSD!M123) -> 0 | N123: =SUM(TVM:KSD!N123) -> 0 | P123: =SUM(TVM:KSD!P123) -> 0 | Q123: =SUM(TVM:KSD!Q123) -> 0 | R123: =SUM(TVM:KSD!R123) -> 0 | S123: =SUM(TVM:KSD!S123) -> 0 | T123: =SUM(TVM:KSD!T123) -> 0 | U123: =SUM(TVM:KSD!U123) -> 0 | V123: =SUM(TVM:KSD!V123) -> 0 | W123: =SUM(TVM:KSD!W123) -> 0 | Y123: =SUM(TVM:KSD!Y123) -> 0 | Z123: =SUM(TVM:KSD!Z123) -> 0 | AA123: =SUM(TVM:KSD!AA123) -> 0 | AB123: =SUM(TVM:KSD!AB123) -> 0 | AD123: =SUM(TVM:KSD!AB123) -> 0
A124: (b) | B124: 1 head teacher @ Rs. 25,000/- per month in case the enrollment exceeds 100 | C124: =SUM(TVM:KSD!C124) -> 0 | D124: =SUM(TVM:KSD!D124) -> 0 | E124: =SUM(TVM:KSD!E124) -> 0 | F124: =SUM(TVM:KSD!F124) -> 0 | I124: =SUM(TVM:KSD!I124) -> 0 | J124: =SUM(TVM:KSD!J124) -> 0 | K124: =SUM(TVM:KSD!K124) -> 0 | L124: =SUM(TVM:KSD!L124) -> 0 | M124: =SUM(TVM:KSD!M124) -> 0 | N124: =SUM(TVM:KSD!N124) -> 0 | P124: =SUM(TVM:KSD!P124) -> 0 | Q124: =SUM(TVM:KSD!Q124) -> 0 | R124: =SUM(TVM:KSD!R124) -> 0 | S124: =SUM(TVM:KSD!S124) -> 0 | T124: =SUM(TVM:KSD!T124) -> 0 | U124: =SUM(TVM:KSD!U124) -> 0 | V124: =SUM(TVM:KSD!V124) -> 0 | W124: =SUM(TVM:KSD!W124) -> 0 | Y124: =SUM(TVM:KSD!Y124) -> 0 | Z124: =SUM(TVM:KSD!Z124) -> 0 | AA124: =SUM(TVM:KSD!AA124) -> 0 | AB124: =SUM(TVM:KSD!AB124) -> 0 | AD124: =SUM(TVM:KSD!AB124) -> 0
A125: (c) | B125: 4 - 5 Full time teachers as per RTE norms @ Rs. 20,000/- per month per teacher | C125: =SUM(TVM:KSD!C125) -> 0 | D125: =SUM(TVM:KSD!D125) -> 0 | E125: =SUM(TVM:KSD!E125) -> 0 | F125: =SUM(TVM:KSD!F125) -> 0 | I125: =SUM(TVM:KSD!I125) -> 0 | J125: =SUM(TVM:KSD!J125) -> 0 | K125: =SUM(TVM:KSD!K125) -> 0 | L125: =SUM(TVM:KSD!L125) -> 0 | M125: =SUM(TVM:KSD!M125) -> 0 | N125: =SUM(TVM:KSD!N125) -> 0 | P125: =SUM(TVM:KSD!P125) -> 0 | Q125: =SUM(TVM:KSD!Q125) -> 0 | R125: =SUM(TVM:KSD!R125) -> 0 | S125: =SUM(TVM:KSD!S125) -> 0 | T125: =SUM(TVM:KSD!T125) -> 0 | U125: =SUM(TVM:KSD!U125) -> 0 | V125: =SUM(TVM:KSD!V125) -> 0 | W125: =SUM(TVM:KSD!W125) -> 0 | Y125: =SUM(TVM:KSD!Y125) -> 0 | Z125: =SUM(TVM:KSD!Z125) -> 0 | AA125: =SUM(TVM:KSD!AA125) -> 0 | AB125: =SUM(TVM:KSD!AB125) -> 0 | AD125: =SUM(TVM:KSD!AB125) -> 0
A126: (d) | B126: 2 Urdu Teachers (only for blocks with muslim population above 20% and select urban areas), if required @ Rs. 12,000/- per month per teacher | C126: =SUM(TVM:KSD!C126) -> 0 | D126: =SUM(TVM:KSD!D126) -> 0 | E126: =SUM(TVM:KSD!E126) -> 0 | F126: =SUM(TVM:KSD!F126) -> 0 | I126: =SUM(TVM:KSD!I126) -> 0 | J126: =SUM(TVM:KSD!J126) -> 0 | K126: =SUM(TVM:KSD!K126) -> 0 | L126: =SUM(TVM:KSD!L126) -> 0 | M126: =SUM(TVM:KSD!M126) -> 0 | N126: =SUM(TVM:KSD!N126) -> 0 | P126: =SUM(TVM:KSD!P126) -> 0 | Q126: =SUM(TVM:KSD!Q126) -> 0 | R126: =SUM(TVM:KSD!R126) -> 0 | S126: =SUM(TVM:KSD!S126) -> 0 | T126: =SUM(TVM:KSD!T126) -> 0 | U126: =SUM(TVM:KSD!U126) -> 0 | V126: =SUM(TVM:KSD!V126) -> 0 | W126: =SUM(TVM:KSD!W126) -> 0 | Y126: =SUM(TVM:KSD!Y126) -> 0 | Z126: =SUM(TVM:KSD!Z126) -> 0 | AA126: =SUM(TVM:KSD!AA126) -> 0 | AB126: =SUM(TVM:KSD!AB126) -> 0 | AD126: =SUM(TVM:KSD!AB126) -> 0
A127: (e) | B127: 3 part time teachers @ Rs. 5,000/- per month per teacher | C127: =SUM(TVM:KSD!C127) -> 0 | D127: =SUM(TVM:KSD!D127) -> 0 | E127: =SUM(TVM:KSD!E127) -> 0 | F127: =SUM(TVM:KSD!F127) -> 0 | I127: =SUM(TVM:KSD!I127) -> 0 | J127: =SUM(TVM:KSD!J127) -> 0 | K127: =SUM(TVM:KSD!K127) -> 0 | L127: =SUM(TVM:KSD!L127) -> 0 | M127: =SUM(TVM:KSD!M127) -> 0 | N127: =SUM(TVM:KSD!N127) -> 0 | P127: =SUM(TVM:KSD!P127) -> 0 | Q127: =SUM(TVM:KSD!Q127) -> 0 | R127: =SUM(TVM:KSD!R127) -> 0 | S127: =SUM(TVM:KSD!S127) -> 0 | T127: =SUM(TVM:KSD!T127) -> 0 | U127: =SUM(TVM:KSD!U127) -> 0 | V127: =SUM(TVM:KSD!V127) -> 0 | W127: =SUM(TVM:KSD!W127) -> 0 | Y127: =SUM(TVM:KSD!Y127) -> 0 | Z127: =SUM(TVM:KSD!Z127) -> 0 | AA127: =SUM(TVM:KSD!AA127) -> 0 | AB127: =SUM(TVM:KSD!AB127) -> 0 | AD127: =SUM(TVM:KSD!AB127) -> 0
A128: (f) | B128: 1 Full time Accountant @ Rs. 10,000/- per month | C128: =SUM(TVM:KSD!C128) -> 0 | D128: =SUM(TVM:KSD!D128) -> 0 | E128: =SUM(TVM:KSD!E128) -> 0 | F128: =SUM(TVM:KSD!F128) -> 0 | I128: =SUM(TVM:KSD!I128) -> 0 | J128: =SUM(TVM:KSD!J128) -> 0 | K128: =SUM(TVM:KSD!K128) -> 0 | L128: =SUM(TVM:KSD!L128) -> 0 | M128: =SUM(TVM:KSD!M128) -> 0 | N128: =SUM(TVM:KSD!N128) -> 0 | P128: =SUM(TVM:KSD!P128) -> 0 | Q128: =SUM(TVM:KSD!Q128) -> 0 | R128: =SUM(TVM:KSD!R128) -> 0 | S128: =SUM(TVM:KSD!S128) -> 0 | T128: =SUM(TVM:KSD!T128) -> 0 | U128: =SUM(TVM:KSD!U128) -> 0 | V128: =SUM(TVM:KSD!V128) -> 0 | W128: =SUM(TVM:KSD!W128) -> 0 | Y128: =SUM(TVM:KSD!Y128) -> 0 | Z128: =SUM(TVM:KSD!Z128) -> 0 | AA128: =SUM(TVM:KSD!AA128) -> 0 | AB128: =SUM(TVM:KSD!AB128) -> 0 | AD128: =SUM(TVM:KSD!AB128) -> 0
A129: 3.25 | B129: 2 Support Staff – (Accountant/ Assistant, Peon, Chowkidar) @ Rs. 5,000/- per month per staff | C129: =SUM(TVM:KSD!C129) -> 0 | D129: =SUM(TVM:KSD!D129) -> 0 | E129: =SUM(TVM:KSD!E129) -> 0 | F129: =SUM(TVM:KSD!F129) -> 0 | I129: =SUM(TVM:KSD!I129) -> 0 | J129: =SUM(TVM:KSD!J129) -> 0 | K129: =SUM(TVM:KSD!K129) -> 0 | L129: =SUM(TVM:KSD!L129) -> 0 | M129: =SUM(TVM:KSD!M129) -> 0 | N129: =SUM(TVM:KSD!N129) -> 0 | P129: =SUM(TVM:KSD!P129) -> 0 | Q129: =SUM(TVM:KSD!Q129) -> 0 | R129: =SUM(TVM:KSD!R129) -> 0 | S129: =SUM(TVM:KSD!S129) -> 0 | T129: =SUM(TVM:KSD!T129) -> 0 | U129: =SUM(TVM:KSD!U129) -> 0 | V129: =SUM(TVM:KSD!V129) -> 0 | W129: =SUM(TVM:KSD!W129) -> 0 | Y129: =SUM(TVM:KSD!Y129) -> 0 | Z129: =SUM(TVM:KSD!Z129) -> 0 | AA129: =SUM(TVM:KSD!AA129) -> 0 | AB129: =SUM(TVM:KSD!AB129) -> 0 | AD129: =SUM(TVM:KSD!AB129) -> 0
A130: =+A129+0.01 -> 3.26 | B130: 1 Head cook @ Rs. 6,000/- per month and upto 2 Asstt. Cooks @ Rs. 4,500/- per month per cook | C130: =SUM(TVM:KSD!C130) -> 0 | D130: =SUM(TVM:KSD!D130) -> 0 | E130: =SUM(TVM:KSD!E130) -> 0 | F130: =SUM(TVM:KSD!F130) -> 0 | I130: =SUM(TVM:KSD!I130) -> 0 | J130: =SUM(TVM:KSD!J130) -> 0 | K130: =SUM(TVM:KSD!K130) -> 0 | L130: =SUM(TVM:KSD!L130) -> 0 | M130: =SUM(TVM:KSD!M130) -> 0 | N130: =SUM(TVM:KSD!N130) -> 0 | P130: =SUM(TVM:KSD!P130) -> 0 | Q130: =SUM(TVM:KSD!Q130) -> 0 | R130: =SUM(TVM:KSD!R130) -> 0 | S130: =SUM(TVM:KSD!S130) -> 0 | T130: =SUM(TVM:KSD!T130) -> 0 | U130: =SUM(TVM:KSD!U130) -> 0 | V130: =SUM(TVM:KSD!V130) -> 0 | W130: =SUM(TVM:KSD!W130) -> 0 | Y130: =SUM(TVM:KSD!Y130) -> 0 | Z130: =SUM(TVM:KSD!Z130) -> 0 | AA130: =SUM(TVM:KSD!AA130) -> 0 | AB130: =SUM(TVM:KSD!AB130) -> 0 | AD130: =SUM(TVM:KSD!AB130) -> 0
A131: 3.27 | B131: Specific skill training per child @ Rs.1000/- per annum | C131: =SUM(TVM:KSD!C131) -> 0 | D131: =SUM(TVM:KSD!D131) -> 0 | E131: =SUM(TVM:KSD!E131) -> 0 | F131: =SUM(TVM:KSD!F131) -> 0 | I131: =SUM(TVM:KSD!I131) -> 0 | J131: =SUM(TVM:KSD!J131) -> 0 | K131: =SUM(TVM:KSD!K131) -> 0 | L131: =SUM(TVM:KSD!L131) -> 0 | M131: =SUM(TVM:KSD!M131) -> 0 | N131: =SUM(TVM:KSD!N131) -> 0 | P131: =SUM(TVM:KSD!P131) -> 0 | Q131: =SUM(TVM:KSD!Q131) -> 0 | R131: =SUM(TVM:KSD!R131) -> 0 | S131: =SUM(TVM:KSD!S131) -> 0 | T131: =SUM(TVM:KSD!T131) -> 0 | U131: =SUM(TVM:KSD!U131) -> 0 | V131: =SUM(TVM:KSD!V131) -> 0 | W131: =SUM(TVM:KSD!W131) -> 0 | Y131: =SUM(TVM:KSD!Y131) -> 0 | Z131: =SUM(TVM:KSD!Z131) -> 0 | AA131: =SUM(TVM:KSD!AA131) -> 0 | AB131: =SUM(TVM:KSD!AB131) -> 0 | AD131: =SUM(TVM:KSD!AB131) -> 0
A132: 3.28 | B132: Electricity / water charges per child @Rs.1000/- per annum | C132: =SUM(TVM:KSD!C132) -> 0 | D132: =SUM(TVM:KSD!D132) -> 0 | E132: =SUM(TVM:KSD!E132) -> 0 | F132: =SUM(TVM:KSD!F132) -> 0 | I132: =SUM(TVM:KSD!I132) -> 0 | J132: =SUM(TVM:KSD!J132) -> 0 | K132: =SUM(TVM:KSD!K132) -> 0 | L132: =SUM(TVM:KSD!L132) -> 0 | M132: =SUM(TVM:KSD!M132) -> 0 | N132: =SUM(TVM:KSD!N132) -> 0 | P132: =SUM(TVM:KSD!P132) -> 0 | Q132: =SUM(TVM:KSD!Q132) -> 0 | R132: =SUM(TVM:KSD!R132) -> 0 | S132: =SUM(TVM:KSD!S132) -> 0 | T132: =SUM(TVM:KSD!T132) -> 0 | U132: =SUM(TVM:KSD!U132) -> 0 | V132: =SUM(TVM:KSD!V132) -> 0 | W132: =SUM(TVM:KSD!W132) -> 0 | Y132: =SUM(TVM:KSD!Y132) -> 0 | Z132: =SUM(TVM:KSD!Z132) -> 0 | AA132: =SUM(TVM:KSD!AA132) -> 0 | AB132: =SUM(TVM:KSD!AB132) -> 0 | AD132: =SUM(TVM:KSD!AB132) -> 0
A133: 3.29 | B133: Medical care/contingencies @ Rs.1250/- per child per annum | C133: =SUM(TVM:KSD!C133) -> 0 | D133: =SUM(TVM:KSD!D133) -> 0 | E133: =SUM(TVM:KSD!E133) -> 0 | F133: =SUM(TVM:KSD!F133) -> 0 | I133: =SUM(TVM:KSD!I133) -> 0 | J133: =SUM(TVM:KSD!J133) -> 0 | K133: =SUM(TVM:KSD!K133) -> 0 | L133: =SUM(TVM:KSD!L133) -> 0 | M133: =SUM(TVM:KSD!M133) -> 0 | N133: =SUM(TVM:KSD!N133) -> 0 | P133: =SUM(TVM:KSD!P133) -> 0 | Q133: =SUM(TVM:KSD!Q133) -> 0 | R133: =SUM(TVM:KSD!R133) -> 0 | S133: =SUM(TVM:KSD!S133) -> 0 | T133: =SUM(TVM:KSD!T133) -> 0 | U133: =SUM(TVM:KSD!U133) -> 0 | V133: =SUM(TVM:KSD!V133) -> 0 | W133: =SUM(TVM:KSD!W133) -> 0 | Y133: =SUM(TVM:KSD!Y133) -> 0 | Z133: =SUM(TVM:KSD!Z133) -> 0 | AA133: =SUM(TVM:KSD!AA133) -> 0 | AB133: =SUM(TVM:KSD!AB133) -> 0 | AD133: =SUM(TVM:KSD!AB133) -> 0
A134: 3.3 | B134: Maintenance @ Rs.750/- per child per annum | C134: =SUM(TVM:KSD!C134) -> 0 | D134: =SUM(TVM:KSD!D134) -> 0 | E134: =SUM(TVM:KSD!E134) -> 0 | F134: =SUM(TVM:KSD!F134) -> 0 | I134: =SUM(TVM:KSD!I134) -> 0 | J134: =SUM(TVM:KSD!J134) -> 0 | K134: =SUM(TVM:KSD!K134) -> 0 | L134: =SUM(TVM:KSD!L134) -> 0 | M134: =SUM(TVM:KSD!M134) -> 0 | N134: =SUM(TVM:KSD!N134) -> 0 | P134: =SUM(TVM:KSD!P134) -> 0 | Q134: =SUM(TVM:KSD!Q134) -> 0 | R134: =SUM(TVM:KSD!R134) -> 0 | S134: =SUM(TVM:KSD!S134) -> 0 | T134: =SUM(TVM:KSD!T134) -> 0 | U134: =SUM(TVM:KSD!U134) -> 0 | V134: =SUM(TVM:KSD!V134) -> 0 | W134: =SUM(TVM:KSD!W134) -> 0 | Y134: =SUM(TVM:KSD!Y134) -> 0 | Z134: =SUM(TVM:KSD!Z134) -> 0 | AA134: =SUM(TVM:KSD!AA134) -> 0 | AB134: =SUM(TVM:KSD!AB134) -> 0 | AD134: =SUM(TVM:KSD!AB134) -> 0
A135: 3.31 | B135: Miscellaneous @ Rs.750/- per child per annum | C135: =SUM(TVM:KSD!C135) -> 0 | D135: =SUM(TVM:KSD!D135) -> 0 | E135: =SUM(TVM:KSD!E135) -> 0 | F135: =SUM(TVM:KSD!F135) -> 0 | I135: =SUM(TVM:KSD!I135) -> 0 | J135: =SUM(TVM:KSD!J135) -> 0 | K135: =SUM(TVM:KSD!K135) -> 0 | L135: =SUM(TVM:KSD!L135) -> 0 | M135: =SUM(TVM:KSD!M135) -> 0 | N135: =SUM(TVM:KSD!N135) -> 0 | P135: =SUM(TVM:KSD!P135) -> 0 | Q135: =SUM(TVM:KSD!Q135) -> 0 | R135: =SUM(TVM:KSD!R135) -> 0 | S135: =SUM(TVM:KSD!S135) -> 0 | T135: =SUM(TVM:KSD!T135) -> 0 | U135: =SUM(TVM:KSD!U135) -> 0 | V135: =SUM(TVM:KSD!V135) -> 0 | W135: =SUM(TVM:KSD!W135) -> 0 | Y135: =SUM(TVM:KSD!Y135) -> 0 | Z135: =SUM(TVM:KSD!Z135) -> 0 | AA135: =SUM(TVM:KSD!AA135) -> 0 | AB135: =SUM(TVM:KSD!AB135) -> 0 | AD135: =SUM(TVM:KSD!AB135) -> 0
A136: 3.32 | B136: Preparatory camps @ Rs.200/- per child per annum | C136: =SUM(TVM:KSD!C136) -> 0 | D136: =SUM(TVM:KSD!D136) -> 0 | E136: =SUM(TVM:KSD!E136) -> 0 | F136: =SUM(TVM:KSD!F136) -> 0 | I136: =SUM(TVM:KSD!I136) -> 0 | J136: =SUM(TVM:KSD!J136) -> 0 | K136: =SUM(TVM:KSD!K136) -> 0 | L136: =SUM(TVM:KSD!L136) -> 0 | M136: =SUM(TVM:KSD!M136) -> 0 | N136: =SUM(TVM:KSD!N136) -> 0 | P136: =SUM(TVM:KSD!P136) -> 0 | Q136: =SUM(TVM:KSD!Q136) -> 0 | R136: =SUM(TVM:KSD!R136) -> 0 | S136: =SUM(TVM:KSD!S136) -> 0 | T136: =SUM(TVM:KSD!T136) -> 0 | U136: =SUM(TVM:KSD!U136) -> 0 | V136: =SUM(TVM:KSD!V136) -> 0 | W136: =SUM(TVM:KSD!W136) -> 0 | Y136: =SUM(TVM:KSD!Y136) -> 0 | Z136: =SUM(TVM:KSD!Z136) -> 0 | AA136: =SUM(TVM:KSD!AA136) -> 0 | AB136: =SUM(TVM:KSD!AB136) -> 0 | AD136: =SUM(TVM:KSD!AB136) -> 0
A137: 3.33 | B137: P.T.A / school functions @ Rs.200/- per child per annum | C137: =SUM(TVM:KSD!C137) -> 0 | D137: =SUM(TVM:KSD!D137) -> 0 | E137: =SUM(TVM:KSD!E137) -> 0 | F137: =SUM(TVM:KSD!F137) -> 0 | I137: =SUM(TVM:KSD!I137) -> 0 | J137: =SUM(TVM:KSD!J137) -> 0 | K137: =SUM(TVM:KSD!K137) -> 0 | L137: =SUM(TVM:KSD!L137) -> 0 | M137: =SUM(TVM:KSD!M137) -> 0 | N137: =SUM(TVM:KSD!N137) -> 0 | P137: =SUM(TVM:KSD!P137) -> 0 | Q137: =SUM(TVM:KSD!Q137) -> 0 | R137: =SUM(TVM:KSD!R137) -> 0 | S137: =SUM(TVM:KSD!S137) -> 0 | T137: =SUM(TVM:KSD!T137) -> 0 | U137: =SUM(TVM:KSD!U137) -> 0 | V137: =SUM(TVM:KSD!V137) -> 0 | W137: =SUM(TVM:KSD!W137) -> 0 | Y137: =SUM(TVM:KSD!Y137) -> 0 | Z137: =SUM(TVM:KSD!Z137) -> 0 | AA137: =SUM(TVM:KSD!AA137) -> 0 | AB137: =SUM(TVM:KSD!AB137) -> 0 | AD137: =SUM(TVM:KSD!AB137) -> 0
A138: 3.34 | B138: Provision of Rent @ Rs. 6000/- per child per annum | C138: =SUM(TVM:KSD!C138) -> 0 | D138: =SUM(TVM:KSD!D138) -> 0 | E138: =SUM(TVM:KSD!E138) -> 0 | F138: =SUM(TVM:KSD!F138) -> 0 | I138: =SUM(TVM:KSD!I138) -> 0 | J138: =SUM(TVM:KSD!J138) -> 0 | K138: =SUM(TVM:KSD!K138) -> 0 | L138: =SUM(TVM:KSD!L138) -> 0 | M138: =SUM(TVM:KSD!M138) -> 0 | N138: =SUM(TVM:KSD!N138) -> 0 | P138: =SUM(TVM:KSD!P138) -> 0 | Q138: =SUM(TVM:KSD!Q138) -> 0 | R138: =SUM(TVM:KSD!R138) -> 0 | S138: =SUM(TVM:KSD!S138) -> 0 | T138: =SUM(TVM:KSD!T138) -> 0 | U138: =SUM(TVM:KSD!U138) -> 0 | V138: =SUM(TVM:KSD!V138) -> 0 | W138: =SUM(TVM:KSD!W138) -> 0 | Y138: =SUM(TVM:KSD!Y138) -> 0 | Z138: =SUM(TVM:KSD!Z138) -> 0 | AA138: =SUM(TVM:KSD!AA138) -> 0 | AB138: =SUM(TVM:KSD!AB138) -> 0 | AD138: =SUM(TVM:KSD!AB138) -> 0
A139: 3.35 | B139: Capacity Building @ Rs.500/- per child per annum | C139: =SUM(TVM:KSD!C139) -> 0 | D139: =SUM(TVM:KSD!D139) -> 0 | E139: =SUM(TVM:KSD!E139) -> 0 | F139: =SUM(TVM:KSD!F139) -> 0 | I139: =SUM(TVM:KSD!I139) -> 0 | J139: =SUM(TVM:KSD!J139) -> 0 | K139: =SUM(TVM:KSD!K139) -> 0 | L139: =SUM(TVM:KSD!L139) -> 0 | M139: =SUM(TVM:KSD!M139) -> 0 | N139: =SUM(TVM:KSD!N139) -> 0 | P139: =SUM(TVM:KSD!P139) -> 0 | Q139: =SUM(TVM:KSD!Q139) -> 0 | R139: =SUM(TVM:KSD!R139) -> 0 | S139: =SUM(TVM:KSD!S139) -> 0 | T139: =SUM(TVM:KSD!T139) -> 0 | U139: =SUM(TVM:KSD!U139) -> 0 | V139: =SUM(TVM:KSD!V139) -> 0 | W139: =SUM(TVM:KSD!W139) -> 0 | Y139: =SUM(TVM:KSD!Y139) -> 0 | Z139: =SUM(TVM:KSD!Z139) -> 0 | AA139: =SUM(TVM:KSD!AA139) -> 0 | AB139: =SUM(TVM:KSD!AB139) -> 0 | AD139: =SUM(TVM:KSD!AB139) -> 0
A140: 3.36 | B140: Physical / Self Defence training @ Rs. 200/- per child per annum. | C140: =SUM(TVM:KSD!C140) -> 0 | D140: =SUM(TVM:KSD!D140) -> 0 | E140: =SUM(TVM:KSD!E140) -> 0 | F140: =SUM(TVM:KSD!F140) -> 0 | I140: =SUM(TVM:KSD!I140) -> 0 | J140: =SUM(TVM:KSD!J140) -> 0 | K140: =SUM(TVM:KSD!K140) -> 0 | L140: =SUM(TVM:KSD!L140) -> 0 | M140: =SUM(TVM:KSD!M140) -> 0 | N140: =SUM(TVM:KSD!N140) -> 0 | P140: =SUM(TVM:KSD!P140) -> 0 | Q140: =SUM(TVM:KSD!Q140) -> 0 | R140: =SUM(TVM:KSD!R140) -> 0 | S140: =SUM(TVM:KSD!S140) -> 0 | T140: =SUM(TVM:KSD!T140) -> 0 | U140: =SUM(TVM:KSD!U140) -> 0 | V140: =SUM(TVM:KSD!V140) -> 0 | W140: =SUM(TVM:KSD!W140) -> 0 | Y140: =SUM(TVM:KSD!Y140) -> 0 | Z140: =SUM(TVM:KSD!Z140) -> 0 | AA140: =SUM(TVM:KSD!AA140) -> 0 | AB140: =SUM(TVM:KSD!AB140) -> 0 | AD140: =SUM(TVM:KSD!AB140) -> 0
B141: Sub Total (Recurring) | C141: =SUM(TVM:KSD!C141) -> 0 | D141: =SUM(TVM:KSD!D141) -> 0 | E141: =SUM(TVM:KSD!E141) -> 0 | F141: =SUM(TVM:KSD!F141) -> 0 | I141: =SUM(TVM:KSD!I141) -> 0 | J141: =SUM(TVM:KSD!J141) -> 0 | K141: =SUM(TVM:KSD!K141) -> 0 | L141: =SUM(TVM:KSD!L141) -> 0 | M141: =SUM(TVM:KSD!M141) -> 0 | N141: =SUM(TVM:KSD!N141) -> 0 | P141: =SUM(TVM:KSD!P141) -> 0 | Q141: =SUM(TVM:KSD!Q141) -> 0 | R141: =SUM(TVM:KSD!R141) -> 0 | S141: =SUM(TVM:KSD!S141) -> 0 | T141: =SUM(TVM:KSD!T141) -> 0 | U141: =SUM(TVM:KSD!U141) -> 0 | V141: =SUM(TVM:KSD!V141) -> 0 | W141: =SUM(TVM:KSD!W141) -> 0 | Y141: =SUM(TVM:KSD!Y141) -> 0 | Z141: =SUM(TVM:KSD!Z141) -> 0 | AA141: =SUM(TVM:KSD!AA141) -> 0 | AB141: =SUM(TVM:KSD!AB141) -> 0 | AD141: =SUM(TVM:KSD!AB141) -> 0
B142: Total (Recurring + Non Recurring) | C142: =SUM(TVM:KSD!C142) -> 0 | D142: =SUM(TVM:KSD!D142) -> 0 | E142: =SUM(TVM:KSD!E142) -> 0 | F142: =SUM(TVM:KSD!F142) -> 0 | I142: =SUM(TVM:KSD!I142) -> 0 | J142: =SUM(TVM:KSD!J142) -> 0 | K142: =SUM(TVM:KSD!K142) -> 0 | L142: =SUM(TVM:KSD!L142) -> 0 | M142: =SUM(TVM:KSD!M142) -> 0 | N142: =SUM(TVM:KSD!N142) -> 0 | P142: =SUM(TVM:KSD!P142) -> 7 | Q142: =SUM(TVM:KSD!Q142) -> 50.75 | R142: =SUM(TVM:KSD!R142) -> 7 | S142: =SUM(TVM:KSD!S142) -> 50.75 | T142: =SUM(TVM:KSD!T142) -> 0 | U142: =SUM(TVM:KSD!U142) -> 0 | V142: =SUM(TVM:KSD!V142) -> 0 | W142: =SUM(TVM:KSD!W142) -> 0 | Y142: =SUM(TVM:KSD!Y142) -> 0 | Z142: =SUM(TVM:KSD!Z142) -> 0 | AA142: =SUM(TVM:KSD!AA142) -> 0 | AB142: =SUM(TVM:KSD!AB142) -> 0 | AD142: =SUM(TVM:KSD!AB142) -> 0
B143: Total (A + B) | C143: =SUM(TVM:KSD!C143) -> 0 | D143: =SUM(TVM:KSD!D143) -> 0 | E143: =SUM(TVM:KSD!E143) -> 0 | F143: =SUM(TVM:KSD!F143) -> 0 | I143: =SUM(TVM:KSD!I143) -> 0 | J143: =SUM(TVM:KSD!J143) -> 0 | K143: =SUM(TVM:KSD!K143) -> 0 | L143: =SUM(TVM:KSD!L143) -> 0 | M143: =SUM(TVM:KSD!M143) -> 0 | N143: =SUM(TVM:KSD!N143) -> 0 | P143: =SUM(TVM:KSD!P143) -> 11 | Q143: =SUM(TVM:KSD!Q143) -> 72.25 | R143: =SUM(TVM:KSD!R143) -> 0 | S143: =SUM(TVM:KSD!S143) -> 72.25 | T143: =SUM(TVM:KSD!T143) -> 0 | U143: =SUM(TVM:KSD!U143) -> 0 | V143: =SUM(TVM:KSD!V143) -> 0 | W143: =SUM(TVM:KSD!W143) -> 0 | Y143: =SUM(TVM:KSD!Y143) -> 0 | Z143: =SUM(TVM:KSD!Z143) -> 0 | AA143: =SUM(TVM:KSD!AA143) -> 0 | AB143: =SUM(TVM:KSD!AB143) -> 0 | AD143: =SUM(TVM:KSD!AB143) -> 0
A144: 4 | B144: Transport/Escort Facility | C144: =SUM(TVM:KSD!C144) -> 0 | D144: =SUM(TVM:KSD!D144) -> 0 | E144: =SUM(TVM:KSD!E144) -> 0 | F144: =SUM(TVM:KSD!F144) -> 0 | I144: =SUM(TVM:KSD!I144) -> 0 | J144: =SUM(TVM:KSD!J144) -> 0 | K144: =SUM(TVM:KSD!K144) -> 0 | L144: =SUM(TVM:KSD!L144) -> 0 | M144: =SUM(TVM:KSD!M144) -> 0 | N144: =SUM(TVM:KSD!N144) -> 0 | P144: =SUM(TVM:KSD!P144) -> 0 | Q144: =SUM(TVM:KSD!Q144) -> 0 | R144: =SUM(TVM:KSD!R144) -> 0 | S144: =SUM(TVM:KSD!S144) -> 0 | T144: =SUM(TVM:KSD!T144) -> 0 | U144: =SUM(TVM:KSD!U144) -> 0 | V144: =SUM(TVM:KSD!V144) -> 0 | W144: =SUM(TVM:KSD!W144) -> 0 | Y144: =SUM(TVM:KSD!Y144) -> 0 | Z144: =SUM(TVM:KSD!Z144) -> 0 | AA144: =SUM(TVM:KSD!AA144) -> 0 | AB144: =SUM(TVM:KSD!AB144) -> 0 | AD144: =SUM(TVM:KSD!AB144) -> 0
A145: 4.01 | B145: Children in remote habitation | C145: =SUM(TVM:KSD!C145) -> 0 | D145: =SUM(TVM:KSD!D145) -> 0 | E145: =SUM(TVM:KSD!E145) -> 0 | F145: =SUM(TVM:KSD!F145) -> 0 | I145: =SUM(TVM:KSD!I145) -> 0 | J145: =SUM(TVM:KSD!J145) -> 0 | K145: =SUM(TVM:KSD!K145) -> 0 | L145: =SUM(TVM:KSD!L145) -> 0 | M145: =SUM(TVM:KSD!M145) -> 0 | N145: =SUM(TVM:KSD!N145) -> 0 | O145: 0.03 | P145: =SUM(TVM:KSD!P145) -> 3654 | Q145: =SUM(TVM:KSD!Q145) -> 109.62 | R145: =SUM(TVM:KSD!R145) -> 3654 | S145: =SUM(TVM:KSD!S145) -> 109.62 | T145: =SUM(TVM:KSD!T145) -> 0 | U145: =SUM(TVM:KSD!U145) -> 0 | V145: =SUM(TVM:KSD!V145) -> 0 | W145: =SUM(TVM:KSD!W145) -> 0 | X145: 0.03 | Y145: =SUM(TVM:KSD!Y145) -> 3654 | Z145: =SUM(TVM:KSD!Z145) -> 109.62 | AA145: =SUM(TVM:KSD!AA145) -> 3654 | AB145: =SUM(TVM:KSD!AB145) -> 109.62 | AC145: Recommended as proposed | AD145: =SUM(TVM:KSD!AB145) -> 109.62
A146: 4.02 | B146: Urban deprived children/children without adult protection | C146: =SUM(TVM:KSD!C146) -> 0 | D146: =SUM(TVM:KSD!D146) -> 0 | E146: =SUM(TVM:KSD!E146) -> 0 | F146: =SUM(TVM:KSD!F146) -> 0 | I146: =SUM(TVM:KSD!I146) -> 0 | J146: =SUM(TVM:KSD!J146) -> 0 | K146: =SUM(TVM:KSD!K146) -> 0 | L146: =SUM(TVM:KSD!L146) -> 0 | M146: =SUM(TVM:KSD!M146) -> 0 | N146: =SUM(TVM:KSD!N146) -> 0 | P146: =SUM(TVM:KSD!P146) -> 0 | Q146: =SUM(TVM:KSD!Q146) -> 0 | R146: =SUM(TVM:KSD!R146) -> 0 | S146: =SUM(TVM:KSD!S146) -> 0 | T146: =SUM(TVM:KSD!T146) -> 0 | U146: =SUM(TVM:KSD!U146) -> 0 | V146: =SUM(TVM:KSD!V146) -> 0 | W146: =SUM(TVM:KSD!W146) -> 0 | Y146: =SUM(TVM:KSD!Y146) -> 0 | Z146: =SUM(TVM:KSD!Z146) -> 0 | AA146: =SUM(TVM:KSD!AA146) -> 0 | AB146: =SUM(TVM:KSD!AB146) -> 0 | AD146: =SUM(TVM:KSD!AB146) -> 0
B147: Sub Total | C147: =SUM(TVM:KSD!C147) -> 0 | D147: =SUM(TVM:KSD!D147) -> 0 | E147: =SUM(TVM:KSD!E147) -> 0 | F147: =SUM(TVM:KSD!F147) -> 0 | I147: =SUM(TVM:KSD!I147) -> 0 | J147: =SUM(TVM:KSD!J147) -> 0 | K147: =SUM(TVM:KSD!K147) -> 0 | L147: =SUM(TVM:KSD!L147) -> 0 | M147: =SUM(TVM:KSD!M147) -> 0 | N147: =SUM(TVM:KSD!N147) -> 0 | P147: =SUM(TVM:KSD!P147) -> 3654 | Q147: =SUM(TVM:KSD!Q147) -> 109.62 | R147: =SUM(TVM:KSD!R147) -> 3654 | S147: =SUM(TVM:KSD!S147) -> 109.62 | T147: =SUM(TVM:KSD!T147) -> 0 | U147: =SUM(TVM:KSD!U147) -> 0 | V147: =SUM(TVM:KSD!V147) -> 0 | W147: =SUM(TVM:KSD!W147) -> 0 | Y147: =SUM(TVM:KSD!Y147) -> 3654 | Z147: =SUM(TVM:KSD!Z147) -> 109.62 | AA147: =SUM(TVM:KSD!AA147) -> 3654 | AB147: =SUM(TVM:KSD!AB147) -> 109.62 | AD147: =SUM(TVM:KSD!AB147) -> 109.62
A148: 5 | B148: Reimbursement of Fee against 25% admission under Section 12(1)(c) of RTE Act 2009 (Entry Level) subject to upper limit of 20% of AWP&B subject to guidelines issued by MHRD | C148: =SUM(TVM:KSD!C148) -> 0 | D148: =SUM(TVM:KSD!D148) -> 0 | E148: =SUM(TVM:KSD!E148) -> 0 | F148: =SUM(TVM:KSD!F148) -> 0 | I148: =SUM(TVM:KSD!I148) -> 0 | J148: =SUM(TVM:KSD!J148) -> 0 | K148: =SUM(TVM:KSD!K148) -> 0 | L148: =SUM(TVM:KSD!L148) -> 0 | M148: =SUM(TVM:KSD!M148) -> 0 | N148: =SUM(TVM:KSD!N148) -> 0 | P148: =SUM(TVM:KSD!P148) -> 0 | Q148: =SUM(TVM:KSD!Q148) -> 0 | R148: =SUM(TVM:KSD!R148) -> 0 | S148: =SUM(TVM:KSD!S148) -> 0 | T148: =SUM(TVM:KSD!T148) -> 0 | U148: =SUM(TVM:KSD!U148) -> 0 | V148: =SUM(TVM:KSD!V148) -> 0 | W148: =SUM(TVM:KSD!W148) -> 0 | Y148: =SUM(TVM:KSD!Y148) -> 0 | Z148: =SUM(TVM:KSD!Z148) -> 0 | AA148: =SUM(TVM:KSD!AA148) -> 0 | AB148: =SUM(TVM:KSD!AB148) -> 0 | AD148: =SUM(TVM:KSD!AB148) -> 0
B149: Sub Total | C149: =SUM(TVM:KSD!C149) -> 0 | D149: =SUM(TVM:KSD!D149) -> 0 | E149: =SUM(TVM:KSD!E149) -> 0 | F149: =SUM(TVM:KSD!F149) -> 0 | I149: =SUM(TVM:KSD!I149) -> 0 | J149: =SUM(TVM:KSD!J149) -> 0 | K149: =SUM(TVM:KSD!K149) -> 0 | L149: =SUM(TVM:KSD!L149) -> 0 | M149: =SUM(TVM:KSD!M149) -> 0 | N149: =SUM(TVM:KSD!N149) -> 0 | P149: =SUM(TVM:KSD!P149) -> 0 | Q149: =SUM(TVM:KSD!Q149) -> 0 | R149: =SUM(TVM:KSD!R149) -> 0 | S149: =SUM(TVM:KSD!S149) -> 0 | T149: =SUM(TVM:KSD!T149) -> 0 | U149: =SUM(TVM:KSD!U149) -> 0 | V149: =SUM(TVM:KSD!V149) -> 0 | W149: =SUM(TVM:KSD!W149) -> 0 | Y149: =SUM(TVM:KSD!Y149) -> 0 | Z149: =SUM(TVM:KSD!Z149) -> 0 | AA149: =SUM(TVM:KSD!AA149) -> 0 | AB149: =SUM(TVM:KSD!AB149) -> 0 | AD149: =SUM(TVM:KSD!AB149) -> 0
A150: =+A148+1 -> 6 | B150: Special Training for mainstreaming of out of school children | C150: =SUM(TVM:KSD!C150) -> 0 | D150: =SUM(TVM:KSD!D150) -> 0 | E150: =SUM(TVM:KSD!E150) -> 0 | F150: =SUM(TVM:KSD!F150) -> 0 | I150: =SUM(TVM:KSD!I150) -> 0 | J150: =SUM(TVM:KSD!J150) -> 0 | K150: =SUM(TVM:KSD!K150) -> 0 | L150: =SUM(TVM:KSD!L150) -> 0 | M150: =SUM(TVM:KSD!M150) -> 0 | N150: =SUM(TVM:KSD!N150) -> 0 | P150: =SUM(TVM:KSD!P150) -> 0 | Q150: =SUM(TVM:KSD!Q150) -> 0 | R150: =SUM(TVM:KSD!R150) -> 0 | S150: =SUM(TVM:KSD!S150) -> 0 | T150: =SUM(TVM:KSD!T150) -> 0 | U150: =SUM(TVM:KSD!U150) -> 0 | V150: =SUM(TVM:KSD!V150) -> 0 | W150: =SUM(TVM:KSD!W150) -> 0 | Y150: =SUM(TVM:KSD!Y150) -> 0 | Z150: =SUM(TVM:KSD!Z150) -> 0 | AA150: =SUM(TVM:KSD!AA150) -> 0 | AB150: =SUM(TVM:KSD!AB150) -> 0 | AD150: =SUM(TVM:KSD!AB150) -> 0
A151: 6.01 | B151: Residential (Fresh) | C151: =SUM(TVM:KSD!C151) -> 0 | D151: =SUM(TVM:KSD!D151) -> 0 | E151: =SUM(TVM:KSD!E151) -> 0 | F151: =SUM(TVM:KSD!F151) -> 0 | I151: =SUM(TVM:KSD!I151) -> 0 | J151: =SUM(TVM:KSD!J151) -> 0 | K151: =SUM(TVM:KSD!K151) -> 0 | L151: =SUM(TVM:KSD!L151) -> 0 | M151: =SUM(TVM:KSD!M151) -> 0 | N151: =SUM(TVM:KSD!N151) -> 0 | P151: =SUM(TVM:KSD!P151) -> 0 | Q151: =SUM(TVM:KSD!Q151) -> 0 | R151: =SUM(TVM:KSD!R151) -> 0 | S151: =SUM(TVM:KSD!S151) -> 0 | T151: =SUM(TVM:KSD!T151) -> 0 | U151: =SUM(TVM:KSD!U151) -> 0 | V151: =SUM(TVM:KSD!V151) -> 0 | W151: =SUM(TVM:KSD!W151) -> 0 | Y151: =SUM(TVM:KSD!Y151) -> 0 | Z151: =SUM(TVM:KSD!Z151) -> 0 | AA151: =SUM(TVM:KSD!AA151) -> 0 | AB151: =SUM(TVM:KSD!AB151) -> 0 | AD151: =SUM(TVM:KSD!AB151) -> 0
B152: (a) 12 months | C152: =SUM(TVM:KSD!C152) -> 0 | D152: =SUM(TVM:KSD!D152) -> 0 | E152: =SUM(TVM:KSD!E152) -> 0 | F152: =SUM(TVM:KSD!F152) -> 0 | I152: =SUM(TVM:KSD!I152) -> 0 | J152: =SUM(TVM:KSD!J152) -> 0 | K152: =SUM(TVM:KSD!K152) -> 0 | L152: =SUM(TVM:KSD!L152) -> 0 | M152: =SUM(TVM:KSD!M152) -> 0 | N152: =SUM(TVM:KSD!N152) -> 0 | P152: =SUM(TVM:KSD!P152) -> 0 | Q152: =SUM(TVM:KSD!Q152) -> 0 | R152: =SUM(TVM:KSD!R152) -> 0 | S152: =SUM(TVM:KSD!S152) -> 0 | T152: =SUM(TVM:KSD!T152) -> 0 | U152: =SUM(TVM:KSD!U152) -> 0 | V152: =SUM(TVM:KSD!V152) -> 0 | W152: =SUM(TVM:KSD!W152) -> 0 | Y152: =SUM(TVM:KSD!Y152) -> 0 | Z152: =SUM(TVM:KSD!Z152) -> 0 | AA152: =SUM(TVM:KSD!AA152) -> 0 | AB152: =SUM(TVM:KSD!AB152) -> 0 | AD152: =SUM(TVM:KSD!AB152) -> 0
B153: (b) 9 months | C153: =SUM(TVM:KSD!C153) -> 0 | D153: =SUM(TVM:KSD!D153) -> 0 | E153: =SUM(TVM:KSD!E153) -> 0 | F153: =SUM(TVM:KSD!F153) -> 0 | I153: =SUM(TVM:KSD!I153) -> 0 | J153: =SUM(TVM:KSD!J153) -> 0 | K153: =SUM(TVM:KSD!K153) -> 0 | L153: =SUM(TVM:KSD!L153) -> 0 | M153: =SUM(TVM:KSD!M153) -> 0 | N153: =SUM(TVM:KSD!N153) -> 0 | P153: =SUM(TVM:KSD!P153) -> 0 | Q153: =SUM(TVM:KSD!Q153) -> 0 | R153: =SUM(TVM:KSD!R153) -> 0 | S153: =SUM(TVM:KSD!S153) -> 0 | T153: =SUM(TVM:KSD!T153) -> 0 | U153: =SUM(TVM:KSD!U153) -> 0 | V153: =SUM(TVM:KSD!V153) -> 0 | W153: =SUM(TVM:KSD!W153) -> 0 | Y153: =SUM(TVM:KSD!Y153) -> 0 | Z153: =SUM(TVM:KSD!Z153) -> 0 | AA153: =SUM(TVM:KSD!AA153) -> 0 | AB153: =SUM(TVM:KSD!AB153) -> 0 | AD153: =SUM(TVM:KSD!AB153) -> 0
B154: (c) 6 months | C154: =SUM(TVM:KSD!C154) -> 0 | D154: =SUM(TVM:KSD!D154) -> 0 | E154: =SUM(TVM:KSD!E154) -> 0 | F154: =SUM(TVM:KSD!F154) -> 0 | I154: =SUM(TVM:KSD!I154) -> 0 | J154: =SUM(TVM:KSD!J154) -> 0 | K154: =SUM(TVM:KSD!K154) -> 0 | L154: =SUM(TVM:KSD!L154) -> 0 | M154: =SUM(TVM:KSD!M154) -> 0 | N154: =SUM(TVM:KSD!N154) -> 0 | P154: =SUM(TVM:KSD!P154) -> 0 | Q154: =SUM(TVM:KSD!Q154) -> 0 | R154: =SUM(TVM:KSD!R154) -> 0 | S154: =SUM(TVM:KSD!S154) -> 0 | T154: =SUM(TVM:KSD!T154) -> 0 | U154: =SUM(TVM:KSD!U154) -> 0 | V154: =SUM(TVM:KSD!V154) -> 0 | W154: =SUM(TVM:KSD!W154) -> 0 | Y154: =SUM(TVM:KSD!Y154) -> 0 | Z154: =SUM(TVM:KSD!Z154) -> 0 | AA154: =SUM(TVM:KSD!AA154) -> 0 | AB154: =SUM(TVM:KSD!AB154) -> 0 | AD154: =SUM(TVM:KSD!AB154) -> 0
B155: (d) 3 months | C155: =SUM(TVM:KSD!C155) -> 0 | D155: =SUM(TVM:KSD!D155) -> 0 | E155: =SUM(TVM:KSD!E155) -> 0 | F155: =SUM(TVM:KSD!F155) -> 0 | I155: =SUM(TVM:KSD!I155) -> 0 | J155: =SUM(TVM:KSD!J155) -> 0 | K155: =SUM(TVM:KSD!K155) -> 0 | L155: =SUM(TVM:KSD!L155) -> 0 | M155: =SUM(TVM:KSD!M155) -> 0 | N155: =SUM(TVM:KSD!N155) -> 0 | P155: =SUM(TVM:KSD!P155) -> 0 | Q155: =SUM(TVM:KSD!Q155) -> 0 | R155: =SUM(TVM:KSD!R155) -> 0 | S155: =SUM(TVM:KSD!S155) -> 0 | T155: =SUM(TVM:KSD!T155) -> 0 | U155: =SUM(TVM:KSD!U155) -> 0 | V155: =SUM(TVM:KSD!V155) -> 0 | W155: =SUM(TVM:KSD!W155) -> 0 | Y155: =SUM(TVM:KSD!Y155) -> 0 | Z155: =SUM(TVM:KSD!Z155) -> 0 | AA155: =SUM(TVM:KSD!AA155) -> 0 | AB155: =SUM(TVM:KSD!AB155) -> 0 | AD155: =SUM(TVM:KSD!AB155) -> 0
B156: Sub Total | C156: =SUM(TVM:KSD!C156) -> 0 | D156: =SUM(TVM:KSD!D156) -> 0 | E156: =SUM(TVM:KSD!E156) -> 0 | F156: =SUM(TVM:KSD!F156) -> 0 | I156: =SUM(TVM:KSD!I156) -> 0 | J156: =SUM(TVM:KSD!J156) -> 0 | K156: =SUM(TVM:KSD!K156) -> 0 | L156: =SUM(TVM:KSD!L156) -> 0 | M156: =SUM(TVM:KSD!M156) -> 0 | N156: =SUM(TVM:KSD!N156) -> 0 | P156: =SUM(TVM:KSD!P156) -> 0 | Q156: =SUM(TVM:KSD!Q156) -> 0 | R156: =SUM(TVM:KSD!R156) -> 0 | S156: =SUM(TVM:KSD!S156) -> 0 | T156: =SUM(TVM:KSD!T156) -> 0 | U156: =SUM(TVM:KSD!U156) -> 0 | V156: =SUM(TVM:KSD!V156) -> 0 | W156: =SUM(TVM:KSD!W156) -> 0 | Y156: =SUM(TVM:KSD!Y156) -> 0 | Z156: =SUM(TVM:KSD!Z156) -> 0 | AA156: =SUM(TVM:KSD!AA156) -> 0 | AB156: =SUM(TVM:KSD!AB156) -> 0 | AD156: =SUM(TVM:KSD!AB156) -> 0
A157: =+A151+0.01 -> 6.02 | B157: Residential (Continuing from previous year) | C157: =SUM(TVM:KSD!C157) -> 0 | D157: =SUM(TVM:KSD!D157) -> 0 | E157: =SUM(TVM:KSD!E157) -> 0 | F157: =SUM(TVM:KSD!F157) -> 0 | I157: =SUM(TVM:KSD!I157) -> 0 | J157: =SUM(TVM:KSD!J157) -> 0 | K157: =SUM(TVM:KSD!K157) -> 0 | L157: =SUM(TVM:KSD!L157) -> 0 | M157: =SUM(TVM:KSD!M157) -> 0 | N157: =SUM(TVM:KSD!N157) -> 0 | P157: =SUM(TVM:KSD!P157) -> 0 | Q157: =SUM(TVM:KSD!Q157) -> 0 | R157: =SUM(TVM:KSD!R157) -> 0 | S157: =SUM(TVM:KSD!S157) -> 0 | T157: =SUM(TVM:KSD!T157) -> 0 | U157: =SUM(TVM:KSD!U157) -> 0 | V157: =SUM(TVM:KSD!V157) -> 0 | W157: =SUM(TVM:KSD!W157) -> 0 | Y157: =SUM(TVM:KSD!Y157) -> 0 | Z157: =SUM(TVM:KSD!Z157) -> 0 | AA157: =SUM(TVM:KSD!AA157) -> 0 | AB157: =SUM(TVM:KSD!AB157) -> 0 | AD157: =SUM(TVM:KSD!AB157) -> 0
B158: (a) 12 months | C158: =SUM(TVM:KSD!C158) -> 0 | D158: =SUM(TVM:KSD!D158) -> 0 | E158: =SUM(TVM:KSD!E158) -> 0 | F158: =SUM(TVM:KSD!F158) -> 0 | I158: =SUM(TVM:KSD!I158) -> 0 | J158: =SUM(TVM:KSD!J158) -> 0 | K158: =SUM(TVM:KSD!K158) -> 0 | L158: =SUM(TVM:KSD!L158) -> 0 | M158: =SUM(TVM:KSD!M158) -> 0 | N158: =SUM(TVM:KSD!N158) -> 0 | P158: =SUM(TVM:KSD!P158) -> 0 | Q158: =SUM(TVM:KSD!Q158) -> 0 | R158: =SUM(TVM:KSD!R158) -> 0 | S158: =SUM(TVM:KSD!S158) -> 0 | T158: =SUM(TVM:KSD!T158) -> 0 | U158: =SUM(TVM:KSD!U158) -> 0 | V158: =SUM(TVM:KSD!V158) -> 0 | W158: =SUM(TVM:KSD!W158) -> 0 | Y158: =SUM(TVM:KSD!Y158) -> 0 | Z158: =SUM(TVM:KSD!Z158) -> 0 | AA158: =SUM(TVM:KSD!AA158) -> 0 | AB158: =SUM(TVM:KSD!AB158) -> 0 | AD158: =SUM(TVM:KSD!AB158) -> 0
B159: (b) 9 months | C159: =SUM(TVM:KSD!C159) -> 0 | D159: =SUM(TVM:KSD!D159) -> 0 | E159: =SUM(TVM:KSD!E159) -> 0 | F159: =SUM(TVM:KSD!F159) -> 0 | I159: =SUM(TVM:KSD!I159) -> 0 | J159: =SUM(TVM:KSD!J159) -> 0 | K159: =SUM(TVM:KSD!K159) -> 0 | L159: =SUM(TVM:KSD!L159) -> 0 | M159: =SUM(TVM:KSD!M159) -> 0 | N159: =SUM(TVM:KSD!N159) -> 0 | P159: =SUM(TVM:KSD!P159) -> 0 | Q159: =SUM(TVM:KSD!Q159) -> 0 | R159: =SUM(TVM:KSD!R159) -> 0 | S159: =SUM(TVM:KSD!S159) -> 0 | T159: =SUM(TVM:KSD!T159) -> 0 | U159: =SUM(TVM:KSD!U159) -> 0 | V159: =SUM(TVM:KSD!V159) -> 0 | W159: =SUM(TVM:KSD!W159) -> 0 | Y159: =SUM(TVM:KSD!Y159) -> 0 | Z159: =SUM(TVM:KSD!Z159) -> 0 | AA159: =SUM(TVM:KSD!AA159) -> 0 | AB159: =SUM(TVM:KSD!AB159) -> 0 | AD159: =SUM(TVM:KSD!AB159) -> 0
B160: (c) 6 months | C160: =SUM(TVM:KSD!C160) -> 0 | D160: =SUM(TVM:KSD!D160) -> 0 | E160: =SUM(TVM:KSD!E160) -> 0 | F160: =SUM(TVM:KSD!F160) -> 0 | I160: =SUM(TVM:KSD!I160) -> 0 | J160: =SUM(TVM:KSD!J160) -> 0 | K160: =SUM(TVM:KSD!K160) -> 0 | L160: =SUM(TVM:KSD!L160) -> 0 | M160: =SUM(TVM:KSD!M160) -> 0 | N160: =SUM(TVM:KSD!N160) -> 0 | P160: =SUM(TVM:KSD!P160) -> 0 | Q160: =SUM(TVM:KSD!Q160) -> 0 | R160: =SUM(TVM:KSD!R160) -> 0 | S160: =SUM(TVM:KSD!S160) -> 0 | T160: =SUM(TVM:KSD!T160) -> 0 | U160: =SUM(TVM:KSD!U160) -> 0 | V160: =SUM(TVM:KSD!V160) -> 0 | W160: =SUM(TVM:KSD!W160) -> 0 | Y160: =SUM(TVM:KSD!Y160) -> 0 | Z160: =SUM(TVM:KSD!Z160) -> 0 | AA160: =SUM(TVM:KSD!AA160) -> 0 | AB160: =SUM(TVM:KSD!AB160) -> 0 | AD160: =SUM(TVM:KSD!AB160) -> 0
B161: (d) 3 months | C161: =SUM(TVM:KSD!C161) -> 0 | D161: =SUM(TVM:KSD!D161) -> 0 | E161: =SUM(TVM:KSD!E161) -> 0 | F161: =SUM(TVM:KSD!F161) -> 0 | I161: =SUM(TVM:KSD!I161) -> 0 | J161: =SUM(TVM:KSD!J161) -> 0 | K161: =SUM(TVM:KSD!K161) -> 0 | L161: =SUM(TVM:KSD!L161) -> 0 | M161: =SUM(TVM:KSD!M161) -> 0 | N161: =SUM(TVM:KSD!N161) -> 0 | P161: =SUM(TVM:KSD!P161) -> 0 | Q161: =SUM(TVM:KSD!Q161) -> 0 | R161: =SUM(TVM:KSD!R161) -> 0 | S161: =SUM(TVM:KSD!S161) -> 0 | T161: =SUM(TVM:KSD!T161) -> 0 | U161: =SUM(TVM:KSD!U161) -> 0 | V161: =SUM(TVM:KSD!V161) -> 0 | W161: =SUM(TVM:KSD!W161) -> 0 | Y161: =SUM(TVM:KSD!Y161) -> 0 | Z161: =SUM(TVM:KSD!Z161) -> 0 | AA161: =SUM(TVM:KSD!AA161) -> 0 | AB161: =SUM(TVM:KSD!AB161) -> 0 | AD161: =SUM(TVM:KSD!AB161) -> 0
B162: Sub Total | C162: =SUM(TVM:KSD!C162) -> 0 | D162: =SUM(TVM:KSD!D162) -> 0 | E162: =SUM(TVM:KSD!E162) -> 0 | F162: =SUM(TVM:KSD!F162) -> 0 | I162: =SUM(TVM:KSD!I162) -> 0 | J162: =SUM(TVM:KSD!J162) -> 0 | K162: =SUM(TVM:KSD!K162) -> 0 | L162: =SUM(TVM:KSD!L162) -> 0 | M162: =SUM(TVM:KSD!M162) -> 0 | N162: =SUM(TVM:KSD!N162) -> 0 | P162: =SUM(TVM:KSD!P162) -> 0 | Q162: =SUM(TVM:KSD!Q162) -> 0 | R162: =SUM(TVM:KSD!R162) -> 0 | S162: =SUM(TVM:KSD!S162) -> 0 | T162: =SUM(TVM:KSD!T162) -> 0 | U162: =SUM(TVM:KSD!U162) -> 0 | V162: =SUM(TVM:KSD!V162) -> 0 | W162: =SUM(TVM:KSD!W162) -> 0 | Y162: =SUM(TVM:KSD!Y162) -> 0 | Z162: =SUM(TVM:KSD!Z162) -> 0 | AA162: =SUM(TVM:KSD!AA162) -> 0 | AB162: =SUM(TVM:KSD!AB162) -> 0 | AD162: =SUM(TVM:KSD!AB162) -> 0
A163: 6.03 | B163: Non-Residential (Fresh) | C163: =SUM(TVM:KSD!C163) -> 0 | D163: =SUM(TVM:KSD!D163) -> 0 | E163: =SUM(TVM:KSD!E163) -> 0 | F163: =SUM(TVM:KSD!F163) -> 0 | I163: =SUM(TVM:KSD!I163) -> 0 | J163: =SUM(TVM:KSD!J163) -> 0 | K163: =SUM(TVM:KSD!K163) -> 0 | L163: =SUM(TVM:KSD!L163) -> 0 | M163: =SUM(TVM:KSD!M163) -> 0 | N163: =SUM(TVM:KSD!N163) -> 0 | P163: =SUM(TVM:KSD!P163) -> 0 | Q163: =SUM(TVM:KSD!Q163) -> 0 | R163: =SUM(TVM:KSD!R163) -> 0 | S163: =SUM(TVM:KSD!S163) -> 0 | T163: =SUM(TVM:KSD!T163) -> 0 | U163: =SUM(TVM:KSD!U163) -> 0 | V163: =SUM(TVM:KSD!V163) -> 0 | W163: =SUM(TVM:KSD!W163) -> 0 | Y163: =SUM(TVM:KSD!Y163) -> 0 | Z163: =SUM(TVM:KSD!Z163) -> 0 | AA163: =SUM(TVM:KSD!AA163) -> 0 | AB163: =SUM(TVM:KSD!AB163) -> 0 | AD163: =SUM(TVM:KSD!AB163) -> 0
B164: (a) 12 months | C164: =SUM(TVM:KSD!C164) -> 272 | D164: =SUM(TVM:KSD!D164) -> 12.24 | E164: =SUM(TVM:KSD!E164) -> 272 | F164: =SUM(TVM:KSD!F164) -> 12.24 | G164: =E164/C164*100 -> 100 | H164: =F164/D164*100 -> 100 | I164: =SUM(TVM:KSD!I164) -> 0 | J164: =SUM(TVM:KSD!J164) -> 0 | K164: =SUM(TVM:KSD!K164) -> 0 | L164: =SUM(TVM:KSD!L164) -> 0 | M164: =SUM(TVM:KSD!M164) -> 0 | N164: =SUM(TVM:KSD!N164) -> 0 | O164: 0.06 | P164: =SUM(TVM:KSD!P164) -> 2296 | Q164: =SUM(TVM:KSD!Q164) -> 137.76 | R164: =SUM(TVM:KSD!R164) -> 2296 | S164: =SUM(TVM:KSD!S164) -> 137.76 | T164: =SUM(TVM:KSD!T164) -> 0 | U164: =SUM(TVM:KSD!U164) -> 0 | V164: =SUM(TVM:KSD!V164) -> 0 | W164: =SUM(TVM:KSD!W164) -> 0 | Y164: =SUM(TVM:KSD!Y164) -> 2296 | Z164: =SUM(TVM:KSD!Z164) -> 137.76 | AA164: =SUM(TVM:KSD!AA164) -> 2296 | AB164: =SUM(TVM:KSD!AB164) -> 137.76 | AC164: Recommended as proposed | AD164: =SUM(TVM:KSD!AB164) -> 137.76
B165: (b) 9 months | C165: =SUM(TVM:KSD!C165) -> 1805 | D165: =SUM(TVM:KSD!D165) -> 81.225 | E165: =SUM(TVM:KSD!E165) -> 1805 | F165: =SUM(TVM:KSD!F165) -> 81.225 | G165: =E165/C165*100 -> 100 | H165: =F165/D165*100 -> 100 | I165: =SUM(TVM:KSD!I165) -> 0 | J165: =SUM(TVM:KSD!J165) -> 0 | K165: =SUM(TVM:KSD!K165) -> 0 | L165: =SUM(TVM:KSD!L165) -> 0 | M165: =SUM(TVM:KSD!M165) -> 0 | N165: =SUM(TVM:KSD!N165) -> 0 | P165: =SUM(TVM:KSD!P165) -> 0 | Q165: =SUM(TVM:KSD!Q165) -> 0 | R165: =SUM(TVM:KSD!R165) -> 0 | S165: =SUM(TVM:KSD!S165) -> 0 | T165: =SUM(TVM:KSD!T165) -> 0 | U165: =SUM(TVM:KSD!U165) -> 0 | V165: =SUM(TVM:KSD!V165) -> 0 | W165: =SUM(TVM:KSD!W165) -> 0 | X165: 0 | Y165: =SUM(TVM:KSD!Y165) -> 0 | Z165: =SUM(TVM:KSD!Z165) -> 0 | AA165: =SUM(TVM:KSD!AA165) -> 0 | AB165: =SUM(TVM:KSD!AB165) -> 0 | AD165: =SUM(TVM:KSD!AB165) -> 0
B166: (c) 6 months | C166: =SUM(TVM:KSD!C166) -> 0 | D166: =SUM(TVM:KSD!D166) -> 0 | E166: =SUM(TVM:KSD!E166) -> 0 | F166: =SUM(TVM:KSD!F166) -> 0 | I166: =SUM(TVM:KSD!I166) -> 0 | J166: =SUM(TVM:KSD!J166) -> 0 | K166: =SUM(TVM:KSD!K166) -> 0 | L166: =SUM(TVM:KSD!L166) -> 0 | M166: =SUM(TVM:KSD!M166) -> 0 | N166: =SUM(TVM:KSD!N166) -> 0 | P166: =SUM(TVM:KSD!P166) -> 0 | Q166: =SUM(TVM:KSD!Q166) -> 0 | R166: =SUM(TVM:KSD!R166) -> 0 | S166: =SUM(TVM:KSD!S166) -> 0 | T166: =SUM(TVM:KSD!T166) -> 0 | U166: =SUM(TVM:KSD!U166) -> 0 | V166: =SUM(TVM:KSD!V166) -> 0 | W166: =SUM(TVM:KSD!W166) -> 0 | Y166: =SUM(TVM:KSD!Y166) -> 0 | Z166: =SUM(TVM:KSD!Z166) -> 0 | AA166: =SUM(TVM:KSD!AA166) -> 0 | AB166: =SUM(TVM:KSD!AB166) -> 0 | AD166: =SUM(TVM:KSD!AB166) -> 0
B167: (d) 3 months | C167: =SUM(TVM:KSD!C167) -> 0 | D167: =SUM(TVM:KSD!D167) -> 0 | E167: =SUM(TVM:KSD!E167) -> 0 | F167: =SUM(TVM:KSD!F167) -> 0 | I167: =SUM(TVM:KSD!I167) -> 0 | J167: =SUM(TVM:KSD!J167) -> 0 | K167: =SUM(TVM:KSD!K167) -> 0 | L167: =SUM(TVM:KSD!L167) -> 0 | M167: =SUM(TVM:KSD!M167) -> 0 | N167: =SUM(TVM:KSD!N167) -> 0 | P167: =SUM(TVM:KSD!P167) -> 0 | Q167: =SUM(TVM:KSD!Q167) -> 0 | R167: =SUM(TVM:KSD!R167) -> 0 | S167: =SUM(TVM:KSD!S167) -> 0 | T167: =SUM(TVM:KSD!T167) -> 0 | U167: =SUM(TVM:KSD!U167) -> 0 | V167: =SUM(TVM:KSD!V167) -> 0 | W167: =SUM(TVM:KSD!W167) -> 0 | Y167: =SUM(TVM:KSD!Y167) -> 0 | Z167: =SUM(TVM:KSD!Z167) -> 0 | AA167: =SUM(TVM:KSD!AA167) -> 0 | AB167: =SUM(TVM:KSD!AB167) -> 0 | AD167: =SUM(TVM:KSD!AB167) -> 0
B168: Sub Total | C168: =SUM(TVM:KSD!C168) -> 2077 | D168: =SUM(TVM:KSD!D168) -> 93.465 | E168: =SUM(TVM:KSD!E168) -> 2077 | F168: =SUM(TVM:KSD!F168) -> 93.465 | G168: =E168/C168*100 -> 100 | H168: =F168/D168*100 -> 100 | I168: =SUM(TVM:KSD!I168) -> 0 | J168: =SUM(TVM:KSD!J168) -> 0 | K168: =SUM(TVM:KSD!K168) -> 0 | L168: =SUM(TVM:KSD!L168) -> 0 | M168: =SUM(TVM:KSD!M168) -> 0 | N168: =SUM(TVM:KSD!N168) -> 0 | P168: =SUM(TVM:KSD!P168) -> 2296 | Q168: =SUM(TVM:KSD!Q168) -> 137.76 | R168: =SUM(TVM:KSD!R168) -> 2296 | S168: =SUM(TVM:KSD!S168) -> 137.76 | T168: =SUM(TVM:KSD!T168) -> 0 | U168: =SUM(TVM:KSD!U168) -> 0 | V168: =SUM(TVM:KSD!V168) -> 0 | W168: =SUM(TVM:KSD!W168) -> 0 | Y168: =SUM(TVM:KSD!Y168) -> 2296 | Z168: =SUM(TVM:KSD!Z168) -> 137.76 | AA168: =SUM(TVM:KSD!AA168) -> 2296 | AB168: =SUM(TVM:KSD!AB168) -> 137.76 | AD168: =SUM(TVM:KSD!AB168) -> 137.76
A169: 6.04 | B169: Non-Residential (Continuing from previous year) | C169: =SUM(TVM:KSD!C169) -> 0 | D169: =SUM(TVM:KSD!D169) -> 0 | E169: =SUM(TVM:KSD!E169) -> 0 | F169: =SUM(TVM:KSD!F169) -> 0 | I169: =SUM(TVM:KSD!I169) -> 0 | J169: =SUM(TVM:KSD!J169) -> 0 | K169: =SUM(TVM:KSD!K169) -> 0 | L169: =SUM(TVM:KSD!L169) -> 0 | M169: =SUM(TVM:KSD!M169) -> 0 | N169: =SUM(TVM:KSD!N169) -> 0 | P169: =SUM(TVM:KSD!P169) -> 0 | Q169: =SUM(TVM:KSD!Q169) -> 0 | R169: =SUM(TVM:KSD!R169) -> 0 | S169: =SUM(TVM:KSD!S169) -> 0 | T169: =SUM(TVM:KSD!T169) -> 0 | U169: =SUM(TVM:KSD!U169) -> 0 | V169: =SUM(TVM:KSD!V169) -> 0 | W169: =SUM(TVM:KSD!W169) -> 0 | Y169: =SUM(TVM:KSD!Y169) -> 0 | Z169: =SUM(TVM:KSD!Z169) -> 0 | AA169: =SUM(TVM:KSD!AA169) -> 0 | AB169: =SUM(TVM:KSD!AB169) -> 0 | AD169: =SUM(TVM:KSD!AB169) -> 0
B170: (a) 12 months | C170: =SUM(TVM:KSD!C170) -> 128 | D170: =SUM(TVM:KSD!D170) -> 7.68 | E170: =SUM(TVM:KSD!E170) -> 128 | F170: =SUM(TVM:KSD!F170) -> 7.68 | G170: =E170/C170*100 -> 100 | H170: =F170/D170*100 -> 100 | I170: =SUM(TVM:KSD!I170) -> 0 | J170: =SUM(TVM:KSD!J170) -> 0 | K170: =SUM(TVM:KSD!K170) -> 0 | L170: =SUM(TVM:KSD!L170) -> 0 | M170: =SUM(TVM:KSD!M170) -> 0 | N170: =SUM(TVM:KSD!N170) -> 0 | O170: 0 | P170: =SUM(TVM:KSD!P170) -> 0 | Q170: =SUM(TVM:KSD!Q170) -> 0 | R170: =SUM(TVM:KSD!R170) -> 0 | S170: =SUM(TVM:KSD!S170) -> 0 | T170: =SUM(TVM:KSD!T170) -> 0 | U170: =SUM(TVM:KSD!U170) -> 0 | V170: =SUM(TVM:KSD!V170) -> 0 | W170: =SUM(TVM:KSD!W170) -> 0 | Y170: =SUM(TVM:KSD!Y170) -> 0 | Z170: =SUM(TVM:KSD!Z170) -> 0 | AA170: =SUM(TVM:KSD!AA170) -> 0 | AB170: =SUM(TVM:KSD!AB170) -> 0 | AD170: =SUM(TVM:KSD!AB170) -> 0
B171: (b) 9 months | C171: =SUM(TVM:KSD!C171) -> 0 | D171: =SUM(TVM:KSD!D171) -> 0 | E171: =SUM(TVM:KSD!E171) -> 0 | F171: =SUM(TVM:KSD!F171) -> 0 | G171: =E171/C171*100 ->  | H171: =F171/D171*100 ->  | I171: =SUM(TVM:KSD!I171) -> 0 | J171: =SUM(TVM:KSD!J171) -> 0 | K171: =SUM(TVM:KSD!K171) -> 0 | L171: =SUM(TVM:KSD!L171) -> 0 | M171: =SUM(TVM:KSD!M171) -> 0 | N171: =SUM(TVM:KSD!N171) -> 0 | O171: 0.045 | P171: =SUM(TVM:KSD!P171) -> 798 | Q171: =SUM(TVM:KSD!Q171) -> 35.91 | R171: =SUM(TVM:KSD!R171) -> 798 | S171: =SUM(TVM:KSD!S171) -> 35.91 | T171: =SUM(TVM:KSD!T171) -> 0 | U171: =SUM(TVM:KSD!U171) -> 0 | V171: =SUM(TVM:KSD!V171) -> 0 | W171: =SUM(TVM:KSD!W171) -> 0 | X171: 0.045 | Y171: =SUM(TVM:KSD!Y171) -> 798 | Z171: =SUM(TVM:KSD!Z171) -> 35.91 | AA171: =SUM(TVM:KSD!AA171) -> 798 | AB171: =SUM(TVM:KSD!AB171) -> 35.91 | AC171: Recommended as proposed | AD171: =SUM(TVM:KSD!AB171) -> 35.91
B172: (c) 6 months | C172: =SUM(TVM:KSD!C172) -> 0 | D172: =SUM(TVM:KSD!D172) -> 0 | E172: =SUM(TVM:KSD!E172) -> 0 | F172: =SUM(TVM:KSD!F172) -> 0 | I172: =SUM(TVM:KSD!I172) -> 0 | J172: =SUM(TVM:KSD!J172) -> 0 | K172: =SUM(TVM:KSD!K172) -> 0 | L172: =SUM(TVM:KSD!L172) -> 0 | M172: =SUM(TVM:KSD!M172) -> 0 | N172: =SUM(TVM:KSD!N172) -> 0 | P172: =SUM(TVM:KSD!P172) -> 0 | Q172: =SUM(TVM:KSD!Q172) -> 0 | R172: =SUM(TVM:KSD!R172) -> 0 | S172: =SUM(TVM:KSD!S172) -> 0 | T172: =SUM(TVM:KSD!T172) -> 0 | U172: =SUM(TVM:KSD!U172) -> 0 | V172: =SUM(TVM:KSD!V172) -> 0 | W172: =SUM(TVM:KSD!W172) -> 0 | Y172: =SUM(TVM:KSD!Y172) -> 0 | Z172: =SUM(TVM:KSD!Z172) -> 0 | AA172: =SUM(TVM:KSD!AA172) -> 0 | AB172: =SUM(TVM:KSD!AB172) -> 0 | AD172: =SUM(TVM:KSD!AB172) -> 0
B173: (d) 3 months | C173: =SUM(TVM:KSD!C173) -> 0 | D173: =SUM(TVM:KSD!D173) -> 0 | E173: =SUM(TVM:KSD!E173) -> 0 | F173: =SUM(TVM:KSD!F173) -> 0 | I173: =SUM(TVM:KSD!I173) -> 0 | J173: =SUM(TVM:KSD!J173) -> 0 | K173: =SUM(TVM:KSD!K173) -> 0 | L173: =SUM(TVM:KSD!L173) -> 0 | M173: =SUM(TVM:KSD!M173) -> 0 | N173: =SUM(TVM:KSD!N173) -> 0 | P173: =SUM(TVM:KSD!P173) -> 0 | Q173: =SUM(TVM:KSD!Q173) -> 0 | R173: =SUM(TVM:KSD!R173) -> 0 | S173: =SUM(TVM:KSD!S173) -> 0 | T173: =SUM(TVM:KSD!T173) -> 0 | U173: =SUM(TVM:KSD!U173) -> 0 | V173: =SUM(TVM:KSD!V173) -> 0 | W173: =SUM(TVM:KSD!W173) -> 0 | Y173: =SUM(TVM:KSD!Y173) -> 0 | Z173: =SUM(TVM:KSD!Z173) -> 0 | AA173: =SUM(TVM:KSD!AA173) -> 0 | AB173: =SUM(TVM:KSD!AB173) -> 0 | AD173: =SUM(TVM:KSD!AB173) -> 0
B174: Sub Total | C174: =SUM(TVM:KSD!C174) -> 128 | D174: =SUM(TVM:KSD!D174) -> 7.68 | E174: =SUM(TVM:KSD!E174) -> 128 | F174: =SUM(TVM:KSD!F174) -> 7.68 | G174: =E174/C174*100 -> 100 | H174: =F174/D174*100 -> 100 | I174: =SUM(TVM:KSD!I174) -> 0 | J174: =SUM(TVM:KSD!J174) -> 0 | K174: =SUM(TVM:KSD!K174) -> 0 | L174: =SUM(TVM:KSD!L174) -> 0 | M174: =SUM(TVM:KSD!M174) -> 0 | N174: =SUM(TVM:KSD!N174) -> 0 | P174: =SUM(TVM:KSD!P174) -> 798 | Q174: =SUM(TVM:KSD!Q174) -> 35.91 | R174: =SUM(TVM:KSD!R174) -> 798 | S174: =SUM(TVM:KSD!S174) -> 35.91 | T174: =SUM(TVM:KSD!T174) -> 0 | U174: =SUM(TVM:KSD!U174) -> 0 | V174: =SUM(TVM:KSD!V174) -> 0 | W174: =SUM(TVM:KSD!W174) -> 0 | Y174: =SUM(TVM:KSD!Y174) -> 798 | Z174: =SUM(TVM:KSD!Z174) -> 35.91 | AA174: =SUM(TVM:KSD!AA174) -> 798 | AB174: =SUM(TVM:KSD!AB174) -> 35.91 | AD174: =SUM(TVM:KSD!AB174) -> 35.91 | AE174: =773-727 -> 46
A175: 6.05 | B175: Madarasa/Maktab | C175: =SUM(TVM:KSD!C175) -> 0 | D175: =SUM(TVM:KSD!D175) -> 0 | E175: =SUM(TVM:KSD!E175) -> 0 | F175: =SUM(TVM:KSD!F175) -> 0 | I175: =SUM(TVM:KSD!I175) -> 0 | J175: =SUM(TVM:KSD!J175) -> 0 | K175: =SUM(TVM:KSD!K175) -> 0 | L175: =SUM(TVM:KSD!L175) -> 0 | M175: =SUM(TVM:KSD!M175) -> 0 | N175: =SUM(TVM:KSD!N175) -> 0 | P175: =SUM(TVM:KSD!P175) -> 0 | Q175: =SUM(TVM:KSD!Q175) -> 0 | R175: =SUM(TVM:KSD!R175) -> 0 | S175: =SUM(TVM:KSD!S175) -> 0 | T175: =SUM(TVM:KSD!T175) -> 0 | U175: =SUM(TVM:KSD!U175) -> 0 | V175: =SUM(TVM:KSD!V175) -> 0 | W175: =SUM(TVM:KSD!W175) -> 0 | Y175: =SUM(TVM:KSD!Y175) -> 0 | Z175: =SUM(TVM:KSD!Z175) -> 0 | AA175: =SUM(TVM:KSD!AA175) -> 0 | AB175: =SUM(TVM:KSD!AB175) -> 0 | AD175: =SUM(TVM:KSD!AB175) -> 0
B176: (a) 12 months | C176: =SUM(TVM:KSD!C176) -> 0 | D176: =SUM(TVM:KSD!D176) -> 0 | E176: =SUM(TVM:KSD!E176) -> 0 | F176: =SUM(TVM:KSD!F176) -> 0 | I176: =SUM(TVM:KSD!I176) -> 0 | J176: =SUM(TVM:KSD!J176) -> 0 | K176: =SUM(TVM:KSD!K176) -> 0 | L176: =SUM(TVM:KSD!L176) -> 0 | M176: =SUM(TVM:KSD!M176) -> 0 | N176: =SUM(TVM:KSD!N176) -> 0 | P176: =SUM(TVM:KSD!P176) -> 0 | Q176: =SUM(TVM:KSD!Q176) -> 0 | R176: =SUM(TVM:KSD!R176) -> 0 | S176: =SUM(TVM:KSD!S176) -> 0 | T176: =SUM(TVM:KSD!T176) -> 0 | U176: =SUM(TVM:KSD!U176) -> 0 | V176: =SUM(TVM:KSD!V176) -> 0 | W176: =SUM(TVM:KSD!W176) -> 0 | Y176: =SUM(TVM:KSD!Y176) -> 0 | Z176: =SUM(TVM:KSD!Z176) -> 0 | AA176: =SUM(TVM:KSD!AA176) -> 0 | AB176: =SUM(TVM:KSD!AB176) -> 0 | AD176: =SUM(TVM:KSD!AB176) -> 0
B177: (b) 9 months | C177: =SUM(TVM:KSD!C177) -> 0 | D177: =SUM(TVM:KSD!D177) -> 0 | E177: =SUM(TVM:KSD!E177) -> 0 | F177: =SUM(TVM:KSD!F177) -> 0 | I177: =SUM(TVM:KSD!I177) -> 0 | J177: =SUM(TVM:KSD!J177) -> 0 | K177: =SUM(TVM:KSD!K177) -> 0 | L177: =SUM(TVM:KSD!L177) -> 0 | M177: =SUM(TVM:KSD!M177) -> 0 | N177: =SUM(TVM:KSD!N177) -> 0 | P177: =SUM(TVM:KSD!P177) -> 0 | Q177: =SUM(TVM:KSD!Q177) -> 0 | R177: =SUM(TVM:KSD!R177) -> 0 | S177: =SUM(TVM:KSD!S177) -> 0 | T177: =SUM(TVM:KSD!T177) -> 0 | U177: =SUM(TVM:KSD!U177) -> 0 | V177: =SUM(TVM:KSD!V177) -> 0 | W177: =SUM(TVM:KSD!W177) -> 0 | Y177: =SUM(TVM:KSD!Y177) -> 0 | Z177: =SUM(TVM:KSD!Z177) -> 0 | AA177: =SUM(TVM:KSD!AA177) -> 0 | AB177: =SUM(TVM:KSD!AB177) -> 0 | AD177: =SUM(TVM:KSD!AB177) -> 0
B178: (c) 6 months | C178: =SUM(TVM:KSD!C178) -> 0 | D178: =SUM(TVM:KSD!D178) -> 0 | E178: =SUM(TVM:KSD!E178) -> 0 | F178: =SUM(TVM:KSD!F178) -> 0 | I178: =SUM(TVM:KSD!I178) -> 0 | J178: =SUM(TVM:KSD!J178) -> 0 | K178: =SUM(TVM:KSD!K178) -> 0 | L178: =SUM(TVM:KSD!L178) -> 0 | M178: =SUM(TVM:KSD!M178) -> 0 | N178: =SUM(TVM:KSD!N178) -> 0 | P178: =SUM(TVM:KSD!P178) -> 0 | Q178: =SUM(TVM:KSD!Q178) -> 0 | R178: =SUM(TVM:KSD!R178) -> 0 | S178: =SUM(TVM:KSD!S178) -> 0 | T178: =SUM(TVM:KSD!T178) -> 0 | U178: =SUM(TVM:KSD!U178) -> 0 | V178: =SUM(TVM:KSD!V178) -> 0 | W178: =SUM(TVM:KSD!W178) -> 0 | Y178: =SUM(TVM:KSD!Y178) -> 0 | Z178: =SUM(TVM:KSD!Z178) -> 0 | AA178: =SUM(TVM:KSD!AA178) -> 0 | AB178: =SUM(TVM:KSD!AB178) -> 0 | AD178: =SUM(TVM:KSD!AB178) -> 0
B179: (d) 3 months | C179: =SUM(TVM:KSD!C179) -> 0 | D179: =SUM(TVM:KSD!D179) -> 0 | E179: =SUM(TVM:KSD!E179) -> 0 | F179: =SUM(TVM:KSD!F179) -> 0 | I179: =SUM(TVM:KSD!I179) -> 0 | J179: =SUM(TVM:KSD!J179) -> 0 | K179: =SUM(TVM:KSD!K179) -> 0 | L179: =SUM(TVM:KSD!L179) -> 0 | M179: =SUM(TVM:KSD!M179) -> 0 | N179: =SUM(TVM:KSD!N179) -> 0 | P179: =SUM(TVM:KSD!P179) -> 0 | Q179: =SUM(TVM:KSD!Q179) -> 0 | R179: =SUM(TVM:KSD!R179) -> 0 | S179: =SUM(TVM:KSD!S179) -> 0 | T179: =SUM(TVM:KSD!T179) -> 0 | U179: =SUM(TVM:KSD!U179) -> 0 | V179: =SUM(TVM:KSD!V179) -> 0 | W179: =SUM(TVM:KSD!W179) -> 0 | Y179: =SUM(TVM:KSD!Y179) -> 0 | Z179: =SUM(TVM:KSD!Z179) -> 0 | AA179: =SUM(TVM:KSD!AA179) -> 0 | AB179: =SUM(TVM:KSD!AB179) -> 0 | AD179: =SUM(TVM:KSD!AB179) -> 0
B180: Sub Total | C180: =SUM(TVM:KSD!C180) -> 0 | D180: =SUM(TVM:KSD!D180) -> 0 | E180: =SUM(TVM:KSD!E180) -> 0 | F180: =SUM(TVM:KSD!F180) -> 0 | I180: =SUM(TVM:KSD!I180) -> 0 | J180: =SUM(TVM:KSD!J180) -> 0 | K180: =SUM(TVM:KSD!K180) -> 0 | L180: =SUM(TVM:KSD!L180) -> 0 | M180: =SUM(TVM:KSD!M180) -> 0 | N180: =SUM(TVM:KSD!N180) -> 0 | P180: =SUM(TVM:KSD!P180) -> 0 | Q180: =SUM(TVM:KSD!Q180) -> 0 | R180: =SUM(TVM:KSD!R180) -> 0 | S180: =SUM(TVM:KSD!S180) -> 0 | T180: =SUM(TVM:KSD!T180) -> 0 | U180: =SUM(TVM:KSD!U180) -> 0 | V180: =SUM(TVM:KSD!V180) -> 0 | W180: =SUM(TVM:KSD!W180) -> 0 | X180: =SUM(TVM:KSD!W180) -> 0 | Y180: =SUM(TVM:KSD!Y180) -> 0 | Z180: =SUM(TVM:KSD!Z180) -> 0 | AA180: =SUM(TVM:KSD!AA180) -> 0 | AB180: =SUM(TVM:KSD!AB180) -> 0 | AD180: =SUM(TVM:KSD!AB180) -> 0
A181: 6.06 | B181: Seasonal Hostel (Residential) | C181: =SUM(TVM:KSD!C181) -> 0 | D181: =SUM(TVM:KSD!D181) -> 0 | E181: =SUM(TVM:KSD!E181) -> 0 | F181: =SUM(TVM:KSD!F181) -> 0 | I181: =SUM(TVM:KSD!I181) -> 0 | J181: =SUM(TVM:KSD!J181) -> 0 | K181: =SUM(TVM:KSD!K181) -> 0 | L181: =SUM(TVM:KSD!L181) -> 0 | M181: =SUM(TVM:KSD!M181) -> 0 | N181: =SUM(TVM:KSD!N181) -> 0 | P181: =SUM(TVM:KSD!P181) -> 0 | Q181: =SUM(TVM:KSD!Q181) -> 0 | R181: =SUM(TVM:KSD!R181) -> 0 | S181: =SUM(TVM:KSD!S181) -> 0 | T181: =SUM(TVM:KSD!T181) -> 0 | U181: =SUM(TVM:KSD!U181) -> 0 | V181: =SUM(TVM:KSD!V181) -> 0 | W181: =SUM(TVM:KSD!W181) -> 0 | Y181: =SUM(TVM:KSD!Y181) -> 0 | Z181: =SUM(TVM:KSD!Z181) -> 0 | AA181: =SUM(TVM:KSD!AA181) -> 0 | AB181: =SUM(TVM:KSD!AB181) -> 0 | AD181: =SUM(TVM:KSD!AB181) -> 0
B182: (a) 12 months | C182: =SUM(TVM:KSD!C182) -> 0 | D182: =SUM(TVM:KSD!D182) -> 0 | E182: =SUM(TVM:KSD!E182) -> 0 | F182: =SUM(TVM:KSD!F182) -> 0 | I182: =SUM(TVM:KSD!I182) -> 0 | J182: =SUM(TVM:KSD!J182) -> 0 | K182: =SUM(TVM:KSD!K182) -> 0 | L182: =SUM(TVM:KSD!L182) -> 0 | M182: =SUM(TVM:KSD!M182) -> 0 | N182: =SUM(TVM:KSD!N182) -> 0 | P182: =SUM(TVM:KSD!P182) -> 0 | Q182: =SUM(TVM:KSD!Q182) -> 0 | R182: =SUM(TVM:KSD!R182) -> 0 | S182: =SUM(TVM:KSD!S182) -> 0 | T182: =SUM(TVM:KSD!T182) -> 0 | U182: =SUM(TVM:KSD!U182) -> 0 | V182: =SUM(TVM:KSD!V182) -> 0 | W182: =SUM(TVM:KSD!W182) -> 0 | Y182: =SUM(TVM:KSD!Y182) -> 0 | Z182: =SUM(TVM:KSD!Z182) -> 0 | AA182: =SUM(TVM:KSD!AA182) -> 0 | AB182: =SUM(TVM:KSD!AB182) -> 0 | AD182: =SUM(TVM:KSD!AB182) -> 0
B183: (b) 9 months | C183: =SUM(TVM:KSD!C183) -> 0 | D183: =SUM(TVM:KSD!D183) -> 0 | E183: =SUM(TVM:KSD!E183) -> 0 | F183: =SUM(TVM:KSD!F183) -> 0 | I183: =SUM(TVM:KSD!I183) -> 0 | J183: =SUM(TVM:KSD!J183) -> 0 | K183: =SUM(TVM:KSD!K183) -> 0 | L183: =SUM(TVM:KSD!L183) -> 0 | M183: =SUM(TVM:KSD!M183) -> 0 | N183: =SUM(TVM:KSD!N183) -> 0 | P183: =SUM(TVM:KSD!P183) -> 0 | Q183: =SUM(TVM:KSD!Q183) -> 0 | R183: =SUM(TVM:KSD!R183) -> 0 | S183: =SUM(TVM:KSD!S183) -> 0 | T183: =SUM(TVM:KSD!T183) -> 0 | U183: =SUM(TVM:KSD!U183) -> 0 | V183: =SUM(TVM:KSD!V183) -> 0 | W183: =SUM(TVM:KSD!W183) -> 0 | Y183: =SUM(TVM:KSD!Y183) -> 0 | Z183: =SUM(TVM:KSD!Z183) -> 0 | AA183: =SUM(TVM:KSD!AA183) -> 0 | AB183: =SUM(TVM:KSD!AB183) -> 0 | AD183: =SUM(TVM:KSD!AB183) -> 0
B184: (c) 6 months | C184: =SUM(TVM:KSD!C184) -> 0 | D184: =SUM(TVM:KSD!D184) -> 0 | E184: =SUM(TVM:KSD!E184) -> 0 | F184: =SUM(TVM:KSD!F184) -> 0 | I184: =SUM(TVM:KSD!I184) -> 0 | J184: =SUM(TVM:KSD!J184) -> 0 | K184: =SUM(TVM:KSD!K184) -> 0 | L184: =SUM(TVM:KSD!L184) -> 0 | M184: =SUM(TVM:KSD!M184) -> 0 | N184: =SUM(TVM:KSD!N184) -> 0 | P184: =SUM(TVM:KSD!P184) -> 0 | Q184: =SUM(TVM:KSD!Q184) -> 0 | R184: =SUM(TVM:KSD!R184) -> 0 | S184: =SUM(TVM:KSD!S184) -> 0 | T184: =SUM(TVM:KSD!T184) -> 0 | U184: =SUM(TVM:KSD!U184) -> 0 | V184: =SUM(TVM:KSD!V184) -> 0 | W184: =SUM(TVM:KSD!W184) -> 0 | Y184: =SUM(TVM:KSD!Y184) -> 0 | Z184: =SUM(TVM:KSD!Z184) -> 0 | AA184: =SUM(TVM:KSD!AA184) -> 0 | AB184: =SUM(TVM:KSD!AB184) -> 0 | AD184: =SUM(TVM:KSD!AB184) -> 0
B185: (d) 3 months | C185: =SUM(TVM:KSD!C185) -> 0 | D185: =SUM(TVM:KSD!D185) -> 0 | E185: =SUM(TVM:KSD!E185) -> 0 | F185: =SUM(TVM:KSD!F185) -> 0 | I185: =SUM(TVM:KSD!I185) -> 0 | J185: =SUM(TVM:KSD!J185) -> 0 | K185: =SUM(TVM:KSD!K185) -> 0 | L185: =SUM(TVM:KSD!L185) -> 0 | M185: =SUM(TVM:KSD!M185) -> 0 | N185: =SUM(TVM:KSD!N185) -> 0 | P185: =SUM(TVM:KSD!P185) -> 0 | Q185: =SUM(TVM:KSD!Q185) -> 0 | R185: =SUM(TVM:KSD!R185) -> 0 | S185: =SUM(TVM:KSD!S185) -> 0 | T185: =SUM(TVM:KSD!T185) -> 0 | U185: =SUM(TVM:KSD!U185) -> 0 | V185: =SUM(TVM:KSD!V185) -> 0 | W185: =SUM(TVM:KSD!W185) -> 0 | Y185: =SUM(TVM:KSD!Y185) -> 0 | Z185: =SUM(TVM:KSD!Z185) -> 0 | AA185: =SUM(TVM:KSD!AA185) -> 0 | AB185: =SUM(TVM:KSD!AB185) -> 0 | AD185: =SUM(TVM:KSD!AB185) -> 0
B186: Sub Total | C186: =SUM(TVM:KSD!C186) -> 0 | D186: =SUM(TVM:KSD!D186) -> 0 | E186: =SUM(TVM:KSD!E186) -> 0 | F186: =SUM(TVM:KSD!F186) -> 0 | I186: =SUM(TVM:KSD!I186) -> 0 | J186: =SUM(TVM:KSD!J186) -> 0 | K186: =SUM(TVM:KSD!K186) -> 0 | L186: =SUM(TVM:KSD!L186) -> 0 | M186: =SUM(TVM:KSD!M186) -> 0 | N186: =SUM(TVM:KSD!N186) -> 0 | P186: =SUM(TVM:KSD!P186) -> 0 | Q186: =SUM(TVM:KSD!Q186) -> 0 | R186: =SUM(TVM:KSD!R186) -> 0 | S186: =SUM(TVM:KSD!S186) -> 0 | T186: =SUM(TVM:KSD!T186) -> 0 | U186: =SUM(TVM:KSD!U186) -> 0 | V186: =SUM(TVM:KSD!V186) -> 0 | W186: =SUM(TVM:KSD!W186) -> 0 | Y186: =SUM(TVM:KSD!Y186) -> 0 | Z186: =SUM(TVM:KSD!Z186) -> 0 | AA186: =SUM(TVM:KSD!AA186) -> 0 | AB186: =SUM(TVM:KSD!AB186) -> 0 | AD186: =SUM(TVM:KSD!AB186) -> 0
A187: 6.07 | B187: Seasonal Hostel (Non Residential) | C187: =SUM(TVM:KSD!C187) -> 0 | D187: =SUM(TVM:KSD!D187) -> 0 | E187: =SUM(TVM:KSD!E187) -> 0 | F187: =SUM(TVM:KSD!F187) -> 0 | I187: =SUM(TVM:KSD!I187) -> 0 | J187: =SUM(TVM:KSD!J187) -> 0 | K187: =SUM(TVM:KSD!K187) -> 0 | L187: =SUM(TVM:KSD!L187) -> 0 | M187: =SUM(TVM:KSD!M187) -> 0 | N187: =SUM(TVM:KSD!N187) -> 0 | P187: =SUM(TVM:KSD!P187) -> 0 | Q187: =SUM(TVM:KSD!Q187) -> 0 | R187: =SUM(TVM:KSD!R187) -> 0 | S187: =SUM(TVM:KSD!S187) -> 0 | T187: =SUM(TVM:KSD!T187) -> 0 | U187: =SUM(TVM:KSD!U187) -> 0 | V187: =SUM(TVM:KSD!V187) -> 0 | W187: =SUM(TVM:KSD!W187) -> 0 | Y187: =SUM(TVM:KSD!Y187) -> 0 | Z187: =SUM(TVM:KSD!Z187) -> 0 | AA187: =SUM(TVM:KSD!AA187) -> 0 | AB187: =SUM(TVM:KSD!AB187) -> 0 | AD187: =SUM(TVM:KSD!AB187) -> 0
B188: (a) 12 months | C188: =SUM(TVM:KSD!C188) -> 0 | D188: =SUM(TVM:KSD!D188) -> 0 | E188: =SUM(TVM:KSD!E188) -> 0 | F188: =SUM(TVM:KSD!F188) -> 0 | I188: =SUM(TVM:KSD!I188) -> 0 | J188: =SUM(TVM:KSD!J188) -> 0 | K188: =SUM(TVM:KSD!K188) -> 0 | L188: =SUM(TVM:KSD!L188) -> 0 | M188: =SUM(TVM:KSD!M188) -> 0 | N188: =SUM(TVM:KSD!N188) -> 0 | P188: =SUM(TVM:KSD!P188) -> 0 | Q188: =SUM(TVM:KSD!Q188) -> 0 | R188: =SUM(TVM:KSD!R188) -> 0 | S188: =SUM(TVM:KSD!S188) -> 0 | T188: =SUM(TVM:KSD!T188) -> 0 | U188: =SUM(TVM:KSD!U188) -> 0 | V188: =SUM(TVM:KSD!V188) -> 0 | W188: =SUM(TVM:KSD!W188) -> 0 | Y188: =SUM(TVM:KSD!Y188) -> 0 | Z188: =SUM(TVM:KSD!Z188) -> 0 | AA188: =SUM(TVM:KSD!AA188) -> 0 | AB188: =SUM(TVM:KSD!AB188) -> 0 | AD188: =SUM(TVM:KSD!AB188) -> 0
B189: (b) 9 months | C189: =SUM(TVM:KSD!C189) -> 0 | D189: =SUM(TVM:KSD!D189) -> 0 | E189: =SUM(TVM:KSD!E189) -> 0 | F189: =SUM(TVM:KSD!F189) -> 0 | I189: =SUM(TVM:KSD!I189) -> 0 | J189: =SUM(TVM:KSD!J189) -> 0 | K189: =SUM(TVM:KSD!K189) -> 0 | L189: =SUM(TVM:KSD!L189) -> 0 | M189: =SUM(TVM:KSD!M189) -> 0 | N189: =SUM(TVM:KSD!N189) -> 0 | P189: =SUM(TVM:KSD!P189) -> 0 | Q189: =SUM(TVM:KSD!Q189) -> 0 | R189: =SUM(TVM:KSD!R189) -> 0 | S189: =SUM(TVM:KSD!S189) -> 0 | T189: =SUM(TVM:KSD!T189) -> 0 | U189: =SUM(TVM:KSD!U189) -> 0 | V189: =SUM(TVM:KSD!V189) -> 0 | W189: =SUM(TVM:KSD!W189) -> 0 | Y189: =SUM(TVM:KSD!Y189) -> 0 | Z189: =SUM(TVM:KSD!Z189) -> 0 | AA189: =SUM(TVM:KSD!AA189) -> 0 | AB189: =SUM(TVM:KSD!AB189) -> 0 | AD189: =SUM(TVM:KSD!AB189) -> 0
B190: (c) 6 months | C190: =SUM(TVM:KSD!C190) -> 0 | D190: =SUM(TVM:KSD!D190) -> 0 | E190: =SUM(TVM:KSD!E190) -> 0 | F190: =SUM(TVM:KSD!F190) -> 0 | I190: =SUM(TVM:KSD!I190) -> 0 | J190: =SUM(TVM:KSD!J190) -> 0 | K190: =SUM(TVM:KSD!K190) -> 0 | L190: =SUM(TVM:KSD!L190) -> 0 | M190: =SUM(TVM:KSD!M190) -> 0 | N190: =SUM(TVM:KSD!N190) -> 0 | P190: =SUM(TVM:KSD!P190) -> 0 | Q190: =SUM(TVM:KSD!Q190) -> 0 | R190: =SUM(TVM:KSD!R190) -> 0 | S190: =SUM(TVM:KSD!S190) -> 0 | T190: =SUM(TVM:KSD!T190) -> 0 | U190: =SUM(TVM:KSD!U190) -> 0 | V190: =SUM(TVM:KSD!V190) -> 0 | W190: =SUM(TVM:KSD!W190) -> 0 | Y190: =SUM(TVM:KSD!Y190) -> 0 | Z190: =SUM(TVM:KSD!Z190) -> 0 | AA190: =SUM(TVM:KSD!AA190) -> 0 | AB190: =SUM(TVM:KSD!AB190) -> 0 | AD190: =SUM(TVM:KSD!AB190) -> 0
B191: (d) 3 months | C191: =SUM(TVM:KSD!C191) -> 0 | D191: =SUM(TVM:KSD!D191) -> 0 | E191: =SUM(TVM:KSD!E191) -> 0 | F191: =SUM(TVM:KSD!F191) -> 0 | I191: =SUM(TVM:KSD!I191) -> 0 | J191: =SUM(TVM:KSD!J191) -> 0 | K191: =SUM(TVM:KSD!K191) -> 0 | L191: =SUM(TVM:KSD!L191) -> 0 | M191: =SUM(TVM:KSD!M191) -> 0 | N191: =SUM(TVM:KSD!N191) -> 0 | P191: =SUM(TVM:KSD!P191) -> 0 | Q191: =SUM(TVM:KSD!Q191) -> 0 | R191: =SUM(TVM:KSD!R191) -> 0 | S191: =SUM(TVM:KSD!S191) -> 0 | T191: =SUM(TVM:KSD!T191) -> 0 | U191: =SUM(TVM:KSD!U191) -> 0 | V191: =SUM(TVM:KSD!V191) -> 0 | W191: =SUM(TVM:KSD!W191) -> 0 | Y191: =SUM(TVM:KSD!Y191) -> 0 | Z191: =SUM(TVM:KSD!Z191) -> 0 | AA191: =SUM(TVM:KSD!AA191) -> 0 | AB191: =SUM(TVM:KSD!AB191) -> 0 | AD191: =SUM(TVM:KSD!AB191) -> 0
B192: Sub Total | C192: =SUM(TVM:KSD!C192) -> 0 | D192: =SUM(TVM:KSD!D192) -> 0 | E192: =SUM(TVM:KSD!E192) -> 0 | F192: =SUM(TVM:KSD!F192) -> 0 | I192: =SUM(TVM:KSD!I192) -> 0 | J192: =SUM(TVM:KSD!J192) -> 0 | K192: =SUM(TVM:KSD!K192) -> 0 | L192: =SUM(TVM:KSD!L192) -> 0 | M192: =SUM(TVM:KSD!M192) -> 0 | N192: =SUM(TVM:KSD!N192) -> 0 | P192: =SUM(TVM:KSD!P192) -> 0 | Q192: =SUM(TVM:KSD!Q192) -> 0 | R192: =SUM(TVM:KSD!R192) -> 0 | S192: =SUM(TVM:KSD!S192) -> 0 | T192: =SUM(TVM:KSD!T192) -> 0 | U192: =SUM(TVM:KSD!U192) -> 0 | V192: =SUM(TVM:KSD!V192) -> 0 | W192: =SUM(TVM:KSD!W192) -> 0 | Y192: =SUM(TVM:KSD!Y192) -> 0 | Z192: =SUM(TVM:KSD!Z192) -> 0 | AA192: =SUM(TVM:KSD!AA192) -> 0 | AB192: =SUM(TVM:KSD!AB192) -> 0 | AD192: =SUM(TVM:KSD!AB192) -> 0
B193: Total | C193: =SUM(TVM:KSD!C193) -> 2205 | D193: =SUM(TVM:KSD!D193) -> 101.145 | E193: =SUM(TVM:KSD!E193) -> 2205 | F193: =SUM(TVM:KSD!F193) -> 101.145 | G193: =E193/C193*100 -> 100 | H193: =F193/D193*100 -> 100 | I193: =SUM(TVM:KSD!I193) -> 0 | J193: =SUM(TVM:KSD!J193) -> 0 | K193: =SUM(TVM:KSD!K193) -> 0 | L193: =SUM(TVM:KSD!L193) -> 0 | M193: =SUM(TVM:KSD!M193) -> 0 | N193: =SUM(TVM:KSD!N193) -> 0 | P193: =SUM(TVM:KSD!P193) -> 3094 | Q193: =SUM(TVM:KSD!Q193) -> 173.67 | R193: =SUM(TVM:KSD!R193) -> 3094 | S193: =SUM(TVM:KSD!S193) -> 173.67 | T193: =SUM(TVM:KSD!T193) -> 0 | U193: =SUM(TVM:KSD!U193) -> 0 | V193: =SUM(TVM:KSD!V193) -> 0 | W193: =SUM(TVM:KSD!W193) -> 0 | Y193: =SUM(TVM:KSD!Y193) -> 3094 | Z193: =SUM(TVM:KSD!Z193) -> 173.67 | AA193: =SUM(TVM:KSD!AA193) -> 3094 | AB193: =SUM(TVM:KSD!AB193) -> 173.67 | AD193: =SUM(TVM:KSD!AB193) -> 173.67
A194: II | B194: RETENTION | C194: =SUM(TVM:KSD!C194) -> 0 | D194: =SUM(TVM:KSD!D194) -> 0 | E194: =SUM(TVM:KSD!E194) -> 0 | F194: =SUM(TVM:KSD!F194) -> 0 | I194: =SUM(TVM:KSD!I194) -> 0 | J194: =SUM(TVM:KSD!J194) -> 0 | K194: =SUM(TVM:KSD!K194) -> 0 | L194: =SUM(TVM:KSD!L194) -> 0 | M194: =SUM(TVM:KSD!M194) -> 0 | N194: =SUM(TVM:KSD!N194) -> 0 | P194: =SUM(TVM:KSD!P194) -> 0 | Q194: =SUM(TVM:KSD!Q194) -> 0 | R194: =SUM(TVM:KSD!R194) -> 0 | S194: =SUM(TVM:KSD!S194) -> 0 | T194: =SUM(TVM:KSD!T194) -> 0 | U194: =SUM(TVM:KSD!U194) -> 0 | V194: =SUM(TVM:KSD!V194) -> 0 | W194: =SUM(TVM:KSD!W194) -> 0 | Y194: =SUM(TVM:KSD!Y194) -> 0 | Z194: =SUM(TVM:KSD!Z194) -> 0 | AA194: =SUM(TVM:KSD!AA194) -> 0 | AB194: =SUM(TVM:KSD!AB194) -> 0 | AD194: =SUM(TVM:KSD!AB194) -> 0
A195: 7 | B195: Free Text Books | C195: =SUM(TVM:KSD!C195) -> 0 | D195: =SUM(TVM:KSD!D195) -> 0 | E195: =SUM(TVM:KSD!E195) -> 0 | F195: =SUM(TVM:KSD!F195) -> 0 | I195: =SUM(TVM:KSD!I195) -> 0 | J195: =SUM(TVM:KSD!J195) -> 0 | K195: =SUM(TVM:KSD!K195) -> 0 | L195: =SUM(TVM:KSD!L195) -> 0 | M195: =SUM(TVM:KSD!M195) -> 0 | N195: =SUM(TVM:KSD!N195) -> 0 | P195: =SUM(TVM:KSD!P195) -> 0 | Q195: =SUM(TVM:KSD!Q195) -> 0 | R195: =SUM(TVM:KSD!R195) -> 0 | S195: =SUM(TVM:KSD!S195) -> 0 | T195: =SUM(TVM:KSD!T195) -> 0 | U195: =SUM(TVM:KSD!U195) -> 0 | V195: =SUM(TVM:KSD!V195) -> 0 | W195: =SUM(TVM:KSD!W195) -> 0 | Y195: =SUM(TVM:KSD!Y195) -> 0 | Z195: =SUM(TVM:KSD!Z195) -> 0 | AA195: =SUM(TVM:KSD!AA195) -> 0 | AB195: =SUM(TVM:KSD!AB195) -> 0 | AD195: =SUM(TVM:KSD!AB195) -> 0
A196: 7.01 | B196: Free Text Books (P) | C196: =SUM(TVM:KSD!C196) -> 0 | D196: =SUM(TVM:KSD!D196) -> 0 | E196: =SUM(TVM:KSD!E196) -> 0 | F196: =SUM(TVM:KSD!F196) -> 0 | I196: =SUM(TVM:KSD!I196) -> 0 | J196: =SUM(TVM:KSD!J196) -> 0 | K196: =SUM(TVM:KSD!K196) -> 0 | L196: =SUM(TVM:KSD!L196) -> 0 | M196: =SUM(TVM:KSD!M196) -> 0 | N196: =SUM(TVM:KSD!N196) -> 0 | P196: =SUM(TVM:KSD!P196) -> 0 | Q196: =SUM(TVM:KSD!Q196) -> 0 | R196: =SUM(TVM:KSD!R196) -> 0 | S196: =SUM(TVM:KSD!S196) -> 0 | T196: =SUM(TVM:KSD!T196) -> 0 | U196: =SUM(TVM:KSD!U196) -> 0 | V196: =SUM(TVM:KSD!V196) -> 0 | W196: =SUM(TVM:KSD!W196) -> 0 | Y196: =SUM(TVM:KSD!Y196) -> 0 | Z196: =SUM(TVM:KSD!Z196) -> 0 | AA196: =SUM(TVM:KSD!AA196) -> 0 | AB196: =SUM(TVM:KSD!AB196) -> 0 | AD196: =SUM(TVM:KSD!AB196) -> 0
B197: (a) Class I & II | C197: =SUM(TVM:KSD!C197) -> 294713 | D197: =SUM(TVM:KSD!D197) -> 442.0695 | E197: =SUM(TVM:KSD!E197) -> 294713 | F197: =SUM(TVM:KSD!F197) -> 442.0695 | G197: =E197/C197*100 -> 100 | H197: =F197/D197*100 -> 100 | I197: =SUM(TVM:KSD!I197) -> 0 | J197: =SUM(TVM:KSD!J197) -> 0 | K197: =SUM(TVM:KSD!K197) -> 0 | L197: =SUM(TVM:KSD!L197) -> 0 | M197: =SUM(TVM:KSD!M197) -> 0 | N197: =SUM(TVM:KSD!N197) -> 0 | O197: 0.0025 | P197: =SUM(TVM:KSD!P197) -> 296969 | Q197: =SUM(TVM:KSD!Q197) -> 742.4225 | R197: =SUM(TVM:KSD!R197) -> 296969 | S197: =SUM(TVM:KSD!S197) -> 742.4225 | T197: =SUM(TVM:KSD!T197) -> 0 | U197: =SUM(TVM:KSD!U197) -> 0 | V197: =SUM(TVM:KSD!V197) -> 0 | W197: =SUM(TVM:KSD!W197) -> 0 | X197: 0.0015 | Y197: =SUM(TVM:KSD!Y197) -> 296969 | Z197: =SUM(TVM:KSD!Z197) -> 445.4535 | AA197: =SUM(TVM:KSD!AA197) -> 296969 | AB197: =SUM(TVM:KSD!AB197) -> 445.4535 | AC197: Recommended as per Norms | AD197: =SUM(TVM:KSD!AB197) -> 445.4535
B198: (b) Braille Books I & II | C198: =SUM(TVM:KSD!C198) -> 102 | D198: =SUM(TVM:KSD!D198) -> 0.153 | E198: =SUM(TVM:KSD!E198) -> 102 | F198: =SUM(TVM:KSD!F198) -> 0.153 | G198: 100 | H198: 100 | I198: =SUM(TVM:KSD!I198) -> 0 | J198: =SUM(TVM:KSD!J198) -> 0 | K198: =SUM(TVM:KSD!K198) -> 0 | L198: =SUM(TVM:KSD!L198) -> 0 | M198: =SUM(TVM:KSD!M198) -> 0 | N198: =SUM(TVM:KSD!N198) -> 0 | O198: 0.0025 | P198: =SUM(TVM:KSD!P198) -> 102 | Q198: =SUM(TVM:KSD!Q198) -> 0.255 | R198: =SUM(TVM:KSD!R198) -> 102 | S198: =SUM(TVM:KSD!S198) -> 0.255 | T198: =SUM(TVM:KSD!T198) -> 0 | U198: =SUM(TVM:KSD!U198) -> 0 | V198: =SUM(TVM:KSD!V198) -> 0 | W198: =SUM(TVM:KSD!W198) -> 0 | X198: 0.0015 | Y198: =SUM(TVM:KSD!Y198) -> 102 | Z198: =SUM(TVM:KSD!Z198) -> 0.153 | AA198: =SUM(TVM:KSD!AA198) -> 102 | AB198: =SUM(TVM:KSD!AB198) -> 0.153 | AD198: =SUM(TVM:KSD!AB198) -> 0.153
B199: (c) Large Print Books I & II | C199: =SUM(TVM:KSD!C199) -> 73 | D199: =SUM(TVM:KSD!D199) -> 0.1095 | E199: =SUM(TVM:KSD!E199) -> 73 | F199: =SUM(TVM:KSD!F199) -> 0.1095 | G199: 100 | H199: 100 | I199: =SUM(TVM:KSD!I199) -> 0 | J199: =SUM(TVM:KSD!J199) -> 0 | K199: =SUM(TVM:KSD!K199) -> 0 | L199: =SUM(TVM:KSD!L199) -> 0 | M199: =SUM(TVM:KSD!M199) -> 0 | N199: =SUM(TVM:KSD!N199) -> 0 | O199: 0.0025 | P199: =SUM(TVM:KSD!P199) -> 73 | Q199: =SUM(TVM:KSD!Q199) -> 0.1825 | R199: =SUM(TVM:KSD!R199) -> 73 | S199: =SUM(TVM:KSD!S199) -> 0.1825 | T199: =SUM(TVM:KSD!T199) -> 0 | U199: =SUM(TVM:KSD!U199) -> 0 | V199: =SUM(TVM:KSD!V199) -> 0 | W199: =SUM(TVM:KSD!W199) -> 0 | X199: 0.0015 | Y199: =SUM(TVM:KSD!Y199) -> 73 | Z199: =SUM(TVM:KSD!Z199) -> 0.1095 | AA199: =SUM(TVM:KSD!AA199) -> 73 | AB199: =SUM(TVM:KSD!AB199) -> 0.1095 | AD199: =SUM(TVM:KSD!AB199) -> 0.1095
B200: (d) Class III to V | C200: =SUM(TVM:KSD!C200) -> 860129 | D200: =SUM(TVM:KSD!D200) -> 1290.1935 | E200: =SUM(TVM:KSD!E200) -> 860129 | F200: =SUM(TVM:KSD!F200) -> 1290.1935 | G200: 100 | H200: 100 | I200: =SUM(TVM:KSD!I200) -> 0 | J200: =SUM(TVM:KSD!J200) -> 0 | K200: =SUM(TVM:KSD!K200) -> 0 | L200: =SUM(TVM:KSD!L200) -> 0 | M200: =SUM(TVM:KSD!M200) -> 0 | N200: =SUM(TVM:KSD!N200) -> 0 | O200: 0.0025 | P200: =SUM(TVM:KSD!P200) -> 845381 | Q200: =SUM(TVM:KSD!Q200) -> 2113.4525 | R200: =SUM(TVM:KSD!R200) -> 845381 | S200: =SUM(TVM:KSD!S200) -> 2113.4525 | T200: =SUM(TVM:KSD!T200) -> 0 | U200: =SUM(TVM:KSD!U200) -> 0 | V200: =SUM(TVM:KSD!V200) -> 0 | W200: =SUM(TVM:KSD!W200) -> 0 | X200: 0.0015 | Y200: =SUM(TVM:KSD!Y200) -> 845381 | Z200: =SUM(TVM:KSD!Z200) -> 1268.0715 | AA200: =SUM(TVM:KSD!AA200) -> 845381 | AB200: =SUM(TVM:KSD!AB200) -> 1268.0715 | AD200: =SUM(TVM:KSD!AB200) -> 1268.0715
... 320 more rows

Sheet TVM
A1: S.No. | B1: Activity | C1: Year 2016-17 | K1: Outlay Proposed for 2017-18 | T1: Outlay Recommended for 2017-18
C2: Outlay approved by PAB (including spillover) | E2: Achievement | I2: Savings | K2: Spill Over | M2: Deferred laibility of 2016-17 | O2: Fresh | R2: Total | T2: Spill Over | V2: Deferred laibility of 2016-17 | X2: Fresh | AA2: Total
C3: Phy. | D3: Fin | E3: Phy. | F3: Fin. | G3: Phy. (%) | H3: Fin. (%) | I3: Phy. | J3: Fin. | K3: Phy. | L3: Fin. | M3: Phy. | N3: Fin. | O3: Unit Cost | P3: Phy. | Q3: Fin. | R3: Phy. | S3: Fin. | T3: Phy. | U3: Fin. | V3: Phy. | W3: Fin. | X3: Unit Cost | Y3: Phy. | Z3: Fin. | AA3: Phy. | AB3: Fin.
A4: I | B4: ACCESS
B5: SSA
A6: 1 | B6: Opening of New Schools
A7: 1.01 | B7: New Primary School | AA7: =Y7 -> 0
A8: 1.02 | B8: Upgradation of PS to UPS | AA8: =Y8 -> 0
A9: 1.03 | B9: Composite Schools | AA9: 0
A10: 1.04 | B10: Residential schools for specific category of children | AA10: 0
A11: 1.05 | B11: Residential Hostel | AA11: 0
A12: 1.06 | B12: Integration of Class V with primary schools | AA12: 0
A13: 1.07 | B13: Integration of Class VIII with upper primary schools | AA13: 0
A14: 2 | B14: Residential Schools for specific category of children
B15: 50 children
B16: Non-recurring (one time grant)
A17: 2.01 | B17: Furniture/ Equipment (including kitchen) | P17: 0 | Q17: 0 | R17: =K17+M17+P17 -> 0 | S17: =L17+N17+Q17 -> 0 | Z17: =X17*Y17 -> 0 | AA17: =Y17 -> 0 | AB17: =U17+W17+Z17 -> 0
A18: 2.02 | B18: TLM and equipment including library books | P18: 0 | Q18: 0 | R18: 0 | S18: 0 | Z18: =X18*Y18 -> 0 | AA18: =Y18 -> 0 | AB18: =U18+W18+Z18 -> 0
A19: 2.03 | B19: Bedding (new) | P19: 0 | Q19: 0 | R19: 0 | S19: 0 | Z19: 0 | AA19: 0 | AB19: 0
A20: 2.04 | B20: Replacement of bedding (once in 3 years) | Z20: 0 | AA20: 0 | AB20: 0
B21: Sub Total (Non Recurring) | D21: =SUM(D17:D20) -> 0 | F21: =SUM(F17:F20) -> 0 | J21: =SUM(J17:J20) -> 0 | L21: =SUM(L17:L20) -> 0 | N21: =SUM(N17:N20) -> 0 | P21: =SUM(P17:P20) -> 0 | Q21: =SUM(Q17:Q20) -> 0 | R21: =SUM(R17:R20) -> 0 | S21: =SUM(S17:S20) -> 0 | U21: =SUM(U17:U20) -> 0 | W21: =SUM(W17:W20) -> 0 | Z21: =SUM(Z17:Z20) -> 0 | AB21: =SUM(AB17:AB20) -> 0
B22: Recurring (50 children)
A23: 2.05 | B23: Maintenance per child Per month @ Rs.1500/- | Z23: =X23*Y23 -> 0 | AA23: =Y23 -> 0 | AB23: =U23+W23+Z23 -> 0
A24: 2.06 | B24: Stipend per child per month @ Rs.100/- | Z24: 0 | AA24: 0 | AB24: 0
A25: 2.07 | B25: Supplementary TLM, Stationery and other educational material @Rs.1000/- per child per annum | Z25: 0 | AA25: 0 | AB25: 0
A26: 2.08 | B26: Salaries
A27: (a) | B27: 1 Warden @ Rs.25000/- per month | Z27: =X27*Y27 -> 0 | AA27: =Y27 -> 0 | AB27: =U27+W27+Z27 -> 0
A28: (b) | B28: 4 Fulltime teachers as per RTE Norms @ Rs. 20,000/- per month per teacher | Z28: 0 | AA28: 0 | AB28: 0
A29: (c) | B29: 2 Urdu Teachers (only for Blocks with muslim population above 20% and select urban areas) @ Rs.12,000/- per month per teacher. | Z29: 0 | AA29: 0 | AB29: 0
A30: (d) | B30: 3 Part time teachers @ Rs.5,000/- per month per teacher | Z30: 0 | AA30: 0 | AB30: 0
A31: (e) | B31: 1 Full time Accountant @ Rs. 10,000/- per month | Z31: 0 | AA31: 0 | AB31: 0
A32: (f) | B32: 2 Support staff - (Accountant/Assistant, Peon, Chowkidar) @ Rs. 5,000/- per month per staff | Z32: 0 | AA32: 0 | AB32: 0
A33: (g) | B33: 1 Head Cook @ Rs. 6,000/- per month and upto 2 Asstt. Cooks @ Rs. 4,500/- per month per cook | Z33: 0 | AA33: 0 | AB33: 0
A34: 2.09 | B34: Specific Skill training @ Rs.1000/- per annum per child | Z34: 0 | AA34: 0 | AB34: 0
A35: 2.1 | B35: Electricity / water charges @ Rs. 1000/- per annum per child | Z35: 0 | AA35: 0 | AB35: 0
A36: =+A35+0.01 -> 2.11 | B36: Medical care/contingencies @ Rs.1250/- per annum per child | Z36: =X36*Y36 -> 0 | AA36: =Y36 -> 0 | AB36: =U36+W36+Z36 -> 0
A37: =+A36+0.01 -> 2.12 | B37: Maintenance @ Rs. 750/- per child per annum | Z37: 0 | AA37: 0 | AB37: 0
A38: 2.13 | B38: Miscellaneous @ Rs. 750/- per child per annum | Z38: 0 | AA38: 0 | AB38: 0
A39: 2.14 | B39: Preparatory camps @ Rs. 300/- per child per annum | Z39: 0 | AA39: 0 | AB39: 0
A40: 2.15 | B40: P.T.A / school functions @ Rs. 300/- per child per annum | Z40: 0 | AA40: 0 | AB40: 0
A41: 2.16 | B41: Provision of Rent @ Rs. 10,000/- per child per annum | Z41: 0 | AA41: 0 | AB41: 0
A42: 2.17 | B42: Capacity Building @ Rs. 500/- per child per annum | Z42: 0 | AA42: 0 | AB42: 0
A43: 2.18 | B43: Physical / Self Defence Training @ Rs.200/- per child per annum | Z43: 0 | AA43: 0 | AB43: 0
B44: Sub Total (Recurring) | D44: =SUM(D23:D43) -> 0 | F44: =SUM(F23:F43) -> 0 | J44: =SUM(J23:J43) -> 0 | L44: =SUM(L23:L43) -> 0 | N44: =SUM(N23:N43) -> 0 | Q44: =SUM(Q23:Q43) -> 0 | S44: =SUM(S23:S43) -> 0 | U44: =SUM(U23:U43) -> 0 | W44: =SUM(W23:W43) -> 0 | Z44: =SUM(Z23:Z43) -> 0 | AB44: =SUM(AB23:AB43) -> 0
B45: Total (Non Recurring + Recurring) | D45: =D21+D44 -> 0 | F45: =F21+F44 -> 0 | J45: =J21+J44 -> 0 | L45: =L21+L44 -> 0 | N45: =N21+N44 -> 0 | Q45: =Q21+Q44 -> 0 | S45: =S21+S44 -> 0 | U45: =U21+U44 -> 0 | W45: =W21+W44 -> 0 | Z45: =Z21+Z44 -> 0 | AB45: =AB21+AB44 -> 0
B46: 100 children
B47: Non-recurring (one time grant)
A48: 2.19 | B48: Furniture / Equipment (including kitchen equipment) | Z48: =X48*Y48 -> 0 | AA48: =Y48 -> 0 | AB48: =U48+W48+Z48 -> 0
A49: =+A48+0.01 -> 2.2 | B49: TLM and equipment including library books (New) | Z49: 0 | AA49: 0 | AB49: 0
A50: =+A49+0.01 -> 2.21 | B50: Bedding (New) | Z50: 0 | AA50: 0 | AB50: 0
A51: =+A50+0.01 -> 2.22 | B51: Replacement of bedding (once in 3 years) | Z51: 0 | AA51: 0 | AB51: 0
B52: Sub Total Non-recurring | D52: =SUM(D48:D51) -> 0 | F52: =SUM(F48:F51) -> 0 | J52: =SUM(J48:J51) -> 0 | L52: =SUM(L48:L51) -> 0 | N52: =SUM(N48:N51) -> 0 | Q52: =SUM(Q48:Q51) -> 0 | S52: =SUM(S48:S51) -> 0 | U52: =SUM(U48:U51) -> 0 | W52: =SUM(W48:W51) -> 0 | Z52: =SUM(Z48:Z51) -> 0 | AB52: =SUM(AB48:AB51) -> 0
B53: Recurring
A54: 2.23 | B54: Maintenance per child per month @ Rs. 1500/- | Z54: =X54*Y54 -> 0 | AA54: =Y54 -> 0 | AB54: =U54+W54+Z54 -> 0
A55: =+A54+0.01 -> 2.24 | B55: Stipend per child per month @ Rs.100/- | Z55: 0 | AA55: 0 | AB55: 0
A56: 2.25 | B56: Supplementary TLM, Stationery and other educational material per child @1000/- per annum | Z56: 0 | AA56: 0 | AB56: 0
A57: 2.26 | B57: Salaries
A58: (a) | B58: 1 Warden @ Rs. 25,000/- per month | Z58: =X58*Y58 -> 0 | AA58: =Y58 -> 0 | AB58: =U58+W58+Z58 -> 0
A59: (b) | B59: 1 head teacher @ Rs. 25,000/- per month in case the enrollment exceeds 100 | Z59: 0 | AA59: 0 | AB59: 0
A60: (c) | B60: 4 - 5 Full time teachers as per RTE norms @ Rs. 20,000/- per month per teacher | Z60: 0 | AA60: 0 | AB60: 0
A61: (d) | B61: 2 Urdu Teachers (only for blocks with muslim population above 20% and select urban areas), if required @ Rs. 12,000/- per month per teacher | Z61: 0 | AA61: 0 | AB61: 0
A62: (e) | B62: 3 part time teachers @ Rs. 5,000/- per month per teacher | Z62: 0 | AA62: 0 | AB62: 0
A63: (f) | B63: 1 Full time Accountant @ Rs. 10,000/- per month | Z63: 0 | AA63: 0 | AB63: 0
A64: (g) | B64: 2 Support Staff – (Accountant/ Assistant, Peon, Chowkidar) @ Rs. 5,000/- per month per staff | Z64: 0 | AA64: 0 | AB64: 0
A65: (h) | B65: 1 Head cook @ Rs. 6,000/- per month and upto 2 Asstt. Cooks @ Rs. 4,500/- per month per cook | Z65: 0 | AA65: 0 | AB65: 0
A66: 2.27 | B66: Specific skill training per child @ Rs.1000/- per annum | Z66: 0 | AA66: 0 | AB66: 0
A67: 2.28 | B67: Electricity / water charges per child @Rs.1000/- per annum | Z67: 0 | AA67: 0 | AB67: 0
A68: 2.29 | B68: Medical care/contingencies @ Rs.1250/- per child per annum | Z68: 0 | AA68: 0 | AB68: 0
A69: 2.3 | B69: Maintenance @ Rs.750/- per child per annum | Z69: 0 | AA69: 0 | AB69: 0
A70: 2.31 | B70: Miscellaneous @ Rs.750/- per child per annum | Z70: 0 | AA70: 0 | AB70: 0
A71: 2.32 | B71: Preparatory camps @ Rs.200/- per child per annum | Z71: 0 | AA71: 0 | AB71: 0
A72: 2.33 | B72: P.T.A / school functions @ Rs.200/- per child per annum | Z72: 0 | AA72: 0 | AB72: 0
A73: 2.34 | B73: Provision of Rent @ Rs. 6000/- per child per annum | Z73: 0 | AA73: 0 | AB73: 0
A74: 2.35 | B74: Capacity Building @ Rs.500/- per child per annum | Z74: 0 | AA74: 0 | AB74: 0
A75: 2.36 | B75: Physical / Self Defence training @ Rs. 200/- per child per annum. | Z75: 0 | AA75: 0 | AB75: 0
B76: Sub Total (Recurring) | D76: =SUM(D54:D75) -> 0 | F76: =SUM(F54:F75) -> 0 | J76: =SUM(J54:J75) -> 0 | L76: =SUM(L54:L75) -> 0 | N76: =SUM(N54:N75) -> 0 | Q76: =SUM(Q54:Q75) -> 0 | S76: =SUM(S54:S75) -> 0 | U76: =SUM(U54:U75) -> 0 | W76: =SUM(W54:W75) -> 0 | Z76: =SUM(Z54:Z75) -> 0 | AB76: =SUM(AB54:AB75) -> 0
B77: Total (Recurring + Non Recurring) | D77: =D52+D76 -> 0 | F77: =F52+F76 -> 0 | J77: =J52+J76 -> 0 | L77: =L52+L76 -> 0 | N77: =N52+N76 -> 0 | Q77: =Q52+Q76 -> 0 | S77: =S52+S76 -> 0 | U77: =U52+U76 -> 0 | W77: =W52+W76 -> 0 | Z77: =Z52+Z76 -> 0 | AB77: =AB52+AB76 -> 0
B78: Total (50 + 100 children)
A79: 3 | B79: Residential Hostel for specific category of children
A80: (A) | B80: 50 children
B81: Non-recurring (one time grant)
A82: 3.01 | B82: Furniture/ Equipment (including kitchen) | O82: 2 | P82: 2 | Q82: =O82*P82 -> 4 | R82: =K82+M82+P82 -> 2 | S82: =L82+N82+Q82 -> 4 | Z82: =X82*Y82 -> 0 | AA82: =Y82 -> 0 | AB82: =U82+W82+Z82 -> 0
A83: =+A82+0.01 -> 3.02 | B83: TLM and equipment including library books | O83: 3 | P83: 2 | Q83: =O83*P83 -> 6 | R83: =K83+M83+P83 -> 2 | S83: =L83+N83+Q83 -> 6 | Z83: 0 | AA83: 0 | AB83: 0
A84: =+A83+0.01 -> 3.03 | B84: Bedding (new) | O84: 0.375 | P84: 2 | Q84: 0.75 | R84: 2 | S84: 0.75 | Z84: 0 | AA84: 0 | AB84: 0
A85: =+A84+0.01 -> 3.04 | B85: Replacement of bedding (once in 3 years) | Z85: 0 | AA85: 0 | AB85: 0
B86: Sub Total (Non Recurring) | D86: =SUM(D82:D85) -> 0 | F86: =SUM(F82:F85) -> 0 | J86: =SUM(J82:J85) -> 0 | L86: =SUM(L82:L85) -> 0 | N86: =SUM(N82:N85) -> 0 | P86: 2 | Q86: =SUM(Q82:Q85) -> 10.75 | R86: 2 | S86: =SUM(S82:S85) -> 10.75 | T86: =T82 -> 0 | U86: =SUM(U82:U85) -> 0 | V86: =V82 -> 0 | W86: =SUM(W82:W85) -> 0 | Y86: =Y82 -> 0 | Z86: =SUM(Z82:Z85) -> 0 | AA86: =AA82 -> 0 | AB86: =SUM(AB82:AB85) -> 0
B87: Recurring (50 children)
A88: 3.05 | B88: Maintenance per child Per month @ Rs.1500/- | Z88: =X88*Y88 -> 0 | AA88: =Y88 -> 0 | AB88: =U88+W88+Z88 -> 0
A89: =+A88+0.01 -> 3.06 | B89: Stipend per child per month @ Rs.100/- | Z89: 0 | AA89: 0 | AB89: 0
A90: =+A89+0.01 -> 3.07 | B90: Supplementary TLM, Stationery and other educational material @Rs.1000/- per child per annum | Z90: 0 | AA90: 0 | AB90: 0
B91: Salaries
A92: (a) | B92: 1 Warden @ Rs.25000/- per month | Z92: =X92*Y92 -> 0 | AA92: =Y92 -> 0 | AB92: =U92+W92+Z92 -> 0
A93: (b) | B93: 4 Fulltime teachers as per RTE Norms @ Rs. 20,000/- per month per teacher | Z93: 0 | AA93: 0 | AB93: 0
A94: (c) | B94: 2 Urdu Teachers (only for Blocks with muslim population above 20% and select urban areas) @ Rs.12,000/- per month per teacher. | Z94: 0 | AA94: 0 | AB94: 0
A95: (d) | B95: 3 Part time teachers @ Rs.5,000/- per month per teacher | Z95: 0 | AA95: 0 | AB95: 0
A96: (e) | B96: 1 Full time Accountant @ Rs. 10,000/- per month | Z96: 0 | AA96: 0 | AB96: 0
A97: (f) | B97: 2 Support staff - (Accountant/Assistant, Peon, Chowkidar) @ Rs. 5,000/- per month per staff | Z97: 0 | AA97: 0 | AB97: 0
A98: (g) | B98: 1 Head Cook @ Rs. 6,000/- per month and upto 2 Asstt. Cooks @ Rs. 4,500/- per month per cook | Z98: 0 | AA98: 0 | AB98: 0
A99: 3.08 | B99: Specific Skill training @ Rs.1000/- per annum per child | Z99: 0 | AA99: 0 | AB99: 0
A100: =+A99+0.01 -> 3.09 | B100: Electricity / water charges @ Rs. 1000/- per annum per child | Z100: 0 | AA100: 0 | AB100: 0
A101: 3.1 | B101: Medical care/contingencies @ Rs.1250/- per annum per child | Z101: 0 | AA101: 0 | AB101: 0
A102: 3.11 | B102: Maintenance @ Rs. 750/- per child per annum | Z102: 0 | AA102: 0 | AB102: 0
A103: 3.12 | B103: Miscellaneous @ Rs. 750/- per child per annum | Z103: 0 | AA103: 0 | AB103: 0
A104: 3.13 | B104: Preparatory camps @ Rs. 300/- per child per annum | Z104: 0 | AA104: 0 | AB104: 0
A105: 3.14 | B105: P.T.A / school functions @ Rs. 300/- per child per annum | Z105: 0 | AA105: 0 | AB105: 0
A106: 3.15 | B106: Provision of Rent @ Rs. 10,000/- per child per annum | Z106: 0 | AA106: 0 | AB106: 0
A107: 3.16 | B107: Capacity Building @ Rs. 500/- per child per annum | Z107: 0 | AA107: 0 | AB107: 0
A108: 3.17 | B108: Physical / Self Defence Training @ Rs.200/- per child per annum | Z108: 0 | AA108: 0 | AB108: 0
B109: Sub Total (Recurring) | D109: =SUM(D88:D108) -> 0 | F109: =SUM(F88:F108) -> 0 | J109: =SUM(J88:J108) -> 0 | L109: =SUM(L88:L108) -> 0 | N109: =SUM(N88:N108) -> 0 | P109: =SUM(P88:P108) -> 0 | Q109: 0 | R109: 0 | S109: 0 | T109: 0 | U109: 0 | V109: 0 | W109: 0 | Y109: =SUM(Y88:Y108) -> 0 | Z109: =SUM(Z88:Z108) -> 0 | AA109: =SUM(AA88:AA108) -> 0 | AB109: =SUM(AB88:AB108) -> 0
B110: Total (Non Recurring + Recurring) | D110: =D86+D109 -> 0 | F110: =F86+F109 -> 0 | J110: =J86+J109 -> 0 | L110: =L86+L109 -> 0 | N110: =N86+N109 -> 0 | P110: =P86+P109 -> 2 | Q110: 10.75 | R110: 2 | S110: 10.75 | T110: 0 | U110: 0 | V110: 0 | W110: 0 | Y110: =Y86+Y109 -> 0 | Z110: =Z86+Z109 -> 0 | AA110: =AA86+AA109 -> 0 | AB110: =AB86+AB109 -> 0
A111: (B) | B111: 100 Children
B112: Non-recurring (one time grant)
A113: 3.18 | B113: Furniture / Equipment (including kitchen equipment) | O113: 3 | P113: 0 | Q113: =O113*P113 -> 0 | R113: =K113+M113+P113 -> 0 | S113: =L113+N113+Q113 -> 0 | Z113: =X113*Y113 -> 0 | AA113: =Y113 -> 0 | AB113: =U113+W113+Z113 -> 0
A114: =+A113+0.01 -> 3.19 | B114: TLM and equipment including library books (New) | O114: 3.5 | P114: 0 | Q114: =O114*P114 -> 0 | R114: 0 | S114: 0 | Z114: 0 | AA114: 0 | AB114: 0
A115: =+A114+0.01 -> 3.2 | B115: Bedding (New) | O115: 0.75 | P115: 0 | Q115: 0 | R115: 0 | S115: 0 | Z115: 0 | AA115: 0 | AB115: 0
A116: =+A115+0.01 -> 3.21 | B116: Replacement of bedding (once in 3 years) | Z116: 0 | AA116: 0 | AB116: 0
B117: Sub Total Non-recurring | C117: =C113 -> 0 | D117: =SUM(D113:D116) -> 0 | E117: =E113 -> 0 | F117: =SUM(F113:F116) -> 0 | I117: =I113 -> 0 | J117: =SUM(J113:J116) -> 0 | K117: =K113 -> 0 | L117: =SUM(L113:L116) -> 0 | M117: =M113 -> 0 | N117: =SUM(N113:N116) -> 0 | P117: =P113 -> 0 | Q117: =SUM(Q113:Q116) -> 0 | R117: =R113 -> 0 | S117: =SUM(S113:S116) -> 0 | T117: =T113 -> 0 | U117: =SUM(U113:U116) -> 0 | V117: =V113 -> 0 | W117: =SUM(W113:W116) -> 0 | Y117: =Y113 -> 0 | Z117: =SUM(Z113:Z116) -> 0 | AA117: =AA113 -> 0 | AB117: =SUM(AB113:AB116) -> 0
B118: Recurring
A119: 3.22 | B119: Maintenance per child per month @ Rs. 1500/- | Z119: =X119*Y119 -> 0 | AA119: =Y119 -> 0 | AB119: =U119+W119+Z119 -> 0
A120: =+A119+0.01 -> 3.23 | B120: Stipend per child per month @ Rs.100/- | Z120: 0 | AA120: 0 | AB120: 0
A121: =+A120+0.01 -> 3.24 | B121: Supplementary TLM, Stationery and other educational material per child @1000/- per annum | Z121: 0 | AA121: 0 | AB121: 0
B122: Salaries
A123: (a) | B123: 1 Warden @ Rs. 25,000/- per month | Z123: =X123*Y123 -> 0 | AA123: =Y123 -> 0 | AB123: =U123+W123+Z123 -> 0
A124: (b) | B124: 1 head teacher @ Rs. 25,000/- per month in case the enrollment exceeds 100 | Z124: 0 | AA124: 0 | AB124: 0
A125: (c) | B125: 4 - 5 Full time teachers as per RTE norms @ Rs. 20,000/- per month per teacher | Z125: 0 | AA125: 0 | AB125: 0
A126: (d) | B126: 2 Urdu Teachers (only for blocks with muslim population above 20% and select urban areas), if required @ Rs. 12,000/- per month per teacher | Z126: 0 | AA126: 0 | AB126: 0
A127: (e) | B127: 3 part time teachers @ Rs. 5,000/- per month per teacher | Z127: 0 | AA127: 0 | AB127: 0
A128: (f) | B128: 1 Full time Accountant @ Rs. 10,000/- per month | Z128: 0 | AA128: 0 | AB128: 0
A129: 3.25 | B129: 2 Support Staff – (Accountant/ Assistant, Peon, Chowkidar) @ Rs. 5,000/- per month per staff | Z129: 0 | AA129: 0 | AB129: 0
A130: =+A129+0.01 -> 3.26 | B130: 1 Head cook @ Rs. 6,000/- per month and upto 2 Asstt. Cooks @ Rs. 4,500/- per month per cook | Z130: 0 | AA130: 0 | AB130: 0
A131: 3.27 | B131: Specific skill training per child @ Rs.1000/- per annum | Z131: 0 | AA131: 0 | AB131: 0
A132: 3.28 | B132: Electricity / water charges per child @Rs.1000/- per annum | Z132: 0 | AA132: 0 | AB132: 0
A133: 3.29 | B133: Medical care/contingencies @ Rs.1250/- per child per annum | Z133: 0 | AA133: 0 | AB133: 0
A134: 3.3 | B134: Maintenance @ Rs.750/- per child per annum | Z134: 0 | AA134: 0 | AB134: 0
A135: 3.31 | B135: Miscellaneous @ Rs.750/- per child per annum | Z135: 0 | AA135: 0 | AB135: 0
A136: 3.32 | B136: Preparatory camps @ Rs.200/- per child per annum | Z136: 0 | AA136: 0 | AB136: 0
A137: 3.33 | B137: P.T.A / school functions @ Rs.200/- per child per annum | Z137: 0 | AA137: 0 | AB137: 0
A138: 3.34 | B138: Provision of Rent @ Rs. 6000/- per child per annum | Z138: 0 | AA138: 0 | AB138: 0
A139: 3.35 | B139: Capacity Building @ Rs.500/- per child per annum | Z139: 0 | AA139: 0 | AB139: 0
A140: 3.36 | B140: Physical / Self Defence training @ Rs. 200/- per child per annum. | Z140: 0 | AA140: 0 | AB140: 0
B141: Sub Total (Recurring) | D141: =SUM(D119:D140) -> 0 | F141: =SUM(F119:F140) -> 0 | J141: =SUM(J119:J140) -> 0 | L141: =SUM(L119:L140) -> 0 | N141: =SUM(N119:N140) -> 0 | Q141: =SUM(Q119:Q140) -> 0 | S141: =SUM(S119:S140) -> 0 | U141: =SUM(U119:U140) -> 0 | W141: =SUM(W119:W140) -> 0 | Z141: =SUM(Z119:Z140) -> 0 | AB141: =SUM(AB119:AB140) -> 0
B142: Total (Recurring + Non Recurring) | D142: =D117+D141 -> 0 | F142: =F117+F141 -> 0 | J142: =J117+J141 -> 0 | L142: =L117+L141 -> 0 | N142: =N117+N141 -> 0 | P142: =P117+P141 -> 0 | Q142: 0 | R142: 0 | S142: 0 | T142: 0 | U142: 0 | V142: 0 | W142: 0 | Y142: =Y117+Y141 -> 0 | Z142: =Z117+Z141 -> 0 | AA142: =AA117+AA141 -> 0 | AB142: =AB117+AB141 -> 0
B143: Total (A + B) | D143: =D110+D142 -> 0 | F143: =F110+F142 -> 0 | J143: =J110+J142 -> 0 | L143: =L110+L142 -> 0 | N143: =N110+N142 -> 0 | P143: =P110+P142 -> 2 | Q143: =Q110+Q142 -> 10.75 | S143: =S110+S142 -> 10.75 | U143: =U110+U142 -> 0 | W143: =W110+W142 -> 0 | Z143: =Z110+Z142 -> 0 | AB143: =AB110+AB142 -> 0
A144: 4 | B144: Transport/Escort Facility
A145: 4.01 | B145: Children in remote habitation | O145: 0.03 | P145: 317 | Q145: =O145*P145 -> 9.51 | R145: =K145+M145+P145 -> 317 | S145: 9.51 | X145: 0.03 | Y145: 317 | Z145: =X145*Y145 -> 9.51 | AA145: =Y145 -> 317 | AB145: =U145+W145+Z145 -> 9.51
A146: 4.02 | B146: Urban deprived children/children without adult protection | P146: 0 | Q146: =O146*P146 -> 0 | R146: 0 | S146: 0 | Z146: 0 | AA146: 0 | AB146: 0
B147: Sub Total | C147: =SUM(C145:C146) -> 0 | D147: =SUM(D145:D146) -> 0 | E147: =SUM(E145:E146) -> 0 | F147: =SUM(F145:F146) -> 0 | I147: =SUM(I145:I146) -> 0 | J147: 0 | K147: 0 | L147: 0 | M147: 0 | N147: 0 | P147: =SUM(P145:P146) -> 317 | Q147: 9.51 | R147: 317 | S147: 9.51 | T147: 0 | U147: 0 | V147: 0 | W147: 0 | Y147: =SUM(Y145:Y146) -> 317 | Z147: =SUM(Z145:Z146) -> 9.51 | AA147: =SUM(AA145:AA146) -> 317 | AB147: =SUM(AB145:AB146) -> 9.51
A148: 5 | B148: Reimbursement of Fee against 25% admission under Section 12(1)(c) of RTE Act 2009 (Entry Level) subject to upper limit of 20% of AWP&B subject to guidelines issued by MHRD | Z148: =X148*Y148 -> 0 | AA148: =Y148 -> 0 | AB148: =U148+W148+Z148 -> 0
B149: Sub Total | C149: =C148 -> 0 | D149: =D148 -> 0 | E149: =E148 -> 0 | F149: =F148 -> 0 | I149: =I148 -> 0 | J149: 0 | K149: 0 | L149: 0 | M149: 0 | N149: 0 | P149: =P148 -> 0 | Q149: 0 | R149: 0 | S149: 0 | T149: 0 | U149: 0 | V149: 0 | W149: 0 | Y149: =Y148 -> 0 | Z149: =Z148 -> 0 | AA149: =AA148 -> 0 | AB149: =AB148 -> 0
A150: =+A148+1 -> 6 | B150: Special Training for mainstreaming of out of school children
A151: 6.01 | B151: Residential (Fresh)
B152: (a) 12 months | Z152: =X152*Y152 -> 0 | AA152: =Y152 -> 0 | AB152: =U152+W152+Z152 -> 0
B153: (b) 9 months | Z153: 0 | AA153: 0 | AB153: 0
B154: (c) 6 months | Z154: 0 | AA154: 0 | AB154: 0
B155: (d) 3 months | Z155: 0 | AA155: 0 | AB155: 0
B156: Sub Total | C156: =SUM(C152:C155) -> 0 | D156: =SUM(D152:D155) -> 0 | E156: =SUM(E152:E155) -> 0 | F156: =SUM(F152:F155) -> 0 | I156: =SUM(I152:I155) -> 0 | J156: 0 | K156: 0 | L156: 0 | M156: 0 | N156: 0 | P156: =SUM(P152:P155) -> 0 | Q156: =SUM(Q152:Q155) -> 0 | R156: =SUM(R152:R155) -> 0 | S156: =SUM(S152:S155) -> 0 | T156: =SUM(T152:T155) -> 0 | U156: 0 | V156: 0 | W156: 0 | Y156: =SUM(Y152:Y155) -> 0 | Z156: 0 | AA156: 0 | AB156: 0
A157: =+A151+0.01 -> 6.02 | B157: Residential (Continuing from previous year)
B158: (a) 12 months | Z158: =X158*Y158 -> 0 | AA158: =Y158 -> 0 | AB158: =U158+W158+Z158 -> 0
B159: (b) 9 months | Z159: 0 | AA159: 0 | AB159: 0
B160: (c) 6 months | Z160: 0 | AA160: 0 | AB160: 0
B161: (d) 3 months | Z161: 0 | AA161: 0 | AB161: 0
B162: Sub Total | C162: =SUM(C158:C161) -> 0 | D162: =SUM(D158:D161) -> 0 | E162: =SUM(E158:E161) -> 0 | F162: =SUM(F158:F161) -> 0 | I162: =SUM(I158:I161) -> 0 | J162: 0 | K162: 0 | L162: 0 | M162: 0 | N162: 0 | P162: =SUM(P158:P161) -> 0 | Q162: 0 | R162: 0 | S162: 0 | T162: 0 | U162: 0 | V162: 0 | W162: 0 | Y162: =SUM(Y158:Y161) -> 0 | Z162: 0 | AA162: 0 | AB162: 0
A163: 6.03 | B163: Non-Residential (Fresh)
B164: (a) 12 months | O164: 0.06 | P164: 15 | Q164: =O164*P164 -> 0.9 | R164: =K164+M164+P164 -> 15 | S164: =L164+N164+Q164 -> 0.9 | X164: 0.06 | Y164: 15 | Z164: =X164*Y164 -> 0.9 | AA164: =Y164 -> 15 | AB164: =U164+W164+Z164 -> 0.9
B165: (b) 9 months | C165: 11 | D165: 0.495 | E165: 11 | F165: 0.495 | G165: =E165/C165*100 -> 100 | H165: =F165/D165*100 -> 100 | I165: =C165-E165 -> 0 | J165: =D165-F165 -> 0 | O165: 0 | P165: 0 | Q165: =O165*P165 -> 0 | R165: =K165+M165+P165 -> 0 | S165: =L165+N165+Q165 -> 0 | X165: 0 | Y165: 0 | Z165: 0 | AA165: 0 | AB165: 0
B166: (c) 6 months | Q166: =O166*P166 -> 0 | R166: 0 | S166: 0 | Z166: 0 | AA166: 0 | AB166: 0
B167: (d) 3 months | Q167: =O167*P167 -> 0 | R167: 0 | S167: 0 | Z167: 0 | AA167: 0 | AB167: 0
B168: Sub Total | C168: =SUM(C164:C167) -> 11 | D168: =SUM(D164:D167) -> 0.495 | E168: =SUM(E164:E167) -> 11 | F168: =SUM(F164:F167) -> 0.495 | G168: =E168/C168*100 -> 100 | H168: =F168/D168*100 -> 100 | I168: =SUM(I164:I167) -> 0 | J168: 0 | K168: 0 | L168: 0 | M168: 0 | N168: 0 | P168: =SUM(P164:P167) -> 15 | Q168: 0.9 | R168: 15 | S168: 0.9 | T168: 0 | U168: 0 | V168: 0 | W168: 0 | Y168: =SUM(Y164:Y167) -> 15 | Z168: 0.9 | AA168: 15 | AB168: 0.9
A169: 6.04 | B169: Non-Residential (Continuing from previous year)
B170: (a) 12 months | C170: 7 | D170: 0.42 | E170: 7 | F170: 0.42 | G170: =E170/C170*100 -> 100 | H170: =F170/D170*100 -> 100 | I170: =C170-E170 -> 0 | J170: =D170-F170 -> 0 | O170: 0 | P170: 0 | Q170: =O170*P170 -> 0 | R170: =P170 -> 0 | S170: =L170+N170+Q170 -> 0 | X170: 0 | Y170: 0 | Z170: =X170*Y170 -> 0 | AA170: =Y170 -> 0 | AB170: =U170+W170+Z170 -> 0
B171: (b) 9 months | O171: 0.045 | P171: 0 | Q171: =P171*O171 -> 0 | R171: =P171 -> 0 | S171: =L171+N171+Q171 -> 0 | X171: 0.045 | Y171: 0 | Z171: =Y171*X171 -> 0 | AA171: 0 | AB171: 0
B172: (c) 6 months | P172: 0 | Q172: =O172*P172 -> 0 | R172: 0 | S172: 0 | Z172: 0 | AA172: 0 | AB172: 0
B173: (d) 3 months | P173: 0 | Q173: =O173*P173 -> 0 | R173: 0 | S173: 0 | Z173: 0 | AA173: 0 | AB173: 0
B174: Sub Total | C174: =SUM(C170:C173) -> 7 | D174: =SUM(D170:D173) -> 0.42 | E174: =SUM(E170:E173) -> 7 | F174: =SUM(F170:F173) -> 0.42 | G174: =E174/C174*100 -> 100 | H174: =F174/D174*100 -> 100 | I174: =SUM(I170:I173) -> 0 | J174: 0 | K174: 0 | L174: 0 | M174: 0 | N174: 0 | P174: =SUM(P170:P173) -> 0 | Q174: 0 | R174: 0 | S174: 0 | T174: 0 | U174: 0 | V174: 0 | W174: 0 | Y174: =SUM(Y170:Y173) -> 0 | Z174: 0 | AA174: 0 | AB174: 0
A175: 6.05 | B175: Madarasa/Maktab
B176: (a) 12 months | Z176: =X176*Y176 -> 0 | AA176: =Y176 -> 0 | AB176: =U176+W176+Z176 -> 0
B177: (b) 9 months | Z177: 0 | AA177: 0 | AB177: 0
B178: (c) 6 months | Z178: 0 | AA178: 0 | AB178: 0
B179: (d) 3 months | Z179: 0 | AA179: 0 | AB179: 0
B180: Sub Total | C180: =SUM(C176:C179) -> 0 | D180: =SUM(D176:D179) -> 0 | E180: =SUM(E176:E179) -> 0 | F180: =SUM(F176:F179) -> 0 | I180: =SUM(I176:I179) -> 0 | J180: 0 | K180: 0 | L180: 0 | M180: 0 | N180: 0 | P180: =SUM(P176:P179) -> 0 | Q180: 0 | R180: 0 | S180: 0 | T180: 0 | U180: 0 | V180: 0 | W180: 0 | Y180: =SUM(Y176:Y179) -> 0 | Z180: 0 | AA180: 0 | AB180: 0
A181: 6.06 | B181: Seasonal Hostel (Residential)
B182: (a) 12 months | Z182: =X182*Y182 -> 0 | AA182: =Y182 -> 0 | AB182: =U182+W182+Z182 -> 0
B183: (b) 9 months | Z183: 0 | AA183: 0 | AB183: 0
B184: (c) 6 months | Z184: 0 | AA184: 0 | AB184: 0
B185: (d) 3 months | Z185: 0 | AA185: 0 | AB185: 0
B186: Sub Total | C186: =SUM(C182:C185) -> 0 | D186: =SUM(D182:D185) -> 0 | E186: =SUM(E182:E185) -> 0 | F186: =SUM(F182:F185) -> 0 | I186: =SUM(I182:I185) -> 0 | J186: 0 | K186: 0 | L186: 0 | M186: 0 | N186: 0 | P186: =SUM(P182:P185) -> 0 | Q186: 0 | R186: 0 | S186: 0 | T186: 0 | U186: 0 | V186: 0 | W186: 0 | Y186: =SUM(Y182:Y185) -> 0 | Z186: 0 | AA186: 0 | AB186: 0
A187: 6.07 | B187: Seasonal Hostel (Non Residential)
B188: (a) 12 months | Z188: =X188*Y188 -> 0 | AA188: =Y188 -> 0 | AB188: =U188+W188+Z188 -> 0
B189: (b) 9 months | Z189: 0 | AA189: 0 | AB189: 0
B190: (c) 6 months | Z190: 0 | AA190: 0 | AB190: 0
B191: (d) 3 months | Z191: 0 | AA191: 0 | AB191: 0
B192: Sub Total | C192: =SUM(C188:C191) -> 0 | D192: =SUM(D188:D191) -> 0 | E192: =SUM(E188:E191) -> 0 | F192: =SUM(F188:F191) -> 0 | I192: =SUM(I188:I191) -> 0 | J192: 0 | K192: 0 | L192: 0 | M192: 0 | N192: 0 | P192: =SUM(P188:P191) -> 0 | Q192: 0 | R192: 0 | S192: 0 | T192: 0 | U192: 0 | V192: 0 | W192: 0 | Y192: =SUM(Y188:Y191) -> 0 | Z192: 0 | AA192: 0 | AB192: 0
B193: Total | C193: =C162+C168+C174+C180+C186+C192 -> 18 | D193: =D156+D162+D168+D174+D180+D186+D192 -> 0.915 | E193: =E162+E168+E174+E180+E186+E192 -> 18 | F193: =F156+F162+F168+F174+F180+F186+F192 -> 0.915 | G193: =E193/C193*100 -> 100 | H193: =F193/D193*100 -> 100 | I193: =I162+I168+I174+I180+I186+I192 -> 0 | J193: =J156+J162+J168+J174+J180+J186+J192 -> 0 | K193: =K162+K168+K174+K180+K186+K192 -> 0 | L193: =L156+L162+L168+L174+L180+L186+L192 -> 0 | M193: =M162+M168+M174+M180+M186+M192 -> 0 | N193: =N156+N162+N168+N174+N180+N186+N192 -> 0 | P193: =P162+P168+P174+P180+P186+P192 -> 15 | Q193: =Q156+Q162+Q168+Q174+Q180+Q186+Q192 -> 0.9 | R193: =R162+R168+R174+R180+R186+R192 -> 15 | S193: =S156+S162+S168+S174+S180+S186+S192 -> 0.9 | T193: =T162+T168+T174+T180+T186+T192 -> 0 | U193: =U156+U162+U168+U174+U180+U186+U192 -> 0 | V193: =V162+V168+V174+V180+V186+V192 -> 0 | W193: =W156+W162+W168+W174+W180+W186+W192 -> 0 | Y193: =Y162+Y168+Y174+Y180+Y186+Y192 -> 15 | Z193: =Z156+Z162+Z168+Z174+Z180+Z186+Z192 -> 0.9 | AA193: =AA162+AA168+AA174+AA180+AA186+AA192 -> 15 | AB193: =AB156+AB162+AB168+AB174+AB180+AB186+AB192 -> 0.9
A194: II | B194: RETENTION
A195: 7 | B195: Free Text Books
A196: 7.01 | B196: Free Text Books (P)
B197: (a) Class I & II | C197: 36331 | D197: 54.4965 | E197: 36331 | F197: 54.4965 | G197: =E197/C197*100 -> 100 | H197: =F197/D197*100 -> 100 | I197: =C197-E197 -> 0 | J197: =D197-F197 -> 0 | N197: 0 | O197: 0.0025 | P197: 35973 | Q197: =O197*P197 -> 89.9325 | R197: =K197+M197+P197 -> 35973 | S197: 89.9325 | X197: 0.0015 | Y197: 35973 | Z197: =X197*Y197 -> 53.9595 | AA197: =Y197 -> 35973 | AB197: =U197+W197+Z197 -> 53.9595
B198: (b) Braille Books I & II | C198: 15 | D198: 0.0225 | E198: 15 | F198: 0.0225 | G198: 100 | H198: 100 | I198: 0 | J198: 0 | O198: 0.0025 | P198: 16 | Q198: =O198*P198 -> 0.04 | R198: 16 | S198: 0.04 | X198: 0.0015 | Y198: 16 | Z198: 0.024 | AA198: 16 | AB198: 0.024
B199: (c) Large Print Books I & II | C199: 16 | D199: 0.024 | E199: 16 | F199: 0.024 | G199: 100 | H199: 100 | I199: 0 | J199: 0 | O199: 0.0025 | P199: 16 | Q199: =O199*P199 -> 0.04 | R199: 16 | S199: 0.04 | X199: 0.0015 | Y199: 16 | Z199: 0.024 | AA199: 16 | AB199: 0.024
B200: (d) Class III to V | C200: 63481 | D200: 95.2215 | E200: 63481 | F200: 95.2215 | G200: 100 | H200: 100 | I200: 0 | J200: 0 | O200: 0.0025 | P200: 63351 | Q200: =O200*P200 -> 158.3775 | R200: =K200+M200+P200 -> 63351 | S200: =L200+N200+Q200 -> 158.3775 | X200: 0.0015 | Y200: 63351 | Z200: 95.0265 | AA200: 63351 | AB200: 95.0265
... 326 more rows

Sheet KLM
A1: S.No. | B1: Activity | C1: Year 2016-17 | K1: Outlay Proposed for 2017-18 | T1: Outlay Recommended for 2017-18
C2: Outlay approved by PAB (including spillover) | E2: Achievement | I2: Savings | K2: Spill Over | M2: Deferred laibility of 2016-17 | O2: Fresh | R2: Total | T2: Spill Over | V2: Deferred laibility of 2016-17 | X2: Fresh | AA2: Total
C3: Phy. | D3: Fin | E3: Phy. | F3: Fin. | G3: Phy. (%) | H3: Fin. (%) | I3: Phy. | J3: Fin. | K3: Phy. | L3: Fin. | M3: Phy. | N3: Fin. | O3: Unit Cost | P3: Phy. | Q3: Fin. | R3: Phy. | S3: Fin. | T3: Phy. | U3: Fin. | V3: Phy. | W3: Fin. | X3: Unit Cost | Y3: Phy. | Z3: Fin. | AA3: Phy. | AB3: Fin.
A4: I | B4: ACCESS
B5: SSA
A6: 1 | B6: Opening of New Schools
A7: 1.01 | B7: New Primary School | AA7: =Y7 -> 0
A8: 1.02 | B8: Upgradation of PS to UPS | AA8: =Y8 -> 0
A9: 1.03 | B9: Composite Schools | AA9: 0
A10: 1.04 | B10: Residential schools for specific category of children | AA10: 0
A11: 1.05 | B11: Residential Hostel | AA11: 0
A12: 1.06 | B12: Integration of Class V with primary schools | AA12: 0
A13: 1.07 | B13: Integration of Class VIII with upper primary schools | AA13: 0
A14: 2 | B14: Residential Schools for specific category of children
B15: 50 children
B16: Non-recurring (one time grant)
A17: 2.01 | B17: Furniture/ Equipment (including kitchen) | P17: 0 | Q17: 0 | R17: =K17+M17+P17 -> 0 | S17: 0 | Z17: =X17*Y17 -> 0 | AA17: =Y17 -> 0 | AB17: =U17+W17+Z17 -> 0
A18: 2.02 | B18: TLM and equipment including library books | P18: 0 | Q18: 0 | R18: 0 | S18: 0 | Z18: =X18*Y18 -> 0 | AA18: =Y18 -> 0 | AB18: =U18+W18+Z18 -> 0
A19: 2.03 | B19: Bedding (new) | P19: 0 | Q19: 0 | R19: 0 | S19: 0 | Z19: 0 | AA19: 0 | AB19: 0
A20: 2.04 | B20: Replacement of bedding (once in 3 years) | Z20: 0 | AA20: 0 | AB20: 0
B21: Sub Total (Non Recurring) | D21: =SUM(D17:D20) -> 0 | F21: =SUM(F17:F20) -> 0 | J21: =SUM(J17:J20) -> 0 | L21: =SUM(L17:L20) -> 0 | N21: =SUM(N17:N20) -> 0 | P21: =SUM(P17:P20) -> 0 | Q21: =SUM(Q17:Q20) -> 0 | R21: =SUM(R17:R20) -> 0 | S21: =SUM(S17:S20) -> 0 | U21: =SUM(U17:U20) -> 0 | W21: =SUM(W17:W20) -> 0 | Z21: =SUM(Z17:Z20) -> 0 | AB21: =SUM(AB17:AB20) -> 0
B22: Recurring (50 children)
A23: 2.05 | B23: Maintenance per child Per month @ Rs.1500/- | Z23: =X23*Y23 -> 0 | AA23: =Y23 -> 0 | AB23: =U23+W23+Z23 -> 0
A24: 2.06 | B24: Stipend per child per month @ Rs.100/- | Z24: 0 | AA24: 0 | AB24: 0
A25: 2.07 | B25: Supplementary TLM, Stationery and other educational material @Rs.1000/- per child per annum | Z25: 0 | AA25: 0 | AB25: 0
A26: 2.08 | B26: Salaries
A27: (a) | B27: 1 Warden @ Rs.25000/- per month | Z27: =X27*Y27 -> 0 | AA27: =Y27 -> 0 | AB27: =U27+W27+Z27 -> 0
A28: (b) | B28: 4 Fulltime teachers as per RTE Norms @ Rs. 20,000/- per month per teacher | Z28: 0 | AA28: 0 | AB28: 0
A29: (c) | B29: 2 Urdu Teachers (only for Blocks with muslim population above 20% and select urban areas) @ Rs.12,000/- per month per teacher. | Z29: 0 | AA29: 0 | AB29: 0
A30: (d) | B30: 3 Part time teachers @ Rs.5,000/- per month per teacher | Z30: 0 | AA30: 0 | AB30: 0
A31: (e) | B31: 1 Full time Accountant @ Rs. 10,000/- per month | Z31: 0 | AA31: 0 | AB31: 0
A32: (f) | B32: 2 Support staff - (Accountant/Assistant, Peon, Chowkidar) @ Rs. 5,000/- per month per staff | Z32: 0 | AA32: 0 | AB32: 0
A33: (g) | B33: 1 Head Cook @ Rs. 6,000/- per month and upto 2 Asstt. Cooks @ Rs. 4,500/- per month per cook | Z33: 0 | AA33: 0 | AB33: 0
A34: 2.09 | B34: Specific Skill training @ Rs.1000/- per annum per child | Z34: 0 | AA34: 0 | AB34: 0
A35: 2.1 | B35: Electricity / water charges @ Rs. 1000/- per annum per child | Z35: 0 | AA35: 0 | AB35: 0
A36: =+A35+0.01 -> 2.11 | B36: Medical care/contingencies @ Rs.1250/- per annum per child | Z36: =X36*Y36 -> 0 | AA36: =Y36 -> 0 | AB36: =U36+W36+Z36 -> 0
A37: =+A36+0.01 -> 2.12 | B37: Maintenance @ Rs. 750/- per child per annum | Z37: 0 | AA37: 0 | AB37: 0
A38: 2.13 | B38: Miscellaneous @ Rs. 750/- per child per annum | Z38: 0 | AA38: 0 | AB38: 0
A39: 2.14 | B39: Preparatory camps @ Rs. 300/- per child per annum | Z39: 0 | AA39: 0 | AB39: 0
A40: 2.15 | B40: P.T.A / school functions @ Rs. 300/- per child per annum | Z40: 0 | AA40: 0 | AB40: 0
A41: 2.16 | B41: Provision of Rent @ Rs. 10,000/- per child per annum | Z41: 0 | AA41: 0 | AB41: 0
A42: 2.17 | B42: Capacity Building @ Rs. 500/- per child per annum | Z42: 0 | AA42: 0 | AB42: 0
A43: 2.18 | B43: Physical / Self Defence Training @ Rs.200/- per child per annum | Z43: 0 | AA43: 0 | AB43: 0
B44: Sub Total (Recurring) | D44: =SUM(D23:D43) -> 0 | F44: =SUM(F23:F43) -> 0 | J44: =SUM(J23:J43) -> 0 | L44: =SUM(L23:L43) -> 0 | N44: =SUM(N23:N43) -> 0 | Q44: =SUM(Q23:Q43) -> 0 | S44: =SUM(S23:S43) -> 0 | U44: =SUM(U23:U43) -> 0 | W44: =SUM(W23:W43) -> 0 | Z44: =SUM(Z23:Z43) -> 0 | AB44: =SUM(AB23:AB43) -> 0
B45: Total (Non Recurring + Recurring) | D45: =D21+D44 -> 0 | F45: =F21+F44 -> 0 | J45: =J21+J44 -> 0 | L45: =L21+L44 -> 0 | N45: =N21+N44 -> 0 | Q45: =Q21+Q44 -> 0 | S45: =S21+S44 -> 0 | U45: =U21+U44 -> 0 | W45: =W21+W44 -> 0 | Z45: =Z21+Z44 -> 0 | AB45: =AB21+AB44 -> 0
B46: 100 children
B47: Non-recurring (one time grant)
A48: 2.19 | B48: Furniture / Equipment (including kitchen equipment) | Z48: =X48*Y48 -> 0 | AA48: =Y48 -> 0 | AB48: =U48+W48+Z48 -> 0
A49: =+A48+0.01 -> 2.2 | B49: TLM and equipment including library books (New) | Z49: 0 | AA49: 0 | AB49: 0
A50: =+A49+0.01 -> 2.21 | B50: Bedding (New) | Z50: 0 | AA50: 0 | AB50: 0
A51: =+A50+0.01 -> 2.22 | B51: Replacement of bedding (once in 3 years) | Z51: 0 | AA51: 0 | AB51: 0
B52: Sub Total Non-recurring | D52: =SUM(D48:D51) -> 0 | F52: =SUM(F48:F51) -> 0 | J52: =SUM(J48:J51) -> 0 | L52: =SUM(L48:L51) -> 0 | N52: =SUM(N48:N51) -> 0 | Q52: =SUM(Q48:Q51) -> 0 | S52: =SUM(S48:S51) -> 0 | U52: =SUM(U48:U51) -> 0 | W52: =SUM(W48:W51) -> 0 | Z52: =SUM(Z48:Z51) -> 0 | AB52: =SUM(AB48:AB51) -> 0
B53: Recurring
A54: 2.23 | B54: Maintenance per child per month @ Rs. 1500/- | Z54: =X54*Y54 -> 0 | AA54: =Y54 -> 0 | AB54: =U54+W54+Z54 -> 0
A55: =+A54+0.01 -> 2.24 | B55: Stipend per child per month @ Rs.100/- | Z55: 0 | AA55: 0 | AB55: 0
A56: 2.25 | B56: Supplementary TLM, Stationery and other educational material per child @1000/- per annum | Z56: 0 | AA56: 0 | AB56: 0
A57: 2.26 | B57: Salaries
A58: (a) | B58: 1 Warden @ Rs. 25,000/- per month | Z58: =X58*Y58 -> 0 | AA58: =Y58 -> 0 | AB58: =U58+W58+Z58 -> 0
A59: (b) | B59: 1 head teacher @ Rs. 25,000/- per month in case the enrollment exceeds 100 | Z59: 0 | AA59: 0 | AB59: 0
A60: (c) | B60: 4 - 5 Full time teachers as per RTE norms @ Rs. 20,000/- per month per teacher | Z60: 0 | AA60: 0 | AB60: 0
A61: (d) | B61: 2 Urdu Teachers (only for blocks with muslim population above 20% and select urban areas), if required @ Rs. 12,000/- per month per teacher | Z61: 0 | AA61: 0 | AB61: 0
A62: (e) | B62: 3 part time teachers @ Rs. 5,000/- per month per teacher | Z62: 0 | AA62: 0 | AB62: 0
A63: (f) | B63: 1 Full time Accountant @ Rs. 10,000/- per month | Z63: 0 | AA63: 0 | AB63: 0
A64: (g) | B64: 2 Support Staff – (Accountant/ Assistant, Peon, Chowkidar) @ Rs. 5,000/- per month per staff | Z64: 0 | AA64: 0 | AB64: 0
A65: (h) | B65: 1 Head cook @ Rs. 6,000/- per month and upto 2 Asstt. Cooks @ Rs. 4,500/- per month per cook | Z65: 0 | AA65: 0 | AB65: 0
A66: 2.27 | B66: Specific skill training per child @ Rs.1000/- per annum | Z66: 0 | AA66: 0 | AB66: 0
A67: 2.28 | B67: Electricity / water charges per child @Rs.1000/- per annum | Z67: 0 | AA67: 0 | AB67: 0
A68: 2.29 | B68: Medical care/contingencies @ Rs.1250/- per child per annum | Z68: 0 | AA68: 0 | AB68: 0
A69: 2.3 | B69: Maintenance @ Rs.750/- per child per annum | Z69: 0 | AA69: 0 | AB69: 0
A70: 2.31 | B70: Miscellaneous @ Rs.750/- per child per annum | Z70: 0 | AA70: 0 | AB70: 0
A71: 2.32 | B71: Preparatory camps @ Rs.200/- per child per annum | Z71: 0 | AA71: 0 | AB71: 0
A72: 2.33 | B72: P.T.A / school functions @ Rs.200/- per child per annum | Z72: 0 | AA72: 0 | AB72: 0
A73: 2.34 | B73: Provision of Rent @ Rs. 6000/- per child per annum | Z73: 0 | AA73: 0 | AB73: 0
A74: 2.35 | B74: Capacity Building @ Rs.500/- per child per annum | Z74: 0 | AA74: 0 | AB74: 0
A75: 2.36 | B75: Physical / Self Defence training @ Rs. 200/- per child per annum. | Z75: 0 | AA75: 0 | AB75: 0
B76: Sub Total (Recurring) | D76: =SUM(D54:D75) -> 0 | F76: =SUM(F54:F75) -> 0 | J76: =SUM(J54:J75) -> 0 | L76: =SUM(L54:L75) -> 0 | N76: =SUM(N54:N75) -> 0 | Q76: =SUM(Q54:Q75) -> 0 | S76: =SUM(S54:S75) -> 0 | U76: =SUM(U54:U75) -> 0 | W76: =SUM(W54:W75) -> 0 | Z76: =SUM(Z54:Z75) -> 0 | AB76: =SUM(AB54:AB75) -> 0
B77: Total (Recurring + Non Recurring) | D77: =D52+D76 -> 0 | F77: =F52+F76 -> 0 | J77: =J52+J76 -> 0 | L77: =L52+L76 -> 0 | N77: =N52+N76 -> 0 | Q77: =Q52+Q76 -> 0 | S77: =S52+S76 -> 0 | U77: =U52+U76 -> 0 | W77: =W52+W76 -> 0 | Z77: =Z52+Z76 -> 0 | AB77: =AB52+AB76 -> 0
B78: Total (50 + 100 children)
A79: 3 | B79: Residential Hostel for specific category of children
A80: (A) | B80: 50 children
B81: Non-recurring (one time grant)
A82: 3.01 | B82: Furniture/ Equipment (including kitchen) | O82: 2 | P82: 0 | Q82: =O82*P82 -> 0 | R82: =K82+M82+P82 -> 0 | S82: =L82+N82+Q82 -> 0 | Z82: =X82*Y82 -> 0 | AA82: =Y82 -> 0 | AB82: =U82+W82+Z82 -> 0
A83: =+A82+0.01 -> 3.02 | B83: TLM and equipment including library books | O83: 3 | P83: 0 | Q83: 0 | R83: =K83+M83+P83 -> 0 | S83: 0 | Z83: 0 | AA83: 0 | AB83: 0
A84: =+A83+0.01 -> 3.03 | B84: Bedding (new) | O84: 0.375 | P84: 0 | Q84: 0 | R84: 0 | S84: 0 | Z84: 0 | AA84: 0 | AB84: 0
A85: =+A84+0.01 -> 3.04 | B85: Replacement of bedding (once in 3 years) | Z85: 0 | AA85: 0 | AB85: 0
B86: Sub Total (Non Recurring) | D86: =SUM(D82:D85) -> 0 | F86: =SUM(F82:F85) -> 0 | J86: =SUM(J82:J85) -> 0 | L86: =SUM(L82:L85) -> 0 | N86: =SUM(N82:N85) -> 0 | P86: =SUM(P82:P85) -> 0 | Q86: =SUM(Q82:Q85) -> 0 | R86: =SUM(R82:R85) -> 0 | S86: =SUM(S82:S85) -> 0 | T86: =T82 -> 0 | U86: =SUM(U82:U85) -> 0 | V86: =V82 -> 0 | W86: =SUM(W82:W85) -> 0 | Y86: =Y82 -> 0 | Z86: =SUM(Z82:Z85) -> 0 | AA86: =AA82 -> 0 | AB86: =SUM(AB82:AB85) -> 0
B87: Recurring (50 children)
A88: 3.05 | B88: Maintenance per child Per month @ Rs.1500/- | Z88: =X88*Y88 -> 0 | AA88: =Y88 -> 0 | AB88: =U88+W88+Z88 -> 0
A89: =+A88+0.01 -> 3.06 | B89: Stipend per child per month @ Rs.100/- | Z89: 0 | AA89: 0 | AB89: 0
A90: =+A89+0.01 -> 3.07 | B90: Supplementary TLM, Stationery and other educational material @Rs.1000/- per child per annum | Z90: 0 | AA90: 0 | AB90: 0
B91: Salaries
A92: (a) | B92: 1 Warden @ Rs.25000/- per month | Z92: =X92*Y92 -> 0 | AA92: =Y92 -> 0 | AB92: =U92+W92+Z92 -> 0
A93: (b) | B93: 4 Fulltime teachers as per RTE Norms @ Rs. 20,000/- per month per teacher | Z93: 0 | AA93: 0 | AB93: 0
A94: (c) | B94: 2 Urdu Teachers (only for Blocks with muslim population above 20% and select urban areas) @ Rs.12,000/- per month per teacher. | Z94: 0 | AA94: 0 | AB94: 0
A95: (d) | B95: 3 Part time teachers @ Rs.5,000/- per month per teacher | Z95: 0 | AA95: 0 | AB95: 0
A96: (e) | B96: 1 Full time Accountant @ Rs. 10,000/- per month | Z96: 0 | AA96: 0 | AB96: 0
A97: (f) | B97: 2 Support staff - (Accountant/Assistant, Peon, Chowkidar) @ Rs. 5,000/- per month per staff | Z97: 0 | AA97: 0 | AB97: 0
A98: (g) | B98: 1 Head Cook @ Rs. 6,000/- per month and upto 2 Asstt. Cooks @ Rs. 4,500/- per month per cook | Z98: 0 | AA98: 0 | AB98: 0
A99: 3.08 | B99: Specific Skill training @ Rs.1000/- per annum per child | Z99: 0 | AA99: 0 | AB99: 0
A100: =+A99+0.01 -> 3.09 | B100: Electricity / water charges @ Rs. 1000/- per annum per child | Z100: 0 | AA100: 0 | AB100: 0
A101: 3.1 | B101: Medical care/contingencies @ Rs.1250/- per annum per child | Z101: 0 | AA101: 0 | AB101: 0
A102: 3.11 | B102: Maintenance @ Rs. 750/- per child per annum | Z102: 0 | AA102: 0 | AB102: 0
A103: 3.12 | B103: Miscellaneous @ Rs. 750/- per child per annum | Z103: 0 | AA103: 0 | AB103: 0
A104: 3.13 | B104: Preparatory camps @ Rs. 300/- per child per annum | Z104: 0 | AA104: 0 | AB104: 0
A105: 3.14 | B105: P.T.A / school functions @ Rs. 300/- per child per annum | Z105: 0 | AA105: 0 | AB105: 0
A106: 3.15 | B106: Provision of Rent @ Rs. 10,000/- per child per annum | Z106: 0 | AA106: 0 | AB106: 0
A107: 3.16 | B107: Capacity Building @ Rs. 500/- per child per annum | Z107: 0 | AA107: 0 | AB107: 0
A108: 3.17 | B108: Physical / Self Defence Training @ Rs.200/- per child per annum | Z108: 0 | AA108: 0 | AB108: 0
B109: Sub Total (Recurring) | D109: =SUM(D88:D108) -> 0 | F109: =SUM(F88:F108) -> 0 | J109: =SUM(J88:J108) -> 0 | L109: =SUM(L88:L108) -> 0 | N109: =SUM(N88:N108) -> 0 | P109: =SUM(P88:P108) -> 0 | Q109: 0 | R109: 0 | S109: 0 | T109: 0 | U109: 0 | V109: 0 | W109: 0 | Y109: =SUM(Y88:Y108) -> 0 | Z109: =SUM(Z88:Z108) -> 0 | AA109: =SUM(AA88:AA108) -> 0 | AB109: =SUM(AB88:AB108) -> 0
B110: Total (Non Recurring + Recurring) | D110: =D86+D109 -> 0 | F110: =F86+F109 -> 0 | J110: =J86+J109 -> 0 | L110: =L86+L109 -> 0 | N110: =N86+N109 -> 0 | P110: =P86+P109 -> 0 | Q110: 0 | R110: 0 | S110: 0 | T110: 0 | U110: 0 | V110: 0 | W110: 0 | Y110: =Y86+Y109 -> 0 | Z110: =Z86+Z109 -> 0 | AA110: =AA86+AA109 -> 0 | AB110: =AB86+AB109 -> 0
A111: (B) | B111: 100 Children
B112: Non-recurring (one time grant)
A113: 3.18 | B113: Furniture / Equipment (including kitchen equipment) | O113: 3 | P113: 0 | Q113: =O113*P113 -> 0 | R113: =K113+M113+P113 -> 0 | S113: 0 | Z113: =X113*Y113 -> 0 | AA113: =Y113 -> 0 | AB113: =U113+W113+Z113 -> 0
A114: =+A113+0.01 -> 3.19 | B114: TLM and equipment including library books (New) | O114: 3.5 | P114: 0 | Q114: =O114*P114 -> 0 | R114: 0 | S114: 0 | Z114: 0 | AA114: 0 | AB114: 0
A115: =+A114+0.01 -> 3.2 | B115: Bedding (New) | O115: 0.75 | P115: 0 | Q115: 0 | R115: 0 | S115: 0 | Z115: 0 | AA115: 0 | AB115: 0
A116: =+A115+0.01 -> 3.21 | B116: Replacement of bedding (once in 3 years) | Z116: 0 | AA116: 0 | AB116: 0
B117: Sub Total Non-recurring | C117: =C113 -> 0 | D117: =SUM(D113:D116) -> 0 | E117: =E113 -> 0 | F117: =SUM(F113:F116) -> 0 | I117: =I113 -> 0 | J117: =SUM(J113:J116) -> 0 | K117: =K113 -> 0 | L117: =SUM(L113:L116) -> 0 | M117: =M113 -> 0 | N117: =SUM(N113:N116) -> 0 | P117: =P113 -> 0 | Q117: =SUM(Q113:Q116) -> 0 | R117: =R113 -> 0 | S117: =SUM(S113:S116) -> 0 | T117: =T113 -> 0 | U117: =SUM(U113:U116) -> 0 | V117: =V113 -> 0 | W117: =SUM(W113:W116) -> 0 | Y117: =Y113 -> 0 | Z117: =SUM(Z113:Z116) -> 0 | AA117: =AA113 -> 0 | AB117: =SUM(AB113:AB116) -> 0
B118: Recurring
A119: 3.22 | B119: Maintenance per child per month @ Rs. 1500/- | Z119: =X119*Y119 -> 0 | AA119: =Y119 -> 0 | AB119: =U119+W119+Z119 -> 0
A120: =+A119+0.01 -> 3.23 | B120: Stipend per child per month @ Rs.100/- | Z120: 0 | AA120: 0 | AB120: 0
A121: =+A120+0.01 -> 3.24 | B121: Supplementary TLM, Stationery and other educational material per child @1000/- per annum | Z121: 0 | AA121: 0 | AB121: 0
B122: Salaries
A123: (a) | B123: 1 Warden @ Rs. 25,000/- per month | Z123: =X123*Y123 -> 0 | AA123: =Y123 -> 0 | AB123: =U123+W123+Z123 -> 0
A124: (b) | B124: 1 head teacher @ Rs. 25,000/- per month in case the enrollment exceeds 100 | Z124: 0 | AA124: 0 | AB124: 0
A125: (c) | B125: 4 - 5 Full time teachers as per RTE norms @ Rs. 20,000/- per month per teacher | Z125: 0 | AA125: 0 | AB125: 0
A126: (d) | B126: 2 Urdu Teachers (only for blocks with muslim population above 20% and select urban areas), if required @ Rs. 12,000/- per month per teacher | Z126: 0 | AA126: 0 | AB126: 0
A127: (e) | B127: 3 part time teachers @ Rs. 5,000/- per month per teacher | Z127: 0 | AA127: 0 | AB127: 0
A128: (f) | B128: 1 Full time Accountant @ Rs. 10,000/- per month | Z128: 0 | AA128: 0 | AB128: 0
A129: 3.25 | B129: 2 Support Staff – (Accountant/ Assistant, Peon, Chowkidar) @ Rs. 5,000/- per month per staff | Z129: 0 | AA129: 0 | AB129: 0
A130: =+A129+0.01 -> 3.26 | B130: 1 Head cook @ Rs. 6,000/- per month and upto 2 Asstt. Cooks @ Rs. 4,500/- per month per cook | Z130: 0 | AA130: 0 | AB130: 0
A131: 3.27 | B131: Specific skill training per child @ Rs.1000/- per annum | Z131: 0 | AA131: 0 | AB131: 0
A132: 3.28 | B132: Electricity / water charges per child @Rs.1000/- per annum | Z132: 0 | AA132: 0 | AB132: 0
A133: 3.29 | B133: Medical care/contingencies @ Rs.1250/- per child per annum | Z133: 0 | AA133: 0 | AB133: 0
A134: 3.3 | B134: Maintenance @ Rs.750/- per child per annum | Z134: 0 | AA134: 0 | AB134: 0
A135: 3.31 | B135: Miscellaneous @ Rs.750/- per child per annum | Z135: 0 | AA135: 0 | AB135: 0
A136: 3.32 | B136: Preparatory camps @ Rs.200/- per child per annum | Z136: 0 | AA136: 0 | AB136: 0
A137: 3.33 | B137: P.T.A / school functions @ Rs.200/- per child per annum | Z137: 0 | AA137: 0 | AB137: 0
A138: 3.34 | B138: Provision of Rent @ Rs. 6000/- per child per annum | Z138: 0 | AA138: 0 | AB138: 0
A139: 3.35 | B139: Capacity Building @ Rs.500/- per child per annum | Z139: 0 | AA139: 0 | AB139: 0
A140: 3.36 | B140: Physical / Self Defence training @ Rs. 200/- per child per annum. | Z140: 0 | AA140: 0 | AB140: 0
B141: Sub Total (Recurring) | D141: =SUM(D119:D140) -> 0 | F141: =SUM(F119:F140) -> 0 | J141: =SUM(J119:J140) -> 0 | L141: =SUM(L119:L140) -> 0 | N141: =SUM(N119:N140) -> 0 | Q141: =SUM(Q119:Q140) -> 0 | S141: =SUM(S119:S140) -> 0 | U141: =SUM(U119:U140) -> 0 | W141: =SUM(W119:W140) -> 0 | Z141: =SUM(Z119:Z140) -> 0 | AB141: =SUM(AB119:AB140) -> 0
B142: Total (Recurring + Non Recurring) | D142: =D117+D141 -> 0 | F142: =F117+F141 -> 0 | J142: =J117+J141 -> 0 | L142: =L117+L141 -> 0 | N142: =N117+N141 -> 0 | P142: =P117+P141 -> 0 | Q142: 0 | R142: 0 | S142: 0 | T142: 0 | U142: 0 | V142: 0 | W142: 0 | Y142: =Y117+Y141 -> 0 | Z142: =Z117+Z141 -> 0 | AA142: =AA117+AA141 -> 0 | AB142: =AB117+AB141 -> 0
B143: Total (A + B) | D143: =D110+D142 -> 0 | F143: =F110+F142 -> 0 | J143: =J110+J142 -> 0 | L143: =L110+L142 -> 0 | N143: =N110+N142 -> 0 | P143: =P110+P142 -> 0 | Q143: =Q110+Q142 -> 0 | S143: =S110+S142 -> 0 | U143: =U110+U142 -> 0 | W143: =W110+W142 -> 0 | Z143: =Z110+Z142 -> 0 | AB143: =AB110+AB142 -> 0
A144: 4 | B144: Transport/Escort Facility
A145: 4.01 | B145: Children in remote habitation | C145: 0 | D145: 0 | E145: 0 | F145: 0 | G145: =E145/C145*100 ->  | I145: =C145-E145 -> 0 | J145: 0 | O145: 0.03 | P145: 125 | Q145: =O145*P145 -> 3.75 | R145: =K145+M145+P145 -> 125 | S145: =L145+N145+Q145 -> 3.75 | X145: 0.03 | Y145: 125 | Z145: =X145*Y145 -> 3.75 | AA145: =Y145 -> 125 | AB145: =U145+W145+Z145 -> 3.75
A146: 4.02 | B146: Urban deprived children/children without adult protection | C146: 0 | D146: 0 | E146: 0 | F146: 0 | I146: 0 | J146: 0 | P146: 0 | Q146: =O146*P146 -> 0 | R146: =K146+M146+P146 -> 0 | S146: =L146+N146+Q146 -> 0 | Z146: 0 | AA146: 0 | AB146: 0
B147: Sub Total | C147: =SUM(C145:C146) -> 0 | D147: =SUM(D145:D146) -> 0 | E147: =SUM(E145:E146) -> 0 | F147: =SUM(F145:F146) -> 0 | I147: =SUM(I145:I146) -> 0 | J147: 0 | K147: 0 | L147: 0 | M147: 0 | N147: 0 | P147: =SUM(P145:P146) -> 125 | Q147: 3.75 | R147: 125 | S147: 3.75 | T147: 0 | U147: 0 | V147: 0 | W147: 0 | Y147: =SUM(Y145:Y146) -> 125 | Z147: =SUM(Z145:Z146) -> 3.75 | AA147: =SUM(AA145:AA146) -> 125 | AB147: =SUM(AB145:AB146) -> 3.75
A148: 5 | B148: Reimbursement of Fee against 25% admission under Section 12(1)(c) of RTE Act 2009 (Entry Level) subject to upper limit of 20% of AWP&B subject to guidelines issued by MHRD | Z148: =X148*Y148 -> 0 | AA148: =Y148 -> 0 | AB148: =U148+W148+Z148 -> 0
B149: Sub Total | C149: =C148 -> 0 | D149: =D148 -> 0 | E149: =E148 -> 0 | F149: =F148 -> 0 | I149: =I148 -> 0 | J149: 0 | K149: 0 | L149: 0 | M149: 0 | N149: 0 | P149: =P148 -> 0 | Q149: 0 | R149: 0 | S149: 0 | T149: 0 | U149: 0 | V149: 0 | W149: 0 | Y149: =Y148 -> 0 | Z149: =Z148 -> 0 | AA149: =AA148 -> 0 | AB149: =AB148 -> 0
A150: =+A148+1 -> 6 | B150: Special Training for mainstreaming of out of school children
A151: 6.01 | B151: Residential (Fresh)
B152: (a) 12 months | Z152: =X152*Y152 -> 0 | AA152: =Y152 -> 0 | AB152: =U152+W152+Z152 -> 0
B153: (b) 9 months | Z153: 0 | AA153: 0 | AB153: 0
B154: (c) 6 months | Z154: 0 | AA154: 0 | AB154: 0
B155: (d) 3 months | Z155: 0 | AA155: 0 | AB155: 0
B156: Sub Total | C156: =SUM(C152:C155) -> 0 | D156: =SUM(D152:D155) -> 0 | E156: =SUM(E152:E155) -> 0 | F156: =SUM(F152:F155) -> 0 | I156: =SUM(I152:I155) -> 0 | J156: 0 | K156: 0 | L156: 0 | M156: 0 | N156: 0 | P156: =SUM(P152:P155) -> 0 | Q156: =SUM(Q152:Q155) -> 0 | R156: =SUM(R152:R155) -> 0 | S156: =SUM(S152:S155) -> 0 | T156: =SUM(T152:T155) -> 0 | U156: 0 | V156: 0 | W156: 0 | Y156: =SUM(Y152:Y155) -> 0 | Z156: 0 | AA156: 0 | AB156: 0
A157: =+A151+0.01 -> 6.02 | B157: Residential (Continuing from previous year)
B158: (a) 12 months | Z158: =X158*Y158 -> 0 | AA158: =Y158 -> 0 | AB158: =U158+W158+Z158 -> 0
B159: (b) 9 months | Z159: 0 | AA159: 0 | AB159: 0
B160: (c) 6 months | Z160: 0 | AA160: 0 | AB160: 0
B161: (d) 3 months | Z161: 0 | AA161: 0 | AB161: 0
B162: Sub Total | C162: =SUM(C158:C161) -> 0 | D162: =SUM(D158:D161) -> 0 | E162: =SUM(E158:E161) -> 0 | F162: =SUM(F158:F161) -> 0 | I162: =SUM(I158:I161) -> 0 | J162: 0 | K162: 0 | L162: 0 | M162: 0 | N162: 0 | P162: =SUM(P158:P161) -> 0 | Q162: 0 | R162: 0 | S162: 0 | T162: 0 | U162: 0 | V162: 0 | W162: 0 | Y162: =SUM(Y158:Y161) -> 0 | Z162: 0 | AA162: 0 | AB162: 0
A163: 6.03 | B163: Non-Residential (Fresh)
B164: (a) 12 months | O164: 0.06 | P164: 11 | Q164: =O164*P164 -> 0.66 | R164: =K164+M164+P164 -> 11 | S164: =L164+N164+Q164 -> 0.66 | X164: 0.06 | Y164: 11 | Z164: =X164*Y164 -> 0.66 | AA164: =Y164 -> 11 | AB164: =U164+W164+Z164 -> 0.66
B165: (b) 9 months | C165: 0 | D165: 0 | E165: 0 | F165: 0 | G165: =E165/C165*100 ->  | H165: =F165/D165*100 ->  | I165: =C165-E165 -> 0 | J165: =D165-F165 -> 0 | O165: 0 | P165: 0 | Q165: =O165*P165 -> 0 | R165: =K165+M165+P165 -> 0 | S165: =L165+N165+Q165 -> 0 | X165: 0 | Y165: 0 | Z165: 0 | AA165: 0 | AB165: 0
B166: (c) 6 months | Q166: =O166*P166 -> 0 | R166: 0 | S166: 0 | Z166: 0 | AA166: 0 | AB166: 0
B167: (d) 3 months | Q167: =O167*P167 -> 0 | R167: 0 | S167: 0 | Z167: 0 | AA167: 0 | AB167: 0
B168: Sub Total | C168: =SUM(C164:C167) -> 0 | D168: =SUM(D164:D167) -> 0 | E168: =SUM(E164:E167) -> 0 | F168: =SUM(F164:F167) -> 0 | G168: =E168/C168*100 ->  | H168: =F168/D168*100 ->  | I168: =SUM(I164:I167) -> 0 | J168: 0 | K168: 0 | L168: 0 | M168: 0 | N168: 0 | P168: =SUM(P164:P167) -> 11 | Q168: 0.66 | R168: 11 | S168: 0.66 | T168: 0 | U168: 0 | V168: 0 | W168: 0 | Y168: =SUM(Y164:Y167) -> 11 | Z168: 0.66 | AA168: 11 | AB168: 0.66
A169: 6.04 | B169: Non-Residential (Continuing from previous year)
B170: (a) 12 months | C170: 0 | D170: 0 | E170: 0 | F170: 0 | G170: =E170/C170*100 ->  | H170: =F170/D170*100 ->  | I170: =C170-E170 -> 0 | J170: =D170-F170 -> 0 | O170: 0 | P170: 0 | Q170: =O170*P170 -> 0 | R170: =P170 -> 0 | S170: =L170+N170+Q170 -> 0 | X170: 0 | Y170: 0 | Z170: =X170*Y170 -> 0 | AA170: =Y170 -> 0 | AB170: =U170+W170+Z170 -> 0
B171: (b) 9 months | O171: 0.045 | P171: 0 | Q171: =P171*O171 -> 0 | R171: =P171 -> 0 | S171: =L171+N171+Q171 -> 0 | X171: 0.045 | Y171: 0 | Z171: =Y171*X171 -> 0 | AA171: 0 | AB171: 0
B172: (c) 6 months | R172: 0 | S172: 0 | Z172: 0 | AA172: 0 | AB172: 0
B173: (d) 3 months | R173: 0 | S173: 0 | Z173: 0 | AA173: 0 | AB173: 0
B174: Sub Total | C174: =SUM(C170:C173) -> 0 | D174: =SUM(D170:D173) -> 0 | E174: =SUM(E170:E173) -> 0 | F174: =SUM(F170:F173) -> 0 | G174: =E174/C174*100 ->  | H174: =F174/D174*100 ->  | I174: =SUM(I170:I173) -> 0 | J174: 0 | K174: 0 | L174: 0 | M174: 0 | N174: 0 | P174: =SUM(P170:P173) -> 0 | Q174: 0 | R174: 0 | S174: 0 | T174: 0 | U174: 0 | V174: 0 | W174: 0 | Y174: =SUM(Y170:Y173) -> 0 | Z174: 0 | AA174: 0 | AB174: 0
A175: 6.05 | B175: Madarasa/Maktab
B176: (a) 12 months | Z176: =X176*Y176 -> 0 | AA176: =Y176 -> 0 | AB176: =U176+W176+Z176 -> 0
B177: (b) 9 months | Z177: 0 | AA177: 0 | AB177: 0
B178: (c) 6 months | Z178: 0 | AA178: 0 | AB178: 0
B179: (d) 3 months | Z179: 0 | AA179: 0 | AB179: 0
B180: Sub Total | C180: =SUM(C176:C179) -> 0 | D180: =SUM(D176:D179) -> 0 | E180: =SUM(E176:E179) -> 0 | F180: =SUM(F176:F179) -> 0 | I180: =SUM(I176:I179) -> 0 | J180: 0 | K180: 0 | L180: 0 | M180: 0 | N180: 0 | P180: =SUM(P176:P179) -> 0 | Q180: 0 | R180: 0 | S180: 0 | T180: 0 | U180: 0 | V180: 0 | W180: 0 | Y180: =SUM(Y176:Y179) -> 0 | Z180: 0 | AA180: 0 | AB180: 0
A181: 6.06 | B181: Seasonal Hostel (Residential)
B182: (a) 12 months | Z182: =X182*Y182 -> 0 | AA182: =Y182 -> 0 | AB182: =U182+W182+Z182 -> 0
B183: (b) 9 months | Z183: 0 | AA183: 0 | AB183: 0
B184: (c) 6 months | Z184: 0 | AA184: 0 | AB184: 0
B185: (d) 3 months | Z185: 0 | AA185: 0 | AB185: 0
B186: Sub Total | C186: =SUM(C182:C185) -> 0 | D186: =SUM(D182:D185) -> 0 | E186: =SUM(E182:E185) -> 0 | F186: =SUM(F182:F185) -> 0 | I186: =SUM(I182:I185) -> 0 | J186: 0 | K186: 0 | L186: 0 | M186: 0 | N186: 0 | P186: =SUM(P182:P185) -> 0 | Q186: 0 | R186: 0 | S186: 0 | T186: 0 | U186: 0 | V186: 0 | W186: 0 | Y186: =SUM(Y182:Y185) -> 0 | Z186: 0 | AA186: 0 | AB186: 0
A187: 6.07 | B187: Seasonal Hostel (Non Residential)
B188: (a) 12 months | Z188: =X188*Y188 -> 0 | AA188: =Y188 -> 0 | AB188: =U188+W188+Z188 -> 0
B189: (b) 9 months | Z189: 0 | AA189: 0 | AB189: 0
B190: (c) 6 months | Z190: 0 | AA190: 0 | AB190: 0
B191: (d) 3 months | Z191: 0 | AA191: 0 | AB191: 0
B192: Sub Total | C192: =SUM(C188:C191) -> 0 | D192: =SUM(D188:D191) -> 0 | E192: =SUM(E188:E191) -> 0 | F192: =SUM(F188:F191) -> 0 | I192: =SUM(I188:I191) -> 0 | J192: 0 | K192: 0 | L192: 0 | M192: 0 | N192: 0 | P192: =SUM(P188:P191) -> 0 | Q192: 0 | R192: 0 | S192: 0 | T192: 0 | U192: 0 | V192: 0 | W192: 0 | Y192: =SUM(Y188:Y191) -> 0 | Z192: 0 | AA192: 0 | AB192: 0
B193: Total | C193: =C162+C168+C174+C180+C186+C192 -> 0 | D193: =D156+D162+D168+D174+D180+D186+D192 -> 0 | E193: =E162+E168+E174+E180+E186+E192 -> 0 | F193: =F156+F162+F168+F174+F180+F186+F192 -> 0 | G193: =E193/C193*100 ->  | H193: =F193/D193*100 ->  | I193: =I162+I168+I174+I180+I186+I192 -> 0 | J193: =J156+J162+J168+J174+J180+J186+J192 -> 0 | K193: =K162+K168+K174+K180+K186+K192 -> 0 | L193: =L156+L162+L168+L174+L180+L186+L192 -> 0 | M193: =M162+M168+M174+M180+M186+M192 -> 0 | N193: =N156+N162+N168+N174+N180+N186+N192 -> 0 | P193: =P162+P168+P174+P180+P186+P192 -> 11 | Q193: =Q156+Q162+Q168+Q174+Q180+Q186+Q192 -> 0.66 | R193: =R162+R168+R174+R180+R186+R192 -> 11 | S193: =S156+S162+S168+S174+S180+S186+S192 -> 0.66 | T193: =T162+T168+T174+T180+T186+T192 -> 0 | U193: =U156+U162+U168+U174+U180+U186+U192 -> 0 | V193: =V162+V168+V174+V180+V186+V192 -> 0 | W193: =W156+W162+W168+W174+W180+W186+W192 -> 0 | Y193: =Y162+Y168+Y174+Y180+Y186+Y192 -> 11 | Z193: =Z156+Z162+Z168+Z174+Z180+Z186+Z192 -> 0.66 | AA193: =AA162+AA168+AA174+AA180+AA186+AA192 -> 11 | AB193: =AB156+AB162+AB168+AB174+AB180+AB186+AB192 -> 0.66
A194: II | B194: RETENTION
A195: 7 | B195: Free Text Books
A196: 7.01 | B196: Free Text Books (P)
B197: (a) Class I & II | C197: 15398 | D197: 23.097 | E197: 15398 | F197: 23.097 | G197: =E197/C197*100 -> 100 | H197: =F197/D197*100 -> 100 | I197: =C197-E197 -> 0 | J197: =D197-F197 -> 0 | N197: 0 | O197: 0.0025 | P197: 15382 | Q197: =O197*P197 -> 38.455 | R197: =K197+M197+P197 -> 15382 | S197: 38.455 | X197: 0.0015 | Y197: 15382 | Z197: =X197*Y197 -> 23.073 | AA197: =Y197 -> 15382 | AB197: =U197+W197+Z197 -> 23.073
B198: (b) Braille Books I & II | C198: 3 | D198: 0.0045 | E198: 3 | F198: 0.0045 | G198: 100 | H198: 100 | I198: 0 | J198: 0 | O198: 0.0025 | P198: 3 | Q198: =O198*P198 -> 0.0075 | R198: 3 | S198: 0.0075 | X198: 0.0015 | Y198: 3 | Z198: 0.0045 | AA198: 3 | AB198: 0.0045
B199: (c) Large Print Books I & II | C199: 14 | D199: 0.021 | E199: 14 | F199: 0.021 | G199: 100 | H199: 100 | I199: 0 | J199: 0 | O199: 0.0025 | P199: 5 | Q199: =O199*P199 -> 0.0125 | R199: 5 | S199: 0.0125 | X199: 0.0015 | Y199: 5 | Z199: 0.0075 | AA199: 5 | AB199: 0.0075
B200: (d) Class III to V | C200: 56459 | D200: 84.6885 | E200: 56459 | F200: 84.6885 | G200: 100 | H200: 100 | I200: 0 | J200: 0 | O200: 0.0025 | P200: 54889 | Q200: =O200*P200 -> 137.2225 | R200: =K200+M200+P200 -> 54889 | S200: 137.2225 | X200: 0.0015 | Y200: 54889 | Z200: 82.3335 | AA200: 54889 | AB200: 82.3335
... 326 more rows

Sheet PTA
A1: S.No. | B1: Activity | C1: Year 2016-17 | K1: Outlay Proposed for 2017-18 | T1: Outlay Recommended for 2017-18
C2: Outlay approved by PAB (including spillover) | E2: Achievement | I2: Savings | K2: Spill Over | M2: Deferred laibility of 2016-17 | O2: Fresh | R2: Total | T2: Spill Over | V2: Deferred laibility of 2016-17 | X2: Fresh | AA2: Total
C3: Phy. | D3: Fin | E3: Phy. | F3: Fin. | G3: Phy. (%) | H3: Fin. (%) | I3: Phy. | J3: Fin. | K3: Phy. | L3: Fin. | M3: Phy. | N3: Fin. | O3: Unit Cost | P3: Phy. | Q3: Fin. | R3: Phy. | S3: Fin. | T3: Phy. | U3: Fin. | V3: Phy. | W3: Fin. | X3: Unit Cost | Y3: Phy. | Z3: Fin. | AA3: Phy. | AB3: Fin.
A4: I | B4: ACCESS
B5: SSA
A6: 1 | B6: Opening of New Schools
A7: 1.01 | B7: New Primary School | AA7: =Y7 -> 0
A8: 1.02 | B8: Upgradation of PS to UPS | AA8: =Y8 -> 0
A9: 1.03 | B9: Composite Schools | AA9: 0
A10: 1.04 | B10: Residential schools for specific category of children | AA10: 0
A11: 1.05 | B11: Residential Hostel | AA11: 0
A12: 1.06 | B12: Integration of Class V with primary schools | AA12: 0
A13: 1.07 | B13: Integration of Class VIII with upper primary schools | AA13: 0
A14: 2 | B14: Residential Schools for specific category of children
B15: 50 children
B16: Non-recurring (one time grant)
A17: 2.01 | B17: Furniture/ Equipment (including kitchen) | P17: 0 | Q17: 0 | R17: =K17+M17+P17 -> 0 | S17: 0 | Z17: =X17*Y17 -> 0 | AA17: =Y17 -> 0 | AB17: =U17+W17+Z17 -> 0
A18: 2.02 | B18: TLM and equipment including library books | P18: 0 | Q18: 0 | R18: 0 | S18: 0 | Z18: =X18*Y18 -> 0 | AA18: =Y18 -> 0 | AB18: =U18+W18+Z18 -> 0
A19: 2.03 | B19: Bedding (new) | P19: 0 | Q19: 0 | R19: 0 | S19: 0 | Z19: 0 | AA19: 0 | AB19: 0
A20: 2.04 | B20: Replacement of bedding (once in 3 years) | Z20: 0 | AA20: 0 | AB20: 0
B21: Sub Total (Non Recurring) | D21: =SUM(D17:D20) -> 0 | F21: =SUM(F17:F20) -> 0 | J21: =SUM(J17:J20) -> 0 | L21: =SUM(L17:L20) -> 0 | N21: =SUM(N17:N20) -> 0 | P21: =SUM(P17:P20) -> 0 | Q21: =SUM(Q17:Q20) -> 0 | R21: =SUM(R17:R20) -> 0 | S21: =SUM(S17:S20) -> 0 | U21: =SUM(U17:U20) -> 0 | W21: =SUM(W17:W20) -> 0 | Z21: =SUM(Z17:Z20) -> 0 | AB21: =SUM(AB17:AB20) -> 0
B22: Recurring (50 children)
A23: 2.05 | B23: Maintenance per child Per month @ Rs.1500/- | Z23: =X23*Y23 -> 0 | AA23: =Y23 -> 0 | AB23: =U23+W23+Z23 -> 0
A24: 2.06 | B24: Stipend per child per month @ Rs.100/- | Z24: 0 | AA24: 0 | AB24: 0
A25: 2.07 | B25: Supplementary TLM, Stationery and other educational material @Rs.1000/- per child per annum | Z25: 0 | AA25: 0 | AB25: 0
A26: 2.08 | B26: Salaries
A27: (a) | B27: 1 Warden @ Rs.25000/- per month | Z27: =X27*Y27 -> 0 | AA27: =Y27 -> 0 | AB27: =U27+W27+Z27 -> 0
A28: (b) | B28: 4 Fulltime teachers as per RTE Norms @ Rs. 20,000/- per month per teacher | Z28: 0 | AA28: 0 | AB28: 0
A29: (c) | B29: 2 Urdu Teachers (only for Blocks with muslim population above 20% and select urban areas) @ Rs.12,000/- per month per teacher. | Z29: 0 | AA29: 0 | AB29: 0
A30: (d) | B30: 3 Part time teachers @ Rs.5,000/- per month per teacher | Z30: 0 | AA30: 0 | AB30: 0
A31: (e) | B31: 1 Full time Accountant @ Rs. 10,000/- per month | Z31: 0 | AA31: 0 | AB31: 0
A32: (f) | B32: 2 Support staff - (Accountant/Assistant, Peon, Chowkidar) @ Rs. 5,000/- per month per staff | Z32: 0 | AA32: 0 | AB32: 0
A33: (g) | B33: 1 Head Cook @ Rs. 6,000/- per month and upto 2 Asstt. Cooks @ Rs. 4,500/- per month per cook | Z33: 0 | AA33: 0 | AB33: 0
A34: 2.09 | B34: Specific Skill training @ Rs.1000/- per annum per child | Z34: 0 | AA34: 0 | AB34: 0
A35: 2.1 | B35: Electricity / water charges @ Rs. 1000/- per annum per child | Z35: 0 | AA35: 0 | AB35: 0
A36: =+A35+0.01 -> 2.11 | B36: Medical care/contingencies @ Rs.1250/- per annum per child | Z36: =X36*Y36 -> 0 | AA36: =Y36 -> 0 | AB36: =U36+W36+Z36 -> 0
A37: =+A36+0.01 -> 2.12 | B37: Maintenance @ Rs. 750/- per child per annum | Z37: 0 | AA37: 0 | AB37: 0
A38: 2.13 | B38: Miscellaneous @ Rs. 750/- per child per annum | Z38: 0 | AA38: 0 | AB38: 0
A39: 2.14 | B39: Preparatory camps @ Rs. 300/- per child per annum | Z39: 0 | AA39: 0 | AB39: 0
A40: 2.15 | B40: P.T.A / school functions @ Rs. 300/- per child per annum | Z40: 0 | AA40: 0 | AB40: 0
A41: 2.16 | B41: Provision of Rent @ Rs. 10,000/- per child per annum | Z41: 0 | AA41: 0 | AB41: 0
A42: 2.17 | B42: Capacity Building @ Rs. 500/- per child per annum | Z42: 0 | AA42: 0 | AB42: 0
A43: 2.18 | B43: Physical / Self Defence Training @ Rs.200/- per child per annum | Z43: 0 | AA43: 0 | AB43: 0
B44: Sub Total (Recurring) | D44: =SUM(D23:D43) -> 0 | F44: =SUM(F23:F43) -> 0 | J44: =SUM(J23:J43) -> 0 | L44: =SUM(L23:L43) -> 0 | N44: =SUM(N23:N43) -> 0 | Q44: =SUM(Q23:Q43) -> 0 | S44: =SUM(S23:S43) -> 0 | U44: =SUM(U23:U43) -> 0 | W44: =SUM(W23:W43) -> 0 | Z44: =SUM(Z23:Z43) -> 0 | AB44: =SUM(AB23:AB43) -> 0
B45: Total (Non Recurring + Recurring) | D45: =D21+D44 -> 0 | F45: =F21+F44 -> 0 | J45: =J21+J44 -> 0 | L45: =L21+L44 -> 0 | N45: =N21+N44 -> 0 | Q45: =Q21+Q44 -> 0 | S45: =S21+S44 -> 0 | U45: =U21+U44 -> 0 | W45: =W21+W44 -> 0 | Z45: =Z21+Z44 -> 0 | AB45: =AB21+AB44 -> 0
B46: 100 children
B47: Non-recurring (one time grant)
A48: 2.19 | B48: Furniture / Equipment (including kitchen equipment) | Z48: =X48*Y48 -> 0 | AA48: =Y48 -> 0 | AB48: =U48+W48+Z48 -> 0
A49: =+A48+0.01 -> 2.2 | B49: TLM and equipment including library books (New) | Z49: 0 | AA49: 0 | AB49: 0
A50: =+A49+0.01 -> 2.21 | B50: Bedding (New) | Z50: 0 | AA50: 0 | AB50: 0
A51: =+A50+0.01 -> 2.22 | B51: Replacement of bedding (once in 3 years) | Z51: 0 | AA51: 0 | AB51: 0
B52: Sub Total Non-recurring | D52: =SUM(D48:D51) -> 0 | F52: =SUM(F48:F51) -> 0 | J52: =SUM(J48:J51) -> 0 | L52: =SUM(L48:L51) -> 0 | N52: =SUM(N48:N51) -> 0 | Q52: =SUM(Q48:Q51) -> 0 | S52: =SUM(S48:S51) -> 0 | U52: =SUM(U48:U51) -> 0 | W52: =SUM(W48:W51) -> 0 | Z52: =SUM(Z48:Z51) -> 0 | AB52: =SUM(AB48:AB51) -> 0
B53: Recurring
A54: 2.23 | B54: Maintenance per child per month @ Rs. 1500/- | Z54: =X54*Y54 -> 0 | AA54: =Y54 -> 0 | AB54: =U54+W54+Z54 -> 0
A55: =+A54+0.01 -> 2.24 | B55: Stipend per child per month @ Rs.100/- | Z55: 0 | AA55: 0 | AB55: 0
A56: 2.25 | B56: Supplementary TLM, Stationery and other educational material per child @1000/- per annum | Z56: 0 | AA56: 0 | AB56: 0
A57: 2.26 | B57: Salaries
A58: (a) | B58: 1 Warden @ Rs. 25,000/- per month | Z58: =X58*Y58 -> 0 | AA58: =Y58 -> 0 | AB58: =U58+W58+Z58 -> 0
A59: (b) | B59: 1 head teacher @ Rs. 25,000/- per month in case the enrollment exceeds 100 | Z59: 0 | AA59: 0 | AB59: 0
A60: (c) | B60: 4 - 5 Full time teachers as per RTE norms @ Rs. 20,000/- per month per teacher | Z60: 0 | AA60: 0 | AB60: 0
A61: (d) | B61: 2 Urdu Teachers (only for blocks with muslim population above 20% and select urban areas), if required @ Rs. 12,000/- per month per teacher | Z61: 0 | AA61: 0 | AB61: 0
A62: (e) | B62: 3 part time teachers @ Rs. 5,000/- per month per teacher | Z62: 0 | AA62: 0 | AB62: 0
A63: (f) | B63: 1 Full time Accountant @ Rs. 10,000/- per month | Z63: 0 | AA63: 0 | AB63: 0
A64: (g) | B64: 2 Support Staff – (Accountant/ Assistant, Peon, Chowkidar) @ Rs. 5,000/- per month per staff | Z64: 0 | AA64: 0 | AB64: 0
A65: (h) | B65: 1 Head cook @ Rs. 6,000/- per month and upto 2 Asstt. Cooks @ Rs. 4,500/- per month per cook | Z65: 0 | AA65: 0 | AB65: 0
A66: 2.27 | B66: Specific skill training per child @ Rs.1000/- per annum | Z66: 0 | AA66: 0 | AB66: 0
A67: 2.28 | B67: Electricity / water charges per child @Rs.1000/- per annum | Z67: 0 | AA67: 0 | AB67: 0
A68: 2.29 | B68: Medical care/contingencies @ Rs.1250/- per child per annum | Z68: 0 | AA68: 0 | AB68: 0
A69: 2.3 | B69: Maintenance @ Rs.750/- per child per annum | Z69: 0 | AA69: 0 | AB69: 0
A70: 2.31 | B70: Miscellaneous @ Rs.750/- per child per annum | Z70: 0 | AA70: 0 | AB70: 0
A71: 2.32 | B71: Preparatory camps @ Rs.200/- per child per annum | Z71: 0 | AA71: 0 | AB71: 0
A72: 2.33 | B72: P.T.A / school functions @ Rs.200/- per child per annum | Z72: 0 | AA72: 0 | AB72: 0
A73: 2.34 | B73: Provision of Rent @ Rs. 6000/- per child per annum | Z73: 0 | AA73: 0 | AB73: 0
A74: 2.35 | B74: Capacity Building @ Rs.500/- per child per annum | Z74: 0 | AA74: 0 | AB74: 0
A75: 2.36 | B75: Physical / Self Defence training @ Rs. 200/- per child per annum. | Z75: 0 | AA75: 0 | AB75: 0
B76: Sub Total (Recurring) | D76: =SUM(D54:D75) -> 0 | F76: =SUM(F54:F75) -> 0 | J76: =SUM(J54:J75) -> 0 | L76: =SUM(L54:L75) -> 0 | N76: =SUM(N54:N75) -> 0 | Q76: =SUM(Q54:Q75) -> 0 | S76: =SUM(S54:S75) -> 0 | U76: =SUM(U54:U75) -> 0 | W76: =SUM(W54:W75) -> 0 | Z76: =SUM(Z54:Z75) -> 0 | AB76: =SUM(AB54:AB75) -> 0
B77: Total (Recurring + Non Recurring) | D77: =D52+D76 -> 0 | F77: =F52+F76 -> 0 | J77: =J52+J76 -> 0 | L77: =L52+L76 -> 0 | N77: =N52+N76 -> 0 | Q77: =Q52+Q76 -> 0 | S77: =S52+S76 -> 0 | U77: =U52+U76 -> 0 | W77: =W52+W76 -> 0 | Z77: =Z52+Z76 -> 0 | AB77: =AB52+AB76 -> 0
B78: Total (50 + 100 children)
A79: 3 | B79: Residential Hostel for specific category of children
A80: (A) | B80: 50 children
B81: Non-recurring (one time grant)
A82: 3.01 | B82: Furniture/ Equipment (including kitchen) | O82: 2 | P82: 0 | Q82: =O82*P82 -> 0 | R82: =K82+M82+P82 -> 0 | S82: =L82+N82+Q82 -> 0 | Z82: =X82*Y82 -> 0 | AA82: =Y82 -> 0 | AB82: =U82+W82+Z82 -> 0
A83: =+A82+0.01 -> 3.02 | B83: TLM and equipment including library books | O83: 3 | P83: 0 | Q83: 0 | R83: =K83+M83+P83 -> 0 | S83: 0 | Z83: 0 | AA83: 0 | AB83: 0
A84: =+A83+0.01 -> 3.03 | B84: Bedding (new) | O84: 0.375 | P84: 0 | Q84: 0 | R84: 0 | S84: 0 | Z84: 0 | AA84: 0 | AB84: 0
A85: =+A84+0.01 -> 3.04 | B85: Replacement of bedding (once in 3 years) | Z85: 0 | AA85: 0 | AB85: 0
B86: Sub Total (Non Recurring) | D86: =SUM(D82:D85) -> 0 | F86: =SUM(F82:F85) -> 0 | J86: =SUM(J82:J85) -> 0 | L86: =SUM(L82:L85) -> 0 | N86: =SUM(N82:N85) -> 0 | P86: =SUM(P82:P85) -> 0 | Q86: =SUM(Q82:Q85) -> 0 | R86: =SUM(R82:R85) -> 0 | S86: =SUM(S82:S85) -> 0 | T86: =T82 -> 0 | U86: =SUM(U82:U85) -> 0 | V86: =V82 -> 0 | W86: =SUM(W82:W85) -> 0 | Y86: =Y82 -> 0 | Z86: =SUM(Z82:Z85) -> 0 | AA86: =AA82 -> 0 | AB86: =SUM(AB82:AB85) -> 0
B87: Recurring (50 children)
A88: 3.05 | B88: Maintenance per child Per month @ Rs.1500/- | Z88: =X88*Y88 -> 0 | AA88: =Y88 -> 0 | AB88: =U88+W88+Z88 -> 0
A89: =+A88+0.01 -> 3.06 | B89: Stipend per child per month @ Rs.100/- | Z89: 0 | AA89: 0 | AB89: 0
A90: =+A89+0.01 -> 3.07 | B90: Supplementary TLM, Stationery and other educational material @Rs.1000/- per child per annum | Z90: 0 | AA90: 0 | AB90: 0
B91: Salaries
A92: (a) | B92: 1 Warden @ Rs.25000/- per month | Z92: =X92*Y92 -> 0 | AA92: =Y92 -> 0 | AB92: =U92+W92+Z92 -> 0
A93: (b) | B93: 4 Fulltime teachers as per RTE Norms @ Rs. 20,000/- per month per teacher | Z93: 0 | AA93: 0 | AB93: 0
A94: (c) | B94: 2 Urdu Teachers (only for Blocks with muslim population above 20% and select urban areas) @ Rs.12,000/- per month per teacher. | Z94: 0 | AA94: 0 | AB94: 0
A95: (d) | B95: 3 Part time teachers @ Rs.5,000/- per month per teacher | Z95: 0 | AA95: 0 | AB95: 0
A96: (e) | B96: 1 Full time Accountant @ Rs. 10,000/- per month | Z96: 0 | AA96: 0 | AB96: 0
A97: (f) | B97: 2 Support staff - (Accountant/Assistant, Peon, Chowkidar) @ Rs. 5,000/- per month per staff | Z97: 0 | AA97: 0 | AB97: 0
A98: (g) | B98: 1 Head Cook @ Rs. 6,000/- per month and upto 2 Asstt. Cooks @ Rs. 4,500/- per month per cook | Z98: 0 | AA98: 0 | AB98: 0
A99: 3.08 | B99: Specific Skill training @ Rs.1000/- per annum per child | Z99: 0 | AA99: 0 | AB99: 0
A100: =+A99+0.01 -> 3.09 | B100: Electricity / water charges @ Rs. 1000/- per annum per child | Z100: 0 | AA100: 0 | AB100: 0
A101: 3.1 | B101: Medical care/contingencies @ Rs.1250/- per annum per child | Z101: 0 | AA101: 0 | AB101: 0
A102: 3.11 | B102: Maintenance @ Rs. 750/- per child per annum | Z102: 0 | AA102: 0 | AB102: 0
A103: 3.12 | B103: Miscellaneous @ Rs. 750/- per child per annum | Z103: 0 | AA103: 0 | AB103: 0
A104: 3.13 | B104: Preparatory camps @ Rs. 300/- per child per annum | Z104: 0 | AA104: 0 | AB104: 0
A105: 3.14 | B105: P.T.A / school functions @ Rs. 300/- per child per annum | Z105: 0 | AA105: 0 | AB105: 0
A106: 3.15 | B106: Provision of Rent @ Rs. 10,000/- per child per annum | Z106: 0 | AA106: 0 | AB106: 0
A107: 3.16 | B107: Capacity Building @ Rs. 500/- per child per annum | Z107: 0 | AA107: 0 | AB107: 0
A108: 3.17 | B108: Physical / Self Defence Training @ Rs.200/- per child per annum | Z108: 0 | AA108: 0 | AB108: 0
B109: Sub Total (Recurring) | D109: =SUM(D88:D108) -> 0 | F109: =SUM(F88:F108) -> 0 | J109: =SUM(J88:J108) -> 0 | L109: =SUM(L88:L108) -> 0 | N109: =SUM(N88:N108) -> 0 | P109: =SUM(P88:P108) -> 0 | Q109: 0 | R109: 0 | S109: 0 | T109: 0 | U109: 0 | V109: 0 | W109: 0 | Y109: =SUM(Y88:Y108) -> 0 | Z109: =SUM(Z88:Z108) -> 0 | AA109: =SUM(AA88:AA108) -> 0 | AB109: =SUM(AB88:AB108) -> 0
B110: Total (Non Recurring + Recurring) | D110: =D86+D109 -> 0 | F110: =F86+F109 -> 0 | J110: =J86+J109 -> 0 | L110: =L86+L109 -> 0 | N110: =N86+N109 -> 0 | P110: =P86+P109 -> 0 | Q110: 0 | R110: 0 | S110: 0 | T110: 0 | U110: 0 | V110: 0 | W110: 0 | Y110: =Y86+Y109 -> 0 | Z110: =Z86+Z109 -> 0 | AA110: =AA86+AA109 -> 0 | AB110: =AB86+AB109 -> 0
A111: (B) | B111: 100 Children
B112: Non-recurring (one time grant)
A113: 3.18 | B113: Furniture / Equipment (including kitchen equipment) | O113: 3 | P113: 0 | Q113: =O113*P113 -> 0 | R113: =K113+M113+P113 -> 0 | S113: 0 | Z113: =X113*Y113 -> 0 | AA113: =Y113 -> 0 | AB113: =U113+W113+Z113 -> 0
A114: =+A113+0.01 -> 3.19 | B114: TLM and equipment including library books (New) | O114: 3.5 | P114: 0 | Q114: =O114*P114 -> 0 | R114: 0 | S114: 0 | Z114: 0 | AA114: 0 | AB114: 0
A115: =+A114+0.01 -> 3.2 | B115: Bedding (New) | O115: 0.75 | P115: 0 | Q115: 0 | R115: 0 | S115: 0 | Z115: 0 | AA115: 0 | AB115: 0
A116: =+A115+0.01 -> 3.21 | B116: Replacement of bedding (once in 3 years) | Z116: 0 | AA116: 0 | AB116: 0
B117: Sub Total Non-recurring | C117: =C113 -> 0 | D117: =SUM(D113:D116) -> 0 | E117: =E113 -> 0 | F117: =SUM(F113:F116) -> 0 | I117: =I113 -> 0 | J117: =SUM(J113:J116) -> 0 | K117: =K113 -> 0 | L117: =SUM(L113:L116) -> 0 | M117: =M113 -> 0 | N117: =SUM(N113:N116) -> 0 | P117: =P113 -> 0 | Q117: =SUM(Q113:Q116) -> 0 | R117: =R113 -> 0 | S117: =SUM(S113:S116) -> 0 | T117: =T113 -> 0 | U117: =SUM(U113:U116) -> 0 | V117: =V113 -> 0 | W117: =SUM(W113:W116) -> 0 | Y117: =Y113 -> 0 | Z117: =SUM(Z113:Z116) -> 0 | AA117: =AA113 -> 0 | AB117: =SUM(AB113:AB116) -> 0
B118: Recurring
A119: 3.22 | B119: Maintenance per child per month @ Rs. 1500/- | Z119: =X119*Y119 -> 0 | AA119: =Y119 -> 0 | AB119: =U119+W119+Z119 -> 0
A120: =+A119+0.01 -> 3.23 | B120: Stipend per child per month @ Rs.100/- | Z120: 0 | AA120: 0 | AB120: 0
A121: =+A120+0.01 -> 3.24 | B121: Supplementary TLM, Stationery and other educational material per child @1000/- per annum | Z121: 0 | AA121: 0 | AB121: 0
B122: Salaries
A123: (a) | B123: 1 Warden @ Rs. 25,000/- per month | Z123: =X123*Y123 -> 0 | AA123: =Y123 -> 0 | AB123: =U123+W123+Z123 -> 0
A124: (b) | B124: 1 head teacher @ Rs. 25,000/- per month in case the enrollment exceeds 100 | Z124: 0 | AA124: 0 | AB124: 0
A125: (c) | B125: 4 - 5 Full time teachers as per RTE norms @ Rs. 20,000/- per month per teacher | Z125: 0 | AA125: 0 | AB125: 0
A126: (d) | B126: 2 Urdu Teachers (only for blocks with muslim population above 20% and select urban areas), if required @ Rs. 12,000/- per month per teacher | Z126: 0 | AA126: 0 | AB126: 0
A127: (e) | B127: 3 part time teachers @ Rs. 5,000/- per month per teacher | Z127: 0 | AA127: 0 | AB127: 0
A128: (f) | B128: 1 Full time Accountant @ Rs. 10,000/- per month | Z128: 0 | AA128: 0 | AB128: 0
A129: 3.25 | B129: 2 Support Staff – (Accountant/ Assistant, Peon, Chowkidar) @ Rs. 5,000/- per month per staff | Z129: 0 | AA129: 0 | AB129: 0
A130: =+A129+0.01 -> 3.26 | B130: 1 Head cook @ Rs. 6,000/- per month and upto 2 Asstt. Cooks @ Rs. 4,500/- per month per cook | Z130: 0 | AA130: 0 | AB130: 0
A131: 3.27 | B131: Specific skill training per child @ Rs.1000/- per annum | Z131: 0 | AA131: 0 | AB131: 0
A132: 3.28 | B132: Electricity / water charges per child @Rs.1000/- per annum | Z132: 0 | AA132: 0 | AB132: 0
A133: 3.29 | B133: Medical care/contingencies @ Rs.1250/- per child per annum | Z133: 0 | AA133: 0 | AB133: 0
A134: 3.3 | B134: Maintenance @ Rs.750/- per child per annum | Z134: 0 | AA134: 0 | AB134: 0
A135: 3.31 | B135: Miscellaneous @ Rs.750/- per child per annum | Z135: 0 | AA135: 0 | AB135: 0
A136: 3.32 | B136: Preparatory camps @ Rs.200/- per child per annum | Z136: 0 | AA136: 0 | AB136: 0
A137: 3.33 | B137: P.T.A / school functions @ Rs.200/- per child per annum | Z137: 0 | AA137: 0 | AB137: 0
A138: 3.34 | B138: Provision of Rent @ Rs. 6000/- per child per annum | Z138: 0 | AA138: 0 | AB138: 0
A139: 3.35 | B139: Capacity Building @ Rs.500/- per child per annum | Z139: 0 | AA139: 0 | AB139: 0
A140: 3.36 | B140: Physical / Self Defence training @ Rs. 200/- per child per annum. | Z140: 0 | AA140: 0 | AB140: 0
B141: Sub Total (Recurring) | D141: =SUM(D119:D140) -> 0 | F141: =SUM(F119:F140) -> 0 | J141: =SUM(J119:J140) -> 0 | L141: =SUM(L119:L140) -> 0 | N141: =SUM(N119:N140) -> 0 | Q141: =SUM(Q119:Q140) -> 0 | S141: =SUM(S119:S140) -> 0 | U141: =SUM(U119:U140) -> 0 | W141: =SUM(W119:W140) -> 0 | Z141: =SUM(Z119:Z140) -> 0 | AB141: =SUM(AB119:AB140) -> 0
B142: Total (Recurring + Non Recurring) | D142: =D117+D141 -> 0 | F142: =F117+F141 -> 0 | J142: =J117+J141 -> 0 | L142: =L117+L141 -> 0 | N142: =N117+N141 -> 0 | P142: =P117+P141 -> 0 | Q142: 0 | R142: 0 | S142: 0 | T142: 0 | U142: 0 | V142: 0 | W142: 0 | Y142: =Y117+Y141 -> 0 | Z142: =Z117+Z141 -> 0 | AA142: =AA117+AA141 -> 0 | AB142: =AB117+AB141 -> 0
B143: Total (A + B) | D143: =D110+D142 -> 0 | F143: =F110+F142 -> 0 | J143: =J110+J142 -> 0 | L143: =L110+L142 -> 0 | N143: =N110+N142 -> 0 | P143: =P110+P142 -> 0 | Q143: =Q110+Q142 -> 0 | S143: =S110+S142 -> 0 | U143: =U110+U142 -> 0 | W143: =W110+W142 -> 0 | Z143: =Z110+Z142 -> 0 | AB143: =AB110+AB142 -> 0
A144: 4 | B144: Transport/Escort Facility
A145: 4.01 | B145: Children in remote habitation | C145: 0 | D145: 0 | E145: 0 | F145: 0 | G145: =E145/C145*100 ->  | H145: =F145/D145*100 ->  | I145: =C145-E145 -> 0 | J145: =D145-F145 -> 0 | O145: 0.03 | P145: 120 | Q145: =O145*P145 -> 3.6 | R145: =K145+M145+P145 -> 120 | S145: =L145+N145+Q145 -> 3.6 | X145: 0.03 | Y145: 120 | Z145: =X145*Y145 -> 3.6 | AA145: =Y145 -> 120 | AB145: =U145+W145+Z145 -> 3.6
A146: 4.02 | B146: Urban deprived children/children without adult protection | Z146: 0 | AA146: 0 | AB146: 0
B147: Sub Total | C147: =SUM(C145:C146) -> 0 | D147: =SUM(D145:D146) -> 0 | E147: =SUM(E145:E146) -> 0 | F147: =SUM(F145:F146) -> 0 | G147: =E147/C147*100 ->  | H147: =F147/D147*100 ->  | I147: =SUM(I145:I146) -> 0 | J147: 0 | K147: 0 | L147: 0 | M147: 0 | N147: 0 | P147: =SUM(P145:P146) -> 120 | Q147: 3.6 | R147: 120 | S147: 3.6 | T147: 0 | U147: 0 | V147: 0 | W147: 0 | Y147: =SUM(Y145:Y146) -> 120 | Z147: =SUM(Z145:Z146) -> 3.6 | AA147: =SUM(AA145:AA146) -> 120 | AB147: =SUM(AB145:AB146) -> 3.6
A148: 5 | B148: Reimbursement of Fee against 25% admission under Section 12(1)(c) of RTE Act 2009 (Entry Level) subject to upper limit of 20% of AWP&B subject to guidelines issued by MHRD | Z148: =X148*Y148 -> 0 | AA148: =Y148 -> 0 | AB148: =U148+W148+Z148 -> 0
B149: Sub Total | C149: =C148 -> 0 | D149: =D148 -> 0 | E149: =E148 -> 0 | F149: =F148 -> 0 | I149: =I148 -> 0 | J149: 0 | K149: 0 | L149: 0 | M149: 0 | N149: 0 | P149: =P148 -> 0 | Q149: 0 | R149: 0 | S149: 0 | T149: 0 | U149: 0 | V149: 0 | W149: 0 | Y149: =Y148 -> 0 | Z149: =Z148 -> 0 | AA149: =AA148 -> 0 | AB149: =AB148 -> 0
A150: =+A148+1 -> 6 | B150: Special Training for mainstreaming of out of school children
A151: 6.01 | B151: Residential (Fresh)
B152: (a) 12 months | Z152: =X152*Y152 -> 0 | AA152: =Y152 -> 0 | AB152: =U152+W152+Z152 -> 0
B153: (b) 9 months | Z153: 0 | AA153: 0 | AB153: 0
B154: (c) 6 months | Z154: 0 | AA154: 0 | AB154: 0
B155: (d) 3 months | Z155: 0 | AA155: 0 | AB155: 0
B156: Sub Total | C156: =SUM(C152:C155) -> 0 | D156: =SUM(D152:D155) -> 0 | E156: =SUM(E152:E155) -> 0 | F156: =SUM(F152:F155) -> 0 | I156: =SUM(I152:I155) -> 0 | J156: 0 | K156: 0 | L156: 0 | M156: 0 | N156: 0 | P156: =SUM(P152:P155) -> 0 | Q156: =SUM(Q152:Q155) -> 0 | R156: =SUM(R152:R155) -> 0 | S156: =SUM(S152:S155) -> 0 | T156: =SUM(T152:T155) -> 0 | U156: 0 | V156: 0 | W156: 0 | Y156: =SUM(Y152:Y155) -> 0 | Z156: 0 | AA156: 0 | AB156: 0
A157: =+A151+0.01 -> 6.02 | B157: Residential (Continuing from previous year)
B158: (a) 12 months | Z158: =X158*Y158 -> 0 | AA158: =Y158 -> 0 | AB158: =U158+W158+Z158 -> 0
B159: (b) 9 months | Z159: 0 | AA159: 0 | AB159: 0
B160: (c) 6 months | Z160: 0 | AA160: 0 | AB160: 0
B161: (d) 3 months | Z161: 0 | AA161: 0 | AB161: 0
B162: Sub Total | C162: =SUM(C158:C161) -> 0 | D162: =SUM(D158:D161) -> 0 | E162: =SUM(E158:E161) -> 0 | F162: =SUM(F158:F161) -> 0 | I162: =SUM(I158:I161) -> 0 | J162: 0 | K162: 0 | L162: 0 | M162: 0 | N162: 0 | P162: =SUM(P158:P161) -> 0 | Q162: 0 | R162: 0 | S162: 0 | T162: 0 | U162: 0 | V162: 0 | W162: 0 | Y162: =SUM(Y158:Y161) -> 0 | Z162: 0 | AA162: 0 | AB162: 0
A163: 6.03 | B163: Non-Residential (Fresh)
B164: (a) 12 months | C164: 0 | D164: 0 | E164: 0 | F164: 0 | G164: =E164/C164*100 ->  | H164: =F164/D164*100 ->  | I164: =C164-E164 -> 0 | J164: =D164-F164 -> 0 | O164: 0.06 | P164: 24 | Q164: =O164*P164 -> 1.44 | R164: =K164+M164+P164 -> 24 | S164: =L164+N164+Q164 -> 1.44 | X164: 0.06 | Y164: 24 | Z164: =X164*Y164 -> 1.44 | AA164: =Y164 -> 24 | AB164: =U164+W164+Z164 -> 1.44
B165: (b) 9 months | C165: 11 | D165: 0.495 | E165: 11 | F165: 0.495 | G165: =E165/C165*100 -> 100 | H165: =F165/D165*100 -> 100 | I165: =C165-E165 -> 0 | J165: =D165-F165 -> 0 | O165: 0 | P165: 0 | Q165: =O165*P165 -> 0 | R165: =K165+M165+P165 -> 0 | S165: =L165+N165+Q165 -> 0 | X165: 0 | Y165: 0 | Z165: 0 | AA165: 0 | AB165: 0
B166: (c) 6 months | Q166: =O166*P166 -> 0 | R166: 0 | S166: 0 | Z166: 0 | AA166: 0 | AB166: 0
B167: (d) 3 months | Q167: =O167*P167 -> 0 | R167: 0 | S167: 0 | Z167: 0 | AA167: 0 | AB167: 0
B168: Sub Total | C168: =SUM(C164:C167) -> 11 | D168: =SUM(D164:D167) -> 0.495 | E168: =SUM(E164:E167) -> 11 | F168: =SUM(F164:F167) -> 0.495 | G168: =E168/C168*100 -> 100 | H168: =F168/D168*100 -> 100 | I168: =SUM(I164:I167) -> 0 | J168: 0 | K168: 0 | L168: 0 | M168: 0 | N168: 0 | P168: =SUM(P164:P167) -> 24 | Q168: 1.44 | R168: 24 | S168: 1.44 | T168: 0 | U168: 0 | V168: 0 | W168: 0 | Y168: =SUM(Y164:Y167) -> 24 | Z168: 1.44 | AA168: 24 | AB168: 1.44
A169: 6.04 | B169: Non-Residential (Continuing from previous year)
B170: (a) 12 months | C170: 0 | D170: 0 | E170: 0 | F170: 0 | O170: 0 | P170: 0 | Q170: =O170*P170 -> 0 | R170: =P170 -> 0 | S170: =L170+N170+Q170 -> 0 | X170: 0 | Y170: 0 | Z170: =X170*Y170 -> 0 | AA170: =Y170 -> 0 | AB170: =U170+W170+Z170 -> 0
B171: (b) 9 months | O171: 0.045 | P171: 4 | Q171: =P171*O171 -> 0.18 | R171: =P171 -> 4 | S171: =L171+N171+Q171 -> 0.18 | X171: 0.045 | Y171: 4 | Z171: =Y171*X171 -> 0.18 | AA171: 4 | AB171: 0.18
B172: (c) 6 months | R172: 0 | S172: 0 | Z172: 0 | AA172: 0 | AB172: 0
B173: (d) 3 months | R173: 0 | S173: 0 | Z173: 0 | AA173: 0 | AB173: 0
B174: Sub Total | C174: =SUM(C170:C173) -> 0 | D174: =SUM(D170:D173) -> 0 | E174: =SUM(E170:E173) -> 0 | F174: =SUM(F170:F173) -> 0 | I174: =SUM(I170:I173) -> 0 | J174: 0 | K174: 0 | L174: 0 | M174: 0 | N174: 0 | P174: =SUM(P170:P173) -> 4 | Q174: 0.18 | R174: 4 | S174: 0.18 | T174: 0 | U174: 0 | V174: 0 | W174: 0 | Y174: =SUM(Y170:Y173) -> 4 | Z174: 0.18 | AA174: 4 | AB174: 0.18
A175: 6.05 | B175: Madarasa/Maktab
B176: (a) 12 months | Z176: =X176*Y176 -> 0 | AA176: =Y176 -> 0 | AB176: =U176+W176+Z176 -> 0
B177: (b) 9 months | Z177: 0 | AA177: 0 | AB177: 0
B178: (c) 6 months | Z178: 0 | AA178: 0 | AB178: 0
B179: (d) 3 months | Z179: 0 | AA179: 0 | AB179: 0
B180: Sub Total | C180: =SUM(C176:C179) -> 0 | D180: =SUM(D176:D179) -> 0 | E180: =SUM(E176:E179) -> 0 | F180: =SUM(F176:F179) -> 0 | I180: =SUM(I176:I179) -> 0 | J180: 0 | K180: 0 | L180: 0 | M180: 0 | N180: 0 | P180: =SUM(P176:P179) -> 0 | Q180: 0 | R180: 0 | S180: 0 | T180: 0 | U180: 0 | V180: 0 | W180: 0 | Y180: =SUM(Y176:Y179) -> 0 | Z180: 0 | AA180: 0 | AB180: 0
A181: 6.06 | B181: Seasonal Hostel (Residential)
B182: (a) 12 months | Z182: =X182*Y182 -> 0 | AA182: =Y182 -> 0 | AB182: =U182+W182+Z182 -> 0
B183: (b) 9 months | Z183: 0 | AA183: 0 | AB183: 0
B184: (c) 6 months | Z184: 0 | AA184: 0 | AB184: 0
B185: (d) 3 months | Z185: 0 | AA185: 0 | AB185: 0
B186: Sub Total | C186: =SUM(C182:C185) -> 0 | D186: =SUM(D182:D185) -> 0 | E186: =SUM(E182:E185) -> 0 | F186: =SUM(F182:F185) -> 0 | I186: =SUM(I182:I185) -> 0 | J186: 0 | K186: 0 | L186: 0 | M186: 0 | N186: 0 | P186: =SUM(P182:P185) -> 0 | Q186: 0 | R186: 0 | S186: 0 | T186: 0 | U186: 0 | V186: 0 | W186: 0 | Y186: =SUM(Y182:Y185) -> 0 | Z186: 0 | AA186: 0 | AB186: 0
A187: 6.07 | B187: Seasonal Hostel (Non Residential)
B188: (a) 12 months | Z188: =X188*Y188 -> 0 | AA188: =Y188 -> 0 | AB188: =U188+W188+Z188 -> 0
B189: (b) 9 months | Z189: 0 | AA189: 0 | AB189: 0
B190: (c) 6 months | Z190: 0 | AA190: 0 | AB190: 0
B191: (d) 3 months | Z191: 0 | AA191: 0 | AB191: 0
B192: Sub Total | C192: =SUM(C188:C191) -> 0 | D192: =SUM(D188:D191) -> 0 | E192: =SUM(E188:E191) -> 0 | F192: =SUM(F188:F191) -> 0 | I192: =SUM(I188:I191) -> 0 | J192: 0 | K192: 0 | L192: 0 | M192: 0 | N192: 0 | P192: =SUM(P188:P191) -> 0 | Q192: 0 | R192: 0 | S192: 0 | T192: 0 | U192: 0 | V192: 0 | W192: 0 | Y192: =SUM(Y188:Y191) -> 0 | Z192: 0 | AA192: 0 | AB192: 0
B193: Total | C193: =C162+C168+C174+C180+C186+C192 -> 11 | D193: =D156+D162+D168+D174+D180+D186+D192 -> 0.495 | E193: =E162+E168+E174+E180+E186+E192 -> 11 | F193: =F156+F162+F168+F174+F180+F186+F192 -> 0.495 | G193: =E193/C193*100 -> 100 | H193: =F193/D193*100 -> 100 | I193: =I162+I168+I174+I180+I186+I192 -> 0 | J193: =J156+J162+J168+J174+J180+J186+J192 -> 0 | K193: =K162+K168+K174+K180+K186+K192 -> 0 | L193: =L156+L162+L168+L174+L180+L186+L192 -> 0 | M193: =M162+M168+M174+M180+M186+M192 -> 0 | N193: =N156+N162+N168+N174+N180+N186+N192 -> 0 | P193: =P162+P168+P174+P180+P186+P192 -> 28 | Q193: =Q156+Q162+Q168+Q174+Q180+Q186+Q192 -> 1.62 | R193: =R162+R168+R174+R180+R186+R192 -> 28 | S193: =S156+S162+S168+S174+S180+S186+S192 -> 1.62 | T193: =T162+T168+T174+T180+T186+T192 -> 0 | U193: =U156+U162+U168+U174+U180+U186+U192 -> 0 | V193: =V162+V168+V174+V180+V186+V192 -> 0 | W193: =W156+W162+W168+W174+W180+W186+W192 -> 0 | Y193: =Y162+Y168+Y174+Y180+Y186+Y192 -> 28 | Z193: =Z156+Z162+Z168+Z174+Z180+Z186+Z192 -> 1.62 | AA193: =AA162+AA168+AA174+AA180+AA186+AA192 -> 28 | AB193: =AB156+AB162+AB168+AB174+AB180+AB186+AB192 -> 1.62
A194: II | B194: RETENTION
A195: 7 | B195: Free Text Books
A196: 7.01 | B196: Free Text Books (P)
B197: (a) Class I & II | C197: 5250 | D197: 7.875 | E197: 5250 | F197: 7.875 | G197: =E197/C197*100 -> 100 | H197: =F197/D197*100 -> 100 | I197: =C197-E197 -> 0 | J197: =D197-F197 -> 0 | N197: 0 | O197: 0.0025 | P197: 10188 | Q197: =O197*P197 -> 25.47 | R197: =K197+M197+P197 -> 10188 | S197: 25.47 | X197: 0.0015 | Y197: 10188 | Z197: =X197*Y197 -> 15.282 | AA197: =Y197 -> 10188 | AB197: =U197+W197+Z197 -> 15.282
B198: (b) Braille Books I & II | C198: 5 | D198: 0.0075 | E198: 5 | F198: 0.0075 | G198: 100 | H198: 100 | I198: 0 | J198: 0 | O198: 0.0025 | P198: 5 | Q198: =O198*P198 -> 0.0125 | R198: 5 | S198: 0.0125 | X198: 0.0015 | Y198: 5 | Z198: 0.0075 | AA198: 5 | AB198: 0.0075
B199: (c) Large Print Books I & II | C199: 0 | D199: 0 | E199: 0 | F199: 0 | I199: 0 | J199: 0 | O199: 0.0025 | P199: 8 | Q199: =O199*P199 -> 0.02 | R199: 8 | S199: 0.02 | X199: 0.0015 | Y199: 8 | Z199: 0.012 | AA199: 8 | AB199: 0.012
B200: (d) Class III to V | C200: 19000 | D200: 28.5 | E200: 19000 | F200: 28.5 | G200: 100 | H200: 100 | I200: 0 | J200: 0 | O200: 0.0025 | P200: 10516 | Q200: =O200*P200 -> 26.29 | R200: =K200+M200+P200 -> 10516 | S200: 26.29 | X200: 0.0015 | Y200: 10516 | Z200: 15.774 | AA200: 10516 | AB200: 15.774
... 326 more rows

Sheet ALP
A1: S.No. | B1: Activity | C1: Year 2016-17 | K1: Outlay Proposed for 2017-18 | T1: Outlay Recommended for 2017-18
C2: Outlay approved by PAB (including spillover) | E2: Achievement | I2: Savings | K2: Spill Over | M2: Deferred laibility of 2016-17 | O2: Fresh | R2: Total | T2: Spill Over | V2: Deferred laibility of 2016-17 | X2: Fresh | AA2: Total
C3: Phy. | D3: Fin | E3: Phy. | F3: Fin. | G3: Phy. (%) | H3: Fin. (%) | I3: Phy. | J3: Fin. | K3: Phy. | L3: Fin. | M3: Phy. | N3: Fin. | O3: Unit Cost | P3: Phy. | Q3: Fin. | R3: Phy. | S3: Fin. | T3: Phy. | U3: Fin. | V3: Phy. | W3: Fin. | X3: Unit Cost | Y3: Phy. | Z3: Fin. | AA3: Phy. | AB3: Fin.
A4: I | B4: ACCESS
B5: SSA
A6: 1 | B6: Opening of New Schools
A7: 1.01 | B7: New Primary School | AA7: =Y7 -> 0
A8: 1.02 | B8: Upgradation of PS to UPS | AA8: =Y8 -> 0
A9: 1.03 | B9: Composite Schools | AA9: 0
A10: 1.04 | B10: Residential schools for specific category of children | AA10: 0
A11: 1.05 | B11: Residential Hostel | AA11: 0
A12: 1.06 | B12: Integration of Class V with primary schools | AA12: 0
A13: 1.07 | B13: Integration of Class VIII with upper primary schools | AA13: 0
A14: 2 | B14: Residential Schools for specific category of children
B15: 50 children
B16: Non-recurring (one time grant)
A17: 2.01 | B17: Furniture/ Equipment (including kitchen) | P17: 0 | Q17: 0 | Z17: =X17*Y17 -> 0 | AA17: =Y17 -> 0 | AB17: =U17+W17+Z17 -> 0
A18: 2.02 | B18: TLM and equipment including library books | P18: 0 | Q18: 0 | Z18: =X18*Y18 -> 0 | AA18: =Y18 -> 0 | AB18: =U18+W18+Z18 -> 0
A19: 2.03 | B19: Bedding (new) | P19: 0 | Q19: 0 | Z19: 0 | AA19: 0 | AB19: 0
A20: 2.04 | B20: Replacement of bedding (once in 3 years) | Z20: 0 | AA20: 0 | AB20: 0
B21: Sub Total (Non Recurring) | D21: =SUM(D17:D20) -> 0 | F21: =SUM(F17:F20) -> 0 | J21: =SUM(J17:J20) -> 0 | L21: =SUM(L17:L20) -> 0 | N21: =SUM(N17:N20) -> 0 | P21: =SUM(P17:P20) -> 0 | Q21: =SUM(Q17:Q20) -> 0 | R21: =SUM(R17:R20) -> 0 | S21: =SUM(S17:S20) -> 0 | U21: =SUM(U17:U20) -> 0 | W21: =SUM(W17:W20) -> 0 | Z21: =SUM(Z17:Z20) -> 0 | AB21: =SUM(AB17:AB20) -> 0
B22: Recurring (50 children)
A23: 2.05 | B23: Maintenance per child Per month @ Rs.1500/- | Z23: =X23*Y23 -> 0 | AA23: =Y23 -> 0 | AB23: =U23+W23+Z23 -> 0
A24: 2.06 | B24: Stipend per child per month @ Rs.100/- | Z24: 0 | AA24: 0 | AB24: 0
A25: 2.07 | B25: Supplementary TLM, Stationery and other educational material @Rs.1000/- per child per annum | Z25: 0 | AA25: 0 | AB25: 0
A26: 2.08 | B26: Salaries
A27: (a) | B27: 1 Warden @ Rs.25000/- per month | Z27: =X27*Y27 -> 0 | AA27: =Y27 -> 0 | AB27: =U27+W27+Z27 -> 0
A28: (b) | B28: 4 Fulltime teachers as per RTE Norms @ Rs. 20,000/- per month per teacher | Z28: 0 | AA28: 0 | AB28: 0
A29: (c) | B29: 2 Urdu Teachers (only for Blocks with muslim population above 20% and select urban areas) @ Rs.12,000/- per month per teacher. | Z29: 0 | AA29: 0 | AB29: 0
A30: (d) | B30: 3 Part time teachers @ Rs.5,000/- per month per teacher | Z30: 0 | AA30: 0 | AB30: 0
A31: (e) | B31: 1 Full time Accountant @ Rs. 10,000/- per month | Z31: 0 | AA31: 0 | AB31: 0
A32: (f) | B32: 2 Support staff - (Accountant/Assistant, Peon, Chowkidar) @ Rs. 5,000/- per month per staff | Z32: 0 | AA32: 0 | AB32: 0
A33: (g) | B33: 1 Head Cook @ Rs. 6,000/- per month and upto 2 Asstt. Cooks @ Rs. 4,500/- per month per cook | Z33: 0 | AA33: 0 | AB33: 0
A34: 2.09 | B34: Specific Skill training @ Rs.1000/- per annum per child | Z34: 0 | AA34: 0 | AB34: 0
A35: 2.1 | B35: Electricity / water charges @ Rs. 1000/- per annum per child | Z35: 0 | AA35: 0 | AB35: 0
A36: =+A35+0.01 -> 2.11 | B36: Medical care/contingencies @ Rs.1250/- per annum per child | Z36: =X36*Y36 -> 0 | AA36: =Y36 -> 0 | AB36: =U36+W36+Z36 -> 0
A37: =+A36+0.01 -> 2.12 | B37: Maintenance @ Rs. 750/- per child per annum | Z37: 0 | AA37: 0 | AB37: 0
A38: 2.13 | B38: Miscellaneous @ Rs. 750/- per child per annum | Z38: 0 | AA38: 0 | AB38: 0
A39: 2.14 | B39: Preparatory camps @ Rs. 300/- per child per annum | Z39: 0 | AA39: 0 | AB39: 0
A40: 2.15 | B40: P.T.A / school functions @ Rs. 300/- per child per annum | Z40: 0 | AA40: 0 | AB40: 0
A41: 2.16 | B41: Provision of Rent @ Rs. 10,000/- per child per annum | Z41: 0 | AA41: 0 | AB41: 0
A42: 2.17 | B42: Capacity Building @ Rs. 500/- per child per annum | Z42: 0 | AA42: 0 | AB42: 0
A43: 2.18 | B43: Physical / Self Defence Training @ Rs.200/- per child per annum | Z43: 0 | AA43: 0 | AB43: 0
B44: Sub Total (Recurring) | D44: =SUM(D23:D43) -> 0 | F44: =SUM(F23:F43) -> 0 | J44: =SUM(J23:J43) -> 0 | L44: =SUM(L23:L43) -> 0 | N44: =SUM(N23:N43) -> 0 | Q44: =SUM(Q23:Q43) -> 0 | S44: =SUM(S23:S43) -> 0 | U44: =SUM(U23:U43) -> 0 | W44: =SUM(W23:W43) -> 0 | Z44: =SUM(Z23:Z43) -> 0 | AB44: =SUM(AB23:AB43) -> 0
B45: Total (Non Recurring + Recurring) | D45: =D21+D44 -> 0 | F45: =F21+F44 -> 0 | J45: =J21+J44 -> 0 | L45: =L21+L44 -> 0 | N45: =N21+N44 -> 0 | Q45: =Q21+Q44 -> 0 | S45: =S21+S44 -> 0 | U45: =U21+U44 -> 0 | W45: =W21+W44 -> 0 | Z45: =Z21+Z44 -> 0 | AB45: =AB21+AB44 -> 0
B46: 100 children
B47: Non-recurring (one time grant)
A48: 2.19 | B48: Furniture / Equipment (including kitchen equipment) | Z48: =X48*Y48 -> 0 | AA48: =Y48 -> 0 | AB48: =U48+W48+Z48 -> 0
A49: =+A48+0.01 -> 2.2 | B49: TLM and equipment including library books (New) | Z49: 0 | AA49: 0 | AB49: 0
A50: =+A49+0.01 -> 2.21 | B50: Bedding (New) | Z50: 0 | AA50: 0 | AB50: 0
A51: =+A50+0.01 -> 2.22 | B51: Replacement of bedding (once in 3 years) | Z51: 0 | AA51: 0 | AB51: 0
B52: Sub Total Non-recurring | D52: =SUM(D48:D51) -> 0 | F52: =SUM(F48:F51) -> 0 | J52: =SUM(J48:J51) -> 0 | L52: =SUM(L48:L51) -> 0 | N52: =SUM(N48:N51) -> 0 | Q52: =SUM(Q48:Q51) -> 0 | S52: =SUM(S48:S51) -> 0 | U52: =SUM(U48:U51) -> 0 | W52: =SUM(W48:W51) -> 0 | Z52: =SUM(Z48:Z51) -> 0 | AB52: =SUM(AB48:AB51) -> 0
B53: Recurring
A54: 2.23 | B54: Maintenance per child per month @ Rs. 1500/- | Z54: =X54*Y54 -> 0 | AA54: =Y54 -> 0 | AB54: =U54+W54+Z54 -> 0
A55: =+A54+0.01 -> 2.24 | B55: Stipend per child per month @ Rs.100/- | Z55: 0 | AA55: 0 | AB55: 0
A56: 2.25 | B56: Supplementary TLM, Stationery and other educational material per child @1000/- per annum | Z56: 0 | AA56: 0 | AB56: 0
A57: 2.26 | B57: Salaries
A58: (a) | B58: 1 Warden @ Rs. 25,000/- per month | Z58: =X58*Y58 -> 0 | AA58: =Y58 -> 0 | AB58: =U58+W58+Z58 -> 0
A59: (b) | B59: 1 head teacher @ Rs. 25,000/- per month in case the enrollment exceeds 100 | Z59: 0 | AA59: 0 | AB59: 0
A60: (c) | B60: 4 - 5 Full time teachers as per RTE norms @ Rs. 20,000/- per month per teacher | Z60: 0 | AA60: 0 | AB60: 0
A61: (d) | B61: 2 Urdu Teachers (only for blocks with muslim population above 20% and select urban areas), if required @ Rs. 12,000/- per month per teacher | Z61: 0 | AA61: 0 | AB61: 0
A62: (e) | B62: 3 part time teachers @ Rs. 5,000/- per month per teacher | Z62: 0 | AA62: 0 | AB62: 0
A63: (f) | B63: 1 Full time Accountant @ Rs. 10,000/- per month | Z63: 0 | AA63: 0 | AB63: 0
A64: (g) | B64: 2 Support Staff – (Accountant/ Assistant, Peon, Chowkidar) @ Rs. 5,000/- per month per staff | Z64: 0 | AA64: 0 | AB64: 0
A65: (h) | B65: 1 Head cook @ Rs. 6,000/- per month and upto 2 Asstt. Cooks @ Rs. 4,500/- per month per cook | Z65: 0 | AA65: 0 | AB65: 0
A66: 2.27 | B66: Specific skill training per child @ Rs.1000/- per annum | Z66: 0 | AA66: 0 | AB66: 0
A67: 2.28 | B67: Electricity / water charges per child @Rs.1000/- per annum | Z67: 0 | AA67: 0 | AB67: 0
A68: 2.29 | B68: Medical care/contingencies @ Rs.1250/- per child per annum | Z68: 0 | AA68: 0 | AB68: 0
A69: 2.3 | B69: Maintenance @ Rs.750/- per child per annum | Z69: 0 | AA69: 0 | AB69: 0
A70: 2.31 | B70: Miscellaneous @ Rs.750/- per child per annum | Z70: 0 | AA70: 0 | AB70: 0
A71: 2.32 | B71: Preparatory camps @ Rs.200/- per child per annum | Z71: 0 | AA71: 0 | AB71: 0
A72: 2.33 | B72: P.T.A / school functions @ Rs.200/- per child per annum | Z72: 0 | AA72: 0 | AB72: 0
A73: 2.34 | B73: Provision of Rent @ Rs. 6000/- per child per annum | Z73: 0 | AA73: 0 | AB73: 0
A74: 2.35 | B74: Capacity Building @ Rs.500/- per child per annum | Z74: 0 | AA74: 0 | AB74: 0
A75: 2.36 | B75: Physical / Self Defence training @ Rs. 200/- per child per annum. | Z75: 0 | AA75: 0 | AB75: 0
B76: Sub Total (Recurring) | D76: =SUM(D54:D75) -> 0 | F76: =SUM(F54:F75) -> 0 | J76: =SUM(J54:J75) -> 0 | L76: =SUM(L54:L75) -> 0 | N76: =SUM(N54:N75) -> 0 | Q76: =SUM(Q54:Q75) -> 0 | S76: =SUM(S54:S75) -> 0 | U76: =SUM(U54:U75) -> 0 | W76: =SUM(W54:W75) -> 0 | Z76: =SUM(Z54:Z75) -> 0 | AB76: =SUM(AB54:AB75) -> 0
B77: Total (Recurring + Non Recurring) | D77: =D52+D76 -> 0 | F77: =F52+F76 -> 0 | J77: =J52+J76 -> 0 | L77: =L52+L76 -> 0 | N77: =N52+N76 -> 0 | Q77: =Q52+Q76 -> 0 | S77: =S52+S76 -> 0 | U77: =U52+U76 -> 0 | W77: =W52+W76 -> 0 | Z77: =Z52+Z76 -> 0 | AB77: =AB52+AB76 -> 0
B78: Total (50 + 100 children)
A79: 3 | B79: Residential Hostel for specific category of children
A80: (A) | B80: 50 children
B81: Non-recurring (one time grant)
A82: 3.01 | B82: Furniture/ Equipment (including kitchen) | O82: 2 | P82: 0 | Q82: =O82*P82 -> 0 | Z82: =X82*Y82 -> 0 | AA82: =Y82 -> 0 | AB82: =U82+W82+Z82 -> 0
A83: =+A82+0.01 -> 3.02 | B83: TLM and equipment including library books | O83: 3 | P83: 0 | Q83: 0 | Z83: 0 | AA83: 0 | AB83: 0
A84: =+A83+0.01 -> 3.03 | B84: Bedding (new) | O84: 0.375 | P84: 0 | Q84: 0 | Z84: 0 | AA84: 0 | AB84: 0
A85: =+A84+0.01 -> 3.04 | B85: Replacement of bedding (once in 3 years) | Z85: 0 | AA85: 0 | AB85: 0
B86: Sub Total (Non Recurring) | D86: =SUM(D82:D85) -> 0 | F86: =SUM(F82:F85) -> 0 | J86: =SUM(J82:J85) -> 0 | L86: =SUM(L82:L85) -> 0 | N86: =SUM(N82:N85) -> 0 | P86: =SUM(P82:P85) -> 0 | Q86: =SUM(Q82:Q85) -> 0 | R86: =SUM(R82:R85) -> 0 | S86: =SUM(S82:S85) -> 0 | T86: =T82 -> 0 | U86: =SUM(U82:U85) -> 0 | V86: =V82 -> 0 | W86: =SUM(W82:W85) -> 0 | Y86: =Y82 -> 0 | Z86: =SUM(Z82:Z85) -> 0 | AA86: =AA82 -> 0 | AB86: =SUM(AB82:AB85) -> 0
B87: Recurring (50 children)
A88: 3.05 | B88: Maintenance per child Per month @ Rs.1500/- | Z88: =X88*Y88 -> 0 | AA88: =Y88 -> 0 | AB88: =U88+W88+Z88 -> 0
A89: =+A88+0.01 -> 3.06 | B89: Stipend per child per month @ Rs.100/- | Z89: 0 | AA89: 0 | AB89: 0
A90: =+A89+0.01 -> 3.07 | B90: Supplementary TLM, Stationery and other educational material @Rs.1000/- per child per annum | Z90: 0 | AA90: 0 | AB90: 0
B91: Salaries
A92: (a) | B92: 1 Warden @ Rs.25000/- per month | Z92: =X92*Y92 -> 0 | AA92: =Y92 -> 0 | AB92: =U92+W92+Z92 -> 0
A93: (b) | B93: 4 Fulltime teachers as per RTE Norms @ Rs. 20,000/- per month per teacher | Z93: 0 | AA93: 0 | AB93: 0
A94: (c) | B94: 2 Urdu Teachers (only for Blocks with muslim population above 20% and select urban areas) @ Rs.12,000/- per month per teacher. | Z94: 0 | AA94: 0 | AB94: 0
A95: (d) | B95: 3 Part time teachers @ Rs.5,000/- per month per teacher | Z95: 0 | AA95: 0 | AB95: 0
A96: (e) | B96: 1 Full time Accountant @ Rs. 10,000/- per month | Z96: 0 | AA96: 0 | AB96: 0
A97: (f) | B97: 2 Support staff - (Accountant/Assistant, Peon, Chowkidar) @ Rs. 5,000/- per month per staff | Z97: 0 | AA97: 0 | AB97: 0
A98: (g) | B98: 1 Head Cook @ Rs. 6,000/- per month and upto 2 Asstt. Cooks @ Rs. 4,500/- per month per cook | Z98: 0 | AA98: 0 | AB98: 0
A99: 3.08 | B99: Specific Skill training @ Rs.1000/- per annum per child | Z99: 0 | AA99: 0 | AB99: 0
A100: =+A99+0.01 -> 3.09 | B100: Electricity / water charges @ Rs. 1000/- per annum per child | Z100: 0 | AA100: 0 | AB100: 0
A101: 3.1 | B101: Medical care/contingencies @ Rs.1250/- per annum per child | Z101: 0 | AA101: 0 | AB101: 0
A102: 3.11 | B102: Maintenance @ Rs. 750/- per child per annum | Z102: 0 | AA102: 0 | AB102: 0
A103: 3.12 | B103: Miscellaneous @ Rs. 750/- per child per annum | Z103: 0 | AA103: 0 | AB103: 0
A104: 3.13 | B104: Preparatory camps @ Rs. 300/- per child per annum | Z104: 0 | AA104: 0 | AB104: 0
A105: 3.14 | B105: P.T.A / school functions @ Rs. 300/- per child per annum | Z105: 0 | AA105: 0 | AB105: 0
A106: 3.15 | B106: Provision of Rent @ Rs. 10,000/- per child per annum | Z106: 0 | AA106: 0 | AB106: 0
A107: 3.16 | B107: Capacity Building @ Rs. 500/- per child per annum | Z107: 0 | AA107: 0 | AB107: 0
A108: 3.17 | B108: Physical / Self Defence Training @ Rs.200/- per child per annum | Z108: 0 | AA108: 0 | AB108: 0
B109: Sub Total (Recurring) | D109: =SUM(D88:D108) -> 0 | F109: =SUM(F88:F108) -> 0 | J109: =SUM(J88:J108) -> 0 | L109: =SUM(L88:L108) -> 0 | N109: =SUM(N88:N108) -> 0 | P109: =SUM(P88:P108) -> 0 | Q109: 0 | R109: 0 | S109: 0 | T109: 0 | U109: 0 | V109: 0 | W109: 0 | Y109: =SUM(Y88:Y108) -> 0 | Z109: =SUM(Z88:Z108) -> 0 | AA109: =SUM(AA88:AA108) -> 0 | AB109: =SUM(AB88:AB108) -> 0
B110: Total (Non Recurring + Recurring) | D110: =D86+D109 -> 0 | F110: =F86+F109 -> 0 | J110: =J86+J109 -> 0 | L110: =L86+L109 -> 0 | N110: =N86+N109 -> 0 | P110: =P86+P109 -> 0 | Q110: 0 | R110: 0 | S110: 0 | T110: 0 | U110: 0 | V110: 0 | W110: 0 | Y110: =Y86+Y109 -> 0 | Z110: =Z86+Z109 -> 0 | AA110: =AA86+AA109 -> 0 | AB110: =AB86+AB109 -> 0
A111: (B) | B111: 100 Children
B112: Non-recurring (one time grant)
A113: 3.18 | B113: Furniture / Equipment (including kitchen equipment) | O113: 3 | P113: 0 | Q113: =O113*P113 -> 0 | Z113: =X113*Y113 -> 0 | AA113: =Y113 -> 0 | AB113: =U113+W113+Z113 -> 0
A114: =+A113+0.01 -> 3.19 | B114: TLM and equipment including library books (New) | O114: 3.5 | P114: 0 | Q114: =O114*P114 -> 0 | Z114: 0 | AA114: 0 | AB114: 0
A115: =+A114+0.01 -> 3.2 | B115: Bedding (New) | O115: 0.75 | P115: 0 | Q115: 0 | Z115: 0 | AA115: 0 | AB115: 0
A116: =+A115+0.01 -> 3.21 | B116: Replacement of bedding (once in 3 years) | Z116: 0 | AA116: 0 | AB116: 0
B117: Sub Total Non-recurring | C117: =C113 -> 0 | D117: =SUM(D113:D116) -> 0 | E117: =E113 -> 0 | F117: =SUM(F113:F116) -> 0 | I117: =I113 -> 0 | J117: =SUM(J113:J116) -> 0 | K117: =K113 -> 0 | L117: =SUM(L113:L116) -> 0 | M117: =M113 -> 0 | N117: =SUM(N113:N116) -> 0 | P117: =P113 -> 0 | Q117: =SUM(Q113:Q116) -> 0 | R117: =R113 -> 0 | S117: =SUM(S113:S116) -> 0 | T117: =T113 -> 0 | U117: =SUM(U113:U116) -> 0 | V117: =V113 -> 0 | W117: =SUM(W113:W116) -> 0 | Y117: =Y113 -> 0 | Z117: =SUM(Z113:Z116) -> 0 | AA117: =AA113 -> 0 | AB117: =SUM(AB113:AB116) -> 0
B118: Recurring
A119: 3.22 | B119: Maintenance per child per month @ Rs. 1500/- | Z119: =X119*Y119 -> 0 | AA119: =Y119 -> 0 | AB119: =U119+W119+Z119 -> 0
A120: =+A119+0.01 -> 3.23 | B120: Stipend per child per month @ Rs.100/- | Z120: 0 | AA120: 0 | AB120: 0
A121: =+A120+0.01 -> 3.24 | B121: Supplementary TLM, Stationery and other educational material per child @1000/- per annum | Z121: 0 | AA121: 0 | AB121: 0
B122: Salaries
A123: (a) | B123: 1 Warden @ Rs. 25,000/- per month | Z123: =X123*Y123 -> 0 | AA123: =Y123 -> 0 | AB123: =U123+W123+Z123 -> 0
A124: (b) | B124: 1 head teacher @ Rs. 25,000/- per month in case the enrollment exceeds 100 | Z124: 0 | AA124: 0 | AB124: 0
A125: (c) | B125: 4 - 5 Full time teachers as per RTE norms @ Rs. 20,000/- per month per teacher | Z125: 0 | AA125: 0 | AB125: 0
A126: (d) | B126: 2 Urdu Teachers (only for blocks with muslim population above 20% and select urban areas), if required @ Rs. 12,000/- per month per teacher | Z126: 0 | AA126: 0 | AB126: 0
A127: (e) | B127: 3 part time teachers @ Rs. 5,000/- per month per teacher | Z127: 0 | AA127: 0 | AB127: 0
A128: (f) | B128: 1 Full time Accountant @ Rs. 10,000/- per month | Z128: 0 | AA128: 0 | AB128: 0
A129: 3.25 | B129: 2 Support Staff – (Accountant/ Assistant, Peon, Chowkidar) @ Rs. 5,000/- per month per staff | Z129: 0 | AA129: 0 | AB129: 0
A130: =+A129+0.01 -> 3.26 | B130: 1 Head cook @ Rs. 6,000/- per month and upto 2 Asstt. Cooks @ Rs. 4,500/- per month per cook | Z130: 0 | AA130: 0 | AB130: 0
A131: 3.27 | B131: Specific skill training per child @ Rs.1000/- per annum | Z131: 0 | AA131: 0 | AB131: 0
A132: 3.28 | B132: Electricity / water charges per child @Rs.1000/- per annum | Z132: 0 | AA132: 0 | AB132: 0
A133: 3.29 | B133: Medical care/contingencies @ Rs.1250/- per child per annum | Z133: 0 | AA133: 0 | AB133: 0
A134: 3.3 | B134: Maintenance @ Rs.750/- per child per annum | Z134: 0 | AA134: 0 | AB134: 0
A135: 3.31 | B135: Miscellaneous @ Rs.750/- per child per annum | Z135: 0 | AA135: 0 | AB135: 0
A136: 3.32 | B136: Preparatory camps @ Rs.200/- per child per annum | Z136: 0 | AA136: 0 | AB136: 0
A137: 3.33 | B137: P.T.A / school functions @ Rs.200/- per child per annum | Z137: 0 | AA137: 0 | AB137: 0
A138: 3.34 | B138: Provision of Rent @ Rs. 6000/- per child per annum | Z138: 0 | AA138: 0 | AB138: 0
A139: 3.35 | B139: Capacity Building @ Rs.500/- per child per annum | Z139: 0 | AA139: 0 | AB139: 0
A140: 3.36 | B140: Physical / Self Defence training @ Rs. 200/- per child per annum. | Z140: 0 | AA140: 0 | AB140: 0
B141: Sub Total (Recurring) | D141: =SUM(D119:D140) -> 0 | F141: =SUM(F119:F140) -> 0 | J141: =SUM(J119:J140) -> 0 | L141: =SUM(L119:L140) -> 0 | N141: =SUM(N119:N140) -> 0 | Q141: =SUM(Q119:Q140) -> 0 | S141: =SUM(S119:S140) -> 0 | U141: =SUM(U119:U140) -> 0 | W141: =SUM(W119:W140) -> 0 | Z141: =SUM(Z119:Z140) -> 0 | AB141: =SUM(AB119:AB140) -> 0
B142: Total (Recurring + Non Recurring) | D142: =D117+D141 -> 0 | F142: =F117+F141 -> 0 | J142: =J117+J141 -> 0 | L142: =L117+L141 -> 0 | N142: =N117+N141 -> 0 | P142: =P117+P141 -> 0 | Q142: 0 | R142: 0 | S142: 0 | T142: 0 | U142: 0 | V142: 0 | W142: 0 | Y142: =Y117+Y141 -> 0 | Z142: =Z117+Z141 -> 0 | AA142: =AA117+AA141 -> 0 | AB142: =AB117+AB141 -> 0
B143: Total (A + B) | D143: =D110+D142 -> 0 | F143: =F110+F142 -> 0 | J143: =J110+J142 -> 0 | L143: =L110+L142 -> 0 | N143: =N110+N142 -> 0 | P143: =P110+P142 -> 0 | Q143: =Q110+Q142 -> 0 | S143: =S110+S142 -> 0 | U143: =U110+U142 -> 0 | W143: =W110+W142 -> 0 | Z143: =Z110+Z142 -> 0 | AB143: =AB110+AB142 -> 0
A144: 4 | B144: Transport/Escort Facility
A145: 4.01 | B145: Children in remote habitation | O145: 0.03 | P145: 0 | Q145: =P145*O145 -> 0 | R145: =K145+M145+P145 -> 0 | S145: 0 | X145: 0.03 | Y145: 0 | Z145: =X145*Y145 -> 0 | AA145: =Y145 -> 0 | AB145: =U145+W145+Z145 -> 0
A146: 4.02 | B146: Urban deprived children/children without adult protection | P146: 0 | Q146: =P146*O146 -> 0 | R146: 0 | S146: 0 | Z146: 0 | AA146: 0 | AB146: 0
B147: Sub Total | C147: =SUM(C145:C146) -> 0 | D147: =SUM(D145:D146) -> 0 | E147: =SUM(E145:E146) -> 0 | F147: =SUM(F145:F146) -> 0 | I147: =SUM(I145:I146) -> 0 | J147: 0 | K147: 0 | L147: 0 | M147: 0 | N147: 0 | P147: =SUM(P145:P146) -> 0 | Q147: 0 | R147: 0 | S147: 0 | T147: 0 | U147: 0 | V147: 0 | W147: 0 | Y147: =SUM(Y145:Y146) -> 0 | Z147: =SUM(Z145:Z146) -> 0 | AA147: =SUM(AA145:AA146) -> 0 | AB147: =SUM(AB145:AB146) -> 0
A148: 5 | B148: Reimbursement of Fee against 25% admission under Section 12(1)(c) of RTE Act 2009 (Entry Level) subject to upper limit of 20% of AWP&B subject to guidelines issued by MHRD | Z148: =X148*Y148 -> 0 | AA148: =Y148 -> 0 | AB148: =U148+W148+Z148 -> 0
B149: Sub Total | C149: =C148 -> 0 | D149: =D148 -> 0 | E149: =E148 -> 0 | F149: =F148 -> 0 | I149: =I148 -> 0 | J149: 0 | K149: 0 | L149: 0 | M149: 0 | N149: 0 | P149: =P148 -> 0 | Q149: 0 | R149: 0 | S149: 0 | T149: 0 | U149: 0 | V149: 0 | W149: 0 | Y149: =Y148 -> 0 | Z149: =Z148 -> 0 | AA149: =AA148 -> 0 | AB149: =AB148 -> 0
A150: =+A148+1 -> 6 | B150: Special Training for mainstreaming of out of school children
A151: 6.01 | B151: Residential (Fresh)
B152: (a) 12 months | Z152: =X152*Y152 -> 0 | AA152: =Y152 -> 0 | AB152: =U152+W152+Z152 -> 0
B153: (b) 9 months | Z153: 0 | AA153: 0 | AB153: 0
B154: (c) 6 months | Z154: 0 | AA154: 0 | AB154: 0
B155: (d) 3 months | Z155: 0 | AA155: 0 | AB155: 0
B156: Sub Total | C156: =SUM(C152:C155) -> 0 | D156: =SUM(D152:D155) -> 0 | E156: =SUM(E152:E155) -> 0 | F156: =SUM(F152:F155) -> 0 | I156: =SUM(I152:I155) -> 0 | J156: 0 | K156: 0 | L156: 0 | M156: 0 | N156: 0 | P156: =SUM(P152:P155) -> 0 | Q156: =SUM(Q152:Q155) -> 0 | R156: =SUM(R152:R155) -> 0 | S156: =SUM(S152:S155) -> 0 | T156: =SUM(T152:T155) -> 0 | U156: 0 | V156: 0 | W156: 0 | Y156: =SUM(Y152:Y155) -> 0 | Z156: 0 | AA156: 0 | AB156: 0
A157: =+A151+0.01 -> 6.02 | B157: Residential (Continuing from previous year)
B158: (a) 12 months | Z158: =X158*Y158 -> 0 | AA158: =Y158 -> 0 | AB158: =U158+W158+Z158 -> 0
B159: (b) 9 months | Z159: 0 | AA159: 0 | AB159: 0
B160: (c) 6 months | Z160: 0 | AA160: 0 | AB160: 0
B161: (d) 3 months | Z161: 0 | AA161: 0 | AB161: 0
B162: Sub Total | C162: =SUM(C158:C161) -> 0 | D162: =SUM(D158:D161) -> 0 | E162: =SUM(E158:E161) -> 0 | F162: =SUM(F158:F161) -> 0 | I162: =SUM(I158:I161) -> 0 | J162: 0 | K162: 0 | L162: 0 | M162: 0 | N162: 0 | P162: =SUM(P158:P161) -> 0 | Q162: 0 | R162: 0 | S162: 0 | T162: 0 | U162: 0 | V162: 0 | W162: 0 | Y162: =SUM(Y158:Y161) -> 0 | Z162: 0 | AA162: 0 | AB162: 0
A163: 6.03 | B163: Non-Residential (Fresh)
B164: (a) 12 months | C164: 0 | D164: 0 | E164: 0 | F164: 0 | G164: =E164/C164*100 ->  | H164: =F164/D164*100 ->  | I164: =C164-E164 -> 0 | J164: =D164-F164 -> 0 | O164: 0.06 | P164: 0 | Q164: =O164*P164 -> 0 | R164: =K164+M164+P164 -> 0 | S164: =L164+N164+Q164 -> 0 | X164: 0.06 | Z164: =X164*Y164 -> 0 | AA164: =Y164 -> 0 | AB164: =U164+W164+Z164 -> 0
B165: (b) 9 months | C165: 0 | D165: 0 | E165: 0 | F165: 0 | O165: 0 | P165: 0 | Q165: =O165*P165 -> 0 | R165: =K165+M165+P165 -> 0 | S165: =L165+N165+Q165 -> 0 | X165: 0 | Y165: 0 | Z165: 0 | AA165: 0 | AB165: 0
B166: (c) 6 months | Q166: =O166*P166 -> 0 | R166: 0 | S166: 0 | Z166: 0 | AA166: 0 | AB166: 0
B167: (d) 3 months | Q167: =O167*P167 -> 0 | R167: 0 | S167: 0 | Z167: 0 | AA167: 0 | AB167: 0
B168: Sub Total | C168: =SUM(C164:C167) -> 0 | D168: =SUM(D164:D167) -> 0 | E168: =SUM(E164:E167) -> 0 | F168: =SUM(F164:F167) -> 0 | G168: =E168/C168*100 ->  | H168: =F168/D168*100 ->  | I168: =SUM(I164:I167) -> 0 | J168: 0 | K168: 0 | L168: 0 | M168: 0 | N168: 0 | P168: =SUM(P164:P167) -> 0 | Q168: 0 | R168: 0 | S168: 0 | T168: 0 | U168: 0 | V168: 0 | W168: 0 | Y168: =SUM(Y164:Y167) -> 0 | Z168: 0 | AA168: 0 | AB168: 0
A169: 6.04 | B169: Non-Residential (Continuing from previous year)
B170: (a) 12 months | C170: 0 | D170: 0 | E170: 0 | F170: 0 | O170: 0 | P170: 0 | Q170: =O170*P170 -> 0 | R170: =P170 -> 0 | S170: =L170+N170+Q170 -> 0 | X170: 0 | Y170: 0 | Z170: =X170*Y170 -> 0 | AA170: =Y170 -> 0 | AB170: =U170+W170+Z170 -> 0
B171: (b) 9 months | O171: 0.045 | P171: 0 | Q171: =P171*O171 -> 0 | R171: =P171 -> 0 | S171: =L171+N171+Q171 -> 0 | X171: 0.045 | Y171: 0 | Z171: =Y171*X171 -> 0 | AA171: 0 | AB171: 0
B172: (c) 6 months | R172: 0 | S172: 0 | Z172: 0 | AA172: 0 | AB172: 0
B173: (d) 3 months | R173: 0 | S173: 0 | Z173: 0 | AA173: 0 | AB173: 0
B174: Sub Total | C174: =SUM(C170:C173) -> 0 | D174: =SUM(D170:D173) -> 0 | E174: =SUM(E170:E173) -> 0 | F174: =SUM(F170:F173) -> 0 | I174: =SUM(I170:I173) -> 0 | J174: 0 | K174: 0 | L174: 0 | M174: 0 | N174: 0 | P174: =SUM(P170:P173) -> 0 | Q174: 0 | R174: 0 | S174: 0 | T174: 0 | U174: 0 | V174: 0 | W174: 0 | Y174: =SUM(Y170:Y173) -> 0 | Z174: 0 | AA174: 0 | AB174: 0
A175: 6.05 | B175: Madarasa/Maktab
B176: (a) 12 months | Z176: =X176*Y176 -> 0 | AA176: =Y176 -> 0 | AB176: =U176+W176+Z176 -> 0
B177: (b) 9 months | Z177: 0 | AA177: 0 | AB177: 0
B178: (c) 6 months | Z178: 0 | AA178: 0 | AB178: 0
B179: (d) 3 months | Z179: 0 | AA179: 0 | AB179: 0
B180: Sub Total | C180: =SUM(C176:C179) -> 0 | D180: =SUM(D176:D179) -> 0 | E180: =SUM(E176:E179) -> 0 | F180: =SUM(F176:F179) -> 0 | I180: =SUM(I176:I179) -> 0 | J180: 0 | K180: 0 | L180: 0 | M180: 0 | N180: 0 | P180: =SUM(P176:P179) -> 0 | Q180: 0 | R180: 0 | S180: 0 | T180: 0 | U180: 0 | V180: 0 | W180: 0 | Y180: =SUM(Y176:Y179) -> 0 | Z180: 0 | AA180: 0 | AB180: 0
A181: 6.06 | B181: Seasonal Hostel (Residential)
B182: (a) 12 months | Z182: =X182*Y182 -> 0 | AA182: =Y182 -> 0 | AB182: =U182+W182+Z182 -> 0
B183: (b) 9 months | Z183: 0 | AA183: 0 | AB183: 0
B184: (c) 6 months | Z184: 0 | AA184: 0 | AB184: 0
B185: (d) 3 months | Z185: 0 | AA185: 0 | AB185: 0
B186: Sub Total | C186: =SUM(C182:C185) -> 0 | D186: =SUM(D182:D185) -> 0 | E186: =SUM(E182:E185) -> 0 | F186: =SUM(F182:F185) -> 0 | I186: =SUM(I182:I185) -> 0 | J186: 0 | K186: 0 | L186: 0 | M186: 0 | N186: 0 | P186: =SUM(P182:P185) -> 0 | Q186: 0 | R186: 0 | S186: 0 | T186: 0 | U186: 0 | V186: 0 | W186: 0 | Y186: =SUM(Y182:Y185) -> 0 | Z186: 0 | AA186: 0 | AB186: 0
A187: 6.07 | B187: Seasonal Hostel (Non Residential)
B188: (a) 12 months | Z188: =X188*Y188 -> 0 | AA188: =Y188 -> 0 | AB188: =U188+W188+Z188 -> 0
B189: (b) 9 months | Z189: 0 | AA189: 0 | AB189: 0
B190: (c) 6 months | Z190: 0 | AA190: 0 | AB190: 0
B191: (d) 3 months | Z191: 0 | AA191: 0 | AB191: 0
B192: Sub Total | C192: =SUM(C188:C191) -> 0 | D192: =SUM(D188:D191) -> 0 | E192: =SUM(E188:E191) -> 0 | F192: =SUM(F188:F191) -> 0 | I192: =SUM(I188:I191) -> 0 | J192: 0 | K192: 0 | L192: 0 | M192: 0 | N192: 0 | P192: =SUM(P188:P191) -> 0 | Q192: 0 | R192: 0 | S192: 0 | T192: 0 | U192: 0 | V192: 0 | W192: 0 | Y192: =SUM(Y188:Y191) -> 0 | Z192: 0 | AA192: 0 | AB192: 0
B193: Total | C193: =C162+C168+C174+C180+C186+C192 -> 0 | D193: =D156+D162+D168+D174+D180+D186+D192 -> 0 | E193: =E162+E168+E174+E180+E186+E192 -> 0 | F193: =F156+F162+F168+F174+F180+F186+F192 -> 0 | I193: =I162+I168+I174+I180+I186+I192 -> 0 | J193: =J156+J162+J168+J174+J180+J186+J192 -> 0 | K193: =K162+K168+K174+K180+K186+K192 -> 0 | L193: =L156+L162+L168+L174+L180+L186+L192 -> 0 | M193: =M162+M168+M174+M180+M186+M192 -> 0 | N193: =N156+N162+N168+N174+N180+N186+N192 -> 0 | P193: =P162+P168+P174+P180+P186+P192 -> 0 | Q193: =Q156+Q162+Q168+Q174+Q180+Q186+Q192 -> 0 | R193: =R162+R168+R174+R180+R186+R192 -> 0 | S193: =S156+S162+S168+S174+S180+S186+S192 -> 0 | T193: =T162+T168+T174+T180+T186+T192 -> 0 | U193: =U156+U162+U168+U174+U180+U186+U192 -> 0 | V193: =V162+V168+V174+V180+V186+V192 -> 0 | W193: =W156+W162+W168+W174+W180+W186+W192 -> 0 | Y193: =Y162+Y168+Y174+Y180+Y186+Y192 -> 0 | Z193: =Z156+Z162+Z168+Z174+Z180+Z186+Z192 -> 0 | AA193: =AA162+AA168+AA174+AA180+AA186+AA192 -> 0 | AB193: =AB156+AB162+AB168+AB174+AB180+AB186+AB192 -> 0
A194: II | B194: RETENTION
A195: 7 | B195: Free Text Books
A196: 7.01 | B196: Free Text Books (P)
B197: (a) Class I & II | C197: 12197 | D197: 18.2955 | E197: 12197 | F197: 18.2955 | G197: =E197/C197*100 -> 100 | H197: =F197/D197*100 -> 100 | I197: =C197-E197 -> 0 | J197: =D197-F197 -> 0 | N197: 0 | O197: 0.0025 | P197: 12097 | Q197: =O197*P197 -> 30.2425 | R197: =K197+M197+P197 -> 12097 | S197: 30.2425 | X197: 0.0015 | Y197: 12097 | Z197: =X197*Y197 -> 18.1455 | AA197: =Y197 -> 12097 | AB197: =U197+W197+Z197 -> 18.1455
B198: (b) Braille Books I & II | C198: 3 | D198: 0.0045 | E198: 3 | F198: 0.0045 | G198: 100 | H198: 100 | I198: 0 | J198: 0 | O198: 0.0025 | P198: 2 | Q198: =O198*P198 -> 0.005 | R198: 2 | S198: 0.005 | X198: 0.0015 | Y198: 2 | Z198: 0.003 | AA198: 2 | AB198: 0.003
B199: (c) Large Print Books I & II | C199: 0 | D199: 0 | E199: 0 | F199: 0 | I199: 0 | J199: 0 | O199: 0.0025 | P199: 0 | Q199: =O199*P199 -> 0 | R199: 0 | S199: 0 | X199: 0.0015 | Y199: 0 | Z199: 0 | AA199: 0 | AB199: 0
B200: (d) Class III to V | C200: 44619 | D200: 66.9285 | E200: 44619 | F200: 66.9285 | G200: 100 | H200: 100 | I200: 0 | J200: 0 | O200: 0.0025 | P200: 44212 | Q200: =O200*P200 -> 110.53 | R200: =K200+M200+P200 -> 44212 | S200: 110.53 | X200: 0.0015 | Y200: 44212 | Z200: 66.318 | AA200: 44212 | AB200: 66.318
... 326 more rows

Sheet KTM
A1: S.No. | B1: Activity | C1: Year 2016-17 | K1: Outlay Proposed for 2017-18 | T1: Outlay Recommended for 2017-18
C2: Outlay approved by PAB (including spillover) | E2: Achievement | I2: Savings | K2: Spill Over | M2: Deferred laibility of 2016-17 | O2: Fresh | R2: Total | T2: Spill Over | V2: Deferred laibility of 2016-17 | X2: Fresh | AA2: Total
C3: Phy. | D3: Fin | E3: Phy. | F3: Fin. | G3: Phy. (%) | H3: Fin. (%) | I3: Phy. | J3: Fin. | K3: Phy. | L3: Fin. | M3: Phy. | N3: Fin. | O3: Unit Cost | P3: Phy. | Q3: Fin. | R3: Phy. | S3: Fin. | T3: Phy. | U3: Fin. | V3: Phy. | W3: Fin. | X3: Unit Cost | Y3: Phy. | Z3: Fin. | AA3: Phy. | AB3: Fin.
A4: I | B4: ACCESS
B5: SSA
A6: 1 | B6: Opening of New Schools
A7: 1.01 | B7: New Primary School | AA7: =Y7 -> 0
A8: 1.02 | B8: Upgradation of PS to UPS | AA8: =Y8 -> 0
A9: 1.03 | B9: Composite Schools | AA9: 0
A10: 1.04 | B10: Residential schools for specific category of children | AA10: 0
A11: 1.05 | B11: Residential Hostel | AA11: 0
A12: 1.06 | B12: Integration of Class V with primary schools | AA12: 0
A13: 1.07 | B13: Integration of Class VIII with upper primary schools | AA13: 0
A14: 2 | B14: Residential Schools for specific category of children
B15: 50 children
B16: Non-recurring (one time grant)
A17: 2.01 | B17: Furniture/ Equipment (including kitchen) | P17: 0 | Q17: 0 | R17: =K17+M17+P17 -> 0 | S17: =L17+N17+Q17 -> 0 | Z17: =X17*Y17 -> 0 | AA17: =Y17 -> 0 | AB17: =U17+W17+Z17 -> 0
A18: 2.02 | B18: TLM and equipment including library books | P18: 0 | Q18: 0 | R18: 0 | S18: 0 | Z18: =X18*Y18 -> 0 | AA18: =Y18 -> 0 | AB18: =U18+W18+Z18 -> 0
A19: 2.03 | B19: Bedding (new) | P19: 0 | Q19: 0 | R19: 0 | S19: 0 | Z19: 0 | AA19: 0 | AB19: 0
A20: 2.04 | B20: Replacement of bedding (once in 3 years) | Z20: 0 | AA20: 0 | AB20: 0
B21: Sub Total (Non Recurring) | D21: =SUM(D17:D20) -> 0 | F21: =SUM(F17:F20) -> 0 | J21: =SUM(J17:J20) -> 0 | L21: =SUM(L17:L20) -> 0 | N21: =SUM(N17:N20) -> 0 | P21: =SUM(P17:P20) -> 0 | Q21: =SUM(Q17:Q20) -> 0 | R21: =SUM(R17:R20) -> 0 | S21: =SUM(S17:S20) -> 0 | U21: =SUM(U17:U20) -> 0 | W21: =SUM(W17:W20) -> 0 | Z21: =SUM(Z17:Z20) -> 0 | AB21: =SUM(AB17:AB20) -> 0
B22: Recurring (50 children)
A23: 2.05 | B23: Maintenance per child Per month @ Rs.1500/- | Z23: =X23*Y23 -> 0 | AA23: =Y23 -> 0 | AB23: =U23+W23+Z23 -> 0
A24: 2.06 | B24: Stipend per child per month @ Rs.100/- | Z24: 0 | AA24: 0 | AB24: 0
A25: 2.07 | B25: Supplementary TLM, Stationery and other educational material @Rs.1000/- per child per annum | Z25: 0 | AA25: 0 | AB25: 0
A26: 2.08 | B26: Salaries
A27: (a) | B27: 1 Warden @ Rs.25000/- per month | Z27: =X27*Y27 -> 0 | AA27: =Y27 -> 0 | AB27: =U27+W27+Z27 -> 0
A28: (b) | B28: 4 Fulltime teachers as per RTE Norms @ Rs. 20,000/- per month per teacher | Z28: 0 | AA28: 0 | AB28: 0
A29: (c) | B29: 2 Urdu Teachers (only for Blocks with muslim population above 20% and select urban areas) @ Rs.12,000/- per month per teacher. | Z29: 0 | AA29: 0 | AB29: 0
A30: (d) | B30: 3 Part time teachers @ Rs.5,000/- per month per teacher | Z30: 0 | AA30: 0 | AB30: 0
A31: (e) | B31: 1 Full time Accountant @ Rs. 10,000/- per month | Z31: 0 | AA31: 0 | AB31: 0
A32: (f) | B32: 2 Support staff - (Accountant/Assistant, Peon, Chowkidar) @ Rs. 5,000/- per month per staff | Z32: 0 | AA32: 0 | AB32: 0
A33: (g) | B33: 1 Head Cook @ Rs. 6,000/- per month and upto 2 Asstt. Cooks @ Rs. 4,500/- per month per cook | Z33: 0 | AA33: 0 | AB33: 0
A34: 2.09 | B34: Specific Skill training @ Rs.1000/- per annum per child | Z34: 0 | AA34: 0 | AB34: 0
A35: 2.1 | B35: Electricity / water charges @ Rs. 1000/- per annum per child | Z35: 0 | AA35: 0 | AB35: 0
A36: =+A35+0.01 -> 2.11 | B36: Medical care/contingencies @ Rs.1250/- per annum per child | Z36: =X36*Y36 -> 0 | AA36: =Y36 -> 0 | AB36: =U36+W36+Z36 -> 0
A37: =+A36+0.01 -> 2.12 | B37: Maintenance @ Rs. 750/- per child per annum | Z37: 0 | AA37: 0 | AB37: 0
A38: 2.13 | B38: Miscellaneous @ Rs. 750/- per child per annum | Z38: 0 | AA38: 0 | AB38: 0
A39: 2.14 | B39: Preparatory camps @ Rs. 300/- per child per annum | Z39: 0 | AA39: 0 | AB39: 0
A40: 2.15 | B40: P.T.A / school functions @ Rs. 300/- per child per annum | Z40: 0 | AA40: 0 | AB40: 0
A41: 2.16 | B41: Provision of Rent @ Rs. 10,000/- per child per annum | Z41: 0 | AA41: 0 | AB41: 0
A42: 2.17 | B42: Capacity Building @ Rs. 500/- per child per annum | Z42: 0 | AA42: 0 | AB42: 0
A43: 2.18 | B43: Physical / Self Defence Training @ Rs.200/- per child per annum | Z43: 0 | AA43: 0 | AB43: 0
B44: Sub Total (Recurring) | D44: =SUM(D23:D43) -> 0 | F44: =SUM(F23:F43) -> 0 | J44: =SUM(J23:J43) -> 0 | L44: =SUM(L23:L43) -> 0 | N44: =SUM(N23:N43) -> 0 | Q44: =SUM(Q23:Q43) -> 0 | S44: =SUM(S23:S43) -> 0 | U44: =SUM(U23:U43) -> 0 | W44: =SUM(W23:W43) -> 0 | Z44: =SUM(Z23:Z43) -> 0 | AB44: =SUM(AB23:AB43) -> 0
B45: Total (Non Recurring + Recurring) | D45: =D21+D44 -> 0 | F45: =F21+F44 -> 0 | J45: =J21+J44 -> 0 | L45: =L21+L44 -> 0 | N45: =N21+N44 -> 0 | Q45: =Q21+Q44 -> 0 | S45: =S21+S44 -> 0 | U45: =U21+U44 -> 0 | W45: =W21+W44 -> 0 | Z45: =Z21+Z44 -> 0 | AB45: =AB21+AB44 -> 0
B46: 100 children
B47: Non-recurring (one time grant)
A48: 2.19 | B48: Furniture / Equipment (including kitchen equipment) | Z48: =X48*Y48 -> 0 | AA48: =Y48 -> 0 | AB48: =U48+W48+Z48 -> 0
A49: =+A48+0.01 -> 2.2 | B49: TLM and equipment including library books (New) | Z49: 0 | AA49: 0 | AB49: 0
A50: =+A49+0.01 -> 2.21 | B50: Bedding (New) | Z50: 0 | AA50: 0 | AB50: 0
A51: =+A50+0.01 -> 2.22 | B51: Replacement of bedding (once in 3 years) | Z51: 0 | AA51: 0 | AB51: 0
B52: Sub Total Non-recurring | D52: =SUM(D48:D51) -> 0 | F52: =SUM(F48:F51) -> 0 | J52: =SUM(J48:J51) -> 0 | L52: =SUM(L48:L51) -> 0 | N52: =SUM(N48:N51) -> 0 | Q52: =SUM(Q48:Q51) -> 0 | S52: =SUM(S48:S51) -> 0 | U52: =SUM(U48:U51) -> 0 | W52: =SUM(W48:W51) -> 0 | Z52: =SUM(Z48:Z51) -> 0 | AB52: =SUM(AB48:AB51) -> 0
B53: Recurring
A54: 2.23 | B54: Maintenance per child per month @ Rs. 1500/- | Z54: =X54*Y54 -> 0 | AA54: =Y54 -> 0 | AB54: =U54+W54+Z54 -> 0
A55: =+A54+0.01 -> 2.24 | B55: Stipend per child per month @ Rs.100/- | Z55: 0 | AA55: 0 | AB55: 0
A56: 2.25 | B56: Supplementary TLM, Stationery and other educational material per child @1000/- per annum | Z56: 0 | AA56: 0 | AB56: 0
A57: 2.26 | B57: Salaries
A58: (a) | B58: 1 Warden @ Rs. 25,000/- per month | Z58: =X58*Y58 -> 0 | AA58: =Y58 -> 0 | AB58: =U58+W58+Z58 -> 0
A59: (b) | B59: 1 head teacher @ Rs. 25,000/- per month in case the enrollment exceeds 100 | Z59: 0 | AA59: 0 | AB59: 0
A60: (c) | B60: 4 - 5 Full time teachers as per RTE norms @ Rs. 20,000/- per month per teacher | Z60: 0 | AA60: 0 | AB60: 0
A61: (d) | B61: 2 Urdu Teachers (only for blocks with muslim population above 20% and select urban areas), if required @ Rs. 12,000/- per month per teacher | Z61: 0 | AA61: 0 | AB61: 0
A62: (e) | B62: 3 part time teachers @ Rs. 5,000/- per month per teacher | Z62: 0 | AA62: 0 | AB62: 0
A63: (f) | B63: 1 Full time Accountant @ Rs. 10,000/- per month | Z63: 0 | AA63: 0 | AB63: 0
A64: (g) | B64: 2 Support Staff – (Accountant/ Assistant, Peon, Chowkidar) @ Rs. 5,000/- per month per staff | Z64: 0 | AA64: 0 | AB64: 0
A65: (h) | B65: 1 Head cook @ Rs. 6,000/- per month and upto 2 Asstt. Cooks @ Rs. 4,500/- per month per cook | Z65: 0 | AA65: 0 | AB65: 0
A66: 2.27 | B66: Specific skill training per child @ Rs.1000/- per annum | Z66: 0 | AA66: 0 | AB66: 0
A67: 2.28 | B67: Electricity / water charges per child @Rs.1000/- per annum | Z67: 0 | AA67: 0 | AB67: 0
A68: 2.29 | B68: Medical care/contingencies @ Rs.1250/- per child per annum | Z68: 0 | AA68: 0 | AB68: 0
A69: 2.3 | B69: Maintenance @ Rs.750/- per child per annum | Z69: 0 | AA69: 0 | AB69: 0
A70: 2.31 | B70: Miscellaneous @ Rs.750/- per child per annum | Z70: 0 | AA70: 0 | AB70: 0
A71: 2.32 | B71: Preparatory camps @ Rs.200/- per child per annum | Z71: 0 | AA71: 0 | AB71: 0
A72: 2.33 | B72: P.T.A / school functions @ Rs.200/- per child per annum | Z72: 0 | AA72: 0 | AB72: 0
A73: 2.34 | B73: Provision of Rent @ Rs. 6000/- per child per annum | Z73: 0 | AA73: 0 | AB73: 0
A74: 2.35 | B74: Capacity Building @ Rs.500/- per child per annum | Z74: 0 | AA74: 0 | AB74: 0
A75: 2.36 | B75: Physical / Self Defence training @ Rs. 200/- per child per annum. | Z75: 0 | AA75: 0 | AB75: 0
B76: Sub Total (Recurring) | D76: =SUM(D54:D75) -> 0 | F76: =SUM(F54:F75) -> 0 | J76: =SUM(J54:J75) -> 0 | L76: =SUM(L54:L75) -> 0 | N76: =SUM(N54:N75) -> 0 | Q76: =SUM(Q54:Q75) -> 0 | S76: =SUM(S54:S75) -> 0 | U76: =SUM(U54:U75) -> 0 | W76: =SUM(W54:W75) -> 0 | Z76: =SUM(Z54:Z75) -> 0 | AB76: =SUM(AB54:AB75) -> 0
B77: Total (Recurring + Non Recurring) | D77: =D52+D76 -> 0 | F77: =F52+F76 -> 0 | J77: =J52+J76 -> 0 | L77: =L52+L76 -> 0 | N77: =N52+N76 -> 0 | Q77: =Q52+Q76 -> 0 | S77: =S52+S76 -> 0 | U77: =U52+U76 -> 0 | W77: =W52+W76 -> 0 | Z77: =Z52+Z76 -> 0 | AB77: =AB52+AB76 -> 0
B78: Total (50 + 100 children)
A79: 3 | B79: Residential Hostel for specific category of children
A80: (A) | B80: 50 children
B81: Non-recurring (one time grant)
A82: 3.01 | B82: Furniture/ Equipment (including kitchen) | O82: 2 | P82: 0 | Q82: =O82*P82 -> 0 | R82: =K82+M82+P82 -> 0 | S82: =L82+N82+Q82 -> 0 | Z82: =X82*Y82 -> 0 | AA82: =Y82 -> 0 | AB82: =U82+W82+Z82 -> 0
A83: =+A82+0.01 -> 3.02 | B83: TLM and equipment including library books | O83: 3 | P83: 0 | Q83: 0 | R83: =K83+M83+P83 -> 0 | S83: =L83+N83+Q83 -> 0 | Z83: 0 | AA83: 0 | AB83: 0
